Workbook

Sheet mémo pour remplir le tableau
A1: MEMO POUR REMPLIR LE TABLEAU
A3: Ajouter un événement
A4: * | B4: Se positionner à la fin du tableau sur une nouvelle ligne
A5: * | B5: Remplir obligatoirement les colonnes A à J
A6: * | B6: Colonne K "Commentaires" optionnelle
A7: * | B7: Données des colonnes L,M, N calculées de manière automatique, servant aux tableaux bilans : Ne pas y toucher
A8: * | B8: Remplir la colonne F "Enseignant référent" en inscrivant d'abord le nom de l'enseignant, puis son prénom
A9: * | B9: Cas des accueils organisés en binôme : Inscrire dans l'ordre que vous souhaitez les deux secteurs concernés. SAUF pour les accueils effectués par la médiathèque du Rize (RIZE MED) qui doivent toujours être inscrits en colonne B. Ex : Accueil couplée médiathèque/médiation culturelle : En colonne B "RIZE MED", en colonne C "RIZE VALO"
A11: Je veux ajouter un nouvel accueil entre deux déjà existants, de manière chronologique
A12: * | B12: Ne jamais insérer une nouvelle ligne, pour éviter des erreurs aux conséquences fatales (!)
A13: * | B13: Se positionner à la fin du tableau, sur la première ligne non remplie et entrer les données
A14: * | B14: Se positionner sur la cellule A1 "Date venue", cliquer sur la flèche en bas à droite de la cellule et sélectionner "Trier du plus ancien au plus récent" afin de positionner les accueils dans l'ordre chronologique
A16: Mes événements ont disparu : vérifier qu'un filtre n'est pas actif
A17: * | B17: Dans chaque cellule de la première ligne du tableau, si un filtre est actif, un petit entonnoir apparaît :
A18: * | B18: Pour désactiver le filtre, cliquer sur cet entonnoir, puis à la fin du menu déroulant, activer la case "sélectionner tout", cliquez sur OK : tous les cellules réapparaissent
A19: * | B19: Attention, plusieurs filtres peuvent être activés en même temps : il faut tous les désactiver en suivant la procédure ci-dessus
A21: Tableaux bilans
A22: * | B22: Nombre de classes accueillies : on ne compte pas le nombre de passages de classes dans les locaux de la bibliothèque mais le nombre de classes touchées par les actions de la bibliothèque. Ex : Une classe se rendant dans la bibliothèque tous les mois pendant un an sera comptée pour 1 et non pour 12
A23: * | B23: Nombre d'enfants accueillis : Relatif au nombre de classes accueillies. Ex : 25 enfants ayant été accueillis sur un cycle de 3 séances compteront pour 25. (ne compte que si la colonne J indique "Classe accueillie pour la 1ère fois")
A24: * | B24: Nombre d’accueils de classe effectués : On rend compte du nombre de passages de classes au sein de la bibliothèque. Ex : Une classe se rendant dans la bibliothèque tous les mois pendant un an sera comptée pour 12

Sheet Données
A1: Date venue | B1: Secteur organisateur | C1: Secteur organisateur binôme | D1: Etablissement scolaire | E1: Niveau de classe | F1: Enseignant référent (Nom Prénom) | G1: Nombre enfants | H1: In situ / hors les murs | I1: Type de visite | J1: Commentaires | K1: Appréciation | L1: Groupe niveau | M1: Quartier | N1: Etablissement accueillant | O1: CléEtablissement | P1: cptEtablissement | Q1: CléRéseau-Rize horsmed | R1: cptréseau-rizehormed | S1: CléRize | T1: cptrize | U1: cléTotal | V1: cptTotal
A2: 2017-10-18 | B2: RIZE MED | D2: Jean Jaurès (primaire) | E2: gs | F2: CENT | G2: 23 | H2: In situ | I2: Visite découverte | L2: =IF(COUNTIF(Maternelle,E2)=1,listes!$T$1,IF(COUNTIF(Elémentaire,E2)=1,listes!$U$1,IF(COUNTIF(Collège,E2)=1,listes!$V$1,IF(COUNTIF(Lycée,E2)=1,listes!$W$1,"")))) -> Maternelle | M2: =VLOOKUP(T_sept_dec[[#This Row],[Etablissement scolaire]],Regroupements!$T:$U,2,FALSE) -> Ferrandière-Maisons Neuves | N2: =IF(COUNTIF(FDL,B2)=1,"FDL",IF(COUNTIF(RIZE,B2)=1,"RIZE",IF(COUNTIF(MLIS,B2)=1,"MLIS",IF(COUNTIF(PACBUS,B2)=1,"PAC-BUS",IF(COUNTIF(Tonkin,B2)=1,"TONKIN",""))))) -> RIZE | O2: =T_sept_dec[[#This Row],[Etablissement accueillant]]&"-"&T_sept_dec[[#This Row],[Enseignant référent (Nom Prénom)]] -> RIZE-CENT | P2: =1/COUNTIF(T_sept_dec[CléEtablissement],T_sept_dec[[#This Row],[CléEtablissement]]) -> 1 | Q2: =IF(COUNTIF(Réseau,T_sept_dec[[#This Row],[Secteur organisateur]]),"Réseau_"&T_sept_dec[[#This Row],[Enseignant référent (Nom Prénom)]], IF(COUNTIF(Rizehorsmed,T_sept_dec[[#This Row],[Secteur organisateur]]),"Rizehorsmed_"&T_sept_dec[[#This Row],[Enseignant référent (Nom Prénom)]], T_sept_dec[[#This Row],[Secteur organisateur]]&"_"&T_sept_dec[[#This Row],[Enseignant référent (Nom Prénom)]])) -> Réseau_CENT | R2: =1/COUNTIF(T_sept_dec[CléRéseau-Rize horsmed],T_sept_dec[[#This Row],[CléRéseau-Rize horsmed]]) -> 1 | S2: =IF(COUNTIF(RIZE,T_sept_dec[[#This Row],[Secteur organisateur]]),"Rize_"&T_sept_dec[[#This Row],[Enseignant référent (Nom Prénom)]],"") -> Rize_CENT | T2: =1/COUNTIF(T_sept_dec[CléRize],T_sept_dec[[#This Row],[CléRize]]) -> 1 | U2: =IF(COUNTIF(Total,T_sept_dec[[#This Row],[Secteur organisateur]]),"Total_"&T_sept_dec[[#This Row],[Enseignant référent (Nom Prénom)]],"") -> Total_CENT | V2: =1/COUNTIF(T_sept_dec[cléTotal],T_sept_dec[[#This Row],[cléTotal]]) -> 1
A3: 2017-11-14 | B3: RIZE VALO | D3: Collège Jean Jaurès | E3: 6° | F3: CENTDEUX | G3: 28 | H3: Hors les murs | I3: Exploration urbaine | L3: =IF(COUNTIF(Maternelle,E3)=1,listes!$T$1,IF(COUNTIF(Elémentaire,E3)=1,listes!$U$1,IF(COUNTIF(Collège,E3)=1,listes!$V$1,IF(COUNTIF(Lycée,E3)=1,listes!$W$1,"")))) -> Collège | M3: =VLOOKUP(T_sept_dec[[#This Row],[Etablissement scolaire]],Regroupements!$T:$U,2,FALSE) -> Ferrandière-Maisons Neuves | N3: RIZE | O3: =T_sept_dec[[#This Row],[Etablissement accueillant]]&"-"&T_sept_dec[[#This Row],[Enseignant référent (Nom Prénom)]] -> RIZE-CENTDEUX | P3: =1/COUNTIF(T_sept_dec[CléEtablissement],T_sept_dec[[#This Row],[CléEtablissement]]) -> 1 | Q3: =IF(COUNTIF(Réseau,T_sept_dec[[#This Row],[Secteur organisateur]]),"Réseau_"&T_sept_dec[[#This Row],[Enseignant référent (Nom Prénom)]], IF(COUNTIF(Rizehorsmed,T_sept_dec[[#This Row],[Secteur organisateur]]),"Rizehorsmed_"&T_sept_dec[[#This Row],[Enseignant référent (Nom Prénom)]], T_sept_dec[[#This Row],[Secteur organisateur]]&"_"&T_sept_dec[[#This Row],[Enseignant référent (Nom Prénom)]])) -> Rizehorsmed_CENTDEUX | R3: =1/COUNTIF(T_sept_dec[CléRéseau-Rize horsmed],T_sept_dec[[#This Row],[CléRéseau-Rize horsmed]]) -> 1 | S3: =IF(COUNTIF(RIZE,T_sept_dec[[#This Row],[Secteur organisateur]]),"Rize_"&T_sept_dec[[#This Row],[Enseignant référent (Nom Prénom)]],"") -> Rize_CENTDEUX | T3: =1/COUNTIF(T_sept_dec[CléRize],T_sept_dec[[#This Row],[CléRize]]) -> 1 | U3: =IF(COUNTIF(Total,T_sept_dec[[#This Row],[Secteur organisateur]]),"Total_"&T_sept_dec[[#This Row],[Enseignant référent (Nom Prénom)]],"") -> Total_CENTDEUX | V3: =1/COUNTIF(T_sept_dec[cléTotal],T_sept_dec[[#This Row],[cléTotal]]) -> 1
A4: 2017-11-22 | B4: EMM | D4: Jean Zay | E4: cm2 | F4: CENTUN | G4: 25 | H4: In situ | I4: Coder avec Scratch | L4: =IF(COUNTIF(Maternelle,E4)=1,listes!$T$1,IF(COUNTIF(Elémentaire,E4)=1,listes!$U$1,IF(COUNTIF(Collège,E4)=1,listes!$V$1,IF(COUNTIF(Lycée,E4)=1,listes!$W$1,"")))) -> Elémentaire | M4: =VLOOKUP(T_sept_dec[[#This Row],[Etablissement scolaire]],Regroupements!$T:$U,2,FALSE) -> Gratte-ciel-Dedieu-Charmettes | N4: MLIS | O4: =T_sept_dec[[#This Row],[Etablissement accueillant]]&"-"&T_sept_dec[[#This Row],[Enseignant référent (Nom Prénom)]] -> MLIS-CENTUN | P4: =1/COUNTIF(T_sept_dec[CléEtablissement],T_sept_dec[[#This Row],[CléEtablissement]]) -> 1 | Q4: =IF(COUNTIF(Réseau,T_sept_dec[[#This Row],[Secteur organisateur]]),"Réseau_"&T_sept_dec[[#This Row],[Enseignant référent (Nom Prénom)]], IF(COUNTIF(Rizehorsmed,T_sept_dec[[#This Row],[Secteur organisateur]]),"Rizehorsmed_"&T_sept_dec[[#This Row],[Enseignant référent (Nom Prénom)]], T_sept_dec[[#This Row],[Secteur organisateur]]&"_"&T_sept_dec[[#This Row],[Enseignant référent (Nom Prénom)]])) -> Réseau_CENTUN | R4: =1/COUNTIF(T_sept_dec[CléRéseau-Rize horsmed],T_sept_dec[[#This Row],[CléRéseau-Rize horsmed]]) -> 1 | S4: =IF(COUNTIF(RIZE,T_sept_dec[[#This Row],[Secteur organisateur]]),"Rize_"&T_sept_dec[[#This Row],[Enseignant référent (Nom Prénom)]],"") ->  | T4: =1/COUNTIF(T_sept_dec[CléRize],T_sept_dec[[#This Row],[CléRize]]) -> 0.009803921569 | U4: =IF(COUNTIF(Total,T_sept_dec[[#This Row],[Secteur organisateur]]),"Total_"&T_sept_dec[[#This Row],[Enseignant référent (Nom Prénom)]],"") -> Total_CENTUN | V4: =1/COUNTIF(T_sept_dec[cléTotal],T_sept_dec[[#This Row],[cléTotal]]) -> 1
A5: 2017-12-06 | B5: RIZE MED | D5: Louis Pasteur | E5: cp | F5: CINQ | G5: 23 | H5: In situ | I5: Visite découverte | L5: =IF(COUNTIF(Maternelle,E5)=1,listes!$T$1,IF(COUNTIF(Elémentaire,E5)=1,listes!$U$1,IF(COUNTIF(Collège,E5)=1,listes!$V$1,IF(COUNTIF(Lycée,E5)=1,listes!$W$1,"")))) -> Elémentaire | M5: =VLOOKUP(T_sept_dec[[#This Row],[Etablissement scolaire]],Regroupements!$T:$U,2,FALSE) -> Perralière-Grandclément | N5: RIZE | O5: =T_sept_dec[[#This Row],[Etablissement accueillant]]&"-"&T_sept_dec[[#This Row],[Enseignant référent (Nom Prénom)]] -> RIZE-CINQ | P5: =1/COUNTIF(T_sept_dec[CléEtablissement],T_sept_dec[[#This Row],[CléEtablissement]]) -> 1 | Q5: =IF(COUNTIF(Réseau,T_sept_dec[[#This Row],[Secteur organisateur]]),"Réseau_"&T_sept_dec[[#This Row],[Enseignant référent (Nom Prénom)]], IF(COUNTIF(Rizehorsmed,T_sept_dec[[#This Row],[Secteur organisateur]]),"Rizehorsmed_"&T_sept_dec[[#This Row],[Enseignant référent (Nom Prénom)]], T_sept_dec[[#This Row],[Secteur organisateur]]&"_"&T_sept_dec[[#This Row],[Enseignant référent (Nom Prénom)]])) -> Réseau_CINQ | R5: =1/COUNTIF(T_sept_dec[CléRéseau-Rize horsmed],T_sept_dec[[#This Row],[CléRéseau-Rize horsmed]]) -> 1 | S5: =IF(COUNTIF(RIZE,T_sept_dec[[#This Row],[Secteur organisateur]]),"Rize_"&T_sept_dec[[#This Row],[Enseignant référent (Nom Prénom)]],"") -> Rize_CINQ | T5: =1/COUNTIF(T_sept_dec[CléRize],T_sept_dec[[#This Row],[CléRize]]) -> 1 | U5: =IF(COUNTIF(Total,T_sept_dec[[#This Row],[Secteur organisateur]]),"Total_"&T_sept_dec[[#This Row],[Enseignant référent (Nom Prénom)]],"") -> Total_CINQ | V5: =1/COUNTIF(T_sept_dec[cléTotal],T_sept_dec[[#This Row],[cléTotal]]) -> 1
A6: 2017-11-17 | B6: RIZE VALO | D6: Edouard Herriot | E6: cm1 | F6: CINQUANTE | G6: 22 | H6: Hors les murs | I6: Exploration Gratte-Ciel | L6: =IF(COUNTIF(Maternelle,E6)=1,listes!$T$1,IF(COUNTIF(Elémentaire,E6)=1,listes!$U$1,IF(COUNTIF(Collège,E6)=1,listes!$V$1,IF(COUNTIF(Lycée,E6)=1,listes!$W$1,"")))) -> Elémentaire | M6: =VLOOKUP(T_sept_dec[[#This Row],[Etablissement scolaire]],Regroupements!$T:$U,2,FALSE) -> Gratte-ciel-Dedieu-Charmettes | N6: RIZE | O6: =T_sept_dec[[#This Row],[Etablissement accueillant]]&"-"&T_sept_dec[[#This Row],[Enseignant référent (Nom Prénom)]] -> RIZE-CINQUANTE | P6: =1/COUNTIF(T_sept_dec[CléEtablissement],T_sept_dec[[#This Row],[CléEtablissement]]) -> 1 | Q6: =IF(COUNTIF(Réseau,T_sept_dec[[#This Row],[Secteur organisateur]]),"Réseau_"&T_sept_dec[[#This Row],[Enseignant référent (Nom Prénom)]], IF(COUNTIF(Rizehorsmed,T_sept_dec[[#This Row],[Secteur organisateur]]),"Rizehorsmed_"&T_sept_dec[[#This Row],[Enseignant référent (Nom Prénom)]], T_sept_dec[[#This Row],[Secteur organisateur]]&"_"&T_sept_dec[[#This Row],[Enseignant référent (Nom Prénom)]])) -> Rizehorsmed_CINQUANTE | R6: =1/COUNTIF(T_sept_dec[CléRéseau-Rize horsmed],T_sept_dec[[#This Row],[CléRéseau-Rize horsmed]]) -> 1 | S6: =IF(COUNTIF(RIZE,T_sept_dec[[#This Row],[Secteur organisateur]]),"Rize_"&T_sept_dec[[#This Row],[Enseignant référent (Nom Prénom)]],"") -> Rize_CINQUANTE | T6: =1/COUNTIF(T_sept_dec[CléRize],T_sept_dec[[#This Row],[CléRize]]) -> 1 | U6: =IF(COUNTIF(Total,T_sept_dec[[#This Row],[Secteur organisateur]]),"Total_"&T_sept_dec[[#This Row],[Enseignant référent (Nom Prénom)]],"") -> Total_CINQUANTE | V6: =1/COUNTIF(T_sept_dec[cléTotal],T_sept_dec[[#This Row],[cléTotal]]) -> 1
A7: 2017-11-28 | B7: PAC-BUS | D7: Saint Exupéry | E7: cp | F7: CINQUANTECINQ | G7: 26 | H7: Hors les murs | I7: Visite découverte | L7: =IF(COUNTIF(Maternelle,E7)=1,listes!$T$1,IF(COUNTIF(Elémentaire,E7)=1,listes!$U$1,IF(COUNTIF(Collège,E7)=1,listes!$V$1,IF(COUNTIF(Lycée,E7)=1,listes!$W$1,"")))) -> Elémentaire | M7: =VLOOKUP(T_sept_dec[[#This Row],[Etablissement scolaire]],Regroupements!$T:$U,2,FALSE) -> Saint Jean | N7: PAC-BUS | O7: =T_sept_dec[[#This Row],[Etablissement accueillant]]&"-"&T_sept_dec[[#This Row],[Enseignant référent (Nom Prénom)]] -> PAC-BUS-CINQUANTECINQ | P7: =1/COUNTIF(T_sept_dec[CléEtablissement],T_sept_dec[[#This Row],[CléEtablissement]]) -> 1 | Q7: =IF(COUNTIF(Réseau,T_sept_dec[[#This Row],[Secteur organisateur]]),"Réseau_"&T_sept_dec[[#This Row],[Enseignant référent (Nom Prénom)]], IF(COUNTIF(Rizehorsmed,T_sept_dec[[#This Row],[Secteur organisateur]]),"Rizehorsmed_"&T_sept_dec[[#This Row],[Enseignant référent (Nom Prénom)]], T_sept_dec[[#This Row],[Secteur organisateur]]&"_"&T_sept_dec[[#This Row],[Enseignant référent (Nom Prénom)]])) -> Réseau_CINQUANTECINQ | R7: =1/COUNTIF(T_sept_dec[CléRéseau-Rize horsmed],T_sept_dec[[#This Row],[CléRéseau-Rize horsmed]]) -> 1 | S7: =IF(COUNTIF(RIZE,T_sept_dec[[#This Row],[Secteur organisateur]]),"Rize_"&T_sept_dec[[#This Row],[Enseignant référent (Nom Prénom)]],"") ->  | T7: =1/COUNTIF(T_sept_dec[CléRize],T_sept_dec[[#This Row],[CléRize]]) -> 0.009803921569 | U7: =IF(COUNTIF(Total,T_sept_dec[[#This Row],[Secteur organisateur]]),"Total_"&T_sept_dec[[#This Row],[Enseignant référent (Nom Prénom)]],"") -> Total_CINQUANTECINQ | V7: =1/COUNTIF(T_sept_dec[cléTotal],T_sept_dec[[#This Row],[cléTotal]]) -> 1
A8: 2017-10-20 | B8: EMM | D8: Jules Ferry | E8: cm2 | F8: CINQUANTEDEUX | G8: 24 | H8: In situ | I8: Coder avec Scratch | L8: =IF(COUNTIF(Maternelle,E8)=1,listes!$T$1,IF(COUNTIF(Elémentaire,E8)=1,listes!$U$1,IF(COUNTIF(Collège,E8)=1,listes!$V$1,IF(COUNTIF(Lycée,E8)=1,listes!$W$1,"")))) -> Elémentaire | M8: =VLOOKUP(T_sept_dec[[#This Row],[Etablissement scolaire]],Regroupements!$T:$U,2,FALSE) -> Cusset-Bonnevay | N8: MLIS | O8: =T_sept_dec[[#This Row],[Etablissement accueillant]]&"-"&T_sept_dec[[#This Row],[Enseignant référent (Nom Prénom)]] -> MLIS-CINQUANTEDEUX | P8: =1/COUNTIF(T_sept_dec[CléEtablissement],T_sept_dec[[#This Row],[CléEtablissement]]) -> 1 | Q8: =IF(COUNTIF(Réseau,T_sept_dec[[#This Row],[Secteur organisateur]]),"Réseau_"&T_sept_dec[[#This Row],[Enseignant référent (Nom Prénom)]], IF(COUNTIF(Rizehorsmed,T_sept_dec[[#This Row],[Secteur organisateur]]),"Rizehorsmed_"&T_sept_dec[[#This Row],[Enseignant référent (Nom Prénom)]], T_sept_dec[[#This Row],[Secteur organisateur]]&"_"&T_sept_dec[[#This Row],[Enseignant référent (Nom Prénom)]])) -> Réseau_CINQUANTEDEUX | R8: =1/COUNTIF(T_sept_dec[CléRéseau-Rize horsmed],T_sept_dec[[#This Row],[CléRéseau-Rize horsmed]]) -> 1 | S8: =IF(COUNTIF(RIZE,T_sept_dec[[#This Row],[Secteur organisateur]]),"Rize_"&T_sept_dec[[#This Row],[Enseignant référent (Nom Prénom)]],"") ->  | T8: =1/COUNTIF(T_sept_dec[CléRize],T_sept_dec[[#This Row],[CléRize]]) -> 0.009803921569 | U8: =IF(COUNTIF(Total,T_sept_dec[[#This Row],[Secteur organisateur]]),"Total_"&T_sept_dec[[#This Row],[Enseignant référent (Nom Prénom)]],"") -> Total_CINQUANTEDEUX | V8: =1/COUNTIF(T_sept_dec[cléTotal],T_sept_dec[[#This Row],[cléTotal]]) -> 1
A9: 2017-11-28 | B9: ARTO | D9: Croix-Luizet | E9: ce2 | F9: CINQUANTEETUN | G9: 28 | H9: In situ | I9: Et si on parlait d'art ? | L9: =IF(COUNTIF(Maternelle,E9)=1,listes!$T$1,IF(COUNTIF(Elémentaire,E9)=1,listes!$U$1,IF(COUNTIF(Collège,E9)=1,listes!$V$1,IF(COUNTIF(Lycée,E9)=1,listes!$W$1,"")))) -> Elémentaire | M9: =VLOOKUP(T_sept_dec[[#This Row],[Etablissement scolaire]],Regroupements!$T:$U,2,FALSE) -> Buers-Croix-Luizet | N9: MLIS | O9: =T_sept_dec[[#This Row],[Etablissement accueillant]]&"-"&T_sept_dec[[#This Row],[Enseignant référent (Nom Prénom)]] -> MLIS-CINQUANTEETUN | P9: =1/COUNTIF(T_sept_dec[CléEtablissement],T_sept_dec[[#This Row],[CléEtablissement]]) -> 1 | Q9: =IF(COUNTIF(Réseau,T_sept_dec[[#This Row],[Secteur organisateur]]),"Réseau_"&T_sept_dec[[#This Row],[Enseignant référent (Nom Prénom)]], IF(COUNTIF(Rizehorsmed,T_sept_dec[[#This Row],[Secteur organisateur]]),"Rizehorsmed_"&T_sept_dec[[#This Row],[Enseignant référent (Nom Prénom)]], T_sept_dec[[#This Row],[Secteur organisateur]]&"_"&T_sept_dec[[#This Row],[Enseignant référent (Nom Prénom)]])) -> Réseau_CINQUANTEETUN | R9: =1/COUNTIF(T_sept_dec[CléRéseau-Rize horsmed],T_sept_dec[[#This Row],[CléRéseau-Rize horsmed]]) -> 1 | S9: =IF(COUNTIF(RIZE,T_sept_dec[[#This Row],[Secteur organisateur]]),"Rize_"&T_sept_dec[[#This Row],[Enseignant référent (Nom Prénom)]],"") ->  | T9: =1/COUNTIF(T_sept_dec[CléRize],T_sept_dec[[#This Row],[CléRize]]) -> 0.009803921569 | U9: =IF(COUNTIF(Total,T_sept_dec[[#This Row],[Secteur organisateur]]),"Total_"&T_sept_dec[[#This Row],[Enseignant référent (Nom Prénom)]],"") -> Total_CINQUANTEETUN | V9: =1/COUNTIF(T_sept_dec[cléTotal],T_sept_dec[[#This Row],[cléTotal]]) -> 1
A10: 2017-12-12 | B10: MLIS J | D10: Jules Guesde | E10: ULIS (école) | F10: CINQUANTEHUIT | G10: 11 | H10: In situ | I10: Visite à la carte | L10: =IF(COUNTIF(Maternelle,E10)=1,listes!$T$1,IF(COUNTIF(Elémentaire,E10)=1,listes!$U$1,IF(COUNTIF(Collège,E10)=1,listes!$V$1,IF(COUNTIF(Lycée,E10)=1,listes!$W$1,"")))) -> Elémentaire | M10: =VLOOKUP(T_sept_dec[[#This Row],[Etablissement scolaire]],Regroupements!$T:$U,2,FALSE) -> Cyprian-les-Brosses | N10: MLIS | O10: =T_sept_dec[[#This Row],[Etablissement accueillant]]&"-"&T_sept_dec[[#This Row],[Enseignant référent (Nom Prénom)]] -> MLIS-CINQUANTEHUIT | P10: =1/COUNTIF(T_sept_dec[CléEtablissement],T_sept_dec[[#This Row],[CléEtablissement]]) -> 0.5 | Q10: =IF(COUNTIF(Réseau,T_sept_dec[[#This Row],[Secteur organisateur]]),"Réseau_"&T_sept_dec[[#This Row],[Enseignant référent (Nom Prénom)]], IF(COUNTIF(Rizehorsmed,T_sept_dec[[#This Row],[Secteur organisateur]]),"Rizehorsmed_"&T_sept_dec[[#This Row],[Enseignant référent (Nom Prénom)]], T_sept_dec[[#This Row],[Secteur organisateur]]&"_"&T_sept_dec[[#This Row],[Enseignant référent (Nom Prénom)]])) -> Réseau_CINQUANTEHUIT | R10: =1/COUNTIF(T_sept_dec[CléRéseau-Rize horsmed],T_sept_dec[[#This Row],[CléRéseau-Rize horsmed]]) -> 0.5 | S10: =IF(COUNTIF(RIZE,T_sept_dec[[#This Row],[Secteur organisateur]]),"Rize_"&T_sept_dec[[#This Row],[Enseignant référent (Nom Prénom)]],"") ->  | T10: =1/COUNTIF(T_sept_dec[CléRize],T_sept_dec[[#This Row],[CléRize]]) -> 0.009803921569 | U10: =IF(COUNTIF(Total,T_sept_dec[[#This Row],[Secteur organisateur]]),"Total_"&T_sept_dec[[#This Row],[Enseignant référent (Nom Prénom)]],"") -> Total_CINQUANTEHUIT | V10: =1/COUNTIF(T_sept_dec[cléTotal],T_sept_dec[[#This Row],[cléTotal]]) -> 0.5
A11: 2017-12-12 | B11: ARTO | D11: Jules Guesde | E11: ULIS (école) | F11: CINQUANTEHUIT | G11: 11 | H11: In situ | I11: Et si on parlait d'art ? | L11: =IF(COUNTIF(Maternelle,E11)=1,listes!$T$1,IF(COUNTIF(Elémentaire,E11)=1,listes!$U$1,IF(COUNTIF(Collège,E11)=1,listes!$V$1,IF(COUNTIF(Lycée,E11)=1,listes!$W$1,"")))) -> Elémentaire | M11: =VLOOKUP(T_sept_dec[[#This Row],[Etablissement scolaire]],Regroupements!$T:$U,2,FALSE) -> Cyprian-les-Brosses | N11: MLIS | O11: =T_sept_dec[[#This Row],[Etablissement accueillant]]&"-"&T_sept_dec[[#This Row],[Enseignant référent (Nom Prénom)]] -> MLIS-CINQUANTEHUIT | P11: =1/COUNTIF(T_sept_dec[CléEtablissement],T_sept_dec[[#This Row],[CléEtablissement]]) -> 0.5 | Q11: =IF(COUNTIF(Réseau,T_sept_dec[[#This Row],[Secteur organisateur]]),"Réseau_"&T_sept_dec[[#This Row],[Enseignant référent (Nom Prénom)]], IF(COUNTIF(Rizehorsmed,T_sept_dec[[#This Row],[Secteur organisateur]]),"Rizehorsmed_"&T_sept_dec[[#This Row],[Enseignant référent (Nom Prénom)]], T_sept_dec[[#This Row],[Secteur organisateur]]&"_"&T_sept_dec[[#This Row],[Enseignant référent (Nom Prénom)]])) -> Réseau_CINQUANTEHUIT | R11: =1/COUNTIF(T_sept_dec[CléRéseau-Rize horsmed],T_sept_dec[[#This Row],[CléRéseau-Rize horsmed]]) -> 0.5 | S11: =IF(COUNTIF(RIZE,T_sept_dec[[#This Row],[Secteur organisateur]]),"Rize_"&T_sept_dec[[#This Row],[Enseignant référent (Nom Prénom)]],"") ->  | T11: =1/COUNTIF(T_sept_dec[CléRize],T_sept_dec[[#This Row],[CléRize]]) -> 0.009803921569 | U11: =IF(COUNTIF(Total,T_sept_dec[[#This Row],[Secteur organisateur]]),"Total_"&T_sept_dec[[#This Row],[Enseignant référent (Nom Prénom)]],"") -> Total_CINQUANTEHUIT | V11: =1/COUNTIF(T_sept_dec[cléTotal],T_sept_dec[[#This Row],[cléTotal]]) -> 0.5
A12: 2017-09-22 | B12: RIZE MED | D12: Emile Zola | E12: cm1 | F12: CINQUANTENEUF | G12: 25 | H12: In situ | I12: Visite couplée | L12: =IF(COUNTIF(Maternelle,E12)=1,listes!$T$1,IF(COUNTIF(Elémentaire,E12)=1,listes!$U$1,IF(COUNTIF(Collège,E12)=1,listes!$V$1,IF(COUNTIF(Lycée,E12)=1,listes!$W$1,"")))) -> Elémentaire | M12: =VLOOKUP(T_sept_dec[[#This Row],[Etablissement scolaire]],Regroupements!$T:$U,2,FALSE) -> Gratte-ciel-Dedieu-Charmettes | N12: RIZE | O12: =T_sept_dec[[#This Row],[Etablissement accueillant]]&"-"&T_sept_dec[[#This Row],[Enseignant référent (Nom Prénom)]] -> RIZE-CINQUANTENEUF | P12: =1/COUNTIF(T_sept_dec[CléEtablissement],T_sept_dec[[#This Row],[CléEtablissement]]) -> 1 | Q12: =IF(COUNTIF(Réseau,T_sept_dec[[#This Row],[Secteur organisateur]]),"Réseau_"&T_sept_dec[[#This Row],[Enseignant référent (Nom Prénom)]], IF(COUNTIF(Rizehorsmed,T_sept_dec[[#This Row],[Secteur organisateur]]),"Rizehorsmed_"&T_sept_dec[[#This Row],[Enseignant référent (Nom Prénom)]], T_sept_dec[[#This Row],[Secteur organisateur]]&"_"&T_sept_dec[[#This Row],[Enseignant référent (Nom Prénom)]])) -> Réseau_CINQUANTENEUF | R12: =1/COUNTIF(T_sept_dec[CléRéseau-Rize horsmed],T_sept_dec[[#This Row],[CléRéseau-Rize horsmed]]) -> 1 | S12: =IF(COUNTIF(RIZE,T_sept_dec[[#This Row],[Secteur organisateur]]),"Rize_"&T_sept_dec[[#This Row],[Enseignant référent (Nom Prénom)]],"") -> Rize_CINQUANTENEUF | T12: =1/COUNTIF(T_sept_dec[CléRize],T_sept_dec[[#This Row],[CléRize]]) -> 1 | U12: =IF(COUNTIF(Total,T_sept_dec[[#This Row],[Secteur organisateur]]),"Total_"&T_sept_dec[[#This Row],[Enseignant référent (Nom Prénom)]],"") -> Total_CINQUANTENEUF | V12: =1/COUNTIF(T_sept_dec[cléTotal],T_sept_dec[[#This Row],[cléTotal]]) -> 1
A13: 2017-11-15 | B13: EMM | D13: Jean Zay | E13: cm2 | F13: CINQUANTEQUATRE | G13: 21 | H13: In situ | I13: Coder avec Scratch | L13: =IF(COUNTIF(Maternelle,E13)=1,listes!$T$1,IF(COUNTIF(Elémentaire,E13)=1,listes!$U$1,IF(COUNTIF(Collège,E13)=1,listes!$V$1,IF(COUNTIF(Lycée,E13)=1,listes!$W$1,"")))) -> Elémentaire | M13: =VLOOKUP(T_sept_dec[[#This Row],[Etablissement scolaire]],Regroupements!$T:$U,2,FALSE) -> Gratte-ciel-Dedieu-Charmettes | N13: MLIS | O13: =T_sept_dec[[#This Row],[Etablissement accueillant]]&"-"&T_sept_dec[[#This Row],[Enseignant référent (Nom Prénom)]] -> MLIS-CINQUANTEQUATRE | P13: =1/COUNTIF(T_sept_dec[CléEtablissement],T_sept_dec[[#This Row],[CléEtablissement]]) -> 1 | Q13: =IF(COUNTIF(Réseau,T_sept_dec[[#This Row],[Secteur organisateur]]),"Réseau_"&T_sept_dec[[#This Row],[Enseignant référent (Nom Prénom)]], IF(COUNTIF(Rizehorsmed,T_sept_dec[[#This Row],[Secteur organisateur]]),"Rizehorsmed_"&T_sept_dec[[#This Row],[Enseignant référent (Nom Prénom)]], T_sept_dec[[#This Row],[Secteur organisateur]]&"_"&T_sept_dec[[#This Row],[Enseignant référent (Nom Prénom)]])) -> Réseau_CINQUANTEQUATRE | R13: =1/COUNTIF(T_sept_dec[CléRéseau-Rize horsmed],T_sept_dec[[#This Row],[CléRéseau-Rize horsmed]]) -> 1 | S13: =IF(COUNTIF(RIZE,T_sept_dec[[#This Row],[Secteur organisateur]]),"Rize_"&T_sept_dec[[#This Row],[Enseignant référent (Nom Prénom)]],"") ->  | T13: =1/COUNTIF(T_sept_dec[CléRize],T_sept_dec[[#This Row],[CléRize]]) -> 0.009803921569 | U13: =IF(COUNTIF(Total,T_sept_dec[[#This Row],[Secteur organisateur]]),"Total_"&T_sept_dec[[#This Row],[Enseignant référent (Nom Prénom)]],"") -> Total_CINQUANTEQUATRE | V13: =1/COUNTIF(T_sept_dec[cléTotal],T_sept_dec[[#This Row],[cléTotal]]) -> 1
A14: 2017-11-30 | B14: RIZE VALO | D14: Edouard Herriot | E14: cm1 | F14: CINQUANTESEPT | G14: 27 | H14: Hors les murs | I14: Exploration Gratte-Ciel | L14: =IF(COUNTIF(Maternelle,E14)=1,listes!$T$1,IF(COUNTIF(Elémentaire,E14)=1,listes!$U$1,IF(COUNTIF(Collège,E14)=1,listes!$V$1,IF(COUNTIF(Lycée,E14)=1,listes!$W$1,"")))) -> Elémentaire | M14: =VLOOKUP(T_sept_dec[[#This Row],[Etablissement scolaire]],Regroupements!$T:$U,2,FALSE) -> Gratte-ciel-Dedieu-Charmettes | N14: RIZE | O14: =T_sept_dec[[#This Row],[Etablissement accueillant]]&"-"&T_sept_dec[[#This Row],[Enseignant référent (Nom Prénom)]] -> RIZE-CINQUANTESEPT | P14: =1/COUNTIF(T_sept_dec[CléEtablissement],T_sept_dec[[#This Row],[CléEtablissement]]) -> 1 | Q14: =IF(COUNTIF(Réseau,T_sept_dec[[#This Row],[Secteur organisateur]]),"Réseau_"&T_sept_dec[[#This Row],[Enseignant référent (Nom Prénom)]], IF(COUNTIF(Rizehorsmed,T_sept_dec[[#This Row],[Secteur organisateur]]),"Rizehorsmed_"&T_sept_dec[[#This Row],[Enseignant référent (Nom Prénom)]], T_sept_dec[[#This Row],[Secteur organisateur]]&"_"&T_sept_dec[[#This Row],[Enseignant référent (Nom Prénom)]])) -> Rizehorsmed_CINQUANTESEPT | R14: =1/COUNTIF(T_sept_dec[CléRéseau-Rize horsmed],T_sept_dec[[#This Row],[CléRéseau-Rize horsmed]]) -> 1 | S14: =IF(COUNTIF(RIZE,T_sept_dec[[#This Row],[Secteur organisateur]]),"Rize_"&T_sept_dec[[#This Row],[Enseignant référent (Nom Prénom)]],"") -> Rize_CINQUANTESEPT | T14: =1/COUNTIF(T_sept_dec[CléRize],T_sept_dec[[#This Row],[CléRize]]) -> 1 | U14: =IF(COUNTIF(Total,T_sept_dec[[#This Row],[Secteur organisateur]]),"Total_"&T_sept_dec[[#This Row],[Enseignant référent (Nom Prénom)]],"") -> Total_CINQUANTESEPT | V14: =1/COUNTIF(T_sept_dec[cléTotal],T_sept_dec[[#This Row],[cléTotal]]) -> 1
A15: 2017-10-13 | B15: RIZE VALO | D15: Albert Camus | E15: cm1/cm2 | F15: CINQUANTESIX | G15: 23 | H15: In situ | I15: Ateliers | L15: =IF(COUNTIF(Maternelle,E15)=1,listes!$T$1,IF(COUNTIF(Elémentaire,E15)=1,listes!$U$1,IF(COUNTIF(Collège,E15)=1,listes!$V$1,IF(COUNTIF(Lycée,E15)=1,listes!$W$1,"")))) -> Elémentaire | M15: =VLOOKUP(T_sept_dec[[#This Row],[Etablissement scolaire]],Regroupements!$T:$U,2,FALSE) -> Cyprian-les-Brosses | N15: RIZE | O15: =T_sept_dec[[#This Row],[Etablissement accueillant]]&"-"&T_sept_dec[[#This Row],[Enseignant référent (Nom Prénom)]] -> RIZE-CINQUANTESIX | P15: =1/COUNTIF(T_sept_dec[CléEtablissement],T_sept_dec[[#This Row],[CléEtablissement]]) -> 1 | Q15: =IF(COUNTIF(Réseau,T_sept_dec[[#This Row],[Secteur organisateur]]),"Réseau_"&T_sept_dec[[#This Row],[Enseignant référent (Nom Prénom)]], IF(COUNTIF(Rizehorsmed,T_sept_dec[[#This Row],[Secteur organisateur]]),"Rizehorsmed_"&T_sept_dec[[#This Row],[Enseignant référent (Nom Prénom)]], T_sept_dec[[#This Row],[Secteur organisateur]]&"_"&T_sept_dec[[#This Row],[Enseignant référent (Nom Prénom)]])) -> Rizehorsmed_CINQUANTESIX | R15: =1/COUNTIF(T_sept_dec[CléRéseau-Rize horsmed],T_sept_dec[[#This Row],[CléRéseau-Rize horsmed]]) -> 1 | S15: =IF(COUNTIF(RIZE,T_sept_dec[[#This Row],[Secteur organisateur]]),"Rize_"&T_sept_dec[[#This Row],[Enseignant référent (Nom Prénom)]],"") -> Rize_CINQUANTESIX | T15: =1/COUNTIF(T_sept_dec[CléRize],T_sept_dec[[#This Row],[CléRize]]) -> 1 | U15: =IF(COUNTIF(Total,T_sept_dec[[#This Row],[Secteur organisateur]]),"Total_"&T_sept_dec[[#This Row],[Enseignant référent (Nom Prénom)]],"") -> Total_CINQUANTESIX | V15: =1/COUNTIF(T_sept_dec[cléTotal],T_sept_dec[[#This Row],[cléTotal]]) -> 1
A16: 2017-11-24 | B16: FDL | D16: Jules Guesde | E16: cm1/cm2 | F16: CINQUANTETROIS | G16: 24 | H16: In situ | I16: Projet FDL | L16: =IF(COUNTIF(Maternelle,E16)=1,listes!$T$1,IF(COUNTIF(Elémentaire,E16)=1,listes!$U$1,IF(COUNTIF(Collège,E16)=1,listes!$V$1,IF(COUNTIF(Lycée,E16)=1,listes!$W$1,"")))) -> Elémentaire | M16: =VLOOKUP(T_sept_dec[[#This Row],[Etablissement scolaire]],Regroupements!$T:$U,2,FALSE) -> Cyprian-les-Brosses | N16: FDL | O16: =T_sept_dec[[#This Row],[Etablissement accueillant]]&"-"&T_sept_dec[[#This Row],[Enseignant référent (Nom Prénom)]] -> FDL-CINQUANTETROIS | P16: =1/COUNTIF(T_sept_dec[CléEtablissement],T_sept_dec[[#This Row],[CléEtablissement]]) -> 1 | Q16: =IF(COUNTIF(Réseau,T_sept_dec[[#This Row],[Secteur organisateur]]),"Réseau_"&T_sept_dec[[#This Row],[Enseignant référent (Nom Prénom)]], IF(COUNTIF(Rizehorsmed,T_sept_dec[[#This Row],[Secteur organisateur]]),"Rizehorsmed_"&T_sept_dec[[#This Row],[Enseignant référent (Nom Prénom)]], T_sept_dec[[#This Row],[Secteur organisateur]]&"_"&T_sept_dec[[#This Row],[Enseignant référent (Nom Prénom)]])) -> FDL_CINQUANTETROIS | R16: =1/COUNTIF(T_sept_dec[CléRéseau-Rize horsmed],T_sept_dec[[#This Row],[CléRéseau-Rize horsmed]]) -> 1 | S16: =IF(COUNTIF(RIZE,T_sept_dec[[#This Row],[Secteur organisateur]]),"Rize_"&T_sept_dec[[#This Row],[Enseignant référent (Nom Prénom)]],"") ->  | T16: =1/COUNTIF(T_sept_dec[CléRize],T_sept_dec[[#This Row],[CléRize]]) -> 0.009803921569 | U16: =IF(COUNTIF(Total,T_sept_dec[[#This Row],[Secteur organisateur]]),"Total_"&T_sept_dec[[#This Row],[Enseignant référent (Nom Prénom)]],"") -> Total_CINQUANTETROIS | V16: =1/COUNTIF(T_sept_dec[cléTotal],T_sept_dec[[#This Row],[cléTotal]]) -> 1
A17: 2017-12-05 | B17: MLIS J | D17: Collège des Gratte-Ciel (Môrice Leroux) | E17: 6° | F17: DEUX | G17: 25 | H17: In situ | I17: Visite découverte | L17: =IF(COUNTIF(Maternelle,E17)=1,listes!$T$1,IF(COUNTIF(Elémentaire,E17)=1,listes!$U$1,IF(COUNTIF(Collège,E17)=1,listes!$V$1,IF(COUNTIF(Lycée,E17)=1,listes!$W$1,"")))) -> Collège | M17: =VLOOKUP(T_sept_dec[[#This Row],[Etablissement scolaire]],Regroupements!$T:$U,2,FALSE) -> Gratte-ciel-Dedieu-Charmettes | N17: MLIS | O17: =T_sept_dec[[#This Row],[Etablissement accueillant]]&"-"&T_sept_dec[[#This Row],[Enseignant référent (Nom Prénom)]] -> MLIS-DEUX | P17: =1/COUNTIF(T_sept_dec[CléEtablissement],T_sept_dec[[#This Row],[CléEtablissement]]) -> 0.5 | Q17: =IF(COUNTIF(Réseau,T_sept_dec[[#This Row],[Secteur organisateur]]),"Réseau_"&T_sept_dec[[#This Row],[Enseignant référent (Nom Prénom)]], IF(COUNTIF(Rizehorsmed,T_sept_dec[[#This Row],[Secteur organisateur]]),"Rizehorsmed_"&T_sept_dec[[#This Row],[Enseignant référent (Nom Prénom)]], T_sept_dec[[#This Row],[Secteur organisateur]]&"_"&T_sept_dec[[#This Row],[Enseignant référent (Nom Prénom)]])) -> Réseau_DEUX | R17: =1/COUNTIF(T_sept_dec[CléRéseau-Rize horsmed],T_sept_dec[[#This Row],[CléRéseau-Rize horsmed]]) -> 0.5 | S17: =IF(COUNTIF(RIZE,T_sept_dec[[#This Row],[Secteur organisateur]]),"Rize_"&T_sept_dec[[#This Row],[Enseignant référent (Nom Prénom)]],"") ->  | T17: =1/COUNTIF(T_sept_dec[CléRize],T_sept_dec[[#This Row],[CléRize]]) -> 0.009803921569 | U17: =IF(COUNTIF(Total,T_sept_dec[[#This Row],[Secteur organisateur]]),"Total_"&T_sept_dec[[#This Row],[Enseignant référent (Nom Prénom)]],"") -> Total_DEUX | V17: =1/COUNTIF(T_sept_dec[cléTotal],T_sept_dec[[#This Row],[cléTotal]]) -> 0.5
A18: 2017-12-20 | B18: MLIS J | D18: Collège des Gratte-Ciel (Môrice Leroux) | E18: 6° | F18: DEUX | G18: 22 | H18: In situ | I18: Visite découverte | L18: =IF(COUNTIF(Maternelle,E18)=1,listes!$T$1,IF(COUNTIF(Elémentaire,E18)=1,listes!$U$1,IF(COUNTIF(Collège,E18)=1,listes!$V$1,IF(COUNTIF(Lycée,E18)=1,listes!$W$1,"")))) -> Collège | M18: =VLOOKUP(T_sept_dec[[#This Row],[Etablissement scolaire]],Regroupements!$T:$U,2,FALSE) -> Gratte-ciel-Dedieu-Charmettes | N18: MLIS | O18: =T_sept_dec[[#This Row],[Etablissement accueillant]]&"-"&T_sept_dec[[#This Row],[Enseignant référent (Nom Prénom)]] -> MLIS-DEUX | P18: =1/COUNTIF(T_sept_dec[CléEtablissement],T_sept_dec[[#This Row],[CléEtablissement]]) -> 0.5 | Q18: =IF(COUNTIF(Réseau,T_sept_dec[[#This Row],[Secteur organisateur]]),"Réseau_"&T_sept_dec[[#This Row],[Enseignant référent (Nom Prénom)]], IF(COUNTIF(Rizehorsmed,T_sept_dec[[#This Row],[Secteur organisateur]]),"Rizehorsmed_"&T_sept_dec[[#This Row],[Enseignant référent (Nom Prénom)]], T_sept_dec[[#This Row],[Secteur organisateur]]&"_"&T_sept_dec[[#This Row],[Enseignant référent (Nom Prénom)]])) -> Réseau_DEUX | R18: =1/COUNTIF(T_sept_dec[CléRéseau-Rize horsmed],T_sept_dec[[#This Row],[CléRéseau-Rize horsmed]]) -> 0.5 | S18: =IF(COUNTIF(RIZE,T_sept_dec[[#This Row],[Secteur organisateur]]),"Rize_"&T_sept_dec[[#This Row],[Enseignant référent (Nom Prénom)]],"") ->  | T18: =1/COUNTIF(T_sept_dec[CléRize],T_sept_dec[[#This Row],[CléRize]]) -> 0.009803921569 | U18: =IF(COUNTIF(Total,T_sept_dec[[#This Row],[Secteur organisateur]]),"Total_"&T_sept_dec[[#This Row],[Enseignant référent (Nom Prénom)]],"") -> Total_DEUX | V18: =1/COUNTIF(T_sept_dec[cléTotal],T_sept_dec[[#This Row],[cléTotal]]) -> 0.5
A19: 2017-12-12 | B19: PAC-BUS | D19: Jules Guesde | E19: cp | F19: DIX | G19: 26 | H19: Hors les murs | I19: Visite découverte | L19: =IF(COUNTIF(Maternelle,E19)=1,listes!$T$1,IF(COUNTIF(Elémentaire,E19)=1,listes!$U$1,IF(COUNTIF(Collège,E19)=1,listes!$V$1,IF(COUNTIF(Lycée,E19)=1,listes!$W$1,"")))) -> Elémentaire | M19: =VLOOKUP(T_sept_dec[[#This Row],[Etablissement scolaire]],Regroupements!$T:$U,2,FALSE) -> Cyprian-les-Brosses | N19: PAC-BUS | O19: =T_sept_dec[[#This Row],[Etablissement accueillant]]&"-"&T_sept_dec[[#This Row],[Enseignant référent (Nom Prénom)]] -> PAC-BUS-DIX | P19: =1/COUNTIF(T_sept_dec[CléEtablissement],T_sept_dec[[#This Row],[CléEtablissement]]) -> 1 | Q19: =IF(COUNTIF(Réseau,T_sept_dec[[#This Row],[Secteur organisateur]]),"Réseau_"&T_sept_dec[[#This Row],[Enseignant référent (Nom Prénom)]], IF(COUNTIF(Rizehorsmed,T_sept_dec[[#This Row],[Secteur organisateur]]),"Rizehorsmed_"&T_sept_dec[[#This Row],[Enseignant référent (Nom Prénom)]], T_sept_dec[[#This Row],[Secteur organisateur]]&"_"&T_sept_dec[[#This Row],[Enseignant référent (Nom Prénom)]])) -> Réseau_DIX | R19: =1/COUNTIF(T_sept_dec[CléRéseau-Rize horsmed],T_sept_dec[[#This Row],[CléRéseau-Rize horsmed]]) -> 1 | S19: =IF(COUNTIF(RIZE,T_sept_dec[[#This Row],[Secteur organisateur]]),"Rize_"&T_sept_dec[[#This Row],[Enseignant référent (Nom Prénom)]],"") ->  | T19: =1/COUNTIF(T_sept_dec[CléRize],T_sept_dec[[#This Row],[CléRize]]) -> 0.009803921569 | U19: =IF(COUNTIF(Total,T_sept_dec[[#This Row],[Secteur organisateur]]),"Total_"&T_sept_dec[[#This Row],[Enseignant référent (Nom Prénom)]],"") -> Total_DIX | V19: =1/COUNTIF(T_sept_dec[cléTotal],T_sept_dec[[#This Row],[cléTotal]]) -> 1
A20: 2017-12-07 | B20: MLIS J | D20: Jules Guesde | E20: ce1/ce2 | F20: DIXHUIT | G20: 25 | H20: In situ | I20: Visite à la carte | L20: =IF(COUNTIF(Maternelle,E20)=1,listes!$T$1,IF(COUNTIF(Elémentaire,E20)=1,listes!$U$1,IF(COUNTIF(Collège,E20)=1,listes!$V$1,IF(COUNTIF(Lycée,E20)=1,listes!$W$1,"")))) -> Elémentaire | M20: =VLOOKUP(T_sept_dec[[#This Row],[Etablissement scolaire]],Regroupements!$T:$U,2,FALSE) -> Cyprian-les-Brosses | N20: MLIS | O20: =T_sept_dec[[#This Row],[Etablissement accueillant]]&"-"&T_sept_dec[[#This Row],[Enseignant référent (Nom Prénom)]] -> MLIS-DIXHUIT | P20: =1/COUNTIF(T_sept_dec[CléEtablissement],T_sept_dec[[#This Row],[CléEtablissement]]) -> 0.5 | Q20: =IF(COUNTIF(Réseau,T_sept_dec[[#This Row],[Secteur organisateur]]),"Réseau_"&T_sept_dec[[#This Row],[Enseignant référent (Nom Prénom)]], IF(COUNTIF(Rizehorsmed,T_sept_dec[[#This Row],[Secteur organisateur]]),"Rizehorsmed_"&T_sept_dec[[#This Row],[Enseignant référent (Nom Prénom)]], T_sept_dec[[#This Row],[Secteur organisateur]]&"_"&T_sept_dec[[#This Row],[Enseignant référent (Nom Prénom)]])) -> Réseau_DIXHUIT | R20: =1/COUNTIF(T_sept_dec[CléRéseau-Rize horsmed],T_sept_dec[[#This Row],[CléRéseau-Rize horsmed]]) -> 0.5 | S20: =IF(COUNTIF(RIZE,T_sept_dec[[#This Row],[Secteur organisateur]]),"Rize_"&T_sept_dec[[#This Row],[Enseignant référent (Nom Prénom)]],"") ->  | T20: =1/COUNTIF(T_sept_dec[CléRize],T_sept_dec[[#This Row],[CléRize]]) -> 0.009803921569 | U20: =IF(COUNTIF(Total,T_sept_dec[[#This Row],[Secteur organisateur]]),"Total_"&T_sept_dec[[#This Row],[Enseignant référent (Nom Prénom)]],"") -> Total_DIXHUIT | V20: =1/COUNTIF(T_sept_dec[cléTotal],T_sept_dec[[#This Row],[cléTotal]]) -> 0.1666666667
A21: 2017-12-07 | B21: ARTO | D21: Jules Guesde | E21: ce1/ce2 | F21: DIXHUIT | G21: 24 | H21: In situ | I21: Et si on parlait d'art ? | L21: =IF(COUNTIF(Maternelle,E21)=1,listes!$T$1,IF(COUNTIF(Elémentaire,E21)=1,listes!$U$1,IF(COUNTIF(Collège,E21)=1,listes!$V$1,IF(COUNTIF(Lycée,E21)=1,listes!$W$1,"")))) -> Elémentaire | M21: =VLOOKUP(T_sept_dec[[#This Row],[Etablissement scolaire]],Regroupements!$T:$U,2,FALSE) -> Cyprian-les-Brosses | N21: MLIS | O21: =T_sept_dec[[#This Row],[Etablissement accueillant]]&"-"&T_sept_dec[[#This Row],[Enseignant référent (Nom Prénom)]] -> MLIS-DIXHUIT | P21: =1/COUNTIF(T_sept_dec[CléEtablissement],T_sept_dec[[#This Row],[CléEtablissement]]) -> 0.5 | Q21: =IF(COUNTIF(Réseau,T_sept_dec[[#This Row],[Secteur organisateur]]),"Réseau_"&T_sept_dec[[#This Row],[Enseignant référent (Nom Prénom)]], IF(COUNTIF(Rizehorsmed,T_sept_dec[[#This Row],[Secteur organisateur]]),"Rizehorsmed_"&T_sept_dec[[#This Row],[Enseignant référent (Nom Prénom)]], T_sept_dec[[#This Row],[Secteur organisateur]]&"_"&T_sept_dec[[#This Row],[Enseignant référent (Nom Prénom)]])) -> Réseau_DIXHUIT | R21: =1/COUNTIF(T_sept_dec[CléRéseau-Rize horsmed],T_sept_dec[[#This Row],[CléRéseau-Rize horsmed]]) -> 0.5 | S21: =IF(COUNTIF(RIZE,T_sept_dec[[#This Row],[Secteur organisateur]]),"Rize_"&T_sept_dec[[#This Row],[Enseignant référent (Nom Prénom)]],"") ->  | T21: =1/COUNTIF(T_sept_dec[CléRize],T_sept_dec[[#This Row],[CléRize]]) -> 0.009803921569 | U21: =IF(COUNTIF(Total,T_sept_dec[[#This Row],[Secteur organisateur]]),"Total_"&T_sept_dec[[#This Row],[Enseignant référent (Nom Prénom)]],"") -> Total_DIXHUIT | V21: =1/COUNTIF(T_sept_dec[cléTotal],T_sept_dec[[#This Row],[cléTotal]]) -> 0.1666666667
A22: 2017-11-20 | B22: FDL | D22: Jules Guesde | E22: ce1/ce2 | F22: DIXHUIT | G22: 24 | H22: In situ | I22: Projet FDL | L22: =IF(COUNTIF(Maternelle,E22)=1,listes!$T$1,IF(COUNTIF(Elémentaire,E22)=1,listes!$U$1,IF(COUNTIF(Collège,E22)=1,listes!$V$1,IF(COUNTIF(Lycée,E22)=1,listes!$W$1,"")))) -> Elémentaire | M22: =VLOOKUP(T_sept_dec[[#This Row],[Etablissement scolaire]],Regroupements!$T:$U,2,FALSE) -> Cyprian-les-Brosses | N22: FDL | O22: =T_sept_dec[[#This Row],[Etablissement accueillant]]&"-"&T_sept_dec[[#This Row],[Enseignant référent (Nom Prénom)]] -> FDL-DIXHUIT | P22: =1/COUNTIF(T_sept_dec[CléEtablissement],T_sept_dec[[#This Row],[CléEtablissement]]) -> 0.25 | Q22: =IF(COUNTIF(Réseau,T_sept_dec[[#This Row],[Secteur organisateur]]),"Réseau_"&T_sept_dec[[#This Row],[Enseignant référent (Nom Prénom)]], IF(COUNTIF(Rizehorsmed,T_sept_dec[[#This Row],[Secteur organisateur]]),"Rizehorsmed_"&T_sept_dec[[#This Row],[Enseignant référent (Nom Prénom)]], T_sept_dec[[#This Row],[Secteur organisateur]]&"_"&T_sept_dec[[#This Row],[Enseignant référent (Nom Prénom)]])) -> FDL_DIXHUIT | R22: =1/COUNTIF(T_sept_dec[CléRéseau-Rize horsmed],T_sept_dec[[#This Row],[CléRéseau-Rize horsmed]]) -> 0.25 | S22: =IF(COUNTIF(RIZE,T_sept_dec[[#This Row],[Secteur organisateur]]),"Rize_"&T_sept_dec[[#This Row],[Enseignant référent (Nom Prénom)]],"") ->  | T22: =1/COUNTIF(T_sept_dec[CléRize],T_sept_dec[[#This Row],[CléRize]]) -> 0.009803921569 | U22: =IF(COUNTIF(Total,T_sept_dec[[#This Row],[Secteur organisateur]]),"Total_"&T_sept_dec[[#This Row],[Enseignant référent (Nom Prénom)]],"") -> Total_DIXHUIT | V22: =1/COUNTIF(T_sept_dec[cléTotal],T_sept_dec[[#This Row],[cléTotal]]) -> 0.1666666667
A23: 2017-11-21 | B23: FDL | D23: Jules Guesde | E23: ce1/ce2 | F23: DIXHUIT | G23: 24 | H23: In situ | I23: Projet FDL | L23: =IF(COUNTIF(Maternelle,E23)=1,listes!$T$1,IF(COUNTIF(Elémentaire,E23)=1,listes!$U$1,IF(COUNTIF(Collège,E23)=1,listes!$V$1,IF(COUNTIF(Lycée,E23)=1,listes!$W$1,"")))) -> Elémentaire | M23: =VLOOKUP(T_sept_dec[[#This Row],[Etablissement scolaire]],Regroupements!$T:$U,2,FALSE) -> Cyprian-les-Brosses | N23: FDL | O23: =T_sept_dec[[#This Row],[Etablissement accueillant]]&"-"&T_sept_dec[[#This Row],[Enseignant référent (Nom Prénom)]] -> FDL-DIXHUIT | P23: =1/COUNTIF(T_sept_dec[CléEtablissement],T_sept_dec[[#This Row],[CléEtablissement]]) -> 0.25 | Q23: =IF(COUNTIF(Réseau,T_sept_dec[[#This Row],[Secteur organisateur]]),"Réseau_"&T_sept_dec[[#This Row],[Enseignant référent (Nom Prénom)]], IF(COUNTIF(Rizehorsmed,T_sept_dec[[#This Row],[Secteur organisateur]]),"Rizehorsmed_"&T_sept_dec[[#This Row],[Enseignant référent (Nom Prénom)]], T_sept_dec[[#This Row],[Secteur organisateur]]&"_"&T_sept_dec[[#This Row],[Enseignant référent (Nom Prénom)]])) -> FDL_DIXHUIT | R23: =1/COUNTIF(T_sept_dec[CléRéseau-Rize horsmed],T_sept_dec[[#This Row],[CléRéseau-Rize horsmed]]) -> 0.25 | S23: =IF(COUNTIF(RIZE,T_sept_dec[[#This Row],[Secteur organisateur]]),"Rize_"&T_sept_dec[[#This Row],[Enseignant référent (Nom Prénom)]],"") ->  | T23: =1/COUNTIF(T_sept_dec[CléRize],T_sept_dec[[#This Row],[CléRize]]) -> 0.009803921569 | U23: =IF(COUNTIF(Total,T_sept_dec[[#This Row],[Secteur organisateur]]),"Total_"&T_sept_dec[[#This Row],[Enseignant référent (Nom Prénom)]],"") -> Total_DIXHUIT | V23: =1/COUNTIF(T_sept_dec[cléTotal],T_sept_dec[[#This Row],[cléTotal]]) -> 0.1666666667
A24: 2017-11-22 | B24: FDL | D24: Jules Guesde | E24: ce1/ce2 | F24: DIXHUIT | G24: 24 | H24: In situ | I24: Projet FDL | L24: =IF(COUNTIF(Maternelle,E24)=1,listes!$T$1,IF(COUNTIF(Elémentaire,E24)=1,listes!$U$1,IF(COUNTIF(Collège,E24)=1,listes!$V$1,IF(COUNTIF(Lycée,E24)=1,listes!$W$1,"")))) -> Elémentaire | M24: =VLOOKUP(T_sept_dec[[#This Row],[Etablissement scolaire]],Regroupements!$T:$U,2,FALSE) -> Cyprian-les-Brosses | N24: FDL | O24: =T_sept_dec[[#This Row],[Etablissement accueillant]]&"-"&T_sept_dec[[#This Row],[Enseignant référent (Nom Prénom)]] -> FDL-DIXHUIT | P24: =1/COUNTIF(T_sept_dec[CléEtablissement],T_sept_dec[[#This Row],[CléEtablissement]]) -> 0.25 | Q24: =IF(COUNTIF(Réseau,T_sept_dec[[#This Row],[Secteur organisateur]]),"Réseau_"&T_sept_dec[[#This Row],[Enseignant référent (Nom Prénom)]], IF(COUNTIF(Rizehorsmed,T_sept_dec[[#This Row],[Secteur organisateur]]),"Rizehorsmed_"&T_sept_dec[[#This Row],[Enseignant référent (Nom Prénom)]], T_sept_dec[[#This Row],[Secteur organisateur]]&"_"&T_sept_dec[[#This Row],[Enseignant référent (Nom Prénom)]])) -> FDL_DIXHUIT | R24: =1/COUNTIF(T_sept_dec[CléRéseau-Rize horsmed],T_sept_dec[[#This Row],[CléRéseau-Rize horsmed]]) -> 0.25 | S24: =IF(COUNTIF(RIZE,T_sept_dec[[#This Row],[Secteur organisateur]]),"Rize_"&T_sept_dec[[#This Row],[Enseignant référent (Nom Prénom)]],"") ->  | T24: =1/COUNTIF(T_sept_dec[CléRize],T_sept_dec[[#This Row],[CléRize]]) -> 0.009803921569 | U24: =IF(COUNTIF(Total,T_sept_dec[[#This Row],[Secteur organisateur]]),"Total_"&T_sept_dec[[#This Row],[Enseignant référent (Nom Prénom)]],"") -> Total_DIXHUIT | V24: =1/COUNTIF(T_sept_dec[cléTotal],T_sept_dec[[#This Row],[cléTotal]]) -> 0.1666666667
A25: 2017-11-23 | B25: FDL | D25: Jules Guesde | E25: ce1/ce2 | F25: DIXHUIT | G25: 24 | H25: In situ | I25: Projet FDL | L25: =IF(COUNTIF(Maternelle,E25)=1,listes!$T$1,IF(COUNTIF(Elémentaire,E25)=1,listes!$U$1,IF(COUNTIF(Collège,E25)=1,listes!$V$1,IF(COUNTIF(Lycée,E25)=1,listes!$W$1,"")))) -> Elémentaire | M25: =VLOOKUP(T_sept_dec[[#This Row],[Etablissement scolaire]],Regroupements!$T:$U,2,FALSE) -> Cyprian-les-Brosses | N25: FDL | O25: =T_sept_dec[[#This Row],[Etablissement accueillant]]&"-"&T_sept_dec[[#This Row],[Enseignant référent (Nom Prénom)]] -> FDL-DIXHUIT | P25: =1/COUNTIF(T_sept_dec[CléEtablissement],T_sept_dec[[#This Row],[CléEtablissement]]) -> 0.25 | Q25: =IF(COUNTIF(Réseau,T_sept_dec[[#This Row],[Secteur organisateur]]),"Réseau_"&T_sept_dec[[#This Row],[Enseignant référent (Nom Prénom)]], IF(COUNTIF(Rizehorsmed,T_sept_dec[[#This Row],[Secteur organisateur]]),"Rizehorsmed_"&T_sept_dec[[#This Row],[Enseignant référent (Nom Prénom)]], T_sept_dec[[#This Row],[Secteur organisateur]]&"_"&T_sept_dec[[#This Row],[Enseignant référent (Nom Prénom)]])) -> FDL_DIXHUIT | R25: =1/COUNTIF(T_sept_dec[CléRéseau-Rize horsmed],T_sept_dec[[#This Row],[CléRéseau-Rize horsmed]]) -> 0.25 | S25: =IF(COUNTIF(RIZE,T_sept_dec[[#This Row],[Secteur organisateur]]),"Rize_"&T_sept_dec[[#This Row],[Enseignant référent (Nom Prénom)]],"") ->  | T25: =1/COUNTIF(T_sept_dec[CléRize],T_sept_dec[[#This Row],[CléRize]]) -> 0.009803921569 | U25: =IF(COUNTIF(Total,T_sept_dec[[#This Row],[Secteur organisateur]]),"Total_"&T_sept_dec[[#This Row],[Enseignant référent (Nom Prénom)]],"") -> Total_DIXHUIT | V25: =1/COUNTIF(T_sept_dec[cléTotal],T_sept_dec[[#This Row],[cléTotal]]) -> 0.1666666667
A26: 2017-12-05 | B26: MTK | D26: Lakanal | E26: cp | F26: DIXNEUF | G26: 26 | H26: In situ | I26: Visite découverte | L26: =IF(COUNTIF(Maternelle,E26)=1,listes!$T$1,IF(COUNTIF(Elémentaire,E26)=1,listes!$U$1,IF(COUNTIF(Collège,E26)=1,listes!$V$1,IF(COUNTIF(Lycée,E26)=1,listes!$W$1,"")))) -> Elémentaire | M26: =VLOOKUP(T_sept_dec[[#This Row],[Etablissement scolaire]],Regroupements!$T:$U,2,FALSE) -> Charpennes-Tonkin | N26: TONKIN | O26: =T_sept_dec[[#This Row],[Etablissement accueillant]]&"-"&T_sept_dec[[#This Row],[Enseignant référent (Nom Prénom)]] -> TONKIN-DIXNEUF | P26: =1/COUNTIF(T_sept_dec[CléEtablissement],T_sept_dec[[#This Row],[CléEtablissement]]) -> 1 | Q26: =IF(COUNTIF(Réseau,T_sept_dec[[#This Row],[Secteur organisateur]]),"Réseau_"&T_sept_dec[[#This Row],[Enseignant référent (Nom Prénom)]], IF(COUNTIF(Rizehorsmed,T_sept_dec[[#This Row],[Secteur organisateur]]),"Rizehorsmed_"&T_sept_dec[[#This Row],[Enseignant référent (Nom Prénom)]], T_sept_dec[[#This Row],[Secteur organisateur]]&"_"&T_sept_dec[[#This Row],[Enseignant référent (Nom Prénom)]])) -> Réseau_DIXNEUF | R26: =1/COUNTIF(T_sept_dec[CléRéseau-Rize horsmed],T_sept_dec[[#This Row],[CléRéseau-Rize horsmed]]) -> 1 | S26: =IF(COUNTIF(RIZE,T_sept_dec[[#This Row],[Secteur organisateur]]),"Rize_"&T_sept_dec[[#This Row],[Enseignant référent (Nom Prénom)]],"") ->  | T26: =1/COUNTIF(T_sept_dec[CléRize],T_sept_dec[[#This Row],[CléRize]]) -> 0.009803921569 | U26: =IF(COUNTIF(Total,T_sept_dec[[#This Row],[Secteur organisateur]]),"Total_"&T_sept_dec[[#This Row],[Enseignant référent (Nom Prénom)]],"") -> Total_DIXNEUF | V26: =1/COUNTIF(T_sept_dec[cléTotal],T_sept_dec[[#This Row],[cléTotal]]) -> 1
A27: 2017-11-28 | B27: MTK | D27: Tonkin/Nigritelle | E27: cp | F27: DIXSEPT | G27: 26 | H27: In situ | I27: Première lecture | L27: =IF(COUNTIF(Maternelle,E27)=1,listes!$T$1,IF(COUNTIF(Elémentaire,E27)=1,listes!$U$1,IF(COUNTIF(Collège,E27)=1,listes!$V$1,IF(COUNTIF(Lycée,E27)=1,listes!$W$1,"")))) -> Elémentaire | M27: =VLOOKUP(T_sept_dec[[#This Row],[Etablissement scolaire]],Regroupements!$T:$U,2,FALSE) -> Charpennes-Tonkin | N27: TONKIN | O27: =T_sept_dec[[#This Row],[Etablissement accueillant]]&"-"&T_sept_dec[[#This Row],[Enseignant référent (Nom Prénom)]] -> TONKIN-DIXSEPT | P27: =1/COUNTIF(T_sept_dec[CléEtablissement],T_sept_dec[[#This Row],[CléEtablissement]]) -> 1 | Q27: =IF(COUNTIF(Réseau,T_sept_dec[[#This Row],[Secteur organisateur]]),"Réseau_"&T_sept_dec[[#This Row],[Enseignant référent (Nom Prénom)]], IF(COUNTIF(Rizehorsmed,T_sept_dec[[#This Row],[Secteur organisateur]]),"Rizehorsmed_"&T_sept_dec[[#This Row],[Enseignant référent (Nom Prénom)]], T_sept_dec[[#This Row],[Secteur organisateur]]&"_"&T_sept_dec[[#This Row],[Enseignant référent (Nom Prénom)]])) -> Réseau_DIXSEPT | R27: =1/COUNTIF(T_sept_dec[CléRéseau-Rize horsmed],T_sept_dec[[#This Row],[CléRéseau-Rize horsmed]]) -> 1 | S27: =IF(COUNTIF(RIZE,T_sept_dec[[#This Row],[Secteur organisateur]]),"Rize_"&T_sept_dec[[#This Row],[Enseignant référent (Nom Prénom)]],"") ->  | T27: =1/COUNTIF(T_sept_dec[CléRize],T_sept_dec[[#This Row],[CléRize]]) -> 0.009803921569 | U27: =IF(COUNTIF(Total,T_sept_dec[[#This Row],[Secteur organisateur]]),"Total_"&T_sept_dec[[#This Row],[Enseignant référent (Nom Prénom)]],"") -> Total_DIXSEPT | V27: =1/COUNTIF(T_sept_dec[cléTotal],T_sept_dec[[#This Row],[cléTotal]]) -> 1
A28: 2017-11-28 | B28: PAC-BUS | D28: Saint Exupéry | E28: cp | F28: DOUZE | G28: 26 | H28: Hors les murs | I28: Visite découverte | L28: =IF(COUNTIF(Maternelle,E28)=1,listes!$T$1,IF(COUNTIF(Elémentaire,E28)=1,listes!$U$1,IF(COUNTIF(Collège,E28)=1,listes!$V$1,IF(COUNTIF(Lycée,E28)=1,listes!$W$1,"")))) -> Elémentaire | M28: =VLOOKUP(T_sept_dec[[#This Row],[Etablissement scolaire]],Regroupements!$T:$U,2,FALSE) -> Saint Jean | N28: PAC-BUS | O28: =T_sept_dec[[#This Row],[Etablissement accueillant]]&"-"&T_sept_dec[[#This Row],[Enseignant référent (Nom Prénom)]] -> PAC-BUS-DOUZE | P28: =1/COUNTIF(T_sept_dec[CléEtablissement],T_sept_dec[[#This Row],[CléEtablissement]]) -> 1 | Q28: =IF(COUNTIF(Réseau,T_sept_dec[[#This Row],[Secteur organisateur]]),"Réseau_"&T_sept_dec[[#This Row],[Enseignant référent (Nom Prénom)]], IF(COUNTIF(Rizehorsmed,T_sept_dec[[#This Row],[Secteur organisateur]]),"Rizehorsmed_"&T_sept_dec[[#This Row],[Enseignant référent (Nom Prénom)]], T_sept_dec[[#This Row],[Secteur organisateur]]&"_"&T_sept_dec[[#This Row],[Enseignant référent (Nom Prénom)]])) -> Réseau_DOUZE | R28: =1/COUNTIF(T_sept_dec[CléRéseau-Rize horsmed],T_sept_dec[[#This Row],[CléRéseau-Rize horsmed]]) -> 1 | S28: =IF(COUNTIF(RIZE,T_sept_dec[[#This Row],[Secteur organisateur]]),"Rize_"&T_sept_dec[[#This Row],[Enseignant référent (Nom Prénom)]],"") ->  | T28: =1/COUNTIF(T_sept_dec[CléRize],T_sept_dec[[#This Row],[CléRize]]) -> 0.009803921569 | U28: =IF(COUNTIF(Total,T_sept_dec[[#This Row],[Secteur organisateur]]),"Total_"&T_sept_dec[[#This Row],[Enseignant référent (Nom Prénom)]],"") -> Total_DOUZE | V28: =1/COUNTIF(T_sept_dec[cléTotal],T_sept_dec[[#This Row],[cléTotal]]) -> 1
A29: 2017-09-28 | B29: MLIS J | D29: Château-Gaillard | E29: cp | F29: HUIT | G29: 25 | H29: In situ | I29: Visite découverte | L29: =IF(COUNTIF(Maternelle,E29)=1,listes!$T$1,IF(COUNTIF(Elémentaire,E29)=1,listes!$U$1,IF(COUNTIF(Collège,E29)=1,listes!$V$1,IF(COUNTIF(Lycée,E29)=1,listes!$W$1,"")))) -> Elémentaire | M29: =VLOOKUP(T_sept_dec[[#This Row],[Etablissement scolaire]],Regroupements!$T:$U,2,FALSE) -> Buers-Croix-Luizet | N29: MLIS | O29: =T_sept_dec[[#This Row],[Etablissement accueillant]]&"-"&T_sept_dec[[#This Row],[Enseignant référent (Nom Prénom)]] -> MLIS-HUIT | P29: =1/COUNTIF(T_sept_dec[CléEtablissement],T_sept_dec[[#This Row],[CléEtablissement]]) -> 1 | Q29: =IF(COUNTIF(Réseau,T_sept_dec[[#This Row],[Secteur organisateur]]),"Réseau_"&T_sept_dec[[#This Row],[Enseignant référent (Nom Prénom)]], IF(COUNTIF(Rizehorsmed,T_sept_dec[[#This Row],[Secteur organisateur]]),"Rizehorsmed_"&T_sept_dec[[#This Row],[Enseignant référent (Nom Prénom)]], T_sept_dec[[#This Row],[Secteur organisateur]]&"_"&T_sept_dec[[#This Row],[Enseignant référent (Nom Prénom)]])) -> Réseau_HUIT | R29: =1/COUNTIF(T_sept_dec[CléRéseau-Rize horsmed],T_sept_dec[[#This Row],[CléRéseau-Rize horsmed]]) -> 1 | S29: =IF(COUNTIF(RIZE,T_sept_dec[[#This Row],[Secteur organisateur]]),"Rize_"&T_sept_dec[[#This Row],[Enseignant référent (Nom Prénom)]],"") ->  | T29: =1/COUNTIF(T_sept_dec[CléRize],T_sept_dec[[#This Row],[CléRize]]) -> 0.009803921569 | U29: =IF(COUNTIF(Total,T_sept_dec[[#This Row],[Secteur organisateur]]),"Total_"&T_sept_dec[[#This Row],[Enseignant référent (Nom Prénom)]],"") -> Total_HUIT | V29: =1/COUNTIF(T_sept_dec[cléTotal],T_sept_dec[[#This Row],[cléTotal]]) -> 1
A30: 2017-11-16 | B30: MLIS J | D30: Ecole juive de Lyon (privé) | E30: cp | F30: NEUF | G30: 20 | H30: In situ | I30: La maison des livres | L30: =IF(COUNTIF(Maternelle,E30)=1,listes!$T$1,IF(COUNTIF(Elémentaire,E30)=1,listes!$U$1,IF(COUNTIF(Collège,E30)=1,listes!$V$1,IF(COUNTIF(Lycée,E30)=1,listes!$W$1,"")))) -> Elémentaire | M30: =VLOOKUP(T_sept_dec[[#This Row],[Etablissement scolaire]],Regroupements!$T:$U,2,FALSE) -> Gratte-ciel-Dedieu-Charmettes | N30: MLIS | O30: =T_sept_dec[[#This Row],[Etablissement accueillant]]&"-"&T_sept_dec[[#This Row],[Enseignant référent (Nom Prénom)]] -> MLIS-NEUF | P30: =1/COUNTIF(T_sept_dec[CléEtablissement],T_sept_dec[[#This Row],[CléEtablissement]]) -> 1 | Q30: =IF(COUNTIF(Réseau,T_sept_dec[[#This Row],[Secteur organisateur]]),"Réseau_"&T_sept_dec[[#This Row],[Enseignant référent (Nom Prénom)]], IF(COUNTIF(Rizehorsmed,T_sept_dec[[#This Row],[Secteur organisateur]]),"Rizehorsmed_"&T_sept_dec[[#This Row],[Enseignant référent (Nom Prénom)]], T_sept_dec[[#This Row],[Secteur organisateur]]&"_"&T_sept_dec[[#This Row],[Enseignant référent (Nom Prénom)]])) -> Réseau_NEUF | R30: =1/COUNTIF(T_sept_dec[CléRéseau-Rize horsmed],T_sept_dec[[#This Row],[CléRéseau-Rize horsmed]]) -> 1 | S30: =IF(COUNTIF(RIZE,T_sept_dec[[#This Row],[Secteur organisateur]]),"Rize_"&T_sept_dec[[#This Row],[Enseignant référent (Nom Prénom)]],"") ->  | T30: =1/COUNTIF(T_sept_dec[CléRize],T_sept_dec[[#This Row],[CléRize]]) -> 0.009803921569 | U30: =IF(COUNTIF(Total,T_sept_dec[[#This Row],[Secteur organisateur]]),"Total_"&T_sept_dec[[#This Row],[Enseignant référent (Nom Prénom)]],"") -> Total_NEUF | V30: =1/COUNTIF(T_sept_dec[cléTotal],T_sept_dec[[#This Row],[cléTotal]]) -> 1
A31: 2017-11-09 | B31: MTK | D31: Louis Armand | E31: cm1 | F31: ONZE | G31: 30 | H31: In situ | I31: De la littérature au cinéma | L31: =IF(COUNTIF(Maternelle,E31)=1,listes!$T$1,IF(COUNTIF(Elémentaire,E31)=1,listes!$U$1,IF(COUNTIF(Collège,E31)=1,listes!$V$1,IF(COUNTIF(Lycée,E31)=1,listes!$W$1,"")))) -> Elémentaire | M31: =VLOOKUP(T_sept_dec[[#This Row],[Etablissement scolaire]],Regroupements!$T:$U,2,FALSE) -> Charpennes-Tonkin | N31: TONKIN | O31: =T_sept_dec[[#This Row],[Etablissement accueillant]]&"-"&T_sept_dec[[#This Row],[Enseignant référent (Nom Prénom)]] -> TONKIN-ONZE | P31: =1/COUNTIF(T_sept_dec[CléEtablissement],T_sept_dec[[#This Row],[CléEtablissement]]) -> 1 | Q31: =IF(COUNTIF(Réseau,T_sept_dec[[#This Row],[Secteur organisateur]]),"Réseau_"&T_sept_dec[[#This Row],[Enseignant référent (Nom Prénom)]], IF(COUNTIF(Rizehorsmed,T_sept_dec[[#This Row],[Secteur organisateur]]),"Rizehorsmed_"&T_sept_dec[[#This Row],[Enseignant référent (Nom Prénom)]], T_sept_dec[[#This Row],[Secteur organisateur]]&"_"&T_sept_dec[[#This Row],[Enseignant référent (Nom Prénom)]])) -> Réseau_ONZE | R31: =1/COUNTIF(T_sept_dec[CléRéseau-Rize horsmed],T_sept_dec[[#This Row],[CléRéseau-Rize horsmed]]) -> 1 | S31: =IF(COUNTIF(RIZE,T_sept_dec[[#This Row],[Secteur organisateur]]),"Rize_"&T_sept_dec[[#This Row],[Enseignant référent (Nom Prénom)]],"") ->  | T31: =1/COUNTIF(T_sept_dec[CléRize],T_sept_dec[[#This Row],[CléRize]]) -> 0.009803921569 | U31: =IF(COUNTIF(Total,T_sept_dec[[#This Row],[Secteur organisateur]]),"Total_"&T_sept_dec[[#This Row],[Enseignant référent (Nom Prénom)]],"") -> Total_ONZE | V31: =1/COUNTIF(T_sept_dec[cléTotal],T_sept_dec[[#This Row],[cléTotal]]) -> 1
A32: 2017-11-30 | B32: RIZE VALO | D32: Edouard Herriot | E32: cm1 | F32: QUANRANTEDEUX | G32: 26 | H32: Hors les murs | I32: Exploration Gratte-Ciel | L32: =IF(COUNTIF(Maternelle,E32)=1,listes!$T$1,IF(COUNTIF(Elémentaire,E32)=1,listes!$U$1,IF(COUNTIF(Collège,E32)=1,listes!$V$1,IF(COUNTIF(Lycée,E32)=1,listes!$W$1,"")))) -> Elémentaire | M32: =VLOOKUP(T_sept_dec[[#This Row],[Etablissement scolaire]],Regroupements!$T:$U,2,FALSE) -> Gratte-ciel-Dedieu-Charmettes | N32: RIZE | O32: =T_sept_dec[[#This Row],[Etablissement accueillant]]&"-"&T_sept_dec[[#This Row],[Enseignant référent (Nom Prénom)]] -> RIZE-QUANRANTEDEUX | P32: =1/COUNTIF(T_sept_dec[CléEtablissement],T_sept_dec[[#This Row],[CléEtablissement]]) -> 1 | Q32: =IF(COUNTIF(Réseau,T_sept_dec[[#This Row],[Secteur organisateur]]),"Réseau_"&T_sept_dec[[#This Row],[Enseignant référent (Nom Prénom)]], IF(COUNTIF(Rizehorsmed,T_sept_dec[[#This Row],[Secteur organisateur]]),"Rizehorsmed_"&T_sept_dec[[#This Row],[Enseignant référent (Nom Prénom)]], T_sept_dec[[#This Row],[Secteur organisateur]]&"_"&T_sept_dec[[#This Row],[Enseignant référent (Nom Prénom)]])) -> Rizehorsmed_QUANRANTEDEUX | R32: =1/COUNTIF(T_sept_dec[CléRéseau-Rize horsmed],T_sept_dec[[#This Row],[CléRéseau-Rize horsmed]]) -> 1 | S32: =IF(COUNTIF(RIZE,T_sept_dec[[#This Row],[Secteur organisateur]]),"Rize_"&T_sept_dec[[#This Row],[Enseignant référent (Nom Prénom)]],"") -> Rize_QUANRANTEDEUX | T32: =1/COUNTIF(T_sept_dec[CléRize],T_sept_dec[[#This Row],[CléRize]]) -> 1 | U32: =IF(COUNTIF(Total,T_sept_dec[[#This Row],[Secteur organisateur]]),"Total_"&T_sept_dec[[#This Row],[Enseignant référent (Nom Prénom)]],"") -> Total_QUANRANTEDEUX | V32: =1/COUNTIF(T_sept_dec[cléTotal],T_sept_dec[[#This Row],[cléTotal]]) -> 1
A33: 2017-12-21 | B33: ARTO | D33: Albert Camus | E33: cm1/cm2 | F33: QUARANTE | G33: 26 | H33: In situ | I33: Et si on parlait d'art ? | L33: =IF(COUNTIF(Maternelle,E33)=1,listes!$T$1,IF(COUNTIF(Elémentaire,E33)=1,listes!$U$1,IF(COUNTIF(Collège,E33)=1,listes!$V$1,IF(COUNTIF(Lycée,E33)=1,listes!$W$1,"")))) -> Elémentaire | M33: =VLOOKUP(T_sept_dec[[#This Row],[Etablissement scolaire]],Regroupements!$T:$U,2,FALSE) -> Cyprian-les-Brosses | N33: MLIS | O33: =T_sept_dec[[#This Row],[Etablissement accueillant]]&"-"&T_sept_dec[[#This Row],[Enseignant référent (Nom Prénom)]] -> MLIS-QUARANTE | P33: =1/COUNTIF(T_sept_dec[CléEtablissement],T_sept_dec[[#This Row],[CléEtablissement]]) -> 1 | Q33: =IF(COUNTIF(Réseau,T_sept_dec[[#This Row],[Secteur organisateur]]),"Réseau_"&T_sept_dec[[#This Row],[Enseignant référent (Nom Prénom)]], IF(COUNTIF(Rizehorsmed,T_sept_dec[[#This Row],[Secteur organisateur]]),"Rizehorsmed_"&T_sept_dec[[#This Row],[Enseignant référent (Nom Prénom)]], T_sept_dec[[#This Row],[Secteur organisateur]]&"_"&T_sept_dec[[#This Row],[Enseignant référent (Nom Prénom)]])) -> Réseau_QUARANTE | R33: =1/COUNTIF(T_sept_dec[CléRéseau-Rize horsmed],T_sept_dec[[#This Row],[CléRéseau-Rize horsmed]]) -> 1 | S33: =IF(COUNTIF(RIZE,T_sept_dec[[#This Row],[Secteur organisateur]]),"Rize_"&T_sept_dec[[#This Row],[Enseignant référent (Nom Prénom)]],"") ->  | T33: =1/COUNTIF(T_sept_dec[CléRize],T_sept_dec[[#This Row],[CléRize]]) -> 0.009803921569 | U33: =IF(COUNTIF(Total,T_sept_dec[[#This Row],[Secteur organisateur]]),"Total_"&T_sept_dec[[#This Row],[Enseignant référent (Nom Prénom)]],"") -> Total_QUARANTE | V33: =1/COUNTIF(T_sept_dec[cléTotal],T_sept_dec[[#This Row],[cléTotal]]) -> 1
A34: 2017-11-24 | B34: EMM | D34: Berthelot | E34: cm2 | F34: QUARANTEETUN | G34: 23 | H34: In situ | I34: Recherche multimédias | L34: =IF(COUNTIF(Maternelle,E34)=1,listes!$T$1,IF(COUNTIF(Elémentaire,E34)=1,listes!$U$1,IF(COUNTIF(Collège,E34)=1,listes!$V$1,IF(COUNTIF(Lycée,E34)=1,listes!$W$1,"")))) -> Elémentaire | M34: =VLOOKUP(T_sept_dec[[#This Row],[Etablissement scolaire]],Regroupements!$T:$U,2,FALSE) -> Perralière-Grandclément | N34: =IF(COUNTIF(FDL,B34)=1,"FDL",IF(COUNTIF(RIZE,B34)=1,"RIZE",IF(COUNTIF(MLIS,B34)=1,"MLIS",IF(COUNTIF(PACBUS,B34)=1,"PAC-BUS",IF(COUNTIF(Tonkin,B34)=1,"TONKIN",""))))) -> MLIS | O34: =T_sept_dec[[#This Row],[Etablissement accueillant]]&"-"&T_sept_dec[[#This Row],[Enseignant référent (Nom Prénom)]] -> MLIS-QUARANTEETUN | P34: =1/COUNTIF(T_sept_dec[CléEtablissement],T_sept_dec[[#This Row],[CléEtablissement]]) -> 1 | Q34: =IF(COUNTIF(Réseau,T_sept_dec[[#This Row],[Secteur organisateur]]),"Réseau_"&T_sept_dec[[#This Row],[Enseignant référent (Nom Prénom)]], IF(COUNTIF(Rizehorsmed,T_sept_dec[[#This Row],[Secteur organisateur]]),"Rizehorsmed_"&T_sept_dec[[#This Row],[Enseignant référent (Nom Prénom)]], T_sept_dec[[#This Row],[Secteur organisateur]]&"_"&T_sept_dec[[#This Row],[Enseignant référent (Nom Prénom)]])) -> Réseau_QUARANTEETUN | R34: =1/COUNTIF(T_sept_dec[CléRéseau-Rize horsmed],T_sept_dec[[#This Row],[CléRéseau-Rize horsmed]]) -> 1 | S34: =IF(COUNTIF(RIZE,T_sept_dec[[#This Row],[Secteur organisateur]]),"Rize_"&T_sept_dec[[#This Row],[Enseignant référent (Nom Prénom)]],"") ->  | T34: =1/COUNTIF(T_sept_dec[CléRize],T_sept_dec[[#This Row],[CléRize]]) -> 0.009803921569 | U34: =IF(COUNTIF(Total,T_sept_dec[[#This Row],[Secteur organisateur]]),"Total_"&T_sept_dec[[#This Row],[Enseignant référent (Nom Prénom)]],"") -> Total_QUARANTEETUN | V34: =1/COUNTIF(T_sept_dec[cléTotal],T_sept_dec[[#This Row],[cléTotal]]) -> 1
A35: 2017-10-11 | B35: RIZE MED | D35: Jean Jaurès (primaire) | E35: ps | F35: QUARENTECINQ | G35: 22 | H35: In situ | I35: Visite médiathèque | L35: =IF(COUNTIF(Maternelle,E35)=1,listes!$T$1,IF(COUNTIF(Elémentaire,E35)=1,listes!$U$1,IF(COUNTIF(Collège,E35)=1,listes!$V$1,IF(COUNTIF(Lycée,E35)=1,listes!$W$1,"")))) -> Maternelle | M35: =VLOOKUP(T_sept_dec[[#This Row],[Etablissement scolaire]],Regroupements!$T:$U,2,FALSE) -> Ferrandière-Maisons Neuves | N35: RIZE | O35: =T_sept_dec[[#This Row],[Etablissement accueillant]]&"-"&T_sept_dec[[#This Row],[Enseignant référent (Nom Prénom)]] -> RIZE-QUARENTECINQ | P35: =1/COUNTIF(T_sept_dec[CléEtablissement],T_sept_dec[[#This Row],[CléEtablissement]]) -> 1 | Q35: =IF(COUNTIF(Réseau,T_sept_dec[[#This Row],[Secteur organisateur]]),"Réseau_"&T_sept_dec[[#This Row],[Enseignant référent (Nom Prénom)]], IF(COUNTIF(Rizehorsmed,T_sept_dec[[#This Row],[Secteur organisateur]]),"Rizehorsmed_"&T_sept_dec[[#This Row],[Enseignant référent (Nom Prénom)]], T_sept_dec[[#This Row],[Secteur organisateur]]&"_"&T_sept_dec[[#This Row],[Enseignant référent (Nom Prénom)]])) -> Réseau_QUARENTECINQ | R35: =1/COUNTIF(T_sept_dec[CléRéseau-Rize horsmed],T_sept_dec[[#This Row],[CléRéseau-Rize horsmed]]) -> 1 | S35: =IF(COUNTIF(RIZE,T_sept_dec[[#This Row],[Secteur organisateur]]),"Rize_"&T_sept_dec[[#This Row],[Enseignant référent (Nom Prénom)]],"") -> Rize_QUARENTECINQ | T35: =1/COUNTIF(T_sept_dec[CléRize],T_sept_dec[[#This Row],[CléRize]]) -> 1 | U35: =IF(COUNTIF(Total,T_sept_dec[[#This Row],[Secteur organisateur]]),"Total_"&T_sept_dec[[#This Row],[Enseignant référent (Nom Prénom)]],"") -> Total_QUARENTECINQ | V35: =1/COUNTIF(T_sept_dec[cléTotal],T_sept_dec[[#This Row],[cléTotal]]) -> 1
A36: 2017-11-16 | B36: MTK | D36: Saint Exupéry | E36: cm1/cm2 | F36: QUARENTEHUIT | G36: 23 | H36: In situ | I36: De la littérature au cinéma | L36: =IF(COUNTIF(Maternelle,E36)=1,listes!$T$1,IF(COUNTIF(Elémentaire,E36)=1,listes!$U$1,IF(COUNTIF(Collège,E36)=1,listes!$V$1,IF(COUNTIF(Lycée,E36)=1,listes!$W$1,"")))) -> Elémentaire | M36: =VLOOKUP(T_sept_dec[[#This Row],[Etablissement scolaire]],Regroupements!$T:$U,2,FALSE) -> Saint Jean | N36: TONKIN | O36: =T_sept_dec[[#This Row],[Etablissement accueillant]]&"-"&T_sept_dec[[#This Row],[Enseignant référent (Nom Prénom)]] -> TONKIN-QUARENTEHUIT | P36: =1/COUNTIF(T_sept_dec[CléEtablissement],T_sept_dec[[#This Row],[CléEtablissement]]) -> 1 | Q36: =IF(COUNTIF(Réseau,T_sept_dec[[#This Row],[Secteur organisateur]]),"Réseau_"&T_sept_dec[[#This Row],[Enseignant référent (Nom Prénom)]], IF(COUNTIF(Rizehorsmed,T_sept_dec[[#This Row],[Secteur organisateur]]),"Rizehorsmed_"&T_sept_dec[[#This Row],[Enseignant référent (Nom Prénom)]], T_sept_dec[[#This Row],[Secteur organisateur]]&"_"&T_sept_dec[[#This Row],[Enseignant référent (Nom Prénom)]])) -> Réseau_QUARENTEHUIT | R36: =1/COUNTIF(T_sept_dec[CléRéseau-Rize horsmed],T_sept_dec[[#This Row],[CléRéseau-Rize horsmed]]) -> 0.5 | S36: =IF(COUNTIF(RIZE,T_sept_dec[[#This Row],[Secteur organisateur]]),"Rize_"&T_sept_dec[[#This Row],[Enseignant référent (Nom Prénom)]],"") ->  | T36: =1/COUNTIF(T_sept_dec[CléRize],T_sept_dec[[#This Row],[CléRize]]) -> 0.009803921569 | U36: =IF(COUNTIF(Total,T_sept_dec[[#This Row],[Secteur organisateur]]),"Total_"&T_sept_dec[[#This Row],[Enseignant référent (Nom Prénom)]],"") -> Total_QUARENTEHUIT | V36: =1/COUNTIF(T_sept_dec[cléTotal],T_sept_dec[[#This Row],[cléTotal]]) -> 0.5
A37: 2017-11-17 | B37: EMM | D37: Saint Exupéry | E37: cm1/cm2 | F37: QUARENTEHUIT | G37: 25 | H37: In situ | I37: Stop motion | L37: =IF(COUNTIF(Maternelle,E37)=1,listes!$T$1,IF(COUNTIF(Elémentaire,E37)=1,listes!$U$1,IF(COUNTIF(Collège,E37)=1,listes!$V$1,IF(COUNTIF(Lycée,E37)=1,listes!$W$1,"")))) -> Elémentaire | M37: =VLOOKUP(T_sept_dec[[#This Row],[Etablissement scolaire]],Regroupements!$T:$U,2,FALSE) -> Saint Jean | N37: MLIS | O37: =T_sept_dec[[#This Row],[Etablissement accueillant]]&"-"&T_sept_dec[[#This Row],[Enseignant référent (Nom Prénom)]] -> MLIS-QUARENTEHUIT | P37: =1/COUNTIF(T_sept_dec[CléEtablissement],T_sept_dec[[#This Row],[CléEtablissement]]) -> 1 | Q37: =IF(COUNTIF(Réseau,T_sept_dec[[#This Row],[Secteur organisateur]]),"Réseau_"&T_sept_dec[[#This Row],[Enseignant référent (Nom Prénom)]], IF(COUNTIF(Rizehorsmed,T_sept_dec[[#This Row],[Secteur organisateur]]),"Rizehorsmed_"&T_sept_dec[[#This Row],[Enseignant référent (Nom Prénom)]], T_sept_dec[[#This Row],[Secteur organisateur]]&"_"&T_sept_dec[[#This Row],[Enseignant référent (Nom Prénom)]])) -> Réseau_QUARENTEHUIT | R37: =1/COUNTIF(T_sept_dec[CléRéseau-Rize horsmed],T_sept_dec[[#This Row],[CléRéseau-Rize horsmed]]) -> 0.5 | S37: =IF(COUNTIF(RIZE,T_sept_dec[[#This Row],[Secteur organisateur]]),"Rize_"&T_sept_dec[[#This Row],[Enseignant référent (Nom Prénom)]],"") ->  | T37: =1/COUNTIF(T_sept_dec[CléRize],T_sept_dec[[#This Row],[CléRize]]) -> 0.009803921569 | U37: =IF(COUNTIF(Total,T_sept_dec[[#This Row],[Secteur organisateur]]),"Total_"&T_sept_dec[[#This Row],[Enseignant référent (Nom Prénom)]],"") -> Total_QUARENTEHUIT | V37: =1/COUNTIF(T_sept_dec[cléTotal],T_sept_dec[[#This Row],[cléTotal]]) -> 0.5
A38: 2017-09-20 | B38: RIZE MED | D38: Emile Zola | E38: cm1 | F38: QUARENTENEUF | G38: 24 | H38: In situ | I38: Visite couplée | L38: =IF(COUNTIF(Maternelle,E38)=1,listes!$T$1,IF(COUNTIF(Elémentaire,E38)=1,listes!$U$1,IF(COUNTIF(Collège,E38)=1,listes!$V$1,IF(COUNTIF(Lycée,E38)=1,listes!$W$1,"")))) -> Elémentaire | M38: =VLOOKUP(T_sept_dec[[#This Row],[Etablissement scolaire]],Regroupements!$T:$U,2,FALSE) -> Gratte-ciel-Dedieu-Charmettes | N38: RIZE | O38: =T_sept_dec[[#This Row],[Etablissement accueillant]]&"-"&T_sept_dec[[#This Row],[Enseignant référent (Nom Prénom)]] -> RIZE-QUARENTENEUF | P38: =1/COUNTIF(T_sept_dec[CléEtablissement],T_sept_dec[[#This Row],[CléEtablissement]]) -> 1 | Q38: =IF(COUNTIF(Réseau,T_sept_dec[[#This Row],[Secteur organisateur]]),"Réseau_"&T_sept_dec[[#This Row],[Enseignant référent (Nom Prénom)]], IF(COUNTIF(Rizehorsmed,T_sept_dec[[#This Row],[Secteur organisateur]]),"Rizehorsmed_"&T_sept_dec[[#This Row],[Enseignant référent (Nom Prénom)]], T_sept_dec[[#This Row],[Secteur organisateur]]&"_"&T_sept_dec[[#This Row],[Enseignant référent (Nom Prénom)]])) -> Réseau_QUARENTENEUF | R38: =1/COUNTIF(T_sept_dec[CléRéseau-Rize horsmed],T_sept_dec[[#This Row],[CléRéseau-Rize horsmed]]) -> 1 | S38: =IF(COUNTIF(RIZE,T_sept_dec[[#This Row],[Secteur organisateur]]),"Rize_"&T_sept_dec[[#This Row],[Enseignant référent (Nom Prénom)]],"") -> Rize_QUARENTENEUF | T38: =1/COUNTIF(T_sept_dec[CléRize],T_sept_dec[[#This Row],[CléRize]]) -> 1 | U38: =IF(COUNTIF(Total,T_sept_dec[[#This Row],[Secteur organisateur]]),"Total_"&T_sept_dec[[#This Row],[Enseignant référent (Nom Prénom)]],"") -> Total_QUARENTENEUF | V38: =1/COUNTIF(T_sept_dec[cléTotal],T_sept_dec[[#This Row],[cléTotal]]) -> 1
A39: 2017-11-09 | B39: ARTO | D39: Croix-Luizet | E39: ce2 | F39: QUARENTEQUATRE | G39: 27 | H39: In situ | I39: Et si on parlait d'art ? | L39: =IF(COUNTIF(Maternelle,E39)=1,listes!$T$1,IF(COUNTIF(Elémentaire,E39)=1,listes!$U$1,IF(COUNTIF(Collège,E39)=1,listes!$V$1,IF(COUNTIF(Lycée,E39)=1,listes!$W$1,"")))) -> Elémentaire | M39: =VLOOKUP(T_sept_dec[[#This Row],[Etablissement scolaire]],Regroupements!$T:$U,2,FALSE) -> Buers-Croix-Luizet | N39: MLIS | O39: =T_sept_dec[[#This Row],[Etablissement accueillant]]&"-"&T_sept_dec[[#This Row],[Enseignant référent (Nom Prénom)]] -> MLIS-QUARENTEQUATRE | P39: =1/COUNTIF(T_sept_dec[CléEtablissement],T_sept_dec[[#This Row],[CléEtablissement]]) -> 1 | Q39: =IF(COUNTIF(Réseau,T_sept_dec[[#This Row],[Secteur organisateur]]),"Réseau_"&T_sept_dec[[#This Row],[Enseignant référent (Nom Prénom)]], IF(COUNTIF(Rizehorsmed,T_sept_dec[[#This Row],[Secteur organisateur]]),"Rizehorsmed_"&T_sept_dec[[#This Row],[Enseignant référent (Nom Prénom)]], T_sept_dec[[#This Row],[Secteur organisateur]]&"_"&T_sept_dec[[#This Row],[Enseignant référent (Nom Prénom)]])) -> Réseau_QUARENTEQUATRE | R39: =1/COUNTIF(T_sept_dec[CléRéseau-Rize horsmed],T_sept_dec[[#This Row],[CléRéseau-Rize horsmed]]) -> 1 | S39: =IF(COUNTIF(RIZE,T_sept_dec[[#This Row],[Secteur organisateur]]),"Rize_"&T_sept_dec[[#This Row],[Enseignant référent (Nom Prénom)]],"") ->  | T39: =1/COUNTIF(T_sept_dec[CléRize],T_sept_dec[[#This Row],[CléRize]]) -> 0.009803921569 | U39: =IF(COUNTIF(Total,T_sept_dec[[#This Row],[Secteur organisateur]]),"Total_"&T_sept_dec[[#This Row],[Enseignant référent (Nom Prénom)]],"") -> Total_QUARENTEQUATRE | V39: =1/COUNTIF(T_sept_dec[cléTotal],T_sept_dec[[#This Row],[cléTotal]]) -> 1
A40: 2017-10-20 | B40: MLIS J | D40: Albert Camus | E40: ce2 | F40: QUARENTESEPT | G40: 24 | H40: In situ | I40: Conte | L40: =IF(COUNTIF(Maternelle,E40)=1,listes!$T$1,IF(COUNTIF(Elémentaire,E40)=1,listes!$U$1,IF(COUNTIF(Collège,E40)=1,listes!$V$1,IF(COUNTIF(Lycée,E40)=1,listes!$W$1,"")))) -> Elémentaire | M40: =VLOOKUP(T_sept_dec[[#This Row],[Etablissement scolaire]],Regroupements!$T:$U,2,FALSE) -> Cyprian-les-Brosses | N40: MLIS | O40: =T_sept_dec[[#This Row],[Etablissement accueillant]]&"-"&T_sept_dec[[#This Row],[Enseignant référent (Nom Prénom)]] -> MLIS-QUARENTESEPT | P40: =1/COUNTIF(T_sept_dec[CléEtablissement],T_sept_dec[[#This Row],[CléEtablissement]]) -> 1 | Q40: =IF(COUNTIF(Réseau,T_sept_dec[[#This Row],[Secteur organisateur]]),"Réseau_"&T_sept_dec[[#This Row],[Enseignant référent (Nom Prénom)]], IF(COUNTIF(Rizehorsmed,T_sept_dec[[#This Row],[Secteur organisateur]]),"Rizehorsmed_"&T_sept_dec[[#This Row],[Enseignant référent (Nom Prénom)]], T_sept_dec[[#This Row],[Secteur organisateur]]&"_"&T_sept_dec[[#This Row],[Enseignant référent (Nom Prénom)]])) -> Réseau_QUARENTESEPT | R40: =1/COUNTIF(T_sept_dec[CléRéseau-Rize horsmed],T_sept_dec[[#This Row],[CléRéseau-Rize horsmed]]) -> 1 | S40: =IF(COUNTIF(RIZE,T_sept_dec[[#This Row],[Secteur organisateur]]),"Rize_"&T_sept_dec[[#This Row],[Enseignant référent (Nom Prénom)]],"") ->  | T40: =1/COUNTIF(T_sept_dec[CléRize],T_sept_dec[[#This Row],[CléRize]]) -> 0.009803921569 | U40: =IF(COUNTIF(Total,T_sept_dec[[#This Row],[Secteur organisateur]]),"Total_"&T_sept_dec[[#This Row],[Enseignant référent (Nom Prénom)]],"") -> Total_QUARENTESEPT | V40: =1/COUNTIF(T_sept_dec[cléTotal],T_sept_dec[[#This Row],[cléTotal]]) -> 1
A41: 2017-09-15 | B41: RIZE MED | D41: Emile Zola | E41: cm1 | F41: QUARENTESIX | G41: 24 | H41: In situ | I41: Visite couplée | L41: =IF(COUNTIF(Maternelle,E41)=1,listes!$T$1,IF(COUNTIF(Elémentaire,E41)=1,listes!$U$1,IF(COUNTIF(Collège,E41)=1,listes!$V$1,IF(COUNTIF(Lycée,E41)=1,listes!$W$1,"")))) -> Elémentaire | M41: =VLOOKUP(T_sept_dec[[#This Row],[Etablissement scolaire]],Regroupements!$T:$U,2,FALSE) -> Gratte-ciel-Dedieu-Charmettes | N41: RIZE | O41: =T_sept_dec[[#This Row],[Etablissement accueillant]]&"-"&T_sept_dec[[#This Row],[Enseignant référent (Nom Prénom)]] -> RIZE-QUARENTESIX | P41: =1/COUNTIF(T_sept_dec[CléEtablissement],T_sept_dec[[#This Row],[CléEtablissement]]) -> 1 | Q41: =IF(COUNTIF(Réseau,T_sept_dec[[#This Row],[Secteur organisateur]]),"Réseau_"&T_sept_dec[[#This Row],[Enseignant référent (Nom Prénom)]], IF(COUNTIF(Rizehorsmed,T_sept_dec[[#This Row],[Secteur organisateur]]),"Rizehorsmed_"&T_sept_dec[[#This Row],[Enseignant référent (Nom Prénom)]], T_sept_dec[[#This Row],[Secteur organisateur]]&"_"&T_sept_dec[[#This Row],[Enseignant référent (Nom Prénom)]])) -> Réseau_QUARENTESIX | R41: =1/COUNTIF(T_sept_dec[CléRéseau-Rize horsmed],T_sept_dec[[#This Row],[CléRéseau-Rize horsmed]]) -> 1 | S41: =IF(COUNTIF(RIZE,T_sept_dec[[#This Row],[Secteur organisateur]]),"Rize_"&T_sept_dec[[#This Row],[Enseignant référent (Nom Prénom)]],"") -> Rize_QUARENTESIX | T41: =1/COUNTIF(T_sept_dec[CléRize],T_sept_dec[[#This Row],[CléRize]]) -> 1 | U41: =IF(COUNTIF(Total,T_sept_dec[[#This Row],[Secteur organisateur]]),"Total_"&T_sept_dec[[#This Row],[Enseignant référent (Nom Prénom)]],"") -> Total_QUARENTESIX | V41: =1/COUNTIF(T_sept_dec[cléTotal],T_sept_dec[[#This Row],[cléTotal]]) -> 1
A42: 2017-12-14 | B42: ARTO | D42: Jules Guesde | E42: ce1/ce2 | F42: QUARENTETROIS | G42: 25 | H42: In situ | I42: Et si on parlait d'art ? | L42: =IF(COUNTIF(Maternelle,E42)=1,listes!$T$1,IF(COUNTIF(Elémentaire,E42)=1,listes!$U$1,IF(COUNTIF(Collège,E42)=1,listes!$V$1,IF(COUNTIF(Lycée,E42)=1,listes!$W$1,"")))) -> Elémentaire | M42: =VLOOKUP(T_sept_dec[[#This Row],[Etablissement scolaire]],Regroupements!$T:$U,2,FALSE) -> Cyprian-les-Brosses | N42: MLIS | O42: =T_sept_dec[[#This Row],[Etablissement accueillant]]&"-"&T_sept_dec[[#This Row],[Enseignant référent (Nom Prénom)]] -> MLIS-QUARENTETROIS | P42: =1/COUNTIF(T_sept_dec[CléEtablissement],T_sept_dec[[#This Row],[CléEtablissement]]) -> 0.5 | Q42: =IF(COUNTIF(Réseau,T_sept_dec[[#This Row],[Secteur organisateur]]),"Réseau_"&T_sept_dec[[#This Row],[Enseignant référent (Nom Prénom)]], IF(COUNTIF(Rizehorsmed,T_sept_dec[[#This Row],[Secteur organisateur]]),"Rizehorsmed_"&T_sept_dec[[#This Row],[Enseignant référent (Nom Prénom)]], T_sept_dec[[#This Row],[Secteur organisateur]]&"_"&T_sept_dec[[#This Row],[Enseignant référent (Nom Prénom)]])) -> Réseau_QUARENTETROIS | R42: =1/COUNTIF(T_sept_dec[CléRéseau-Rize horsmed],T_sept_dec[[#This Row],[CléRéseau-Rize horsmed]]) -> 0.5 | S42: =IF(COUNTIF(RIZE,T_sept_dec[[#This Row],[Secteur organisateur]]),"Rize_"&T_sept_dec[[#This Row],[Enseignant référent (Nom Prénom)]],"") ->  | T42: =1/COUNTIF(T_sept_dec[CléRize],T_sept_dec[[#This Row],[CléRize]]) -> 0.009803921569 | U42: =IF(COUNTIF(Total,T_sept_dec[[#This Row],[Secteur organisateur]]),"Total_"&T_sept_dec[[#This Row],[Enseignant référent (Nom Prénom)]],"") -> Total_QUARENTETROIS | V42: =1/COUNTIF(T_sept_dec[cléTotal],T_sept_dec[[#This Row],[cléTotal]]) -> 0.5
A43: 2017-12-14 | B43: MLIS J | D43: Jules Guesde | E43: ce1/ce2 | F43: QUARENTETROIS | G43: 25 | H43: In situ | I43: Visite à la carte | L43: =IF(COUNTIF(Maternelle,E43)=1,listes!$T$1,IF(COUNTIF(Elémentaire,E43)=1,listes!$U$1,IF(COUNTIF(Collège,E43)=1,listes!$V$1,IF(COUNTIF(Lycée,E43)=1,listes!$W$1,"")))) -> Elémentaire | M43: =VLOOKUP(T_sept_dec[[#This Row],[Etablissement scolaire]],Regroupements!$T:$U,2,FALSE) -> Cyprian-les-Brosses | N43: MLIS | O43: =T_sept_dec[[#This Row],[Etablissement accueillant]]&"-"&T_sept_dec[[#This Row],[Enseignant référent (Nom Prénom)]] -> MLIS-QUARENTETROIS | P43: =1/COUNTIF(T_sept_dec[CléEtablissement],T_sept_dec[[#This Row],[CléEtablissement]]) -> 0.5 | Q43: =IF(COUNTIF(Réseau,T_sept_dec[[#This Row],[Secteur organisateur]]),"Réseau_"&T_sept_dec[[#This Row],[Enseignant référent (Nom Prénom)]], IF(COUNTIF(Rizehorsmed,T_sept_dec[[#This Row],[Secteur organisateur]]),"Rizehorsmed_"&T_sept_dec[[#This Row],[Enseignant référent (Nom Prénom)]], T_sept_dec[[#This Row],[Secteur organisateur]]&"_"&T_sept_dec[[#This Row],[Enseignant référent (Nom Prénom)]])) -> Réseau_QUARENTETROIS | R43: =1/COUNTIF(T_sept_dec[CléRéseau-Rize horsmed],T_sept_dec[[#This Row],[CléRéseau-Rize horsmed]]) -> 0.5 | S43: =IF(COUNTIF(RIZE,T_sept_dec[[#This Row],[Secteur organisateur]]),"Rize_"&T_sept_dec[[#This Row],[Enseignant référent (Nom Prénom)]],"") ->  | T43: =1/COUNTIF(T_sept_dec[CléRize],T_sept_dec[[#This Row],[CléRize]]) -> 0.009803921569 | U43: =IF(COUNTIF(Total,T_sept_dec[[#This Row],[Secteur organisateur]]),"Total_"&T_sept_dec[[#This Row],[Enseignant référent (Nom Prénom)]],"") -> Total_QUARENTETROIS | V43: =1/COUNTIF(T_sept_dec[cléTotal],T_sept_dec[[#This Row],[cléTotal]]) -> 0.5
A44: 2017-10-10 | B44: RIZE VALO | D44: Anatole France | E44: cm1 | F44: QUATORZE | G44: 25 | H44: Hors les murs | I44: Exploration Gratte-Ciel | L44: =IF(COUNTIF(Maternelle,E44)=1,listes!$T$1,IF(COUNTIF(Elémentaire,E44)=1,listes!$U$1,IF(COUNTIF(Collège,E44)=1,listes!$V$1,IF(COUNTIF(Lycée,E44)=1,listes!$W$1,"")))) -> Elémentaire | M44: =VLOOKUP(T_sept_dec[[#This Row],[Etablissement scolaire]],Regroupements!$T:$U,2,FALSE) -> Gratte-ciel-Dedieu-Charmettes | N44: RIZE | O44: =T_sept_dec[[#This Row],[Etablissement accueillant]]&"-"&T_sept_dec[[#This Row],[Enseignant référent (Nom Prénom)]] -> RIZE-QUATORZE | P44: =1/COUNTIF(T_sept_dec[CléEtablissement],T_sept_dec[[#This Row],[CléEtablissement]]) -> 1 | Q44: =IF(COUNTIF(Réseau,T_sept_dec[[#This Row],[Secteur organisateur]]),"Réseau_"&T_sept_dec[[#This Row],[Enseignant référent (Nom Prénom)]], IF(COUNTIF(Rizehorsmed,T_sept_dec[[#This Row],[Secteur organisateur]]),"Rizehorsmed_"&T_sept_dec[[#This Row],[Enseignant référent (Nom Prénom)]], T_sept_dec[[#This Row],[Secteur organisateur]]&"_"&T_sept_dec[[#This Row],[Enseignant référent (Nom Prénom)]])) -> Rizehorsmed_QUATORZE | R44: =1/COUNTIF(T_sept_dec[CléRéseau-Rize horsmed],T_sept_dec[[#This Row],[CléRéseau-Rize horsmed]]) -> 1 | S44: =IF(COUNTIF(RIZE,T_sept_dec[[#This Row],[Secteur organisateur]]),"Rize_"&T_sept_dec[[#This Row],[Enseignant référent (Nom Prénom)]],"") -> Rize_QUATORZE | T44: =1/COUNTIF(T_sept_dec[CléRize],T_sept_dec[[#This Row],[CléRize]]) -> 1 | U44: =IF(COUNTIF(Total,T_sept_dec[[#This Row],[Secteur organisateur]]),"Total_"&T_sept_dec[[#This Row],[Enseignant référent (Nom Prénom)]],"") -> Total_QUATORZE | V44: =1/COUNTIF(T_sept_dec[cléTotal],T_sept_dec[[#This Row],[cléTotal]]) -> 1
A45: 2017-12-06 | B45: MLIS J | D45: René Pellet (déficients visuels) | E45: ce1/ce2 | F45: CENTTROIS | G45: 8 | H45: In situ | I45: Conte | L45: =IF(COUNTIF(Maternelle,E45)=1,listes!$T$1,IF(COUNTIF(Elémentaire,E45)=1,listes!$U$1,IF(COUNTIF(Collège,E45)=1,listes!$V$1,IF(COUNTIF(Lycée,E45)=1,listes!$W$1,"")))) -> Elémentaire | M45: =VLOOKUP(T_sept_dec[[#This Row],[Etablissement scolaire]],Regroupements!$T:$U,2,FALSE) -> Perralière-Grandclément | N45: MLIS | O45: =T_sept_dec[[#This Row],[Etablissement accueillant]]&"-"&T_sept_dec[[#This Row],[Enseignant référent (Nom Prénom)]] -> MLIS-CENTTROIS | P45: =1/COUNTIF(T_sept_dec[CléEtablissement],T_sept_dec[[#This Row],[CléEtablissement]]) -> 1 | Q45: =IF(COUNTIF(Réseau,T_sept_dec[[#This Row],[Secteur organisateur]]),"Réseau_"&T_sept_dec[[#This Row],[Enseignant référent (Nom Prénom)]], IF(COUNTIF(Rizehorsmed,T_sept_dec[[#This Row],[Secteur organisateur]]),"Rizehorsmed_"&T_sept_dec[[#This Row],[Enseignant référent (Nom Prénom)]], T_sept_dec[[#This Row],[Secteur organisateur]]&"_"&T_sept_dec[[#This Row],[Enseignant référent (Nom Prénom)]])) -> Réseau_CENTTROIS | R45: =1/COUNTIF(T_sept_dec[CléRéseau-Rize horsmed],T_sept_dec[[#This Row],[CléRéseau-Rize horsmed]]) -> 1 | S45: =IF(COUNTIF(RIZE,T_sept_dec[[#This Row],[Secteur organisateur]]),"Rize_"&T_sept_dec[[#This Row],[Enseignant référent (Nom Prénom)]],"") ->  | T45: =1/COUNTIF(T_sept_dec[CléRize],T_sept_dec[[#This Row],[CléRize]]) -> 0.009803921569 | U45: =IF(COUNTIF(Total,T_sept_dec[[#This Row],[Secteur organisateur]]),"Total_"&T_sept_dec[[#This Row],[Enseignant référent (Nom Prénom)]],"") -> Total_CENTTROIS | V45: =1/COUNTIF(T_sept_dec[cléTotal],T_sept_dec[[#This Row],[cléTotal]]) -> 1
A46: 2017-12-15 | B46: RIZE MED | D46: René Pellet (déficients visuels) | E46: cp/ce1 | F46: QUATRE | G46: 5 | H46: In situ | I46: Visite thématique | L46: =IF(COUNTIF(Maternelle,E46)=1,listes!$T$1,IF(COUNTIF(Elémentaire,E46)=1,listes!$U$1,IF(COUNTIF(Collège,E46)=1,listes!$V$1,IF(COUNTIF(Lycée,E46)=1,listes!$W$1,"")))) -> Elémentaire | M46: =VLOOKUP(T_sept_dec[[#This Row],[Etablissement scolaire]],Regroupements!$T:$U,2,FALSE) -> Perralière-Grandclément | N46: RIZE | O46: =T_sept_dec[[#This Row],[Etablissement accueillant]]&"-"&T_sept_dec[[#This Row],[Enseignant référent (Nom Prénom)]] -> RIZE-QUATRE | P46: =1/COUNTIF(T_sept_dec[CléEtablissement],T_sept_dec[[#This Row],[CléEtablissement]]) -> 1 | Q46: =IF(COUNTIF(Réseau,T_sept_dec[[#This Row],[Secteur organisateur]]),"Réseau_"&T_sept_dec[[#This Row],[Enseignant référent (Nom Prénom)]], IF(COUNTIF(Rizehorsmed,T_sept_dec[[#This Row],[Secteur organisateur]]),"Rizehorsmed_"&T_sept_dec[[#This Row],[Enseignant référent (Nom Prénom)]], T_sept_dec[[#This Row],[Secteur organisateur]]&"_"&T_sept_dec[[#This Row],[Enseignant référent (Nom Prénom)]])) -> Réseau_QUATRE | R46: =1/COUNTIF(T_sept_dec[CléRéseau-Rize horsmed],T_sept_dec[[#This Row],[CléRéseau-Rize horsmed]]) -> 1 | S46: =IF(COUNTIF(RIZE,T_sept_dec[[#This Row],[Secteur organisateur]]),"Rize_"&T_sept_dec[[#This Row],[Enseignant référent (Nom Prénom)]],"") -> Rize_QUATRE | T46: =1/COUNTIF(T_sept_dec[CléRize],T_sept_dec[[#This Row],[CléRize]]) -> 1 | U46: =IF(COUNTIF(Total,T_sept_dec[[#This Row],[Secteur organisateur]]),"Total_"&T_sept_dec[[#This Row],[Enseignant référent (Nom Prénom)]],"") -> Total_QUATRE | V46: =1/COUNTIF(T_sept_dec[cléTotal],T_sept_dec[[#This Row],[cléTotal]]) -> 1
A47: 2017-11-20 | B47: RIZE VALO | D47: Lycée Frédéric Faÿs | E47: Tle | F47: QUATREVINGT | G47: 15 | H47: Hors les murs | I47: Exploration Gratte-Ciel | L47: =IF(COUNTIF(Maternelle,E47)=1,listes!$T$1,IF(COUNTIF(Elémentaire,E47)=1,listes!$U$1,IF(COUNTIF(Collège,E47)=1,listes!$V$1,IF(COUNTIF(Lycée,E47)=1,listes!$W$1,"")))) -> Lycée | M47: =VLOOKUP(T_sept_dec[[#This Row],[Etablissement scolaire]],Regroupements!$T:$U,2,FALSE) -> Cusset-Bonnevay | N47: RIZE | O47: =T_sept_dec[[#This Row],[Etablissement accueillant]]&"-"&T_sept_dec[[#This Row],[Enseignant référent (Nom Prénom)]] -> RIZE-QUATREVINGT | P47: =1/COUNTIF(T_sept_dec[CléEtablissement],T_sept_dec[[#This Row],[CléEtablissement]]) -> 1 | Q47: =IF(COUNTIF(Réseau,T_sept_dec[[#This Row],[Secteur organisateur]]),"Réseau_"&T_sept_dec[[#This Row],[Enseignant référent (Nom Prénom)]], IF(COUNTIF(Rizehorsmed,T_sept_dec[[#This Row],[Secteur organisateur]]),"Rizehorsmed_"&T_sept_dec[[#This Row],[Enseignant référent (Nom Prénom)]], T_sept_dec[[#This Row],[Secteur organisateur]]&"_"&T_sept_dec[[#This Row],[Enseignant référent (Nom Prénom)]])) -> Rizehorsmed_QUATREVINGT | R47: =1/COUNTIF(T_sept_dec[CléRéseau-Rize horsmed],T_sept_dec[[#This Row],[CléRéseau-Rize horsmed]]) -> 1 | S47: =IF(COUNTIF(RIZE,T_sept_dec[[#This Row],[Secteur organisateur]]),"Rize_"&T_sept_dec[[#This Row],[Enseignant référent (Nom Prénom)]],"") -> Rize_QUATREVINGT | T47: =1/COUNTIF(T_sept_dec[CléRize],T_sept_dec[[#This Row],[CléRize]]) -> 1 | U47: =IF(COUNTIF(Total,T_sept_dec[[#This Row],[Secteur organisateur]]),"Total_"&T_sept_dec[[#This Row],[Enseignant référent (Nom Prénom)]],"") -> Total_QUATREVINGT | V47: =1/COUNTIF(T_sept_dec[cléTotal],T_sept_dec[[#This Row],[cléTotal]]) -> 1
A48: 2017-10-19 | B48: MLIS J | D48: Albert Camus | E48: ce2 | F48: QUATREVINGTCINQ | G48: 23 | H48: In situ | I48: Conte | L48: =IF(COUNTIF(Maternelle,E48)=1,listes!$T$1,IF(COUNTIF(Elémentaire,E48)=1,listes!$U$1,IF(COUNTIF(Collège,E48)=1,listes!$V$1,IF(COUNTIF(Lycée,E48)=1,listes!$W$1,"")))) -> Elémentaire | M48: =VLOOKUP(T_sept_dec[[#This Row],[Etablissement scolaire]],Regroupements!$T:$U,2,FALSE) -> Cyprian-les-Brosses | N48: MLIS | O48: =T_sept_dec[[#This Row],[Etablissement accueillant]]&"-"&T_sept_dec[[#This Row],[Enseignant référent (Nom Prénom)]] -> MLIS-QUATREVINGTCINQ | P48: =1/COUNTIF(T_sept_dec[CléEtablissement],T_sept_dec[[#This Row],[CléEtablissement]]) -> 1 | Q48: =IF(COUNTIF(Réseau,T_sept_dec[[#This Row],[Secteur organisateur]]),"Réseau_"&T_sept_dec[[#This Row],[Enseignant référent (Nom Prénom)]], IF(COUNTIF(Rizehorsmed,T_sept_dec[[#This Row],[Secteur organisateur]]),"Rizehorsmed_"&T_sept_dec[[#This Row],[Enseignant référent (Nom Prénom)]], T_sept_dec[[#This Row],[Secteur organisateur]]&"_"&T_sept_dec[[#This Row],[Enseignant référent (Nom Prénom)]])) -> Réseau_QUATREVINGTCINQ | R48: =1/COUNTIF(T_sept_dec[CléRéseau-Rize horsmed],T_sept_dec[[#This Row],[CléRéseau-Rize horsmed]]) -> 1 | S48: =IF(COUNTIF(RIZE,T_sept_dec[[#This Row],[Secteur organisateur]]),"Rize_"&T_sept_dec[[#This Row],[Enseignant référent (Nom Prénom)]],"") ->  | T48: =1/COUNTIF(T_sept_dec[CléRize],T_sept_dec[[#This Row],[CléRize]]) -> 0.009803921569 | U48: =IF(COUNTIF(Total,T_sept_dec[[#This Row],[Secteur organisateur]]),"Total_"&T_sept_dec[[#This Row],[Enseignant référent (Nom Prénom)]],"") -> Total_QUATREVINGTCINQ | V48: =1/COUNTIF(T_sept_dec[cléTotal],T_sept_dec[[#This Row],[cléTotal]]) -> 1
A49: 2017-09-27 | B49: MLIS J | D49: Jean Zay | E49: cp | F49: QUATREVINGTDEUX | G49: 25 | H49: In situ | I49: Visite découverte | L49: =IF(COUNTIF(Maternelle,E49)=1,listes!$T$1,IF(COUNTIF(Elémentaire,E49)=1,listes!$U$1,IF(COUNTIF(Collège,E49)=1,listes!$V$1,IF(COUNTIF(Lycée,E49)=1,listes!$W$1,"")))) -> Elémentaire | M49: =VLOOKUP(T_sept_dec[[#This Row],[Etablissement scolaire]],Regroupements!$T:$U,2,FALSE) -> Gratte-ciel-Dedieu-Charmettes | N49: MLIS | O49: =T_sept_dec[[#This Row],[Etablissement accueillant]]&"-"&T_sept_dec[[#This Row],[Enseignant référent (Nom Prénom)]] -> MLIS-QUATREVINGTDEUX | P49: =1/COUNTIF(T_sept_dec[CléEtablissement],T_sept_dec[[#This Row],[CléEtablissement]]) -> 1 | Q49: =IF(COUNTIF(Réseau,T_sept_dec[[#This Row],[Secteur organisateur]]),"Réseau_"&T_sept_dec[[#This Row],[Enseignant référent (Nom Prénom)]], IF(COUNTIF(Rizehorsmed,T_sept_dec[[#This Row],[Secteur organisateur]]),"Rizehorsmed_"&T_sept_dec[[#This Row],[Enseignant référent (Nom Prénom)]], T_sept_dec[[#This Row],[Secteur organisateur]]&"_"&T_sept_dec[[#This Row],[Enseignant référent (Nom Prénom)]])) -> Réseau_QUATREVINGTDEUX | R49: =1/COUNTIF(T_sept_dec[CléRéseau-Rize horsmed],T_sept_dec[[#This Row],[CléRéseau-Rize horsmed]]) -> 1 | S49: =IF(COUNTIF(RIZE,T_sept_dec[[#This Row],[Secteur organisateur]]),"Rize_"&T_sept_dec[[#This Row],[Enseignant référent (Nom Prénom)]],"") ->  | T49: =1/COUNTIF(T_sept_dec[CléRize],T_sept_dec[[#This Row],[CléRize]]) -> 0.009803921569 | U49: =IF(COUNTIF(Total,T_sept_dec[[#This Row],[Secteur organisateur]]),"Total_"&T_sept_dec[[#This Row],[Enseignant référent (Nom Prénom)]],"") -> Total_QUATREVINGTDEUX | V49: =1/COUNTIF(T_sept_dec[cléTotal],T_sept_dec[[#This Row],[cléTotal]]) -> 1
A50: 2017-12-05 | B50: MTK | D50: Lakanal | E50: cp | F50: QUATREVINGTDIX | G50: 24 | H50: In situ | I50: Visite découverte | L50: =IF(COUNTIF(Maternelle,E50)=1,listes!$T$1,IF(COUNTIF(Elémentaire,E50)=1,listes!$U$1,IF(COUNTIF(Collège,E50)=1,listes!$V$1,IF(COUNTIF(Lycée,E50)=1,listes!$W$1,"")))) -> Elémentaire | M50: =VLOOKUP(T_sept_dec[[#This Row],[Etablissement scolaire]],Regroupements!$T:$U,2,FALSE) -> Charpennes-Tonkin | N50: TONKIN | O50: =T_sept_dec[[#This Row],[Etablissement accueillant]]&"-"&T_sept_dec[[#This Row],[Enseignant référent (Nom Prénom)]] -> TONKIN-QUATREVINGTDIX | P50: =1/COUNTIF(T_sept_dec[CléEtablissement],T_sept_dec[[#This Row],[CléEtablissement]]) -> 1 | Q50: =IF(COUNTIF(Réseau,T_sept_dec[[#This Row],[Secteur organisateur]]),"Réseau_"&T_sept_dec[[#This Row],[Enseignant référent (Nom Prénom)]], IF(COUNTIF(Rizehorsmed,T_sept_dec[[#This Row],[Secteur organisateur]]),"Rizehorsmed_"&T_sept_dec[[#This Row],[Enseignant référent (Nom Prénom)]], T_sept_dec[[#This Row],[Secteur organisateur]]&"_"&T_sept_dec[[#This Row],[Enseignant référent (Nom Prénom)]])) -> Réseau_QUATREVINGTDIX | R50: =1/COUNTIF(T_sept_dec[CléRéseau-Rize horsmed],T_sept_dec[[#This Row],[CléRéseau-Rize horsmed]]) -> 1 | S50: =IF(COUNTIF(RIZE,T_sept_dec[[#This Row],[Secteur organisateur]]),"Rize_"&T_sept_dec[[#This Row],[Enseignant référent (Nom Prénom)]],"") ->  | T50: =1/COUNTIF(T_sept_dec[CléRize],T_sept_dec[[#This Row],[CléRize]]) -> 0.009803921569 | U50: =IF(COUNTIF(Total,T_sept_dec[[#This Row],[Secteur organisateur]]),"Total_"&T_sept_dec[[#This Row],[Enseignant référent (Nom Prénom)]],"") -> Total_QUATREVINGTDIX | V50: =1/COUNTIF(T_sept_dec[cléTotal],T_sept_dec[[#This Row],[cléTotal]]) -> 1
A51: 2017-10-06 | B51: MLIS J | D51: Collège des Iris | E51: autres (collège) | F51: QUATREVINGTDIXHUIT | G51: 20 | H51: In situ | I51: Visite à la carte | L51: =IF(COUNTIF(Maternelle,E51)=1,listes!$T$1,IF(COUNTIF(Elémentaire,E51)=1,listes!$U$1,IF(COUNTIF(Collège,E51)=1,listes!$V$1,IF(COUNTIF(Lycée,E51)=1,listes!$W$1,"")))) -> Collège | M51: =VLOOKUP(T_sept_dec[[#This Row],[Etablissement scolaire]],Regroupements!$T:$U,2,FALSE) -> Cusset-Bonnevay | N51: MLIS | O51: =T_sept_dec[[#This Row],[Etablissement accueillant]]&"-"&T_sept_dec[[#This Row],[Enseignant référent (Nom Prénom)]] -> MLIS-QUATREVINGTDIXHUIT | P51: =1/COUNTIF(T_sept_dec[CléEtablissement],T_sept_dec[[#This Row],[CléEtablissement]]) -> 0.5 | Q51: =IF(COUNTIF(Réseau,T_sept_dec[[#This Row],[Secteur organisateur]]),"Réseau_"&T_sept_dec[[#This Row],[Enseignant référent (Nom Prénom)]], IF(COUNTIF(Rizehorsmed,T_sept_dec[[#This Row],[Secteur organisateur]]),"Rizehorsmed_"&T_sept_dec[[#This Row],[Enseignant référent (Nom Prénom)]], T_sept_dec[[#This Row],[Secteur organisateur]]&"_"&T_sept_dec[[#This Row],[Enseignant référent (Nom Prénom)]])) -> Réseau_QUATREVINGTDIXHUIT | R51: =1/COUNTIF(T_sept_dec[CléRéseau-Rize horsmed],T_sept_dec[[#This Row],[CléRéseau-Rize horsmed]]) -> 0.5 | S51: =IF(COUNTIF(RIZE,T_sept_dec[[#This Row],[Secteur organisateur]]),"Rize_"&T_sept_dec[[#This Row],[Enseignant référent (Nom Prénom)]],"") ->  | T51: =1/COUNTIF(T_sept_dec[CléRize],T_sept_dec[[#This Row],[CléRize]]) -> 0.009803921569 | U51: =IF(COUNTIF(Total,T_sept_dec[[#This Row],[Secteur organisateur]]),"Total_"&T_sept_dec[[#This Row],[Enseignant référent (Nom Prénom)]],"") -> Total_QUATREVINGTDIXHUIT | V51: =1/COUNTIF(T_sept_dec[cléTotal],T_sept_dec[[#This Row],[cléTotal]]) -> 0.5
A52: 2017-12-22 | B52: EMM | D52: Collège des Iris | E52: autres (collège) | F52: QUATREVINGTDIXHUIT | G52: 20 | H52: In situ | I52: Recherche multimédias | L52: =IF(COUNTIF(Maternelle,E52)=1,listes!$T$1,IF(COUNTIF(Elémentaire,E52)=1,listes!$U$1,IF(COUNTIF(Collège,E52)=1,listes!$V$1,IF(COUNTIF(Lycée,E52)=1,listes!$W$1,"")))) -> Collège | M52: =VLOOKUP(T_sept_dec[[#This Row],[Etablissement scolaire]],Regroupements!$T:$U,2,FALSE) -> Cusset-Bonnevay | N52: MLIS | O52: =T_sept_dec[[#This Row],[Etablissement accueillant]]&"-"&T_sept_dec[[#This Row],[Enseignant référent (Nom Prénom)]] -> MLIS-QUATREVINGTDIXHUIT | P52: =1/COUNTIF(T_sept_dec[CléEtablissement],T_sept_dec[[#This Row],[CléEtablissement]]) -> 0.5 | Q52: =IF(COUNTIF(Réseau,T_sept_dec[[#This Row],[Secteur organisateur]]),"Réseau_"&T_sept_dec[[#This Row],[Enseignant référent (Nom Prénom)]], IF(COUNTIF(Rizehorsmed,T_sept_dec[[#This Row],[Secteur organisateur]]),"Rizehorsmed_"&T_sept_dec[[#This Row],[Enseignant référent (Nom Prénom)]], T_sept_dec[[#This Row],[Secteur organisateur]]&"_"&T_sept_dec[[#This Row],[Enseignant référent (Nom Prénom)]])) -> Réseau_QUATREVINGTDIXHUIT | R52: =1/COUNTIF(T_sept_dec[CléRéseau-Rize horsmed],T_sept_dec[[#This Row],[CléRéseau-Rize horsmed]]) -> 0.5 | S52: =IF(COUNTIF(RIZE,T_sept_dec[[#This Row],[Secteur organisateur]]),"Rize_"&T_sept_dec[[#This Row],[Enseignant référent (Nom Prénom)]],"") ->  | T52: =1/COUNTIF(T_sept_dec[CléRize],T_sept_dec[[#This Row],[CléRize]]) -> 0.009803921569 | U52: =IF(COUNTIF(Total,T_sept_dec[[#This Row],[Secteur organisateur]]),"Total_"&T_sept_dec[[#This Row],[Enseignant référent (Nom Prénom)]],"") -> Total_QUATREVINGTDIXHUIT | V52: =1/COUNTIF(T_sept_dec[cléTotal],T_sept_dec[[#This Row],[cléTotal]]) -> 0.5
A53: 2017-10-09 | B53: MLIS A | D53: Lycée Magenta | E53: autres (lycée) | F53: QUATREVINGTDIXNEUF | G53: 30 | H53: In situ | I53: Visite médiathèque | L53: =IF(COUNTIF(Maternelle,E53)=1,listes!$T$1,IF(COUNTIF(Elémentaire,E53)=1,listes!$U$1,IF(COUNTIF(Collège,E53)=1,listes!$V$1,IF(COUNTIF(Lycée,E53)=1,listes!$W$1,"")))) -> Lycée | M53: =VLOOKUP(T_sept_dec[[#This Row],[Etablissement scolaire]],Regroupements!$T:$U,2,FALSE) -> Gratte-ciel-Dedieu-Charmettes | N53: MLIS | O53: =T_sept_dec[[#This Row],[Etablissement accueillant]]&"-"&T_sept_dec[[#This Row],[Enseignant référent (Nom Prénom)]] -> MLIS-QUATREVINGTDIXNEUF | P53: =1/COUNTIF(T_sept_dec[CléEtablissement],T_sept_dec[[#This Row],[CléEtablissement]]) -> 1 | Q53: =IF(COUNTIF(Réseau,T_sept_dec[[#This Row],[Secteur organisateur]]),"Réseau_"&T_sept_dec[[#This Row],[Enseignant référent (Nom Prénom)]], IF(COUNTIF(Rizehorsmed,T_sept_dec[[#This Row],[Secteur organisateur]]),"Rizehorsmed_"&T_sept_dec[[#This Row],[Enseignant référent (Nom Prénom)]], T_sept_dec[[#This Row],[Secteur organisateur]]&"_"&T_sept_dec[[#This Row],[Enseignant référent (Nom Prénom)]])) -> Réseau_QUATREVINGTDIXNEUF | R53: =1/COUNTIF(T_sept_dec[CléRéseau-Rize horsmed],T_sept_dec[[#This Row],[CléRéseau-Rize horsmed]]) -> 1 | S53: =IF(COUNTIF(RIZE,T_sept_dec[[#This Row],[Secteur organisateur]]),"Rize_"&T_sept_dec[[#This Row],[Enseignant référent (Nom Prénom)]],"") ->  | T53: =1/COUNTIF(T_sept_dec[CléRize],T_sept_dec[[#This Row],[CléRize]]) -> 0.009803921569 | U53: =IF(COUNTIF(Total,T_sept_dec[[#This Row],[Secteur organisateur]]),"Total_"&T_sept_dec[[#This Row],[Enseignant référent (Nom Prénom)]],"") -> Total_QUATREVINGTDIXNEUF | V53: =1/COUNTIF(T_sept_dec[cléTotal],T_sept_dec[[#This Row],[cléTotal]]) -> 1
A54: 2017-09-13 | B54: RIZE MED | D54: Jean Jaurès (primaire) | E54: cm1 | F54: QUATREVINGTDIXSEPT | G54: 27 | H54: In situ | I54: Visite thématique | L54: =IF(COUNTIF(Maternelle,E54)=1,listes!$T$1,IF(COUNTIF(Elémentaire,E54)=1,listes!$U$1,IF(COUNTIF(Collège,E54)=1,listes!$V$1,IF(COUNTIF(Lycée,E54)=1,listes!$W$1,"")))) -> Elémentaire | M54: =VLOOKUP(T_sept_dec[[#This Row],[Etablissement scolaire]],Regroupements!$T:$U,2,FALSE) -> Ferrandière-Maisons Neuves | N54: RIZE | O54: =T_sept_dec[[#This Row],[Etablissement accueillant]]&"-"&T_sept_dec[[#This Row],[Enseignant référent (Nom Prénom)]] -> RIZE-QUATREVINGTDIXSEPT | P54: =1/COUNTIF(T_sept_dec[CléEtablissement],T_sept_dec[[#This Row],[CléEtablissement]]) -> 0.5 | Q54: =IF(COUNTIF(Réseau,T_sept_dec[[#This Row],[Secteur organisateur]]),"Réseau_"&T_sept_dec[[#This Row],[Enseignant référent (Nom Prénom)]], IF(COUNTIF(Rizehorsmed,T_sept_dec[[#This Row],[Secteur organisateur]]),"Rizehorsmed_"&T_sept_dec[[#This Row],[Enseignant référent (Nom Prénom)]], T_sept_dec[[#This Row],[Secteur organisateur]]&"_"&T_sept_dec[[#This Row],[Enseignant référent (Nom Prénom)]])) -> Réseau_QUATREVINGTDIXSEPT | R54: =1/COUNTIF(T_sept_dec[CléRéseau-Rize horsmed],T_sept_dec[[#This Row],[CléRéseau-Rize horsmed]]) -> 0.5 | S54: =IF(COUNTIF(RIZE,T_sept_dec[[#This Row],[Secteur organisateur]]),"Rize_"&T_sept_dec[[#This Row],[Enseignant référent (Nom Prénom)]],"") -> Rize_QUATREVINGTDIXSEPT | T54: =1/COUNTIF(T_sept_dec[CléRize],T_sept_dec[[#This Row],[CléRize]]) -> 0.5 | U54: =IF(COUNTIF(Total,T_sept_dec[[#This Row],[Secteur organisateur]]),"Total_"&T_sept_dec[[#This Row],[Enseignant référent (Nom Prénom)]],"") -> Total_QUATREVINGTDIXSEPT | V54: =1/COUNTIF(T_sept_dec[cléTotal],T_sept_dec[[#This Row],[cléTotal]]) -> 0.5
A55: 2017-11-29 | B55: RIZE MED | D55: Jean Jaurès (primaire) | E55: cm1 | F55: QUATREVINGTDIXSEPT | G55: 27 | H55: in situ | I55: Visite thématique | L55: =IF(COUNTIF(Maternelle,E55)=1,listes!$T$1,IF(COUNTIF(Elémentaire,E55)=1,listes!$U$1,IF(COUNTIF(Collège,E55)=1,listes!$V$1,IF(COUNTIF(Lycée,E55)=1,listes!$W$1,"")))) -> Elémentaire | M55: =VLOOKUP(T_sept_dec[[#This Row],[Etablissement scolaire]],Regroupements!$T:$U,2,FALSE) -> Ferrandière-Maisons Neuves | N55: RIZE | O55: =T_sept_dec[[#This Row],[Etablissement accueillant]]&"-"&T_sept_dec[[#This Row],[Enseignant référent (Nom Prénom)]] -> RIZE-QUATREVINGTDIXSEPT | P55: =1/COUNTIF(T_sept_dec[CléEtablissement],T_sept_dec[[#This Row],[CléEtablissement]]) -> 0.5 | Q55: =IF(COUNTIF(Réseau,T_sept_dec[[#This Row],[Secteur organisateur]]),"Réseau_"&T_sept_dec[[#This Row],[Enseignant référent (Nom Prénom)]], IF(COUNTIF(Rizehorsmed,T_sept_dec[[#This Row],[Secteur organisateur]]),"Rizehorsmed_"&T_sept_dec[[#This Row],[Enseignant référent (Nom Prénom)]], T_sept_dec[[#This Row],[Secteur organisateur]]&"_"&T_sept_dec[[#This Row],[Enseignant référent (Nom Prénom)]])) -> Réseau_QUATREVINGTDIXSEPT | R55: =1/COUNTIF(T_sept_dec[CléRéseau-Rize horsmed],T_sept_dec[[#This Row],[CléRéseau-Rize horsmed]]) -> 0.5 | S55: =IF(COUNTIF(RIZE,T_sept_dec[[#This Row],[Secteur organisateur]]),"Rize_"&T_sept_dec[[#This Row],[Enseignant référent (Nom Prénom)]],"") -> Rize_QUATREVINGTDIXSEPT | T55: =1/COUNTIF(T_sept_dec[CléRize],T_sept_dec[[#This Row],[CléRize]]) -> 0.5 | U55: =IF(COUNTIF(Total,T_sept_dec[[#This Row],[Secteur organisateur]]),"Total_"&T_sept_dec[[#This Row],[Enseignant référent (Nom Prénom)]],"") -> Total_QUATREVINGTDIXSEPT | V55: =1/COUNTIF(T_sept_dec[cléTotal],T_sept_dec[[#This Row],[cléTotal]]) -> 0.5
A56: 2017-10-09 | B56: RIZE VALO | D56: Emile Zola | E56: ce1 | F56: QUATREVINGTDOUZE | G56: 25 | H56: Hors les murs | I56: Exploration sensorielle | L56: =IF(COUNTIF(Maternelle,E56)=1,listes!$T$1,IF(COUNTIF(Elémentaire,E56)=1,listes!$U$1,IF(COUNTIF(Collège,E56)=1,listes!$V$1,IF(COUNTIF(Lycée,E56)=1,listes!$W$1,"")))) -> Elémentaire | M56: =VLOOKUP(T_sept_dec[[#This Row],[Etablissement scolaire]],Regroupements!$T:$U,2,FALSE) -> Gratte-ciel-Dedieu-Charmettes | N56: RIZE | O56: =T_sept_dec[[#This Row],[Etablissement accueillant]]&"-"&T_sept_dec[[#This Row],[Enseignant référent (Nom Prénom)]] -> RIZE-QUATREVINGTDOUZE | P56: =1/COUNTIF(T_sept_dec[CléEtablissement],T_sept_dec[[#This Row],[CléEtablissement]]) -> 1 | Q56: =IF(COUNTIF(Réseau,T_sept_dec[[#This Row],[Secteur organisateur]]),"Réseau_"&T_sept_dec[[#This Row],[Enseignant référent (Nom Prénom)]], IF(COUNTIF(Rizehorsmed,T_sept_dec[[#This Row],[Secteur organisateur]]),"Rizehorsmed_"&T_sept_dec[[#This Row],[Enseignant référent (Nom Prénom)]], T_sept_dec[[#This Row],[Secteur organisateur]]&"_"&T_sept_dec[[#This Row],[Enseignant référent (Nom Prénom)]])) -> Rizehorsmed_QUATREVINGTDOUZE | R56: =1/COUNTIF(T_sept_dec[CléRéseau-Rize horsmed],T_sept_dec[[#This Row],[CléRéseau-Rize horsmed]]) -> 1 | S56: =IF(COUNTIF(RIZE,T_sept_dec[[#This Row],[Secteur organisateur]]),"Rize_"&T_sept_dec[[#This Row],[Enseignant référent (Nom Prénom)]],"") -> Rize_QUATREVINGTDOUZE | T56: =1/COUNTIF(T_sept_dec[CléRize],T_sept_dec[[#This Row],[CléRize]]) -> 1 | U56: =IF(COUNTIF(Total,T_sept_dec[[#This Row],[Secteur organisateur]]),"Total_"&T_sept_dec[[#This Row],[Enseignant référent (Nom Prénom)]],"") -> Total_QUATREVINGTDOUZE | V56: =1/COUNTIF(T_sept_dec[cléTotal],T_sept_dec[[#This Row],[cléTotal]]) -> 1
A57: 2017-11-30 | B57: ARTO | D57: Jules Guesde | E57: ce1/ce2 | F57: QUATREVINGTHUIT | G57: 26 | H57: In situ | I57: Et si on parlait d'art ? | L57: =IF(COUNTIF(Maternelle,E57)=1,listes!$T$1,IF(COUNTIF(Elémentaire,E57)=1,listes!$U$1,IF(COUNTIF(Collège,E57)=1,listes!$V$1,IF(COUNTIF(Lycée,E57)=1,listes!$W$1,"")))) -> Elémentaire | M57: =VLOOKUP(T_sept_dec[[#This Row],[Etablissement scolaire]],Regroupements!$T:$U,2,FALSE) -> Cyprian-les-Brosses | N57: MLIS | O57: =T_sept_dec[[#This Row],[Etablissement accueillant]]&"-"&T_sept_dec[[#This Row],[Enseignant référent (Nom Prénom)]] -> MLIS-QUATREVINGTHUIT | P57: =1/COUNTIF(T_sept_dec[CléEtablissement],T_sept_dec[[#This Row],[CléEtablissement]]) -> 0.5 | Q57: =IF(COUNTIF(Réseau,T_sept_dec[[#This Row],[Secteur organisateur]]),"Réseau_"&T_sept_dec[[#This Row],[Enseignant référent (Nom Prénom)]], IF(COUNTIF(Rizehorsmed,T_sept_dec[[#This Row],[Secteur organisateur]]),"Rizehorsmed_"&T_sept_dec[[#This Row],[Enseignant référent (Nom Prénom)]], T_sept_dec[[#This Row],[Secteur organisateur]]&"_"&T_sept_dec[[#This Row],[Enseignant référent (Nom Prénom)]])) -> Réseau_QUATREVINGTHUIT | R57: =1/COUNTIF(T_sept_dec[CléRéseau-Rize horsmed],T_sept_dec[[#This Row],[CléRéseau-Rize horsmed]]) -> 0.5 | S57: =IF(COUNTIF(RIZE,T_sept_dec[[#This Row],[Secteur organisateur]]),"Rize_"&T_sept_dec[[#This Row],[Enseignant référent (Nom Prénom)]],"") ->  | T57: =1/COUNTIF(T_sept_dec[CléRize],T_sept_dec[[#This Row],[CléRize]]) -> 0.009803921569 | U57: =IF(COUNTIF(Total,T_sept_dec[[#This Row],[Secteur organisateur]]),"Total_"&T_sept_dec[[#This Row],[Enseignant référent (Nom Prénom)]],"") -> Total_QUATREVINGTHUIT | V57: =1/COUNTIF(T_sept_dec[cléTotal],T_sept_dec[[#This Row],[cléTotal]]) -> 0.5
A58: 2017-11-30 | B58: MLIS J | D58: Jules Guesde | E58: ce1/ce2 | F58: QUATREVINGTHUIT | G58: 26 | H58: In situ | I58: Visite à la carte | L58: =IF(COUNTIF(Maternelle,E58)=1,listes!$T$1,IF(COUNTIF(Elémentaire,E58)=1,listes!$U$1,IF(COUNTIF(Collège,E58)=1,listes!$V$1,IF(COUNTIF(Lycée,E58)=1,listes!$W$1,"")))) -> Elémentaire | M58: =VLOOKUP(T_sept_dec[[#This Row],[Etablissement scolaire]],Regroupements!$T:$U,2,FALSE) -> Cyprian-les-Brosses | N58: MLIS | O58: =T_sept_dec[[#This Row],[Etablissement accueillant]]&"-"&T_sept_dec[[#This Row],[Enseignant référent (Nom Prénom)]] -> MLIS-QUATREVINGTHUIT | P58: =1/COUNTIF(T_sept_dec[CléEtablissement],T_sept_dec[[#This Row],[CléEtablissement]]) -> 0.5 | Q58: =IF(COUNTIF(Réseau,T_sept_dec[[#This Row],[Secteur organisateur]]),"Réseau_"&T_sept_dec[[#This Row],[Enseignant référent (Nom Prénom)]], IF(COUNTIF(Rizehorsmed,T_sept_dec[[#This Row],[Secteur organisateur]]),"Rizehorsmed_"&T_sept_dec[[#This Row],[Enseignant référent (Nom Prénom)]], T_sept_dec[[#This Row],[Secteur organisateur]]&"_"&T_sept_dec[[#This Row],[Enseignant référent (Nom Prénom)]])) -> Réseau_QUATREVINGTHUIT | R58: =1/COUNTIF(T_sept_dec[CléRéseau-Rize horsmed],T_sept_dec[[#This Row],[CléRéseau-Rize horsmed]]) -> 0.5 | S58: =IF(COUNTIF(RIZE,T_sept_dec[[#This Row],[Secteur organisateur]]),"Rize_"&T_sept_dec[[#This Row],[Enseignant référent (Nom Prénom)]],"") ->  | T58: =1/COUNTIF(T_sept_dec[CléRize],T_sept_dec[[#This Row],[CléRize]]) -> 0.009803921569 | U58: =IF(COUNTIF(Total,T_sept_dec[[#This Row],[Secteur organisateur]]),"Total_"&T_sept_dec[[#This Row],[Enseignant référent (Nom Prénom)]],"") -> Total_QUATREVINGTHUIT | V58: =1/COUNTIF(T_sept_dec[cléTotal],T_sept_dec[[#This Row],[cléTotal]]) -> 0.5
A59: 2017-12-21 | B59: MTK | D59: Ecole juive de Lyon (privé) | E59: ce1 | F59: QUATREVINGTNEUF | G59: 29 | H59: In situ | I59: Visite thématique | L59: =IF(COUNTIF(Maternelle,E59)=1,listes!$T$1,IF(COUNTIF(Elémentaire,E59)=1,listes!$U$1,IF(COUNTIF(Collège,E59)=1,listes!$V$1,IF(COUNTIF(Lycée,E59)=1,listes!$W$1,"")))) -> Elémentaire | M59: =VLOOKUP(T_sept_dec[[#This Row],[Etablissement scolaire]],Regroupements!$T:$U,2,FALSE) -> Gratte-ciel-Dedieu-Charmettes | N59: TONKIN | O59: =T_sept_dec[[#This Row],[Etablissement accueillant]]&"-"&T_sept_dec[[#This Row],[Enseignant référent (Nom Prénom)]] -> TONKIN-QUATREVINGTNEUF | P59: =1/COUNTIF(T_sept_dec[CléEtablissement],T_sept_dec[[#This Row],[CléEtablissement]]) -> 1 | Q59: =IF(COUNTIF(Réseau,T_sept_dec[[#This Row],[Secteur organisateur]]),"Réseau_"&T_sept_dec[[#This Row],[Enseignant référent (Nom Prénom)]], IF(COUNTIF(Rizehorsmed,T_sept_dec[[#This Row],[Secteur organisateur]]),"Rizehorsmed_"&T_sept_dec[[#This Row],[Enseignant référent (Nom Prénom)]], T_sept_dec[[#This Row],[Secteur organisateur]]&"_"&T_sept_dec[[#This Row],[Enseignant référent (Nom Prénom)]])) -> Réseau_QUATREVINGTNEUF | R59: =1/COUNTIF(T_sept_dec[CléRéseau-Rize horsmed],T_sept_dec[[#This Row],[CléRéseau-Rize horsmed]]) -> 1 | S59: =IF(COUNTIF(RIZE,T_sept_dec[[#This Row],[Secteur organisateur]]),"Rize_"&T_sept_dec[[#This Row],[Enseignant référent (Nom Prénom)]],"") ->  | T59: =1/COUNTIF(T_sept_dec[CléRize],T_sept_dec[[#This Row],[CléRize]]) -> 0.009803921569 | U59: =IF(COUNTIF(Total,T_sept_dec[[#This Row],[Secteur organisateur]]),"Total_"&T_sept_dec[[#This Row],[Enseignant référent (Nom Prénom)]],"") -> Total_QUATREVINGTNEUF | V59: =1/COUNTIF(T_sept_dec[cléTotal],T_sept_dec[[#This Row],[cléTotal]]) -> 1
A60: 2017-10-18 | B60: EMM | D60: Jules Ferry | E60: cm2 | F60: QUATREVINGTONZE | G60: 24 | H60: In situ | I60: Coder avec Scratch | L60: =IF(COUNTIF(Maternelle,E60)=1,listes!$T$1,IF(COUNTIF(Elémentaire,E60)=1,listes!$U$1,IF(COUNTIF(Collège,E60)=1,listes!$V$1,IF(COUNTIF(Lycée,E60)=1,listes!$W$1,"")))) -> Elémentaire | M60: =VLOOKUP(T_sept_dec[[#This Row],[Etablissement scolaire]],Regroupements!$T:$U,2,FALSE) -> Cusset-Bonnevay | N60: MLIS | O60: =T_sept_dec[[#This Row],[Etablissement accueillant]]&"-"&T_sept_dec[[#This Row],[Enseignant référent (Nom Prénom)]] -> MLIS-QUATREVINGTONZE | P60: =1/COUNTIF(T_sept_dec[CléEtablissement],T_sept_dec[[#This Row],[CléEtablissement]]) -> 1 | Q60: =IF(COUNTIF(Réseau,T_sept_dec[[#This Row],[Secteur organisateur]]),"Réseau_"&T_sept_dec[[#This Row],[Enseignant référent (Nom Prénom)]], IF(COUNTIF(Rizehorsmed,T_sept_dec[[#This Row],[Secteur organisateur]]),"Rizehorsmed_"&T_sept_dec[[#This Row],[Enseignant référent (Nom Prénom)]], T_sept_dec[[#This Row],[Secteur organisateur]]&"_"&T_sept_dec[[#This Row],[Enseignant référent (Nom Prénom)]])) -> Réseau_QUATREVINGTONZE | R60: =1/COUNTIF(T_sept_dec[CléRéseau-Rize horsmed],T_sept_dec[[#This Row],[CléRéseau-Rize horsmed]]) -> 1 | S60: =IF(COUNTIF(RIZE,T_sept_dec[[#This Row],[Secteur organisateur]]),"Rize_"&T_sept_dec[[#This Row],[Enseignant référent (Nom Prénom)]],"") ->  | T60: =1/COUNTIF(T_sept_dec[CléRize],T_sept_dec[[#This Row],[CléRize]]) -> 0.009803921569 | U60: =IF(COUNTIF(Total,T_sept_dec[[#This Row],[Secteur organisateur]]),"Total_"&T_sept_dec[[#This Row],[Enseignant référent (Nom Prénom)]],"") -> Total_QUATREVINGTONZE | V60: =1/COUNTIF(T_sept_dec[cléTotal],T_sept_dec[[#This Row],[cléTotal]]) -> 1
A61: 2017-10-20 | B61: FDL | D61: Jules Guesde | E61: ce1/ce2 | F61: QUATREVINGTQUATORZE | G61: 24 | H61: In situ | I61: Projet FDL | L61: =IF(COUNTIF(Maternelle,E61)=1,listes!$T$1,IF(COUNTIF(Elémentaire,E61)=1,listes!$U$1,IF(COUNTIF(Collège,E61)=1,listes!$V$1,IF(COUNTIF(Lycée,E61)=1,listes!$W$1,"")))) -> Elémentaire | M61: =VLOOKUP(T_sept_dec[[#This Row],[Etablissement scolaire]],Regroupements!$T:$U,2,FALSE) -> Cyprian-les-Brosses | N61: FDL | O61: =T_sept_dec[[#This Row],[Etablissement accueillant]]&"-"&T_sept_dec[[#This Row],[Enseignant référent (Nom Prénom)]] -> FDL-QUATREVINGTQUATORZE | P61: =1/COUNTIF(T_sept_dec[CléEtablissement],T_sept_dec[[#This Row],[CléEtablissement]]) -> 1 | Q61: =IF(COUNTIF(Réseau,T_sept_dec[[#This Row],[Secteur organisateur]]),"Réseau_"&T_sept_dec[[#This Row],[Enseignant référent (Nom Prénom)]], IF(COUNTIF(Rizehorsmed,T_sept_dec[[#This Row],[Secteur organisateur]]),"Rizehorsmed_"&T_sept_dec[[#This Row],[Enseignant référent (Nom Prénom)]], T_sept_dec[[#This Row],[Secteur organisateur]]&"_"&T_sept_dec[[#This Row],[Enseignant référent (Nom Prénom)]])) -> FDL_QUATREVINGTQUATORZE | R61: =1/COUNTIF(T_sept_dec[CléRéseau-Rize horsmed],T_sept_dec[[#This Row],[CléRéseau-Rize horsmed]]) -> 1 | S61: =IF(COUNTIF(RIZE,T_sept_dec[[#This Row],[Secteur organisateur]]),"Rize_"&T_sept_dec[[#This Row],[Enseignant référent (Nom Prénom)]],"") ->  | T61: =1/COUNTIF(T_sept_dec[CléRize],T_sept_dec[[#This Row],[CléRize]]) -> 0.009803921569 | U61: =IF(COUNTIF(Total,T_sept_dec[[#This Row],[Secteur organisateur]]),"Total_"&T_sept_dec[[#This Row],[Enseignant référent (Nom Prénom)]],"") -> Total_QUATREVINGTQUATORZE | V61: =1/COUNTIF(T_sept_dec[cléTotal],T_sept_dec[[#This Row],[cléTotal]]) -> 0.3333333333
A62: 2017-12-19 | B62: ARTO | D62: Jules Guesde | E62: ce1/ce2 | F62: QUATREVINGTQUATORZE | G62: 25 | H62: In situ | I62: Et si on parlait d'art ? | L62: =IF(COUNTIF(Maternelle,E62)=1,listes!$T$1,IF(COUNTIF(Elémentaire,E62)=1,listes!$U$1,IF(COUNTIF(Collège,E62)=1,listes!$V$1,IF(COUNTIF(Lycée,E62)=1,listes!$W$1,"")))) -> Elémentaire | M62: =VLOOKUP(T_sept_dec[[#This Row],[Etablissement scolaire]],Regroupements!$T:$U,2,FALSE) -> Cyprian-les-Brosses | N62: MLIS | O62: =T_sept_dec[[#This Row],[Etablissement accueillant]]&"-"&T_sept_dec[[#This Row],[Enseignant référent (Nom Prénom)]] -> MLIS-QUATREVINGTQUATORZE | P62: =1/COUNTIF(T_sept_dec[CléEtablissement],T_sept_dec[[#This Row],[CléEtablissement]]) -> 0.5 | Q62: =IF(COUNTIF(Réseau,T_sept_dec[[#This Row],[Secteur organisateur]]),"Réseau_"&T_sept_dec[[#This Row],[Enseignant référent (Nom Prénom)]], IF(COUNTIF(Rizehorsmed,T_sept_dec[[#This Row],[Secteur organisateur]]),"Rizehorsmed_"&T_sept_dec[[#This Row],[Enseignant référent (Nom Prénom)]], T_sept_dec[[#This Row],[Secteur organisateur]]&"_"&T_sept_dec[[#This Row],[Enseignant référent (Nom Prénom)]])) -> Réseau_QUATREVINGTQUATORZE | R62: =1/COUNTIF(T_sept_dec[CléRéseau-Rize horsmed],T_sept_dec[[#This Row],[CléRéseau-Rize horsmed]]) -> 0.5 | S62: =IF(COUNTIF(RIZE,T_sept_dec[[#This Row],[Secteur organisateur]]),"Rize_"&T_sept_dec[[#This Row],[Enseignant référent (Nom Prénom)]],"") ->  | T62: =1/COUNTIF(T_sept_dec[CléRize],T_sept_dec[[#This Row],[CléRize]]) -> 0.009803921569 | U62: =IF(COUNTIF(Total,T_sept_dec[[#This Row],[Secteur organisateur]]),"Total_"&T_sept_dec[[#This Row],[Enseignant référent (Nom Prénom)]],"") -> Total_QUATREVINGTQUATORZE | V62: =1/COUNTIF(T_sept_dec[cléTotal],T_sept_dec[[#This Row],[cléTotal]]) -> 0.3333333333
A63: 2017-12-19 | B63: MLIS J | D63: Jules Guesde | E63: ce1/ce2 | F63: QUATREVINGTQUATORZE | G63: 24 | H63: In situ | I63: Visite à la carte | L63: =IF(COUNTIF(Maternelle,E63)=1,listes!$T$1,IF(COUNTIF(Elémentaire,E63)=1,listes!$U$1,IF(COUNTIF(Collège,E63)=1,listes!$V$1,IF(COUNTIF(Lycée,E63)=1,listes!$W$1,"")))) -> Elémentaire | M63: =VLOOKUP(T_sept_dec[[#This Row],[Etablissement scolaire]],Regroupements!$T:$U,2,FALSE) -> Cyprian-les-Brosses | N63: MLIS | O63: =T_sept_dec[[#This Row],[Etablissement accueillant]]&"-"&T_sept_dec[[#This Row],[Enseignant référent (Nom Prénom)]] -> MLIS-QUATREVINGTQUATORZE | P63: =1/COUNTIF(T_sept_dec[CléEtablissement],T_sept_dec[[#This Row],[CléEtablissement]]) -> 0.5 | Q63: =IF(COUNTIF(Réseau,T_sept_dec[[#This Row],[Secteur organisateur]]),"Réseau_"&T_sept_dec[[#This Row],[Enseignant référent (Nom Prénom)]], IF(COUNTIF(Rizehorsmed,T_sept_dec[[#This Row],[Secteur organisateur]]),"Rizehorsmed_"&T_sept_dec[[#This Row],[Enseignant référent (Nom Prénom)]], T_sept_dec[[#This Row],[Secteur organisateur]]&"_"&T_sept_dec[[#This Row],[Enseignant référent (Nom Prénom)]])) -> Réseau_QUATREVINGTQUATORZE | R63: =1/COUNTIF(T_sept_dec[CléRéseau-Rize horsmed],T_sept_dec[[#This Row],[CléRéseau-Rize horsmed]]) -> 0.5 | S63: =IF(COUNTIF(RIZE,T_sept_dec[[#This Row],[Secteur organisateur]]),"Rize_"&T_sept_dec[[#This Row],[Enseignant référent (Nom Prénom)]],"") ->  | T63: =1/COUNTIF(T_sept_dec[CléRize],T_sept_dec[[#This Row],[CléRize]]) -> 0.009803921569 | U63: =IF(COUNTIF(Total,T_sept_dec[[#This Row],[Secteur organisateur]]),"Total_"&T_sept_dec[[#This Row],[Enseignant référent (Nom Prénom)]],"") -> Total_QUATREVINGTQUATORZE | V63: =1/COUNTIF(T_sept_dec[cléTotal],T_sept_dec[[#This Row],[cléTotal]]) -> 0.3333333333
A64: 2017-10-16 | B64: FDL | D64: Jules Guesde | E64: cm1/cm2 | F64: QUATREVINGTQUATRE | G64: 23 | H64: In situ | I64: Projet FDL | L64: =IF(COUNTIF(Maternelle,E64)=1,listes!$T$1,IF(COUNTIF(Elémentaire,E64)=1,listes!$U$1,IF(COUNTIF(Collège,E64)=1,listes!$V$1,IF(COUNTIF(Lycée,E64)=1,listes!$W$1,"")))) -> Elémentaire | M64: =VLOOKUP(T_sept_dec[[#This Row],[Etablissement scolaire]],Regroupements!$T:$U,2,FALSE) -> Cyprian-les-Brosses | N64: FDL | O64: =T_sept_dec[[#This Row],[Etablissement accueillant]]&"-"&T_sept_dec[[#This Row],[Enseignant référent (Nom Prénom)]] -> FDL-QUATREVINGTQUATRE | P64: =1/COUNTIF(T_sept_dec[CléEtablissement],T_sept_dec[[#This Row],[CléEtablissement]]) -> 1 | Q64: =IF(COUNTIF(Réseau,T_sept_dec[[#This Row],[Secteur organisateur]]),"Réseau_"&T_sept_dec[[#This Row],[Enseignant référent (Nom Prénom)]], IF(COUNTIF(Rizehorsmed,T_sept_dec[[#This Row],[Secteur organisateur]]),"Rizehorsmed_"&T_sept_dec[[#This Row],[Enseignant référent (Nom Prénom)]], T_sept_dec[[#This Row],[Secteur organisateur]]&"_"&T_sept_dec[[#This Row],[Enseignant référent (Nom Prénom)]])) -> FDL_QUATREVINGTQUATRE | R64: =1/COUNTIF(T_sept_dec[CléRéseau-Rize horsmed],T_sept_dec[[#This Row],[CléRéseau-Rize horsmed]]) -> 1 | S64: =IF(COUNTIF(RIZE,T_sept_dec[[#This Row],[Secteur organisateur]]),"Rize_"&T_sept_dec[[#This Row],[Enseignant référent (Nom Prénom)]],"") ->  | T64: =1/COUNTIF(T_sept_dec[CléRize],T_sept_dec[[#This Row],[CléRize]]) -> 0.009803921569 | U64: =IF(COUNTIF(Total,T_sept_dec[[#This Row],[Secteur organisateur]]),"Total_"&T_sept_dec[[#This Row],[Enseignant référent (Nom Prénom)]],"") -> Total_QUATREVINGTQUATRE | V64: =1/COUNTIF(T_sept_dec[cléTotal],T_sept_dec[[#This Row],[cléTotal]]) -> 1
A65: 2017-11-08 | B65: EMM | D65: Jean Zay | E65: cm2 | F65: QUATREVINGTQUINZE | G65: 25 | H65: In situ | I65: Coder avec Scratch | L65: =IF(COUNTIF(Maternelle,E65)=1,listes!$T$1,IF(COUNTIF(Elémentaire,E65)=1,listes!$U$1,IF(COUNTIF(Collège,E65)=1,listes!$V$1,IF(COUNTIF(Lycée,E65)=1,listes!$W$1,"")))) -> Elémentaire | M65: =VLOOKUP(T_sept_dec[[#This Row],[Etablissement scolaire]],Regroupements!$T:$U,2,FALSE) -> Gratte-ciel-Dedieu-Charmettes | N65: MLIS | O65: =T_sept_dec[[#This Row],[Etablissement accueillant]]&"-"&T_sept_dec[[#This Row],[Enseignant référent (Nom Prénom)]] -> MLIS-QUATREVINGTQUINZE | P65: =1/COUNTIF(T_sept_dec[CléEtablissement],T_sept_dec[[#This Row],[CléEtablissement]]) -> 1 | Q65: =IF(COUNTIF(Réseau,T_sept_dec[[#This Row],[Secteur organisateur]]),"Réseau_"&T_sept_dec[[#This Row],[Enseignant référent (Nom Prénom)]], IF(COUNTIF(Rizehorsmed,T_sept_dec[[#This Row],[Secteur organisateur]]),"Rizehorsmed_"&T_sept_dec[[#This Row],[Enseignant référent (Nom Prénom)]], T_sept_dec[[#This Row],[Secteur organisateur]]&"_"&T_sept_dec[[#This Row],[Enseignant référent (Nom Prénom)]])) -> Réseau_QUATREVINGTQUINZE | R65: =1/COUNTIF(T_sept_dec[CléRéseau-Rize horsmed],T_sept_dec[[#This Row],[CléRéseau-Rize horsmed]]) -> 1 | S65: =IF(COUNTIF(RIZE,T_sept_dec[[#This Row],[Secteur organisateur]]),"Rize_"&T_sept_dec[[#This Row],[Enseignant référent (Nom Prénom)]],"") ->  | T65: =1/COUNTIF(T_sept_dec[CléRize],T_sept_dec[[#This Row],[CléRize]]) -> 0.009803921569 | U65: =IF(COUNTIF(Total,T_sept_dec[[#This Row],[Secteur organisateur]]),"Total_"&T_sept_dec[[#This Row],[Enseignant référent (Nom Prénom)]],"") -> Total_QUATREVINGTQUINZE | V65: =1/COUNTIF(T_sept_dec[cléTotal],T_sept_dec[[#This Row],[cléTotal]]) -> 1
A66: 2017-10-16 | B66: FDL | D66: Jules Guesde | E66: cp | F66: QUATREVINGTSEIZE | G66: 24 | H66: In situ | I66: Projet FDL | L66: =IF(COUNTIF(Maternelle,E66)=1,listes!$T$1,IF(COUNTIF(Elémentaire,E66)=1,listes!$U$1,IF(COUNTIF(Collège,E66)=1,listes!$V$1,IF(COUNTIF(Lycée,E66)=1,listes!$W$1,"")))) -> Elémentaire | M66: =VLOOKUP(T_sept_dec[[#This Row],[Etablissement scolaire]],Regroupements!$T:$U,2,FALSE) -> Cyprian-les-Brosses | N66: =IF(COUNTIF(FDL,B66)=1,"FDL",IF(COUNTIF(RIZE,B66)=1,"RIZE",IF(COUNTIF(MLIS,B66)=1,"MLIS",IF(COUNTIF(PACBUS,B66)=1,"PAC-BUS",IF(COUNTIF(Tonkin,B66)=1,"TONKIN",""))))) -> FDL | O66: =T_sept_dec[[#This Row],[Etablissement accueillant]]&"-"&T_sept_dec[[#This Row],[Enseignant référent (Nom Prénom)]] -> FDL-QUATREVINGTSEIZE | P66: =1/COUNTIF(T_sept_dec[CléEtablissement],T_sept_dec[[#This Row],[CléEtablissement]]) -> 0.25 | Q66: =IF(COUNTIF(Réseau,T_sept_dec[[#This Row],[Secteur organisateur]]),"Réseau_"&T_sept_dec[[#This Row],[Enseignant référent (Nom Prénom)]], IF(COUNTIF(Rizehorsmed,T_sept_dec[[#This Row],[Secteur organisateur]]),"Rizehorsmed_"&T_sept_dec[[#This Row],[Enseignant référent (Nom Prénom)]], T_sept_dec[[#This Row],[Secteur organisateur]]&"_"&T_sept_dec[[#This Row],[Enseignant référent (Nom Prénom)]])) -> FDL_QUATREVINGTSEIZE | R66: =1/COUNTIF(T_sept_dec[CléRéseau-Rize horsmed],T_sept_dec[[#This Row],[CléRéseau-Rize horsmed]]) -> 0.25 | S66: =IF(COUNTIF(RIZE,T_sept_dec[[#This Row],[Secteur organisateur]]),"Rize_"&T_sept_dec[[#This Row],[Enseignant référent (Nom Prénom)]],"") ->  | T66: =1/COUNTIF(T_sept_dec[CléRize],T_sept_dec[[#This Row],[CléRize]]) -> 0.009803921569 | U66: =IF(COUNTIF(Total,T_sept_dec[[#This Row],[Secteur organisateur]]),"Total_"&T_sept_dec[[#This Row],[Enseignant référent (Nom Prénom)]],"") -> Total_QUATREVINGTSEIZE | V66: =1/COUNTIF(T_sept_dec[cléTotal],T_sept_dec[[#This Row],[cléTotal]]) -> 0.25
A67: 2017-10-17 | B67: FDL | D67: Jules Guesde | E67: cp | F67: QUATREVINGTSEIZE | G67: 24 | H67: In situ | I67: Projet FDL | L67: =IF(COUNTIF(Maternelle,E67)=1,listes!$T$1,IF(COUNTIF(Elémentaire,E67)=1,listes!$U$1,IF(COUNTIF(Collège,E67)=1,listes!$V$1,IF(COUNTIF(Lycée,E67)=1,listes!$W$1,"")))) -> Elémentaire | M67: =VLOOKUP(T_sept_dec[[#This Row],[Etablissement scolaire]],Regroupements!$T:$U,2,FALSE) -> Cyprian-les-Brosses | N67: FDL | O67: =T_sept_dec[[#This Row],[Etablissement accueillant]]&"-"&T_sept_dec[[#This Row],[Enseignant référent (Nom Prénom)]] -> FDL-QUATREVINGTSEIZE | P67: =1/COUNTIF(T_sept_dec[CléEtablissement],T_sept_dec[[#This Row],[CléEtablissement]]) -> 0.25 | Q67: =IF(COUNTIF(Réseau,T_sept_dec[[#This Row],[Secteur organisateur]]),"Réseau_"&T_sept_dec[[#This Row],[Enseignant référent (Nom Prénom)]], IF(COUNTIF(Rizehorsmed,T_sept_dec[[#This Row],[Secteur organisateur]]),"Rizehorsmed_"&T_sept_dec[[#This Row],[Enseignant référent (Nom Prénom)]], T_sept_dec[[#This Row],[Secteur organisateur]]&"_"&T_sept_dec[[#This Row],[Enseignant référent (Nom Prénom)]])) -> FDL_QUATREVINGTSEIZE | R67: =1/COUNTIF(T_sept_dec[CléRéseau-Rize horsmed],T_sept_dec[[#This Row],[CléRéseau-Rize horsmed]]) -> 0.25 | S67: =IF(COUNTIF(RIZE,T_sept_dec[[#This Row],[Secteur organisateur]]),"Rize_"&T_sept_dec[[#This Row],[Enseignant référent (Nom Prénom)]],"") ->  | T67: =1/COUNTIF(T_sept_dec[CléRize],T_sept_dec[[#This Row],[CléRize]]) -> 0.009803921569 | U67: =IF(COUNTIF(Total,T_sept_dec[[#This Row],[Secteur organisateur]]),"Total_"&T_sept_dec[[#This Row],[Enseignant référent (Nom Prénom)]],"") -> Total_QUATREVINGTSEIZE | V67: =1/COUNTIF(T_sept_dec[cléTotal],T_sept_dec[[#This Row],[cléTotal]]) -> 0.25
A68: 2017-10-18 | B68: FDL | D68: Jules Guesde | E68: cp | F68: QUATREVINGTSEIZE | G68: 24 | H68: In situ | I68: Projet FDL | L68: =IF(COUNTIF(Maternelle,E68)=1,listes!$T$1,IF(COUNTIF(Elémentaire,E68)=1,listes!$U$1,IF(COUNTIF(Collège,E68)=1,listes!$V$1,IF(COUNTIF(Lycée,E68)=1,listes!$W$1,"")))) -> Elémentaire | M68: =VLOOKUP(T_sept_dec[[#This Row],[Etablissement scolaire]],Regroupements!$T:$U,2,FALSE) -> Cyprian-les-Brosses | N68: FDL | O68: =T_sept_dec[[#This Row],[Etablissement accueillant]]&"-"&T_sept_dec[[#This Row],[Enseignant référent (Nom Prénom)]] -> FDL-QUATREVINGTSEIZE | P68: =1/COUNTIF(T_sept_dec[CléEtablissement],T_sept_dec[[#This Row],[CléEtablissement]]) -> 0.25 | Q68: =IF(COUNTIF(Réseau,T_sept_dec[[#This Row],[Secteur organisateur]]),"Réseau_"&T_sept_dec[[#This Row],[Enseignant référent (Nom Prénom)]], IF(COUNTIF(Rizehorsmed,T_sept_dec[[#This Row],[Secteur organisateur]]),"Rizehorsmed_"&T_sept_dec[[#This Row],[Enseignant référent (Nom Prénom)]], T_sept_dec[[#This Row],[Secteur organisateur]]&"_"&T_sept_dec[[#This Row],[Enseignant référent (Nom Prénom)]])) -> FDL_QUATREVINGTSEIZE | R68: =1/COUNTIF(T_sept_dec[CléRéseau-Rize horsmed],T_sept_dec[[#This Row],[CléRéseau-Rize horsmed]]) -> 0.25 | S68: =IF(COUNTIF(RIZE,T_sept_dec[[#This Row],[Secteur organisateur]]),"Rize_"&T_sept_dec[[#This Row],[Enseignant référent (Nom Prénom)]],"") ->  | T68: =1/COUNTIF(T_sept_dec[CléRize],T_sept_dec[[#This Row],[CléRize]]) -> 0.009803921569 | U68: =IF(COUNTIF(Total,T_sept_dec[[#This Row],[Secteur organisateur]]),"Total_"&T_sept_dec[[#This Row],[Enseignant référent (Nom Prénom)]],"") -> Total_QUATREVINGTSEIZE | V68: =1/COUNTIF(T_sept_dec[cléTotal],T_sept_dec[[#This Row],[cléTotal]]) -> 0.25
A69: 2017-10-19 | B69: FDL | D69: Jules Guesde | E69: cp | F69: QUATREVINGTSEIZE | G69: 24 | H69: In situ | I69: Projet FDL | L69: =IF(COUNTIF(Maternelle,E69)=1,listes!$T$1,IF(COUNTIF(Elémentaire,E69)=1,listes!$U$1,IF(COUNTIF(Collège,E69)=1,listes!$V$1,IF(COUNTIF(Lycée,E69)=1,listes!$W$1,"")))) -> Elémentaire | M69: =VLOOKUP(T_sept_dec[[#This Row],[Etablissement scolaire]],Regroupements!$T:$U,2,FALSE) -> Cyprian-les-Brosses | N69: FDL | O69: =T_sept_dec[[#This Row],[Etablissement accueillant]]&"-"&T_sept_dec[[#This Row],[Enseignant référent (Nom Prénom)]] -> FDL-QUATREVINGTSEIZE | P69: =1/COUNTIF(T_sept_dec[CléEtablissement],T_sept_dec[[#This Row],[CléEtablissement]]) -> 0.25 | Q69: =IF(COUNTIF(Réseau,T_sept_dec[[#This Row],[Secteur organisateur]]),"Réseau_"&T_sept_dec[[#This Row],[Enseignant référent (Nom Prénom)]], IF(COUNTIF(Rizehorsmed,T_sept_dec[[#This Row],[Secteur organisateur]]),"Rizehorsmed_"&T_sept_dec[[#This Row],[Enseignant référent (Nom Prénom)]], T_sept_dec[[#This Row],[Secteur organisateur]]&"_"&T_sept_dec[[#This Row],[Enseignant référent (Nom Prénom)]])) -> FDL_QUATREVINGTSEIZE | R69: =1/COUNTIF(T_sept_dec[CléRéseau-Rize horsmed],T_sept_dec[[#This Row],[CléRéseau-Rize horsmed]]) -> 0.25 | S69: =IF(COUNTIF(RIZE,T_sept_dec[[#This Row],[Secteur organisateur]]),"Rize_"&T_sept_dec[[#This Row],[Enseignant référent (Nom Prénom)]],"") ->  | T69: =1/COUNTIF(T_sept_dec[CléRize],T_sept_dec[[#This Row],[CléRize]]) -> 0.009803921569 | U69: =IF(COUNTIF(Total,T_sept_dec[[#This Row],[Secteur organisateur]]),"Total_"&T_sept_dec[[#This Row],[Enseignant référent (Nom Prénom)]],"") -> Total_QUATREVINGTSEIZE | V69: =1/COUNTIF(T_sept_dec[cléTotal],T_sept_dec[[#This Row],[cléTotal]]) -> 0.25
A70: 2017-11-24 | B70: MTK | D70: Lakanal | E70: cp/ce1 | F70: QUATREVINGTSEPT | G70: 24 | H70: In situ | I70: Visite à la carte | L70: =IF(COUNTIF(Maternelle,E70)=1,listes!$T$1,IF(COUNTIF(Elémentaire,E70)=1,listes!$U$1,IF(COUNTIF(Collège,E70)=1,listes!$V$1,IF(COUNTIF(Lycée,E70)=1,listes!$W$1,"")))) -> Elémentaire | M70: =VLOOKUP(T_sept_dec[[#This Row],[Etablissement scolaire]],Regroupements!$T:$U,2,FALSE) -> Charpennes-Tonkin | N70: TONKIN | O70: =T_sept_dec[[#This Row],[Etablissement accueillant]]&"-"&T_sept_dec[[#This Row],[Enseignant référent (Nom Prénom)]] -> TONKIN-QUATREVINGTSEPT | P70: =1/COUNTIF(T_sept_dec[CléEtablissement],T_sept_dec[[#This Row],[CléEtablissement]]) -> 1 | Q70: =IF(COUNTIF(Réseau,T_sept_dec[[#This Row],[Secteur organisateur]]),"Réseau_"&T_sept_dec[[#This Row],[Enseignant référent (Nom Prénom)]], IF(COUNTIF(Rizehorsmed,T_sept_dec[[#This Row],[Secteur organisateur]]),"Rizehorsmed_"&T_sept_dec[[#This Row],[Enseignant référent (Nom Prénom)]], T_sept_dec[[#This Row],[Secteur organisateur]]&"_"&T_sept_dec[[#This Row],[Enseignant référent (Nom Prénom)]])) -> Réseau_QUATREVINGTSEPT | R70: =1/COUNTIF(T_sept_dec[CléRéseau-Rize horsmed],T_sept_dec[[#This Row],[CléRéseau-Rize horsmed]]) -> 1 | S70: =IF(COUNTIF(RIZE,T_sept_dec[[#This Row],[Secteur organisateur]]),"Rize_"&T_sept_dec[[#This Row],[Enseignant référent (Nom Prénom)]],"") ->  | T70: =1/COUNTIF(T_sept_dec[CléRize],T_sept_dec[[#This Row],[CléRize]]) -> 0.009803921569 | U70: =IF(COUNTIF(Total,T_sept_dec[[#This Row],[Secteur organisateur]]),"Total_"&T_sept_dec[[#This Row],[Enseignant référent (Nom Prénom)]],"") -> Total_QUATREVINGTSEPT | V70: =1/COUNTIF(T_sept_dec[cléTotal],T_sept_dec[[#This Row],[cléTotal]]) -> 1
A71: 2017-11-10 | B71: EMM | D71: Louis Armand | E71: cm1/cm2 | F71: QUATREVINGTSIX | G71: 30 | H71: In situ | I71: Stop motion | L71: =IF(COUNTIF(Maternelle,E71)=1,listes!$T$1,IF(COUNTIF(Elémentaire,E71)=1,listes!$U$1,IF(COUNTIF(Collège,E71)=1,listes!$V$1,IF(COUNTIF(Lycée,E71)=1,listes!$W$1,"")))) -> Elémentaire | M71: =VLOOKUP(T_sept_dec[[#This Row],[Etablissement scolaire]],Regroupements!$T:$U,2,FALSE) -> Charpennes-Tonkin | N71: MLIS | O71: =T_sept_dec[[#This Row],[Etablissement accueillant]]&"-"&T_sept_dec[[#This Row],[Enseignant référent (Nom Prénom)]] -> MLIS-QUATREVINGTSIX | P71: =1/COUNTIF(T_sept_dec[CléEtablissement],T_sept_dec[[#This Row],[CléEtablissement]]) -> 1 | Q71: =IF(COUNTIF(Réseau,T_sept_dec[[#This Row],[Secteur organisateur]]),"Réseau_"&T_sept_dec[[#This Row],[Enseignant référent (Nom Prénom)]], IF(COUNTIF(Rizehorsmed,T_sept_dec[[#This Row],[Secteur organisateur]]),"Rizehorsmed_"&T_sept_dec[[#This Row],[Enseignant référent (Nom Prénom)]], T_sept_dec[[#This Row],[Secteur organisateur]]&"_"&T_sept_dec[[#This Row],[Enseignant référent (Nom Prénom)]])) -> Réseau_QUATREVINGTSIX | R71: =1/COUNTIF(T_sept_dec[CléRéseau-Rize horsmed],T_sept_dec[[#This Row],[CléRéseau-Rize horsmed]]) -> 1 | S71: =IF(COUNTIF(RIZE,T_sept_dec[[#This Row],[Secteur organisateur]]),"Rize_"&T_sept_dec[[#This Row],[Enseignant référent (Nom Prénom)]],"") ->  | T71: =1/COUNTIF(T_sept_dec[CléRize],T_sept_dec[[#This Row],[CléRize]]) -> 0.009803921569 | U71: =IF(COUNTIF(Total,T_sept_dec[[#This Row],[Secteur organisateur]]),"Total_"&T_sept_dec[[#This Row],[Enseignant référent (Nom Prénom)]],"") -> Total_QUATREVINGTSIX | V71: =1/COUNTIF(T_sept_dec[cléTotal],T_sept_dec[[#This Row],[cléTotal]]) -> 1
A72: 2017-11-24 | B72: ARTO | D72: Rosa Parks | E72: cp | F72: QUATREVINGTTREIZE | G72: 26 | H72: In situ | I72: Il était une fois l'art contemporain | L72: =IF(COUNTIF(Maternelle,E72)=1,listes!$T$1,IF(COUNTIF(Elémentaire,E72)=1,listes!$U$1,IF(COUNTIF(Collège,E72)=1,listes!$V$1,IF(COUNTIF(Lycée,E72)=1,listes!$W$1,"")))) -> Elémentaire | M72: =VLOOKUP(T_sept_dec[[#This Row],[Etablissement scolaire]],Regroupements!$T:$U,2,FALSE) -> Gratte-ciel-Dedieu-Charmettes | N72: MLIS | O72: =T_sept_dec[[#This Row],[Etablissement accueillant]]&"-"&T_sept_dec[[#This Row],[Enseignant référent (Nom Prénom)]] -> MLIS-QUATREVINGTTREIZE | P72: =1/COUNTIF(T_sept_dec[CléEtablissement],T_sept_dec[[#This Row],[CléEtablissement]]) -> 1 | Q72: =IF(COUNTIF(Réseau,T_sept_dec[[#This Row],[Secteur organisateur]]),"Réseau_"&T_sept_dec[[#This Row],[Enseignant référent (Nom Prénom)]], IF(COUNTIF(Rizehorsmed,T_sept_dec[[#This Row],[Secteur organisateur]]),"Rizehorsmed_"&T_sept_dec[[#This Row],[Enseignant référent (Nom Prénom)]], T_sept_dec[[#This Row],[Secteur organisateur]]&"_"&T_sept_dec[[#This Row],[Enseignant référent (Nom Prénom)]])) -> Réseau_QUATREVINGTTREIZE | R72: =1/COUNTIF(T_sept_dec[CléRéseau-Rize horsmed],T_sept_dec[[#This Row],[CléRéseau-Rize horsmed]]) -> 1 | S72: =IF(COUNTIF(RIZE,T_sept_dec[[#This Row],[Secteur organisateur]]),"Rize_"&T_sept_dec[[#This Row],[Enseignant référent (Nom Prénom)]],"") ->  | T72: =1/COUNTIF(T_sept_dec[CléRize],T_sept_dec[[#This Row],[CléRize]]) -> 0.009803921569 | U72: =IF(COUNTIF(Total,T_sept_dec[[#This Row],[Secteur organisateur]]),"Total_"&T_sept_dec[[#This Row],[Enseignant référent (Nom Prénom)]],"") -> Total_QUATREVINGTTREIZE | V72: =1/COUNTIF(T_sept_dec[cléTotal],T_sept_dec[[#This Row],[cléTotal]]) -> 1
A73: 2017-11-29 | B73: MLIS J | D73: Lazare Goujon | E73: ULIS (école) | F73: QUATREVINGTTROIS | G73: 12 | H73: In situ | I73: Visite à la carte | L73: =IF(COUNTIF(Maternelle,E73)=1,listes!$T$1,IF(COUNTIF(Elémentaire,E73)=1,listes!$U$1,IF(COUNTIF(Collège,E73)=1,listes!$V$1,IF(COUNTIF(Lycée,E73)=1,listes!$W$1,"")))) -> Elémentaire | M73: =VLOOKUP(T_sept_dec[[#This Row],[Etablissement scolaire]],Regroupements!$T:$U,2,FALSE) -> Cusset-Bonnevay | N73: MLIS | O73: =T_sept_dec[[#This Row],[Etablissement accueillant]]&"-"&T_sept_dec[[#This Row],[Enseignant référent (Nom Prénom)]] -> MLIS-QUATREVINGTTROIS | P73: =1/COUNTIF(T_sept_dec[CléEtablissement],T_sept_dec[[#This Row],[CléEtablissement]]) -> 1 | Q73: =IF(COUNTIF(Réseau,T_sept_dec[[#This Row],[Secteur organisateur]]),"Réseau_"&T_sept_dec[[#This Row],[Enseignant référent (Nom Prénom)]], IF(COUNTIF(Rizehorsmed,T_sept_dec[[#This Row],[Secteur organisateur]]),"Rizehorsmed_"&T_sept_dec[[#This Row],[Enseignant référent (Nom Prénom)]], T_sept_dec[[#This Row],[Secteur organisateur]]&"_"&T_sept_dec[[#This Row],[Enseignant référent (Nom Prénom)]])) -> Réseau_QUATREVINGTTROIS | R73: =1/COUNTIF(T_sept_dec[CléRéseau-Rize horsmed],T_sept_dec[[#This Row],[CléRéseau-Rize horsmed]]) -> 1 | S73: =IF(COUNTIF(RIZE,T_sept_dec[[#This Row],[Secteur organisateur]]),"Rize_"&T_sept_dec[[#This Row],[Enseignant référent (Nom Prénom)]],"") ->  | T73: =1/COUNTIF(T_sept_dec[CléRize],T_sept_dec[[#This Row],[CléRize]]) -> 0.009803921569 | U73: =IF(COUNTIF(Total,T_sept_dec[[#This Row],[Secteur organisateur]]),"Total_"&T_sept_dec[[#This Row],[Enseignant référent (Nom Prénom)]],"") -> Total_QUATREVINGTTROIS | V73: =1/COUNTIF(T_sept_dec[cléTotal],T_sept_dec[[#This Row],[cléTotal]]) -> 1
A74: 2017-11-14 | B74: PAC-BUS | D74: Jules Guesde | E74: cp | F74: QUATREVINGTUN | G74: 24 | H74: Hors les murs | I74: Visite découverte | L74: =IF(COUNTIF(Maternelle,E74)=1,listes!$T$1,IF(COUNTIF(Elémentaire,E74)=1,listes!$U$1,IF(COUNTIF(Collège,E74)=1,listes!$V$1,IF(COUNTIF(Lycée,E74)=1,listes!$W$1,"")))) -> Elémentaire | M74: =VLOOKUP(T_sept_dec[[#This Row],[Etablissement scolaire]],Regroupements!$T:$U,2,FALSE) -> Cyprian-les-Brosses | N74: PAC-BUS | O74: =T_sept_dec[[#This Row],[Etablissement accueillant]]&"-"&T_sept_dec[[#This Row],[Enseignant référent (Nom Prénom)]] -> PAC-BUS-QUATREVINGTUN | P74: =1/COUNTIF(T_sept_dec[CléEtablissement],T_sept_dec[[#This Row],[CléEtablissement]]) -> 1 | Q74: =IF(COUNTIF(Réseau,T_sept_dec[[#This Row],[Secteur organisateur]]),"Réseau_"&T_sept_dec[[#This Row],[Enseignant référent (Nom Prénom)]], IF(COUNTIF(Rizehorsmed,T_sept_dec[[#This Row],[Secteur organisateur]]),"Rizehorsmed_"&T_sept_dec[[#This Row],[Enseignant référent (Nom Prénom)]], T_sept_dec[[#This Row],[Secteur organisateur]]&"_"&T_sept_dec[[#This Row],[Enseignant référent (Nom Prénom)]])) -> Réseau_QUATREVINGTUN | R74: =1/COUNTIF(T_sept_dec[CléRéseau-Rize horsmed],T_sept_dec[[#This Row],[CléRéseau-Rize horsmed]]) -> 1 | S74: =IF(COUNTIF(RIZE,T_sept_dec[[#This Row],[Secteur organisateur]]),"Rize_"&T_sept_dec[[#This Row],[Enseignant référent (Nom Prénom)]],"") ->  | T74: =1/COUNTIF(T_sept_dec[CléRize],T_sept_dec[[#This Row],[CléRize]]) -> 0.009803921569 | U74: =IF(COUNTIF(Total,T_sept_dec[[#This Row],[Secteur organisateur]]),"Total_"&T_sept_dec[[#This Row],[Enseignant référent (Nom Prénom)]],"") -> Total_QUATREVINGTUN | V74: =1/COUNTIF(T_sept_dec[cléTotal],T_sept_dec[[#This Row],[cléTotal]]) -> 1
A75: 2017-12-12 | B75: MTK | D75: Ecole juive de Lyon (privé) | E75: cp | F75: QUINZE | G75: 18 | H75: In situ | I75: Visite thématique | L75: =IF(COUNTIF(Maternelle,E75)=1,listes!$T$1,IF(COUNTIF(Elémentaire,E75)=1,listes!$U$1,IF(COUNTIF(Collège,E75)=1,listes!$V$1,IF(COUNTIF(Lycée,E75)=1,listes!$W$1,"")))) -> Elémentaire | M75: =VLOOKUP(T_sept_dec[[#This Row],[Etablissement scolaire]],Regroupements!$T:$U,2,FALSE) -> Gratte-ciel-Dedieu-Charmettes | N75: TONKIN | O75: =T_sept_dec[[#This Row],[Etablissement accueillant]]&"-"&T_sept_dec[[#This Row],[Enseignant référent (Nom Prénom)]] -> TONKIN-QUINZE | P75: =1/COUNTIF(T_sept_dec[CléEtablissement],T_sept_dec[[#This Row],[CléEtablissement]]) -> 1 | Q75: =IF(COUNTIF(Réseau,T_sept_dec[[#This Row],[Secteur organisateur]]),"Réseau_"&T_sept_dec[[#This Row],[Enseignant référent (Nom Prénom)]], IF(COUNTIF(Rizehorsmed,T_sept_dec[[#This Row],[Secteur organisateur]]),"Rizehorsmed_"&T_sept_dec[[#This Row],[Enseignant référent (Nom Prénom)]], T_sept_dec[[#This Row],[Secteur organisateur]]&"_"&T_sept_dec[[#This Row],[Enseignant référent (Nom Prénom)]])) -> Réseau_QUINZE | R75: =1/COUNTIF(T_sept_dec[CléRéseau-Rize horsmed],T_sept_dec[[#This Row],[CléRéseau-Rize horsmed]]) -> 1 | S75: =IF(COUNTIF(RIZE,T_sept_dec[[#This Row],[Secteur organisateur]]),"Rize_"&T_sept_dec[[#This Row],[Enseignant référent (Nom Prénom)]],"") ->  | T75: =1/COUNTIF(T_sept_dec[CléRize],T_sept_dec[[#This Row],[CléRize]]) -> 0.009803921569 | U75: =IF(COUNTIF(Total,T_sept_dec[[#This Row],[Secteur organisateur]]),"Total_"&T_sept_dec[[#This Row],[Enseignant référent (Nom Prénom)]],"") -> Total_QUINZE | V75: =1/COUNTIF(T_sept_dec[cléTotal],T_sept_dec[[#This Row],[cléTotal]]) -> 1
A76: 2017-12-08 | B76: MLIS J | D76: Jean Zay | E76: cp | F76: SEIZE | G76: 24 | H76: In situ | I76: Visite découverte | L76: =IF(COUNTIF(Maternelle,E76)=1,listes!$T$1,IF(COUNTIF(Elémentaire,E76)=1,listes!$U$1,IF(COUNTIF(Collège,E76)=1,listes!$V$1,IF(COUNTIF(Lycée,E76)=1,listes!$W$1,"")))) -> Elémentaire | M76: =VLOOKUP(T_sept_dec[[#This Row],[Etablissement scolaire]],Regroupements!$T:$U,2,FALSE) -> Gratte-ciel-Dedieu-Charmettes | N76: MLIS | O76: =T_sept_dec[[#This Row],[Etablissement accueillant]]&"-"&T_sept_dec[[#This Row],[Enseignant référent (Nom Prénom)]] -> MLIS-SEIZE | P76: =1/COUNTIF(T_sept_dec[CléEtablissement],T_sept_dec[[#This Row],[CléEtablissement]]) -> 1 | Q76: =IF(COUNTIF(Réseau,T_sept_dec[[#This Row],[Secteur organisateur]]),"Réseau_"&T_sept_dec[[#This Row],[Enseignant référent (Nom Prénom)]], IF(COUNTIF(Rizehorsmed,T_sept_dec[[#This Row],[Secteur organisateur]]),"Rizehorsmed_"&T_sept_dec[[#This Row],[Enseignant référent (Nom Prénom)]], T_sept_dec[[#This Row],[Secteur organisateur]]&"_"&T_sept_dec[[#This Row],[Enseignant référent (Nom Prénom)]])) -> Réseau_SEIZE | R76: =1/COUNTIF(T_sept_dec[CléRéseau-Rize horsmed],T_sept_dec[[#This Row],[CléRéseau-Rize horsmed]]) -> 1 | S76: =IF(COUNTIF(RIZE,T_sept_dec[[#This Row],[Secteur organisateur]]),"Rize_"&T_sept_dec[[#This Row],[Enseignant référent (Nom Prénom)]],"") ->  | T76: =1/COUNTIF(T_sept_dec[CléRize],T_sept_dec[[#This Row],[CléRize]]) -> 0.009803921569 | U76: =IF(COUNTIF(Total,T_sept_dec[[#This Row],[Secteur organisateur]]),"Total_"&T_sept_dec[[#This Row],[Enseignant référent (Nom Prénom)]],"") -> Total_SEIZE | V76: =1/COUNTIF(T_sept_dec[cléTotal],T_sept_dec[[#This Row],[cléTotal]]) -> 1
A77: 2017-09-22 | B77: RIZE MED | D77: Lycée Marie Curie | E77: 1° pro | F77: SEPT | G77: 28 | H77: In situ | I77: Album | L77: =IF(COUNTIF(Maternelle,E77)=1,listes!$T$1,IF(COUNTIF(Elémentaire,E77)=1,listes!$U$1,IF(COUNTIF(Collège,E77)=1,listes!$V$1,IF(COUNTIF(Lycée,E77)=1,listes!$W$1,"")))) -> Lycée | M77: =VLOOKUP(T_sept_dec[[#This Row],[Etablissement scolaire]],Regroupements!$T:$U,2,FALSE) -> Perralière-Grandclément | N77: RIZE | O77: =T_sept_dec[[#This Row],[Etablissement accueillant]]&"-"&T_sept_dec[[#This Row],[Enseignant référent (Nom Prénom)]] -> RIZE-SEPT | P77: =1/COUNTIF(T_sept_dec[CléEtablissement],T_sept_dec[[#This Row],[CléEtablissement]]) -> 0.3333333333 | Q77: =IF(COUNTIF(Réseau,T_sept_dec[[#This Row],[Secteur organisateur]]),"Réseau_"&T_sept_dec[[#This Row],[Enseignant référent (Nom Prénom)]], IF(COUNTIF(Rizehorsmed,T_sept_dec[[#This Row],[Secteur organisateur]]),"Rizehorsmed_"&T_sept_dec[[#This Row],[Enseignant référent (Nom Prénom)]], T_sept_dec[[#This Row],[Secteur organisateur]]&"_"&T_sept_dec[[#This Row],[Enseignant référent (Nom Prénom)]])) -> Réseau_SEPT | R77: =1/COUNTIF(T_sept_dec[CléRéseau-Rize horsmed],T_sept_dec[[#This Row],[CléRéseau-Rize horsmed]]) -> 0.3333333333 | S77: =IF(COUNTIF(RIZE,T_sept_dec[[#This Row],[Secteur organisateur]]),"Rize_"&T_sept_dec[[#This Row],[Enseignant référent (Nom Prénom)]],"") -> Rize_SEPT | T77: =1/COUNTIF(T_sept_dec[CléRize],T_sept_dec[[#This Row],[CléRize]]) -> 0.3333333333 | U77: =IF(COUNTIF(Total,T_sept_dec[[#This Row],[Secteur organisateur]]),"Total_"&T_sept_dec[[#This Row],[Enseignant référent (Nom Prénom)]],"") -> Total_SEPT | V77: =1/COUNTIF(T_sept_dec[cléTotal],T_sept_dec[[#This Row],[cléTotal]]) -> 0.3333333333
A78: 2017-11-06 | B78: RIZE MED | D78: Lycée Marie Curie | E78: 1° pro | F78: SEPT | G78: 15 | H78: In situ | I78: Ateliers | L78: =IF(COUNTIF(Maternelle,E78)=1,listes!$T$1,IF(COUNTIF(Elémentaire,E78)=1,listes!$U$1,IF(COUNTIF(Collège,E78)=1,listes!$V$1,IF(COUNTIF(Lycée,E78)=1,listes!$W$1,"")))) -> Lycée | M78: =VLOOKUP(T_sept_dec[[#This Row],[Etablissement scolaire]],Regroupements!$T:$U,2,FALSE) -> Perralière-Grandclément | N78: RIZE | O78: =T_sept_dec[[#This Row],[Etablissement accueillant]]&"-"&T_sept_dec[[#This Row],[Enseignant référent (Nom Prénom)]] -> RIZE-SEPT | P78: =1/COUNTIF(T_sept_dec[CléEtablissement],T_sept_dec[[#This Row],[CléEtablissement]]) -> 0.3333333333 | Q78: =IF(COUNTIF(Réseau,T_sept_dec[[#This Row],[Secteur organisateur]]),"Réseau_"&T_sept_dec[[#This Row],[Enseignant référent (Nom Prénom)]], IF(COUNTIF(Rizehorsmed,T_sept_dec[[#This Row],[Secteur organisateur]]),"Rizehorsmed_"&T_sept_dec[[#This Row],[Enseignant référent (Nom Prénom)]], T_sept_dec[[#This Row],[Secteur organisateur]]&"_"&T_sept_dec[[#This Row],[Enseignant référent (Nom Prénom)]])) -> Réseau_SEPT | R78: =1/COUNTIF(T_sept_dec[CléRéseau-Rize horsmed],T_sept_dec[[#This Row],[CléRéseau-Rize horsmed]]) -> 0.3333333333 | S78: =IF(COUNTIF(RIZE,T_sept_dec[[#This Row],[Secteur organisateur]]),"Rize_"&T_sept_dec[[#This Row],[Enseignant référent (Nom Prénom)]],"") -> Rize_SEPT | T78: =1/COUNTIF(T_sept_dec[CléRize],T_sept_dec[[#This Row],[CléRize]]) -> 0.3333333333 | U78: =IF(COUNTIF(Total,T_sept_dec[[#This Row],[Secteur organisateur]]),"Total_"&T_sept_dec[[#This Row],[Enseignant référent (Nom Prénom)]],"") -> Total_SEPT | V78: =1/COUNTIF(T_sept_dec[cléTotal],T_sept_dec[[#This Row],[cléTotal]]) -> 0.3333333333
A79: 2017-11-06 | B79: RIZE MED | D79: Lycée Marie Curie | E79: 1° pro | F79: SEPT | G79: 15 | H79: In situ | I79: Ateliers | L79: =IF(COUNTIF(Maternelle,E79)=1,listes!$T$1,IF(COUNTIF(Elémentaire,E79)=1,listes!$U$1,IF(COUNTIF(Collège,E79)=1,listes!$V$1,IF(COUNTIF(Lycée,E79)=1,listes!$W$1,"")))) -> Lycée | M79: =VLOOKUP(T_sept_dec[[#This Row],[Etablissement scolaire]],Regroupements!$T:$U,2,FALSE) -> Perralière-Grandclément | N79: RIZE | O79: =T_sept_dec[[#This Row],[Etablissement accueillant]]&"-"&T_sept_dec[[#This Row],[Enseignant référent (Nom Prénom)]] -> RIZE-SEPT | P79: =1/COUNTIF(T_sept_dec[CléEtablissement],T_sept_dec[[#This Row],[CléEtablissement]]) -> 0.3333333333 | Q79: =IF(COUNTIF(Réseau,T_sept_dec[[#This Row],[Secteur organisateur]]),"Réseau_"&T_sept_dec[[#This Row],[Enseignant référent (Nom Prénom)]], IF(COUNTIF(Rizehorsmed,T_sept_dec[[#This Row],[Secteur organisateur]]),"Rizehorsmed_"&T_sept_dec[[#This Row],[Enseignant référent (Nom Prénom)]], T_sept_dec[[#This Row],[Secteur organisateur]]&"_"&T_sept_dec[[#This Row],[Enseignant référent (Nom Prénom)]])) -> Réseau_SEPT | R79: =1/COUNTIF(T_sept_dec[CléRéseau-Rize horsmed],T_sept_dec[[#This Row],[CléRéseau-Rize horsmed]]) -> 0.3333333333 | S79: =IF(COUNTIF(RIZE,T_sept_dec[[#This Row],[Secteur organisateur]]),"Rize_"&T_sept_dec[[#This Row],[Enseignant référent (Nom Prénom)]],"") -> Rize_SEPT | T79: =1/COUNTIF(T_sept_dec[CléRize],T_sept_dec[[#This Row],[CléRize]]) -> 0.3333333333 | U79: =IF(COUNTIF(Total,T_sept_dec[[#This Row],[Secteur organisateur]]),"Total_"&T_sept_dec[[#This Row],[Enseignant référent (Nom Prénom)]],"") -> Total_SEPT | V79: =1/COUNTIF(T_sept_dec[cléTotal],T_sept_dec[[#This Row],[cléTotal]]) -> 0.3333333333
A80: 2017-10-12 | B80: RIZE MED | D80: Collège Louis Jouvet | E80: 6° | F80: SIX | G80: 21 | H80: In situ | I80: Recherche documentaire | L80: =IF(COUNTIF(Maternelle,E80)=1,listes!$T$1,IF(COUNTIF(Elémentaire,E80)=1,listes!$U$1,IF(COUNTIF(Collège,E80)=1,listes!$V$1,IF(COUNTIF(Lycée,E80)=1,listes!$W$1,"")))) -> Collège | M80: =VLOOKUP(T_sept_dec[[#This Row],[Etablissement scolaire]],Regroupements!$T:$U,2,FALSE) -> Ferrandière-Maisons Neuves | N80: RIZE | O80: =T_sept_dec[[#This Row],[Etablissement accueillant]]&"-"&T_sept_dec[[#This Row],[Enseignant référent (Nom Prénom)]] -> RIZE-SIX | P80: =1/COUNTIF(T_sept_dec[CléEtablissement],T_sept_dec[[#This Row],[CléEtablissement]]) -> 0.1428571429 | Q80: =IF(COUNTIF(Réseau,T_sept_dec[[#This Row],[Secteur organisateur]]),"Réseau_"&T_sept_dec[[#This Row],[Enseignant référent (Nom Prénom)]], IF(COUNTIF(Rizehorsmed,T_sept_dec[[#This Row],[Secteur organisateur]]),"Rizehorsmed_"&T_sept_dec[[#This Row],[Enseignant référent (Nom Prénom)]], T_sept_dec[[#This Row],[Secteur organisateur]]&"_"&T_sept_dec[[#This Row],[Enseignant référent (Nom Prénom)]])) -> Réseau_SIX | R80: =1/COUNTIF(T_sept_dec[CléRéseau-Rize horsmed],T_sept_dec[[#This Row],[CléRéseau-Rize horsmed]]) -> 0.1428571429 | S80: =IF(COUNTIF(RIZE,T_sept_dec[[#This Row],[Secteur organisateur]]),"Rize_"&T_sept_dec[[#This Row],[Enseignant référent (Nom Prénom)]],"") -> Rize_SIX | T80: =1/COUNTIF(T_sept_dec[CléRize],T_sept_dec[[#This Row],[CléRize]]) -> 0.1428571429 | U80: =IF(COUNTIF(Total,T_sept_dec[[#This Row],[Secteur organisateur]]),"Total_"&T_sept_dec[[#This Row],[Enseignant référent (Nom Prénom)]],"") -> Total_SIX | V80: =1/COUNTIF(T_sept_dec[cléTotal],T_sept_dec[[#This Row],[cléTotal]]) -> 0.1428571429
A81: 2017-10-13 | B81: RIZE MED | D81: Collège Louis Jouvet | E81: 6° | F81: SIX | G81: 24 | H81: In situ | I81: Recherche documentaire | L81: =IF(COUNTIF(Maternelle,E81)=1,listes!$T$1,IF(COUNTIF(Elémentaire,E81)=1,listes!$U$1,IF(COUNTIF(Collège,E81)=1,listes!$V$1,IF(COUNTIF(Lycée,E81)=1,listes!$W$1,"")))) -> Collège | M81: =VLOOKUP(T_sept_dec[[#This Row],[Etablissement scolaire]],Regroupements!$T:$U,2,FALSE) -> Ferrandière-Maisons Neuves | N81: RIZE | O81: =T_sept_dec[[#This Row],[Etablissement accueillant]]&"-"&T_sept_dec[[#This Row],[Enseignant référent (Nom Prénom)]] -> RIZE-SIX | P81: =1/COUNTIF(T_sept_dec[CléEtablissement],T_sept_dec[[#This Row],[CléEtablissement]]) -> 0.1428571429 | Q81: =IF(COUNTIF(Réseau,T_sept_dec[[#This Row],[Secteur organisateur]]),"Réseau_"&T_sept_dec[[#This Row],[Enseignant référent (Nom Prénom)]], IF(COUNTIF(Rizehorsmed,T_sept_dec[[#This Row],[Secteur organisateur]]),"Rizehorsmed_"&T_sept_dec[[#This Row],[Enseignant référent (Nom Prénom)]], T_sept_dec[[#This Row],[Secteur organisateur]]&"_"&T_sept_dec[[#This Row],[Enseignant référent (Nom Prénom)]])) -> Réseau_SIX | R81: =1/COUNTIF(T_sept_dec[CléRéseau-Rize horsmed],T_sept_dec[[#This Row],[CléRéseau-Rize horsmed]]) -> 0.1428571429 | S81: =IF(COUNTIF(RIZE,T_sept_dec[[#This Row],[Secteur organisateur]]),"Rize_"&T_sept_dec[[#This Row],[Enseignant référent (Nom Prénom)]],"") -> Rize_SIX | T81: =1/COUNTIF(T_sept_dec[CléRize],T_sept_dec[[#This Row],[CléRize]]) -> 0.1428571429 | U81: =IF(COUNTIF(Total,T_sept_dec[[#This Row],[Secteur organisateur]]),"Total_"&T_sept_dec[[#This Row],[Enseignant référent (Nom Prénom)]],"") -> Total_SIX | V81: =1/COUNTIF(T_sept_dec[cléTotal],T_sept_dec[[#This Row],[cléTotal]]) -> 0.1428571429
A82: 2017-11-14 | B82: RIZE MED | D82: Collège Louis Jouvet | E82: 6° | F82: SIX | G82: 25 | H82: In situ | I82: Recherche documentaire | L82: =IF(COUNTIF(Maternelle,E82)=1,listes!$T$1,IF(COUNTIF(Elémentaire,E82)=1,listes!$U$1,IF(COUNTIF(Collège,E82)=1,listes!$V$1,IF(COUNTIF(Lycée,E82)=1,listes!$W$1,"")))) -> Collège | M82: =VLOOKUP(T_sept_dec[[#This Row],[Etablissement scolaire]],Regroupements!$T:$U,2,FALSE) -> Ferrandière-Maisons Neuves | N82: RIZE | O82: =T_sept_dec[[#This Row],[Etablissement accueillant]]&"-"&T_sept_dec[[#This Row],[Enseignant référent (Nom Prénom)]] -> RIZE-SIX | P82: =1/COUNTIF(T_sept_dec[CléEtablissement],T_sept_dec[[#This Row],[CléEtablissement]]) -> 0.1428571429 | Q82: =IF(COUNTIF(Réseau,T_sept_dec[[#This Row],[Secteur organisateur]]),"Réseau_"&T_sept_dec[[#This Row],[Enseignant référent (Nom Prénom)]], IF(COUNTIF(Rizehorsmed,T_sept_dec[[#This Row],[Secteur organisateur]]),"Rizehorsmed_"&T_sept_dec[[#This Row],[Enseignant référent (Nom Prénom)]], T_sept_dec[[#This Row],[Secteur organisateur]]&"_"&T_sept_dec[[#This Row],[Enseignant référent (Nom Prénom)]])) -> Réseau_SIX | R82: =1/COUNTIF(T_sept_dec[CléRéseau-Rize horsmed],T_sept_dec[[#This Row],[CléRéseau-Rize horsmed]]) -> 0.1428571429 | S82: =IF(COUNTIF(RIZE,T_sept_dec[[#This Row],[Secteur organisateur]]),"Rize_"&T_sept_dec[[#This Row],[Enseignant référent (Nom Prénom)]],"") -> Rize_SIX | T82: =1/COUNTIF(T_sept_dec[CléRize],T_sept_dec[[#This Row],[CléRize]]) -> 0.1428571429 | U82: =IF(COUNTIF(Total,T_sept_dec[[#This Row],[Secteur organisateur]]),"Total_"&T_sept_dec[[#This Row],[Enseignant référent (Nom Prénom)]],"") -> Total_SIX | V82: =1/COUNTIF(T_sept_dec[cléTotal],T_sept_dec[[#This Row],[cléTotal]]) -> 0.1428571429
A83: 2017-11-17 | B83: RIZE MED | D83: Collège Louis Jouvet | E83: 6° | F83: SIX | G83: 26 | H83: In situ | I83: Recherche documentaire | L83: =IF(COUNTIF(Maternelle,E83)=1,listes!$T$1,IF(COUNTIF(Elémentaire,E83)=1,listes!$U$1,IF(COUNTIF(Collège,E83)=1,listes!$V$1,IF(COUNTIF(Lycée,E83)=1,listes!$W$1,"")))) -> Collège | M83: =VLOOKUP(T_sept_dec[[#This Row],[Etablissement scolaire]],Regroupements!$T:$U,2,FALSE) -> Ferrandière-Maisons Neuves | N83: RIZE | O83: =T_sept_dec[[#This Row],[Etablissement accueillant]]&"-"&T_sept_dec[[#This Row],[Enseignant référent (Nom Prénom)]] -> RIZE-SIX | P83: =1/COUNTIF(T_sept_dec[CléEtablissement],T_sept_dec[[#This Row],[CléEtablissement]]) -> 0.1428571429 | Q83: =IF(COUNTIF(Réseau,T_sept_dec[[#This Row],[Secteur organisateur]]),"Réseau_"&T_sept_dec[[#This Row],[Enseignant référent (Nom Prénom)]], IF(COUNTIF(Rizehorsmed,T_sept_dec[[#This Row],[Secteur organisateur]]),"Rizehorsmed_"&T_sept_dec[[#This Row],[Enseignant référent (Nom Prénom)]], T_sept_dec[[#This Row],[Secteur organisateur]]&"_"&T_sept_dec[[#This Row],[Enseignant référent (Nom Prénom)]])) -> Réseau_SIX | R83: =1/COUNTIF(T_sept_dec[CléRéseau-Rize horsmed],T_sept_dec[[#This Row],[CléRéseau-Rize horsmed]]) -> 0.1428571429 | S83: =IF(COUNTIF(RIZE,T_sept_dec[[#This Row],[Secteur organisateur]]),"Rize_"&T_sept_dec[[#This Row],[Enseignant référent (Nom Prénom)]],"") -> Rize_SIX | T83: =1/COUNTIF(T_sept_dec[CléRize],T_sept_dec[[#This Row],[CléRize]]) -> 0.1428571429 | U83: =IF(COUNTIF(Total,T_sept_dec[[#This Row],[Secteur organisateur]]),"Total_"&T_sept_dec[[#This Row],[Enseignant référent (Nom Prénom)]],"") -> Total_SIX | V83: =1/COUNTIF(T_sept_dec[cléTotal],T_sept_dec[[#This Row],[cléTotal]]) -> 0.1428571429
A84: 2017-11-21 | B84: RIZE MED | D84: Collège Louis Jouvet | E84: 6° | F84: SIX | G84: 25 | H84: In situ | I84: Recherche documentaire | L84: =IF(COUNTIF(Maternelle,E84)=1,listes!$T$1,IF(COUNTIF(Elémentaire,E84)=1,listes!$U$1,IF(COUNTIF(Collège,E84)=1,listes!$V$1,IF(COUNTIF(Lycée,E84)=1,listes!$W$1,"")))) -> Collège | M84: =VLOOKUP(T_sept_dec[[#This Row],[Etablissement scolaire]],Regroupements!$T:$U,2,FALSE) -> Ferrandière-Maisons Neuves | N84: RIZE | O84: =T_sept_dec[[#This Row],[Etablissement accueillant]]&"-"&T_sept_dec[[#This Row],[Enseignant référent (Nom Prénom)]] -> RIZE-SIX | P84: =1/COUNTIF(T_sept_dec[CléEtablissement],T_sept_dec[[#This Row],[CléEtablissement]]) -> 0.1428571429 | Q84: =IF(COUNTIF(Réseau,T_sept_dec[[#This Row],[Secteur organisateur]]),"Réseau_"&T_sept_dec[[#This Row],[Enseignant référent (Nom Prénom)]], IF(COUNTIF(Rizehorsmed,T_sept_dec[[#This Row],[Secteur organisateur]]),"Rizehorsmed_"&T_sept_dec[[#This Row],[Enseignant référent (Nom Prénom)]], T_sept_dec[[#This Row],[Secteur organisateur]]&"_"&T_sept_dec[[#This Row],[Enseignant référent (Nom Prénom)]])) -> Réseau_SIX | R84: =1/COUNTIF(T_sept_dec[CléRéseau-Rize horsmed],T_sept_dec[[#This Row],[CléRéseau-Rize horsmed]]) -> 0.1428571429 | S84: =IF(COUNTIF(RIZE,T_sept_dec[[#This Row],[Secteur organisateur]]),"Rize_"&T_sept_dec[[#This Row],[Enseignant référent (Nom Prénom)]],"") -> Rize_SIX | T84: =1/COUNTIF(T_sept_dec[CléRize],T_sept_dec[[#This Row],[CléRize]]) -> 0.1428571429 | U84: =IF(COUNTIF(Total,T_sept_dec[[#This Row],[Secteur organisateur]]),"Total_"&T_sept_dec[[#This Row],[Enseignant référent (Nom Prénom)]],"") -> Total_SIX | V84: =1/COUNTIF(T_sept_dec[cléTotal],T_sept_dec[[#This Row],[cléTotal]]) -> 0.1428571429
A85: 2017-11-28 | B85: RIZE MED | D85: Collège Louis Jouvet | E85: 6° | F85: SIX | G85: 24 | H85: In situ | I85: Recherche documentaire | L85: =IF(COUNTIF(Maternelle,E85)=1,listes!$T$1,IF(COUNTIF(Elémentaire,E85)=1,listes!$U$1,IF(COUNTIF(Collège,E85)=1,listes!$V$1,IF(COUNTIF(Lycée,E85)=1,listes!$W$1,"")))) -> Collège | M85: =VLOOKUP(T_sept_dec[[#This Row],[Etablissement scolaire]],Regroupements!$T:$U,2,FALSE) -> Ferrandière-Maisons Neuves | N85: RIZE | O85: =T_sept_dec[[#This Row],[Etablissement accueillant]]&"-"&T_sept_dec[[#This Row],[Enseignant référent (Nom Prénom)]] -> RIZE-SIX | P85: =1/COUNTIF(T_sept_dec[CléEtablissement],T_sept_dec[[#This Row],[CléEtablissement]]) -> 0.1428571429 | Q85: =IF(COUNTIF(Réseau,T_sept_dec[[#This Row],[Secteur organisateur]]),"Réseau_"&T_sept_dec[[#This Row],[Enseignant référent (Nom Prénom)]], IF(COUNTIF(Rizehorsmed,T_sept_dec[[#This Row],[Secteur organisateur]]),"Rizehorsmed_"&T_sept_dec[[#This Row],[Enseignant référent (Nom Prénom)]], T_sept_dec[[#This Row],[Secteur organisateur]]&"_"&T_sept_dec[[#This Row],[Enseignant référent (Nom Prénom)]])) -> Réseau_SIX | R85: =1/COUNTIF(T_sept_dec[CléRéseau-Rize horsmed],T_sept_dec[[#This Row],[CléRéseau-Rize horsmed]]) -> 0.1428571429 | S85: =IF(COUNTIF(RIZE,T_sept_dec[[#This Row],[Secteur organisateur]]),"Rize_"&T_sept_dec[[#This Row],[Enseignant référent (Nom Prénom)]],"") -> Rize_SIX | T85: =1/COUNTIF(T_sept_dec[CléRize],T_sept_dec[[#This Row],[CléRize]]) -> 0.1428571429 | U85: =IF(COUNTIF(Total,T_sept_dec[[#This Row],[Secteur organisateur]]),"Total_"&T_sept_dec[[#This Row],[Enseignant référent (Nom Prénom)]],"") -> Total_SIX | V85: =1/COUNTIF(T_sept_dec[cléTotal],T_sept_dec[[#This Row],[cléTotal]]) -> 0.1428571429
A86: 2017-12-01 | B86: RIZE MED | D86: Collège Louis Jouvet | E86: 6° | F86: SIX | G86: 24 | H86: In situ | I86: Recherche documentaire | L86: =IF(COUNTIF(Maternelle,E86)=1,listes!$T$1,IF(COUNTIF(Elémentaire,E86)=1,listes!$U$1,IF(COUNTIF(Collège,E86)=1,listes!$V$1,IF(COUNTIF(Lycée,E86)=1,listes!$W$1,"")))) -> Collège | M86: =VLOOKUP(T_sept_dec[[#This Row],[Etablissement scolaire]],Regroupements!$T:$U,2,FALSE) -> Ferrandière-Maisons Neuves | N86: RIZE | O86: =T_sept_dec[[#This Row],[Etablissement accueillant]]&"-"&T_sept_dec[[#This Row],[Enseignant référent (Nom Prénom)]] -> RIZE-SIX | P86: =1/COUNTIF(T_sept_dec[CléEtablissement],T_sept_dec[[#This Row],[CléEtablissement]]) -> 0.1428571429 | Q86: =IF(COUNTIF(Réseau,T_sept_dec[[#This Row],[Secteur organisateur]]),"Réseau_"&T_sept_dec[[#This Row],[Enseignant référent (Nom Prénom)]], IF(COUNTIF(Rizehorsmed,T_sept_dec[[#This Row],[Secteur organisateur]]),"Rizehorsmed_"&T_sept_dec[[#This Row],[Enseignant référent (Nom Prénom)]], T_sept_dec[[#This Row],[Secteur organisateur]]&"_"&T_sept_dec[[#This Row],[Enseignant référent (Nom Prénom)]])) -> Réseau_SIX | R86: =1/COUNTIF(T_sept_dec[CléRéseau-Rize horsmed],T_sept_dec[[#This Row],[CléRéseau-Rize horsmed]]) -> 0.1428571429 | S86: =IF(COUNTIF(RIZE,T_sept_dec[[#This Row],[Secteur organisateur]]),"Rize_"&T_sept_dec[[#This Row],[Enseignant référent (Nom Prénom)]],"") -> Rize_SIX | T86: =1/COUNTIF(T_sept_dec[CléRize],T_sept_dec[[#This Row],[CléRize]]) -> 0.1428571429 | U86: =IF(COUNTIF(Total,T_sept_dec[[#This Row],[Secteur organisateur]]),"Total_"&T_sept_dec[[#This Row],[Enseignant référent (Nom Prénom)]],"") -> Total_SIX | V86: =1/COUNTIF(T_sept_dec[cléTotal],T_sept_dec[[#This Row],[cléTotal]]) -> 0.1428571429
A87: 2017-10-03 | B87: MLIS J | D87: Ecole juive de Lyon (privé) | E87: ce1 | F87: SOIXANTE | G87: 30 | H87: In situ | I87: Première lecture | L87: =IF(COUNTIF(Maternelle,E87)=1,listes!$T$1,IF(COUNTIF(Elémentaire,E87)=1,listes!$U$1,IF(COUNTIF(Collège,E87)=1,listes!$V$1,IF(COUNTIF(Lycée,E87)=1,listes!$W$1,"")))) -> Elémentaire | M87: =VLOOKUP(T_sept_dec[[#This Row],[Etablissement scolaire]],Regroupements!$T:$U,2,FALSE) -> Gratte-ciel-Dedieu-Charmettes | N87: MLIS | O87: =T_sept_dec[[#This Row],[Etablissement accueillant]]&"-"&T_sept_dec[[#This Row],[Enseignant référent (Nom Prénom)]] -> MLIS-SOIXANTE | P87: =1/COUNTIF(T_sept_dec[CléEtablissement],T_sept_dec[[#This Row],[CléEtablissement]]) -> 1 | Q87: =IF(COUNTIF(Réseau,T_sept_dec[[#This Row],[Secteur organisateur]]),"Réseau_"&T_sept_dec[[#This Row],[Enseignant référent (Nom Prénom)]], IF(COUNTIF(Rizehorsmed,T_sept_dec[[#This Row],[Secteur organisateur]]),"Rizehorsmed_"&T_sept_dec[[#This Row],[Enseignant référent (Nom Prénom)]], T_sept_dec[[#This Row],[Secteur organisateur]]&"_"&T_sept_dec[[#This Row],[Enseignant référent (Nom Prénom)]])) -> Réseau_SOIXANTE | R87: =1/COUNTIF(T_sept_dec[CléRéseau-Rize horsmed],T_sept_dec[[#This Row],[CléRéseau-Rize horsmed]]) -> 1 | S87: =IF(COUNTIF(RIZE,T_sept_dec[[#This Row],[Secteur organisateur]]),"Rize_"&T_sept_dec[[#This Row],[Enseignant référent (Nom Prénom)]],"") ->  | T87: =1/COUNTIF(T_sept_dec[CléRize],T_sept_dec[[#This Row],[CléRize]]) -> 0.009803921569 | U87: =IF(COUNTIF(Total,T_sept_dec[[#This Row],[Secteur organisateur]]),"Total_"&T_sept_dec[[#This Row],[Enseignant référent (Nom Prénom)]],"") -> Total_SOIXANTE | V87: =1/COUNTIF(T_sept_dec[cléTotal],T_sept_dec[[#This Row],[cléTotal]]) -> 1
A88: 2017-10-16 | B88: FDL | D88: Jules Guesde | E88: ce2/cm1 | F88: SOIXANTECINQ | G88: 23 | H88: In situ | I88: Projet FDL | L88: =IF(COUNTIF(Maternelle,E88)=1,listes!$T$1,IF(COUNTIF(Elémentaire,E88)=1,listes!$U$1,IF(COUNTIF(Collège,E88)=1,listes!$V$1,IF(COUNTIF(Lycée,E88)=1,listes!$W$1,"")))) -> Elémentaire | M88: =VLOOKUP(T_sept_dec[[#This Row],[Etablissement scolaire]],Regroupements!$T:$U,2,FALSE) -> Cyprian-les-Brosses | N88: FDL | O88: =T_sept_dec[[#This Row],[Etablissement accueillant]]&"-"&T_sept_dec[[#This Row],[Enseignant référent (Nom Prénom)]] -> FDL-SOIXANTECINQ | P88: =1/COUNTIF(T_sept_dec[CléEtablissement],T_sept_dec[[#This Row],[CléEtablissement]]) -> 0.3333333333 | Q88: =IF(COUNTIF(Réseau,T_sept_dec[[#This Row],[Secteur organisateur]]),"Réseau_"&T_sept_dec[[#This Row],[Enseignant référent (Nom Prénom)]], IF(COUNTIF(Rizehorsmed,T_sept_dec[[#This Row],[Secteur organisateur]]),"Rizehorsmed_"&T_sept_dec[[#This Row],[Enseignant référent (Nom Prénom)]], T_sept_dec[[#This Row],[Secteur organisateur]]&"_"&T_sept_dec[[#This Row],[Enseignant référent (Nom Prénom)]])) -> FDL_SOIXANTECINQ | R88: =1/COUNTIF(T_sept_dec[CléRéseau-Rize horsmed],T_sept_dec[[#This Row],[CléRéseau-Rize horsmed]]) -> 0.3333333333 | S88: =IF(COUNTIF(RIZE,T_sept_dec[[#This Row],[Secteur organisateur]]),"Rize_"&T_sept_dec[[#This Row],[Enseignant référent (Nom Prénom)]],"") ->  | T88: =1/COUNTIF(T_sept_dec[CléRize],T_sept_dec[[#This Row],[CléRize]]) -> 0.009803921569 | U88: =IF(COUNTIF(Total,T_sept_dec[[#This Row],[Secteur organisateur]]),"Total_"&T_sept_dec[[#This Row],[Enseignant référent (Nom Prénom)]],"") -> Total_SOIXANTECINQ | V88: =1/COUNTIF(T_sept_dec[cléTotal],T_sept_dec[[#This Row],[cléTotal]]) -> 0.3333333333
A89: 2017-10-17 | B89: FDL | D89: Jules Guesde | E89: ce2/cm1 | F89: SOIXANTECINQ | G89: 23 | H89: In situ | I89: Projet FDL | L89: =IF(COUNTIF(Maternelle,E89)=1,listes!$T$1,IF(COUNTIF(Elémentaire,E89)=1,listes!$U$1,IF(COUNTIF(Collège,E89)=1,listes!$V$1,IF(COUNTIF(Lycée,E89)=1,listes!$W$1,"")))) -> Elémentaire | M89: =VLOOKUP(T_sept_dec[[#This Row],[Etablissement scolaire]],Regroupements!$T:$U,2,FALSE) -> Cyprian-les-Brosses | N89: FDL | O89: =T_sept_dec[[#This Row],[Etablissement accueillant]]&"-"&T_sept_dec[[#This Row],[Enseignant référent (Nom Prénom)]] -> FDL-SOIXANTECINQ | P89: =1/COUNTIF(T_sept_dec[CléEtablissement],T_sept_dec[[#This Row],[CléEtablissement]]) -> 0.3333333333 | Q89: =IF(COUNTIF(Réseau,T_sept_dec[[#This Row],[Secteur organisateur]]),"Réseau_"&T_sept_dec[[#This Row],[Enseignant référent (Nom Prénom)]], IF(COUNTIF(Rizehorsmed,T_sept_dec[[#This Row],[Secteur organisateur]]),"Rizehorsmed_"&T_sept_dec[[#This Row],[Enseignant référent (Nom Prénom)]], T_sept_dec[[#This Row],[Secteur organisateur]]&"_"&T_sept_dec[[#This Row],[Enseignant référent (Nom Prénom)]])) -> FDL_SOIXANTECINQ | R89: =1/COUNTIF(T_sept_dec[CléRéseau-Rize horsmed],T_sept_dec[[#This Row],[CléRéseau-Rize horsmed]]) -> 0.3333333333 | S89: =IF(COUNTIF(RIZE,T_sept_dec[[#This Row],[Secteur organisateur]]),"Rize_"&T_sept_dec[[#This Row],[Enseignant référent (Nom Prénom)]],"") ->  | T89: =1/COUNTIF(T_sept_dec[CléRize],T_sept_dec[[#This Row],[CléRize]]) -> 0.009803921569 | U89: =IF(COUNTIF(Total,T_sept_dec[[#This Row],[Secteur organisateur]]),"Total_"&T_sept_dec[[#This Row],[Enseignant référent (Nom Prénom)]],"") -> Total_SOIXANTECINQ | V89: =1/COUNTIF(T_sept_dec[cléTotal],T_sept_dec[[#This Row],[cléTotal]]) -> 0.3333333333
A90: 2017-10-18 | B90: FDL | D90: Jules Guesde | E90: ce2/cm1 | F90: SOIXANTECINQ | G90: 23 | H90: In situ | I90: Projet FDL | L90: =IF(COUNTIF(Maternelle,E90)=1,listes!$T$1,IF(COUNTIF(Elémentaire,E90)=1,listes!$U$1,IF(COUNTIF(Collège,E90)=1,listes!$V$1,IF(COUNTIF(Lycée,E90)=1,listes!$W$1,"")))) -> Elémentaire | M90: =VLOOKUP(T_sept_dec[[#This Row],[Etablissement scolaire]],Regroupements!$T:$U,2,FALSE) -> Cyprian-les-Brosses | N90: FDL | O90: =T_sept_dec[[#This Row],[Etablissement accueillant]]&"-"&T_sept_dec[[#This Row],[Enseignant référent (Nom Prénom)]] -> FDL-SOIXANTECINQ | P90: =1/COUNTIF(T_sept_dec[CléEtablissement],T_sept_dec[[#This Row],[CléEtablissement]]) -> 0.3333333333 | Q90: =IF(COUNTIF(Réseau,T_sept_dec[[#This Row],[Secteur organisateur]]),"Réseau_"&T_sept_dec[[#This Row],[Enseignant référent (Nom Prénom)]], IF(COUNTIF(Rizehorsmed,T_sept_dec[[#This Row],[Secteur organisateur]]),"Rizehorsmed_"&T_sept_dec[[#This Row],[Enseignant référent (Nom Prénom)]], T_sept_dec[[#This Row],[Secteur organisateur]]&"_"&T_sept_dec[[#This Row],[Enseignant référent (Nom Prénom)]])) -> FDL_SOIXANTECINQ | R90: =1/COUNTIF(T_sept_dec[CléRéseau-Rize horsmed],T_sept_dec[[#This Row],[CléRéseau-Rize horsmed]]) -> 0.3333333333 | S90: =IF(COUNTIF(RIZE,T_sept_dec[[#This Row],[Secteur organisateur]]),"Rize_"&T_sept_dec[[#This Row],[Enseignant référent (Nom Prénom)]],"") ->  | T90: =1/COUNTIF(T_sept_dec[CléRize],T_sept_dec[[#This Row],[CléRize]]) -> 0.009803921569 | U90: =IF(COUNTIF(Total,T_sept_dec[[#This Row],[Secteur organisateur]]),"Total_"&T_sept_dec[[#This Row],[Enseignant référent (Nom Prénom)]],"") -> Total_SOIXANTECINQ | V90: =1/COUNTIF(T_sept_dec[cléTotal],T_sept_dec[[#This Row],[cléTotal]]) -> 0.3333333333
A91: 2017-11-07 | B91: MTK | D91: Louis Armand | E91: cm1 | F91: SOIXANTEDEUX | G91: 30 | H91: In situ | I91: De la littérature au cinéma | L91: =IF(COUNTIF(Maternelle,E91)=1,listes!$T$1,IF(COUNTIF(Elémentaire,E91)=1,listes!$U$1,IF(COUNTIF(Collège,E91)=1,listes!$V$1,IF(COUNTIF(Lycée,E91)=1,listes!$W$1,"")))) -> Elémentaire | M91: =VLOOKUP(T_sept_dec[[#This Row],[Etablissement scolaire]],Regroupements!$T:$U,2,FALSE) -> Charpennes-Tonkin | N91: =IF(COUNTIF(FDL,B91)=1,"FDL",IF(COUNTIF(RIZE,B91)=1,"RIZE",IF(COUNTIF(MLIS,B91)=1,"MLIS",IF(COUNTIF(PACBUS,B91)=1,"PAC-BUS",IF(COUNTIF(Tonkin,B91)=1,"TONKIN",""))))) -> TONKIN | O91: =T_sept_dec[[#This Row],[Etablissement accueillant]]&"-"&T_sept_dec[[#This Row],[Enseignant référent (Nom Prénom)]] -> TONKIN-SOIXANTEDEUX | P91: =1/COUNTIF(T_sept_dec[CléEtablissement],T_sept_dec[[#This Row],[CléEtablissement]]) -> 1 | Q91: =IF(COUNTIF(Réseau,T_sept_dec[[#This Row],[Secteur organisateur]]),"Réseau_"&T_sept_dec[[#This Row],[Enseignant référent (Nom Prénom)]], IF(COUNTIF(Rizehorsmed,T_sept_dec[[#This Row],[Secteur organisateur]]),"Rizehorsmed_"&T_sept_dec[[#This Row],[Enseignant référent (Nom Prénom)]], T_sept_dec[[#This Row],[Secteur organisateur]]&"_"&T_sept_dec[[#This Row],[Enseignant référent (Nom Prénom)]])) -> Réseau_SOIXANTEDEUX | R91: =1/COUNTIF(T_sept_dec[CléRéseau-Rize horsmed],T_sept_dec[[#This Row],[CléRéseau-Rize horsmed]]) -> 0.5 | S91: =IF(COUNTIF(RIZE,T_sept_dec[[#This Row],[Secteur organisateur]]),"Rize_"&T_sept_dec[[#This Row],[Enseignant référent (Nom Prénom)]],"") ->  | T91: =1/COUNTIF(T_sept_dec[CléRize],T_sept_dec[[#This Row],[CléRize]]) -> 0.009803921569 | U91: =IF(COUNTIF(Total,T_sept_dec[[#This Row],[Secteur organisateur]]),"Total_"&T_sept_dec[[#This Row],[Enseignant référent (Nom Prénom)]],"") -> Total_SOIXANTEDEUX | V91: =1/COUNTIF(T_sept_dec[cléTotal],T_sept_dec[[#This Row],[cléTotal]]) -> 0.5
A92: 2017-11-09 | B92: EMM | D92: Louis Armand | E92: cm1 | F92: SOIXANTEDEUX | G92: 29 | H92: In situ | I92: Stop motion | L92: =IF(COUNTIF(Maternelle,E92)=1,listes!$T$1,IF(COUNTIF(Elémentaire,E92)=1,listes!$U$1,IF(COUNTIF(Collège,E92)=1,listes!$V$1,IF(COUNTIF(Lycée,E92)=1,listes!$W$1,"")))) -> Elémentaire | M92: =VLOOKUP(T_sept_dec[[#This Row],[Etablissement scolaire]],Regroupements!$T:$U,2,FALSE) -> Charpennes-Tonkin | N92: =IF(COUNTIF(FDL,B92)=1,"FDL",IF(COUNTIF(RIZE,B92)=1,"RIZE",IF(COUNTIF(MLIS,B92)=1,"MLIS",IF(COUNTIF(PACBUS,B92)=1,"PAC-BUS",IF(COUNTIF(Tonkin,B92)=1,"TONKIN",""))))) -> MLIS | O92: =T_sept_dec[[#This Row],[Etablissement accueillant]]&"-"&T_sept_dec[[#This Row],[Enseignant référent (Nom Prénom)]] -> MLIS-SOIXANTEDEUX | P92: =1/COUNTIF(T_sept_dec[CléEtablissement],T_sept_dec[[#This Row],[CléEtablissement]]) -> 1 | Q92: =IF(COUNTIF(Réseau,T_sept_dec[[#This Row],[Secteur organisateur]]),"Réseau_"&T_sept_dec[[#This Row],[Enseignant référent (Nom Prénom)]], IF(COUNTIF(Rizehorsmed,T_sept_dec[[#This Row],[Secteur organisateur]]),"Rizehorsmed_"&T_sept_dec[[#This Row],[Enseignant référent (Nom Prénom)]], T_sept_dec[[#This Row],[Secteur organisateur]]&"_"&T_sept_dec[[#This Row],[Enseignant référent (Nom Prénom)]])) -> Réseau_SOIXANTEDEUX | R92: =1/COUNTIF(T_sept_dec[CléRéseau-Rize horsmed],T_sept_dec[[#This Row],[CléRéseau-Rize horsmed]]) -> 0.5 | S92: =IF(COUNTIF(RIZE,T_sept_dec[[#This Row],[Secteur organisateur]]),"Rize_"&T_sept_dec[[#This Row],[Enseignant référent (Nom Prénom)]],"") ->  | T92: =1/COUNTIF(T_sept_dec[CléRize],T_sept_dec[[#This Row],[CléRize]]) -> 0.009803921569 | U92: =IF(COUNTIF(Total,T_sept_dec[[#This Row],[Secteur organisateur]]),"Total_"&T_sept_dec[[#This Row],[Enseignant référent (Nom Prénom)]],"") -> Total_SOIXANTEDEUX | V92: =1/COUNTIF(T_sept_dec[cléTotal],T_sept_dec[[#This Row],[cléTotal]]) -> 0.5
A93: 2017-12-19 | B93: MTK | D93: Tonkin/Nigritelle | E93: ULIS (école) | F93: SOIXANTEDIX | G93: 5 | H93: In situ | I93: Visite à la carte | L93: =IF(COUNTIF(Maternelle,E93)=1,listes!$T$1,IF(COUNTIF(Elémentaire,E93)=1,listes!$U$1,IF(COUNTIF(Collège,E93)=1,listes!$V$1,IF(COUNTIF(Lycée,E93)=1,listes!$W$1,"")))) -> Elémentaire | M93: =VLOOKUP(T_sept_dec[[#This Row],[Etablissement scolaire]],Regroupements!$T:$U,2,FALSE) -> Charpennes-Tonkin | N93: TONKIN | O93: =T_sept_dec[[#This Row],[Etablissement accueillant]]&"-"&T_sept_dec[[#This Row],[Enseignant référent (Nom Prénom)]] -> TONKIN-SOIXANTEDIX | P93: =1/COUNTIF(T_sept_dec[CléEtablissement],T_sept_dec[[#This Row],[CléEtablissement]]) -> 1 | Q93: =IF(COUNTIF(Réseau,T_sept_dec[[#This Row],[Secteur organisateur]]),"Réseau_"&T_sept_dec[[#This Row],[Enseignant référent (Nom Prénom)]], IF(COUNTIF(Rizehorsmed,T_sept_dec[[#This Row],[Secteur organisateur]]),"Rizehorsmed_"&T_sept_dec[[#This Row],[Enseignant référent (Nom Prénom)]], T_sept_dec[[#This Row],[Secteur organisateur]]&"_"&T_sept_dec[[#This Row],[Enseignant référent (Nom Prénom)]])) -> Réseau_SOIXANTEDIX | R93: =1/COUNTIF(T_sept_dec[CléRéseau-Rize horsmed],T_sept_dec[[#This Row],[CléRéseau-Rize horsmed]]) -> 1 | S93: =IF(COUNTIF(RIZE,T_sept_dec[[#This Row],[Secteur organisateur]]),"Rize_"&T_sept_dec[[#This Row],[Enseignant référent (Nom Prénom)]],"") ->  | T93: =1/COUNTIF(T_sept_dec[CléRize],T_sept_dec[[#This Row],[CléRize]]) -> 0.009803921569 | U93: =IF(COUNTIF(Total,T_sept_dec[[#This Row],[Secteur organisateur]]),"Total_"&T_sept_dec[[#This Row],[Enseignant référent (Nom Prénom)]],"") -> Total_SOIXANTEDIX | V93: =1/COUNTIF(T_sept_dec[cléTotal],T_sept_dec[[#This Row],[cléTotal]]) -> 1
A94: 2017-12-08 | B94: MTK | D94: Lakanal | E94: cm1/cm2 | F94: SOIXANTEDIXHUIT | G94: 29 | H94: In situ | I94: Visite poésie | L94: =IF(COUNTIF(Maternelle,E94)=1,listes!$T$1,IF(COUNTIF(Elémentaire,E94)=1,listes!$U$1,IF(COUNTIF(Collège,E94)=1,listes!$V$1,IF(COUNTIF(Lycée,E94)=1,listes!$W$1,"")))) -> Elémentaire | M94: =VLOOKUP(T_sept_dec[[#This Row],[Etablissement scolaire]],Regroupements!$T:$U,2,FALSE) -> Charpennes-Tonkin | N94: TONKIN | O94: =T_sept_dec[[#This Row],[Etablissement accueillant]]&"-"&T_sept_dec[[#This Row],[Enseignant référent (Nom Prénom)]] -> TONKIN-SOIXANTEDIXHUIT | P94: =1/COUNTIF(T_sept_dec[CléEtablissement],T_sept_dec[[#This Row],[CléEtablissement]]) -> 1 | Q94: =IF(COUNTIF(Réseau,T_sept_dec[[#This Row],[Secteur organisateur]]),"Réseau_"&T_sept_dec[[#This Row],[Enseignant référent (Nom Prénom)]], IF(COUNTIF(Rizehorsmed,T_sept_dec[[#This Row],[Secteur organisateur]]),"Rizehorsmed_"&T_sept_dec[[#This Row],[Enseignant référent (Nom Prénom)]], T_sept_dec[[#This Row],[Secteur organisateur]]&"_"&T_sept_dec[[#This Row],[Enseignant référent (Nom Prénom)]])) -> Réseau_SOIXANTEDIXHUIT | R94: =1/COUNTIF(T_sept_dec[CléRéseau-Rize horsmed],T_sept_dec[[#This Row],[CléRéseau-Rize horsmed]]) -> 1 | S94: =IF(COUNTIF(RIZE,T_sept_dec[[#This Row],[Secteur organisateur]]),"Rize_"&T_sept_dec[[#This Row],[Enseignant référent (Nom Prénom)]],"") ->  | T94: =1/COUNTIF(T_sept_dec[CléRize],T_sept_dec[[#This Row],[CléRize]]) -> 0.009803921569 | U94: =IF(COUNTIF(Total,T_sept_dec[[#This Row],[Secteur organisateur]]),"Total_"&T_sept_dec[[#This Row],[Enseignant référent (Nom Prénom)]],"") -> Total_SOIXANTEDIXHUIT | V94: =1/COUNTIF(T_sept_dec[cléTotal],T_sept_dec[[#This Row],[cléTotal]]) -> 1
A95: 2017-11-08 | B95: RIZE MED | D95: Jean Jaurès (primaire) | E95: gs | F95: SOIXANTEDIXNEUF | G95: 24 | H95: In situ | I95: Visite découverte | L95: =IF(COUNTIF(Maternelle,E95)=1,listes!$T$1,IF(COUNTIF(Elémentaire,E95)=1,listes!$U$1,IF(COUNTIF(Collège,E95)=1,listes!$V$1,IF(COUNTIF(Lycée,E95)=1,listes!$W$1,"")))) -> Maternelle | M95: =VLOOKUP(T_sept_dec[[#This Row],[Etablissement scolaire]],Regroupements!$T:$U,2,FALSE) -> Ferrandière-Maisons Neuves | N95: RIZE | O95: =T_sept_dec[[#This Row],[Etablissement accueillant]]&"-"&T_sept_dec[[#This Row],[Enseignant référent (Nom Prénom)]] -> RIZE-SOIXANTEDIXNEUF | P95: =1/COUNTIF(T_sept_dec[CléEtablissement],T_sept_dec[[#This Row],[CléEtablissement]]) -> 1 | Q95: =IF(COUNTIF(Réseau,T_sept_dec[[#This Row],[Secteur organisateur]]),"Réseau_"&T_sept_dec[[#This Row],[Enseignant référent (Nom Prénom)]], IF(COUNTIF(Rizehorsmed,T_sept_dec[[#This Row],[Secteur organisateur]]),"Rizehorsmed_"&T_sept_dec[[#This Row],[Enseignant référent (Nom Prénom)]], T_sept_dec[[#This Row],[Secteur organisateur]]&"_"&T_sept_dec[[#This Row],[Enseignant référent (Nom Prénom)]])) -> Réseau_SOIXANTEDIXNEUF | R95: =1/COUNTIF(T_sept_dec[CléRéseau-Rize horsmed],T_sept_dec[[#This Row],[CléRéseau-Rize horsmed]]) -> 1 | S95: =IF(COUNTIF(RIZE,T_sept_dec[[#This Row],[Secteur organisateur]]),"Rize_"&T_sept_dec[[#This Row],[Enseignant référent (Nom Prénom)]],"") -> Rize_SOIXANTEDIXNEUF | T95: =1/COUNTIF(T_sept_dec[CléRize],T_sept_dec[[#This Row],[CléRize]]) -> 1 | U95: =IF(COUNTIF(Total,T_sept_dec[[#This Row],[Secteur organisateur]]),"Total_"&T_sept_dec[[#This Row],[Enseignant référent (Nom Prénom)]],"") -> Total_SOIXANTEDIXNEUF | V95: =1/COUNTIF(T_sept_dec[cléTotal],T_sept_dec[[#This Row],[cléTotal]]) -> 1
A96: 2017-11-17 | B96: MLIS J | D96: Collège Jean Macé | E96: 6° | F96: SOIXANTEDIXSEPT | G96: 27 | H96: In situ | I96: Conte | L96: =IF(COUNTIF(Maternelle,E96)=1,listes!$T$1,IF(COUNTIF(Elémentaire,E96)=1,listes!$U$1,IF(COUNTIF(Collège,E96)=1,listes!$V$1,IF(COUNTIF(Lycée,E96)=1,listes!$W$1,"")))) -> Collège | M96: =VLOOKUP(T_sept_dec[[#This Row],[Etablissement scolaire]],Regroupements!$T:$U,2,FALSE) -> Buers-Croix-Luizet | N96: MLIS | O96: =T_sept_dec[[#This Row],[Etablissement accueillant]]&"-"&T_sept_dec[[#This Row],[Enseignant référent (Nom Prénom)]] -> MLIS-SOIXANTEDIXSEPT | P96: =1/COUNTIF(T_sept_dec[CléEtablissement],T_sept_dec[[#This Row],[CléEtablissement]]) -> 0.3333333333 | Q96: =IF(COUNTIF(Réseau,T_sept_dec[[#This Row],[Secteur organisateur]]),"Réseau_"&T_sept_dec[[#This Row],[Enseignant référent (Nom Prénom)]], IF(COUNTIF(Rizehorsmed,T_sept_dec[[#This Row],[Secteur organisateur]]),"Rizehorsmed_"&T_sept_dec[[#This Row],[Enseignant référent (Nom Prénom)]], T_sept_dec[[#This Row],[Secteur organisateur]]&"_"&T_sept_dec[[#This Row],[Enseignant référent (Nom Prénom)]])) -> Réseau_SOIXANTEDIXSEPT | R96: =1/COUNTIF(T_sept_dec[CléRéseau-Rize horsmed],T_sept_dec[[#This Row],[CléRéseau-Rize horsmed]]) -> 0.3333333333 | S96: =IF(COUNTIF(RIZE,T_sept_dec[[#This Row],[Secteur organisateur]]),"Rize_"&T_sept_dec[[#This Row],[Enseignant référent (Nom Prénom)]],"") ->  | T96: =1/COUNTIF(T_sept_dec[CléRize],T_sept_dec[[#This Row],[CléRize]]) -> 0.009803921569 | U96: =IF(COUNTIF(Total,T_sept_dec[[#This Row],[Secteur organisateur]]),"Total_"&T_sept_dec[[#This Row],[Enseignant référent (Nom Prénom)]],"") -> Total_SOIXANTEDIXSEPT | V96: =1/COUNTIF(T_sept_dec[cléTotal],T_sept_dec[[#This Row],[cléTotal]]) -> 0.3333333333
A97: 2017-11-23 | B97: MLIS J | D97: Collège Jean Macé | E97: 6° | F97: SOIXANTEDIXSEPT | G97: 29 | H97: In situ | I97: Conte | L97: =IF(COUNTIF(Maternelle,E97)=1,listes!$T$1,IF(COUNTIF(Elémentaire,E97)=1,listes!$U$1,IF(COUNTIF(Collège,E97)=1,listes!$V$1,IF(COUNTIF(Lycée,E97)=1,listes!$W$1,"")))) -> Collège | M97: =VLOOKUP(T_sept_dec[[#This Row],[Etablissement scolaire]],Regroupements!$T:$U,2,FALSE) -> Buers-Croix-Luizet | N97: MLIS | O97: =T_sept_dec[[#This Row],[Etablissement accueillant]]&"-"&T_sept_dec[[#This Row],[Enseignant référent (Nom Prénom)]] -> MLIS-SOIXANTEDIXSEPT | P97: =1/COUNTIF(T_sept_dec[CléEtablissement],T_sept_dec[[#This Row],[CléEtablissement]]) -> 0.3333333333 | Q97: =IF(COUNTIF(Réseau,T_sept_dec[[#This Row],[Secteur organisateur]]),"Réseau_"&T_sept_dec[[#This Row],[Enseignant référent (Nom Prénom)]], IF(COUNTIF(Rizehorsmed,T_sept_dec[[#This Row],[Secteur organisateur]]),"Rizehorsmed_"&T_sept_dec[[#This Row],[Enseignant référent (Nom Prénom)]], T_sept_dec[[#This Row],[Secteur organisateur]]&"_"&T_sept_dec[[#This Row],[Enseignant référent (Nom Prénom)]])) -> Réseau_SOIXANTEDIXSEPT | R97: =1/COUNTIF(T_sept_dec[CléRéseau-Rize horsmed],T_sept_dec[[#This Row],[CléRéseau-Rize horsmed]]) -> 0.3333333333 | S97: =IF(COUNTIF(RIZE,T_sept_dec[[#This Row],[Secteur organisateur]]),"Rize_"&T_sept_dec[[#This Row],[Enseignant référent (Nom Prénom)]],"") ->  | T97: =1/COUNTIF(T_sept_dec[CléRize],T_sept_dec[[#This Row],[CléRize]]) -> 0.009803921569 | U97: =IF(COUNTIF(Total,T_sept_dec[[#This Row],[Secteur organisateur]]),"Total_"&T_sept_dec[[#This Row],[Enseignant référent (Nom Prénom)]],"") -> Total_SOIXANTEDIXSEPT | V97: =1/COUNTIF(T_sept_dec[cléTotal],T_sept_dec[[#This Row],[cléTotal]]) -> 0.3333333333
A98: 2017-11-28 | B98: MLIS J | D98: Collège Jean Macé | E98: 6° | F98: SOIXANTEDIXSEPT | G98: 25 | H98: In situ | I98: Visite découverte | L98: =IF(COUNTIF(Maternelle,E98)=1,listes!$T$1,IF(COUNTIF(Elémentaire,E98)=1,listes!$U$1,IF(COUNTIF(Collège,E98)=1,listes!$V$1,IF(COUNTIF(Lycée,E98)=1,listes!$W$1,"")))) -> Collège | M98: =VLOOKUP(T_sept_dec[[#This Row],[Etablissement scolaire]],Regroupements!$T:$U,2,FALSE) -> Buers-Croix-Luizet | N98: =IF(COUNTIF(FDL,B98)=1,"FDL",IF(COUNTIF(RIZE,B98)=1,"RIZE",IF(COUNTIF(MLIS,B98)=1,"MLIS",IF(COUNTIF(PACBUS,B98)=1,"PAC-BUS",IF(COUNTIF(Tonkin,B98)=1,"TONKIN",""))))) -> MLIS | O98: =T_sept_dec[[#This Row],[Etablissement accueillant]]&"-"&T_sept_dec[[#This Row],[Enseignant référent (Nom Prénom)]] -> MLIS-SOIXANTEDIXSEPT | P98: =1/COUNTIF(T_sept_dec[CléEtablissement],T_sept_dec[[#This Row],[CléEtablissement]]) -> 0.3333333333 | Q98: =IF(COUNTIF(Réseau,T_sept_dec[[#This Row],[Secteur organisateur]]),"Réseau_"&T_sept_dec[[#This Row],[Enseignant référent (Nom Prénom)]], IF(COUNTIF(Rizehorsmed,T_sept_dec[[#This Row],[Secteur organisateur]]),"Rizehorsmed_"&T_sept_dec[[#This Row],[Enseignant référent (Nom Prénom)]], T_sept_dec[[#This Row],[Secteur organisateur]]&"_"&T_sept_dec[[#This Row],[Enseignant référent (Nom Prénom)]])) -> Réseau_SOIXANTEDIXSEPT | R98: =1/COUNTIF(T_sept_dec[CléRéseau-Rize horsmed],T_sept_dec[[#This Row],[CléRéseau-Rize horsmed]]) -> 0.3333333333 | S98: =IF(COUNTIF(RIZE,T_sept_dec[[#This Row],[Secteur organisateur]]),"Rize_"&T_sept_dec[[#This Row],[Enseignant référent (Nom Prénom)]],"") ->  | T98: =1/COUNTIF(T_sept_dec[CléRize],T_sept_dec[[#This Row],[CléRize]]) -> 0.009803921569 | U98: =IF(COUNTIF(Total,T_sept_dec[[#This Row],[Secteur organisateur]]),"Total_"&T_sept_dec[[#This Row],[Enseignant référent (Nom Prénom)]],"") -> Total_SOIXANTEDIXSEPT | V98: =1/COUNTIF(T_sept_dec[cléTotal],T_sept_dec[[#This Row],[cléTotal]]) -> 0.3333333333
A99: 2017-12-01 | B99: RIZE VALO | D99: Edouard Herriot | E99: cm1 | F99: SOIXANTEDOUZE | G99: 27 | H99: Hors les murs | I99: Exploration Gratte-Ciel | L99: =IF(COUNTIF(Maternelle,E99)=1,listes!$T$1,IF(COUNTIF(Elémentaire,E99)=1,listes!$U$1,IF(COUNTIF(Collège,E99)=1,listes!$V$1,IF(COUNTIF(Lycée,E99)=1,listes!$W$1,"")))) -> Elémentaire | M99: =VLOOKUP(T_sept_dec[[#This Row],[Etablissement scolaire]],Regroupements!$T:$U,2,FALSE) -> Gratte-ciel-Dedieu-Charmettes | N99: RIZE | O99: =T_sept_dec[[#This Row],[Etablissement accueillant]]&"-"&T_sept_dec[[#This Row],[Enseignant référent (Nom Prénom)]] -> RIZE-SOIXANTEDOUZE | P99: =1/COUNTIF(T_sept_dec[CléEtablissement],T_sept_dec[[#This Row],[CléEtablissement]]) -> 1 | Q99: =IF(COUNTIF(Réseau,T_sept_dec[[#This Row],[Secteur organisateur]]),"Réseau_"&T_sept_dec[[#This Row],[Enseignant référent (Nom Prénom)]], IF(COUNTIF(Rizehorsmed,T_sept_dec[[#This Row],[Secteur organisateur]]),"Rizehorsmed_"&T_sept_dec[[#This Row],[Enseignant référent (Nom Prénom)]], T_sept_dec[[#This Row],[Secteur organisateur]]&"_"&T_sept_dec[[#This Row],[Enseignant référent (Nom Prénom)]])) -> Rizehorsmed_SOIXANTEDOUZE | R99: =1/COUNTIF(T_sept_dec[CléRéseau-Rize horsmed],T_sept_dec[[#This Row],[CléRéseau-Rize horsmed]]) -> 1 | S99: =IF(COUNTIF(RIZE,T_sept_dec[[#This Row],[Secteur organisateur]]),"Rize_"&T_sept_dec[[#This Row],[Enseignant référent (Nom Prénom)]],"") -> Rize_SOIXANTEDOUZE | T99: =1/COUNTIF(T_sept_dec[CléRize],T_sept_dec[[#This Row],[CléRize]]) -> 1 | U99: =IF(COUNTIF(Total,T_sept_dec[[#This Row],[Secteur organisateur]]),"Total_"&T_sept_dec[[#This Row],[Enseignant référent (Nom Prénom)]],"") -> Total_SOIXANTEDOUZE | V99: =1/COUNTIF(T_sept_dec[cléTotal],T_sept_dec[[#This Row],[cléTotal]]) -> 1
A100: 2017-09-11 | B100: MLIS A | D100: Beth Menahem (privé) | E100: autres (lycée) | F100: SOIXANTEHUIT | G100: 11 | H100: In situ | I100: Visite découverte | L100: =IF(COUNTIF(Maternelle,E100)=1,listes!$T$1,IF(COUNTIF(Elémentaire,E100)=1,listes!$U$1,IF(COUNTIF(Collège,E100)=1,listes!$V$1,IF(COUNTIF(Lycée,E100)=1,listes!$W$1,"")))) -> Lycée | M100: =VLOOKUP(T_sept_dec[[#This Row],[Etablissement scolaire]],Regroupements!$T:$U,2,FALSE) -> Cusset-Bonnevay | N100: MLIS | O100: =T_sept_dec[[#This Row],[Etablissement accueillant]]&"-"&T_sept_dec[[#This Row],[Enseignant référent (Nom Prénom)]] -> MLIS-SOIXANTEHUIT | P100: =1/COUNTIF(T_sept_dec[CléEtablissement],T_sept_dec[[#This Row],[CléEtablissement]]) -> 1 | Q100: =IF(COUNTIF(Réseau,T_sept_dec[[#This Row],[Secteur organisateur]]),"Réseau_"&T_sept_dec[[#This Row],[Enseignant référent (Nom Prénom)]], IF(COUNTIF(Rizehorsmed,T_sept_dec[[#This Row],[Secteur organisateur]]),"Rizehorsmed_"&T_sept_dec[[#This Row],[Enseignant référent (Nom Prénom)]], T_sept_dec[[#This Row],[Secteur organisateur]]&"_"&T_sept_dec[[#This Row],[Enseignant référent (Nom Prénom)]])) -> Réseau_SOIXANTEHUIT | R100: =1/COUNTIF(T_sept_dec[CléRéseau-Rize horsmed],T_sept_dec[[#This Row],[CléRéseau-Rize horsmed]]) -> 1 | S100: =IF(COUNTIF(RIZE,T_sept_dec[[#This Row],[Secteur organisateur]]),"Rize_"&T_sept_dec[[#This Row],[Enseignant référent (Nom Prénom)]],"") ->  | T100: =1/COUNTIF(T_sept_dec[CléRize],T_sept_dec[[#This Row],[CléRize]]) -> 0.009803921569 | U100: =IF(COUNTIF(Total,T_sept_dec[[#This Row],[Secteur organisateur]]),"Total_"&T_sept_dec[[#This Row],[Enseignant référent (Nom Prénom)]],"") -> Total_SOIXANTEHUIT | V100: =1/COUNTIF(T_sept_dec[cléTotal],T_sept_dec[[#This Row],[cléTotal]]) -> 1
A101: 2017-10-11 | B101: MLIS J | D101: Château-Gaillard | E101: ULIS (école) | F101: SOIXANTENEUF | G101: 4 | H101: In situ | I101: Visite à la carte | L101: =IF(COUNTIF(Maternelle,E101)=1,listes!$T$1,IF(COUNTIF(Elémentaire,E101)=1,listes!$U$1,IF(COUNTIF(Collège,E101)=1,listes!$V$1,IF(COUNTIF(Lycée,E101)=1,listes!$W$1,"")))) -> Elémentaire | M101: =VLOOKUP(T_sept_dec[[#This Row],[Etablissement scolaire]],Regroupements!$T:$U,2,FALSE) -> Buers-Croix-Luizet | N101: MLIS | O101: =T_sept_dec[[#This Row],[Etablissement accueillant]]&"-"&T_sept_dec[[#This Row],[Enseignant référent (Nom Prénom)]] -> MLIS-SOIXANTENEUF | P101: =1/COUNTIF(T_sept_dec[CléEtablissement],T_sept_dec[[#This Row],[CléEtablissement]]) -> 1 | Q101: =IF(COUNTIF(Réseau,T_sept_dec[[#This Row],[Secteur organisateur]]),"Réseau_"&T_sept_dec[[#This Row],[Enseignant référent (Nom Prénom)]], IF(COUNTIF(Rizehorsmed,T_sept_dec[[#This Row],[Secteur organisateur]]),"Rizehorsmed_"&T_sept_dec[[#This Row],[Enseignant référent (Nom Prénom)]], T_sept_dec[[#This Row],[Secteur organisateur]]&"_"&T_sept_dec[[#This Row],[Enseignant référent (Nom Prénom)]])) -> Réseau_SOIXANTENEUF | R101: =1/COUNTIF(T_sept_dec[CléRéseau-Rize horsmed],T_sept_dec[[#This Row],[CléRéseau-Rize horsmed]]) -> 1 | S101: =IF(COUNTIF(RIZE,T_sept_dec[[#This Row],[Secteur organisateur]]),"Rize_"&T_sept_dec[[#This Row],[Enseignant référent (Nom Prénom)]],"") ->  | T101: =1/COUNTIF(T_sept_dec[CléRize],T_sept_dec[[#This Row],[CléRize]]) -> 0.009803921569 | U101: =IF(COUNTIF(Total,T_sept_dec[[#This Row],[Secteur organisateur]]),"Total_"&T_sept_dec[[#This Row],[Enseignant référent (Nom Prénom)]],"") -> Total_SOIXANTENEUF | V101: =1/COUNTIF(T_sept_dec[cléTotal],T_sept_dec[[#This Row],[cléTotal]]) -> 1
A102: 2017-09-22 | B102: MLIS J | D102: Jean Zay | E102: gs | F102: SOIXANTEONZE | G102: 31 | H102: In situ | I102: La maison des livres | L102: =IF(COUNTIF(Maternelle,E102)=1,listes!$T$1,IF(COUNTIF(Elémentaire,E102)=1,listes!$U$1,IF(COUNTIF(Collège,E102)=1,listes!$V$1,IF(COUNTIF(Lycée,E102)=1,listes!$W$1,"")))) -> Maternelle | M102: =VLOOKUP(T_sept_dec[[#This Row],[Etablissement scolaire]],Regroupements!$T:$U,2,FALSE) -> Gratte-ciel-Dedieu-Charmettes | N102: MLIS | O102: =T_sept_dec[[#This Row],[Etablissement accueillant]]&"-"&T_sept_dec[[#This Row],[Enseignant référent (Nom Prénom)]] -> MLIS-SOIXANTEONZE | P102: =1/COUNTIF(T_sept_dec[CléEtablissement],T_sept_dec[[#This Row],[CléEtablissement]]) -> 1 | Q102: =IF(COUNTIF(Réseau,T_sept_dec[[#This Row],[Secteur organisateur]]),"Réseau_"&T_sept_dec[[#This Row],[Enseignant référent (Nom Prénom)]], IF(COUNTIF(Rizehorsmed,T_sept_dec[[#This Row],[Secteur organisateur]]),"Rizehorsmed_"&T_sept_dec[[#This Row],[Enseignant référent (Nom Prénom)]], T_sept_dec[[#This Row],[Secteur organisateur]]&"_"&T_sept_dec[[#This Row],[Enseignant référent (Nom Prénom)]])) -> Réseau_SOIXANTEONZE | R102: =1/COUNTIF(T_sept_dec[CléRéseau-Rize horsmed],T_sept_dec[[#This Row],[CléRéseau-Rize horsmed]]) -> 1 | S102: =IF(COUNTIF(RIZE,T_sept_dec[[#This Row],[Secteur organisateur]]),"Rize_"&T_sept_dec[[#This Row],[Enseignant référent (Nom Prénom)]],"") ->  | T102: =1/COUNTIF(T_sept_dec[CléRize],T_sept_dec[[#This Row],[CléRize]]) -> 0.009803921569 | U102: =IF(COUNTIF(Total,T_sept_dec[[#This Row],[Secteur organisateur]]),"Total_"&T_sept_dec[[#This Row],[Enseignant référent (Nom Prénom)]],"") -> Total_SOIXANTEONZE | V102: =1/COUNTIF(T_sept_dec[cléTotal],T_sept_dec[[#This Row],[cléTotal]]) -> 1
A103: 2017-11-14 | B103: ARTO | D103: Jules Ferry | E103: ce1/ce2 | F103: SOIXANTEQUATORZE | G103: 21 | H103: In situ | I103: Et si on parlait d'art ? | L103: =IF(COUNTIF(Maternelle,E103)=1,listes!$T$1,IF(COUNTIF(Elémentaire,E103)=1,listes!$U$1,IF(COUNTIF(Collège,E103)=1,listes!$V$1,IF(COUNTIF(Lycée,E103)=1,listes!$W$1,"")))) -> Elémentaire | M103: =VLOOKUP(T_sept_dec[[#This Row],[Etablissement scolaire]],Regroupements!$T:$U,2,FALSE) -> Cusset-Bonnevay | N103: MLIS | O103: =T_sept_dec[[#This Row],[Etablissement accueillant]]&"-"&T_sept_dec[[#This Row],[Enseignant référent (Nom Prénom)]] -> MLIS-SOIXANTEQUATORZE | P103: =1/COUNTIF(T_sept_dec[CléEtablissement],T_sept_dec[[#This Row],[CléEtablissement]]) -> 1 | Q103: =IF(COUNTIF(Réseau,T_sept_dec[[#This Row],[Secteur organisateur]]),"Réseau_"&T_sept_dec[[#This Row],[Enseignant référent (Nom Prénom)]], IF(COUNTIF(Rizehorsmed,T_sept_dec[[#This Row],[Secteur organisateur]]),"Rizehorsmed_"&T_sept_dec[[#This Row],[Enseignant référent (Nom Prénom)]], T_sept_dec[[#This Row],[Secteur organisateur]]&"_"&T_sept_dec[[#This Row],[Enseignant référent (Nom Prénom)]])) -> Réseau_SOIXANTEQUATORZE | R103: =1/COUNTIF(T_sept_dec[CléRéseau-Rize horsmed],T_sept_dec[[#This Row],[CléRéseau-Rize horsmed]]) -> 1 | S103: =IF(COUNTIF(RIZE,T_sept_dec[[#This Row],[Secteur organisateur]]),"Rize_"&T_sept_dec[[#This Row],[Enseignant référent (Nom Prénom)]],"") ->  | T103: =1/COUNTIF(T_sept_dec[CléRize],T_sept_dec[[#This Row],[CléRize]]) -> 0.009803921569 | U103: =IF(COUNTIF(Total,T_sept_dec[[#This Row],[Secteur organisateur]]),"Total_"&T_sept_dec[[#This Row],[Enseignant référent (Nom Prénom)]],"") -> Total_SOIXANTEQUATORZE | V103: =1/COUNTIF(T_sept_dec[cléTotal],T_sept_dec[[#This Row],[cléTotal]]) -> 1
A104: 2017-12-01 | B104: MTK | D104: Lakanal | E104: ce2 | F104: SOIXANTEQUATRE | G104: 28 | H104: In situ | I104: Première lecture | L104: =IF(COUNTIF(Maternelle,E104)=1,listes!$T$1,IF(COUNTIF(Elémentaire,E104)=1,listes!$U$1,IF(COUNTIF(Collège,E104)=1,listes!$V$1,IF(COUNTIF(Lycée,E104)=1,listes!$W$1,"")))) -> Elémentaire | M104: =VLOOKUP(T_sept_dec[[#This Row],[Etablissement scolaire]],Regroupements!$T:$U,2,FALSE) -> Charpennes-Tonkin | N104: TONKIN | O104: =T_sept_dec[[#This Row],[Etablissement accueillant]]&"-"&T_sept_dec[[#This Row],[Enseignant référent (Nom Prénom)]] -> TONKIN-SOIXANTEQUATRE | P104: =1/COUNTIF(T_sept_dec[CléEtablissement],T_sept_dec[[#This Row],[CléEtablissement]]) -> 1 | Q104: =IF(COUNTIF(Réseau,T_sept_dec[[#This Row],[Secteur organisateur]]),"Réseau_"&T_sept_dec[[#This Row],[Enseignant référent (Nom Prénom)]], IF(COUNTIF(Rizehorsmed,T_sept_dec[[#This Row],[Secteur organisateur]]),"Rizehorsmed_"&T_sept_dec[[#This Row],[Enseignant référent (Nom Prénom)]], T_sept_dec[[#This Row],[Secteur organisateur]]&"_"&T_sept_dec[[#This Row],[Enseignant référent (Nom Prénom)]])) -> Réseau_SOIXANTEQUATRE | R104: =1/COUNTIF(T_sept_dec[CléRéseau-Rize horsmed],T_sept_dec[[#This Row],[CléRéseau-Rize horsmed]]) -> 1 | S104: =IF(COUNTIF(RIZE,T_sept_dec[[#This Row],[Secteur organisateur]]),"Rize_"&T_sept_dec[[#This Row],[Enseignant référent (Nom Prénom)]],"") ->  | T104: =1/COUNTIF(T_sept_dec[CléRize],T_sept_dec[[#This Row],[CléRize]]) -> 0.009803921569 | U104: =IF(COUNTIF(Total,T_sept_dec[[#This Row],[Secteur organisateur]]),"Total_"&T_sept_dec[[#This Row],[Enseignant référent (Nom Prénom)]],"") -> Total_SOIXANTEQUATRE | V104: =1/COUNTIF(T_sept_dec[cléTotal],T_sept_dec[[#This Row],[cléTotal]]) -> 1
A105: 2017-10-19 | B105: FDL | D105: Jules Guesde | E105: cm1/cm2 | F105: SOIXANTEQUINZE | G105: 22 | H105: In situ | I105: Projet FDL | L105: =IF(COUNTIF(Maternelle,E105)=1,listes!$T$1,IF(COUNTIF(Elémentaire,E105)=1,listes!$U$1,IF(COUNTIF(Collège,E105)=1,listes!$V$1,IF(COUNTIF(Lycée,E105)=1,listes!$W$1,"")))) -> Elémentaire | M105: =VLOOKUP(T_sept_dec[[#This Row],[Etablissement scolaire]],Regroupements!$T:$U,2,FALSE) -> Cyprian-les-Brosses | N105: FDL | O105: =T_sept_dec[[#This Row],[Etablissement accueillant]]&"-"&T_sept_dec[[#This Row],[Enseignant référent (Nom Prénom)]] -> FDL-SOIXANTEQUINZE | P105: =1/COUNTIF(T_sept_dec[CléEtablissement],T_sept_dec[[#This Row],[CléEtablissement]]) -> 0.2 | Q105: =IF(COUNTIF(Réseau,T_sept_dec[[#This Row],[Secteur organisateur]]),"Réseau_"&T_sept_dec[[#This Row],[Enseignant référent (Nom Prénom)]], IF(COUNTIF(Rizehorsmed,T_sept_dec[[#This Row],[Secteur organisateur]]),"Rizehorsmed_"&T_sept_dec[[#This Row],[Enseignant référent (Nom Prénom)]], T_sept_dec[[#This Row],[Secteur organisateur]]&"_"&T_sept_dec[[#This Row],[Enseignant référent (Nom Prénom)]])) -> FDL_SOIXANTEQUINZE | R105: =1/COUNTIF(T_sept_dec[CléRéseau-Rize horsmed],T_sept_dec[[#This Row],[CléRéseau-Rize horsmed]]) -> 0.2 | S105: =IF(COUNTIF(RIZE,T_sept_dec[[#This Row],[Secteur organisateur]]),"Rize_"&T_sept_dec[[#This Row],[Enseignant référent (Nom Prénom)]],"") ->  | T105: =1/COUNTIF(T_sept_dec[CléRize],T_sept_dec[[#This Row],[CléRize]]) -> 0.009803921569 | U105: =IF(COUNTIF(Total,T_sept_dec[[#This Row],[Secteur organisateur]]),"Total_"&T_sept_dec[[#This Row],[Enseignant référent (Nom Prénom)]],"") -> Total_SOIXANTEQUINZE | V105: =1/COUNTIF(T_sept_dec[cléTotal],T_sept_dec[[#This Row],[cléTotal]]) -> 0.2
A106: 2017-11-20 | B106: FDL | D106: Jules Guesde | E106: cm1/cm2 | F106: SOIXANTEQUINZE | G106: 22 | H106: In situ | I106: Projet FDL | L106: =IF(COUNTIF(Maternelle,E106)=1,listes!$T$1,IF(COUNTIF(Elémentaire,E106)=1,listes!$U$1,IF(COUNTIF(Collège,E106)=1,listes!$V$1,IF(COUNTIF(Lycée,E106)=1,listes!$W$1,"")))) -> Elémentaire | M106: =VLOOKUP(T_sept_dec[[#This Row],[Etablissement scolaire]],Regroupements!$T:$U,2,FALSE) -> Cyprian-les-Brosses | N106: FDL | O106: =T_sept_dec[[#This Row],[Etablissement accueillant]]&"-"&T_sept_dec[[#This Row],[Enseignant référent (Nom Prénom)]] -> FDL-SOIXANTEQUINZE | P106: =1/COUNTIF(T_sept_dec[CléEtablissement],T_sept_dec[[#This Row],[CléEtablissement]]) -> 0.2 | Q106: =IF(COUNTIF(Réseau,T_sept_dec[[#This Row],[Secteur organisateur]]),"Réseau_"&T_sept_dec[[#This Row],[Enseignant référent (Nom Prénom)]], IF(COUNTIF(Rizehorsmed,T_sept_dec[[#This Row],[Secteur organisateur]]),"Rizehorsmed_"&T_sept_dec[[#This Row],[Enseignant référent (Nom Prénom)]], T_sept_dec[[#This Row],[Secteur organisateur]]&"_"&T_sept_dec[[#This Row],[Enseignant référent (Nom Prénom)]])) -> FDL_SOIXANTEQUINZE | R106: =1/COUNTIF(T_sept_dec[CléRéseau-Rize horsmed],T_sept_dec[[#This Row],[CléRéseau-Rize horsmed]]) -> 0.2 | S106: =IF(COUNTIF(RIZE,T_sept_dec[[#This Row],[Secteur organisateur]]),"Rize_"&T_sept_dec[[#This Row],[Enseignant référent (Nom Prénom)]],"") ->  | T106: =1/COUNTIF(T_sept_dec[CléRize],T_sept_dec[[#This Row],[CléRize]]) -> 0.009803921569 | U106: =IF(COUNTIF(Total,T_sept_dec[[#This Row],[Secteur organisateur]]),"Total_"&T_sept_dec[[#This Row],[Enseignant référent (Nom Prénom)]],"") -> Total_SOIXANTEQUINZE | V106: =1/COUNTIF(T_sept_dec[cléTotal],T_sept_dec[[#This Row],[cléTotal]]) -> 0.2
A107: 2017-11-21 | B107: FDL | D107: Jules Guesde | E107: cm1/cm2 | F107: SOIXANTEQUINZE | G107: 22 | H107: In situ | I107: Projet FDL | L107: =IF(COUNTIF(Maternelle,E107)=1,listes!$T$1,IF(COUNTIF(Elémentaire,E107)=1,listes!$U$1,IF(COUNTIF(Collège,E107)=1,listes!$V$1,IF(COUNTIF(Lycée,E107)=1,listes!$W$1,"")))) -> Elémentaire | M107: =VLOOKUP(T_sept_dec[[#This Row],[Etablissement scolaire]],Regroupements!$T:$U,2,FALSE) -> Cyprian-les-Brosses | N107: FDL | O107: =T_sept_dec[[#This Row],[Etablissement accueillant]]&"-"&T_sept_dec[[#This Row],[Enseignant référent (Nom Prénom)]] -> FDL-SOIXANTEQUINZE | P107: =1/COUNTIF(T_sept_dec[CléEtablissement],T_sept_dec[[#This Row],[CléEtablissement]]) -> 0.2 | Q107: =IF(COUNTIF(Réseau,T_sept_dec[[#This Row],[Secteur organisateur]]),"Réseau_"&T_sept_dec[[#This Row],[Enseignant référent (Nom Prénom)]], IF(COUNTIF(Rizehorsmed,T_sept_dec[[#This Row],[Secteur organisateur]]),"Rizehorsmed_"&T_sept_dec[[#This Row],[Enseignant référent (Nom Prénom)]], T_sept_dec[[#This Row],[Secteur organisateur]]&"_"&T_sept_dec[[#This Row],[Enseignant référent (Nom Prénom)]])) -> FDL_SOIXANTEQUINZE | R107: =1/COUNTIF(T_sept_dec[CléRéseau-Rize horsmed],T_sept_dec[[#This Row],[CléRéseau-Rize horsmed]]) -> 0.2 | S107: =IF(COUNTIF(RIZE,T_sept_dec[[#This Row],[Secteur organisateur]]),"Rize_"&T_sept_dec[[#This Row],[Enseignant référent (Nom Prénom)]],"") ->  | T107: =1/COUNTIF(T_sept_dec[CléRize],T_sept_dec[[#This Row],[CléRize]]) -> 0.009803921569 | U107: =IF(COUNTIF(Total,T_sept_dec[[#This Row],[Secteur organisateur]]),"Total_"&T_sept_dec[[#This Row],[Enseignant référent (Nom Prénom)]],"") -> Total_SOIXANTEQUINZE | V107: =1/COUNTIF(T_sept_dec[cléTotal],T_sept_dec[[#This Row],[cléTotal]]) -> 0.2
A108: 2017-11-22 | B108: FDL | D108: Jules Guesde | E108: cm1/cm2 | F108: SOIXANTEQUINZE | G108: 22 | H108: In situ | I108: Projet FDL | L108: =IF(COUNTIF(Maternelle,E108)=1,listes!$T$1,IF(COUNTIF(Elémentaire,E108)=1,listes!$U$1,IF(COUNTIF(Collège,E108)=1,listes!$V$1,IF(COUNTIF(Lycée,E108)=1,listes!$W$1,"")))) -> Elémentaire | M108: =VLOOKUP(T_sept_dec[[#This Row],[Etablissement scolaire]],Regroupements!$T:$U,2,FALSE) -> Cyprian-les-Brosses | N108: FDL | O108: =T_sept_dec[[#This Row],[Etablissement accueillant]]&"-"&T_sept_dec[[#This Row],[Enseignant référent (Nom Prénom)]] -> FDL-SOIXANTEQUINZE | P108: =1/COUNTIF(T_sept_dec[CléEtablissement],T_sept_dec[[#This Row],[CléEtablissement]]) -> 0.2 | Q108: =IF(COUNTIF(Réseau,T_sept_dec[[#This Row],[Secteur organisateur]]),"Réseau_"&T_sept_dec[[#This Row],[Enseignant référent (Nom Prénom)]], IF(COUNTIF(Rizehorsmed,T_sept_dec[[#This Row],[Secteur organisateur]]),"Rizehorsmed_"&T_sept_dec[[#This Row],[Enseignant référent (Nom Prénom)]], T_sept_dec[[#This Row],[Secteur organisateur]]&"_"&T_sept_dec[[#This Row],[Enseignant référent (Nom Prénom)]])) -> FDL_SOIXANTEQUINZE | R108: =1/COUNTIF(T_sept_dec[CléRéseau-Rize horsmed],T_sept_dec[[#This Row],[CléRéseau-Rize horsmed]]) -> 0.2 | S108: =IF(COUNTIF(RIZE,T_sept_dec[[#This Row],[Secteur organisateur]]),"Rize_"&T_sept_dec[[#This Row],[Enseignant référent (Nom Prénom)]],"") ->  | T108: =1/COUNTIF(T_sept_dec[CléRize],T_sept_dec[[#This Row],[CléRize]]) -> 0.009803921569 | U108: =IF(COUNTIF(Total,T_sept_dec[[#This Row],[Secteur organisateur]]),"Total_"&T_sept_dec[[#This Row],[Enseignant référent (Nom Prénom)]],"") -> Total_SOIXANTEQUINZE | V108: =1/COUNTIF(T_sept_dec[cléTotal],T_sept_dec[[#This Row],[cléTotal]]) -> 0.2
A109: 2017-11-23 | B109: FDL | D109: Jules Guesde | E109: cm1/cm2 | F109: SOIXANTEQUINZE | G109: 22 | H109: In situ | I109: Projet FDL | L109: =IF(COUNTIF(Maternelle,E109)=1,listes!$T$1,IF(COUNTIF(Elémentaire,E109)=1,listes!$U$1,IF(COUNTIF(Collège,E109)=1,listes!$V$1,IF(COUNTIF(Lycée,E109)=1,listes!$W$1,"")))) -> Elémentaire | M109: =VLOOKUP(T_sept_dec[[#This Row],[Etablissement scolaire]],Regroupements!$T:$U,2,FALSE) -> Cyprian-les-Brosses | N109: FDL | O109: =T_sept_dec[[#This Row],[Etablissement accueillant]]&"-"&T_sept_dec[[#This Row],[Enseignant référent (Nom Prénom)]] -> FDL-SOIXANTEQUINZE | P109: =1/COUNTIF(T_sept_dec[CléEtablissement],T_sept_dec[[#This Row],[CléEtablissement]]) -> 0.2 | Q109: =IF(COUNTIF(Réseau,T_sept_dec[[#This Row],[Secteur organisateur]]),"Réseau_"&T_sept_dec[[#This Row],[Enseignant référent (Nom Prénom)]], IF(COUNTIF(Rizehorsmed,T_sept_dec[[#This Row],[Secteur organisateur]]),"Rizehorsmed_"&T_sept_dec[[#This Row],[Enseignant référent (Nom Prénom)]], T_sept_dec[[#This Row],[Secteur organisateur]]&"_"&T_sept_dec[[#This Row],[Enseignant référent (Nom Prénom)]])) -> FDL_SOIXANTEQUINZE | R109: =1/COUNTIF(T_sept_dec[CléRéseau-Rize horsmed],T_sept_dec[[#This Row],[CléRéseau-Rize horsmed]]) -> 0.2 | S109: =IF(COUNTIF(RIZE,T_sept_dec[[#This Row],[Secteur organisateur]]),"Rize_"&T_sept_dec[[#This Row],[Enseignant référent (Nom Prénom)]],"") ->  | T109: =1/COUNTIF(T_sept_dec[CléRize],T_sept_dec[[#This Row],[CléRize]]) -> 0.009803921569 | U109: =IF(COUNTIF(Total,T_sept_dec[[#This Row],[Secteur organisateur]]),"Total_"&T_sept_dec[[#This Row],[Enseignant référent (Nom Prénom)]],"") -> Total_SOIXANTEQUINZE | V109: =1/COUNTIF(T_sept_dec[cléTotal],T_sept_dec[[#This Row],[cléTotal]]) -> 0.2
A110: 2017-12-07 | B110: RIZE MED | D110: Collège Jean Jaurès | E110: 5° | F110: SOIXANTESEIZE | G110: 24 | H110: In situ | I110: Visite couplée | L110: =IF(COUNTIF(Maternelle,E110)=1,listes!$T$1,IF(COUNTIF(Elémentaire,E110)=1,listes!$U$1,IF(COUNTIF(Collège,E110)=1,listes!$V$1,IF(COUNTIF(Lycée,E110)=1,listes!$W$1,"")))) -> Collège | M110: =VLOOKUP(T_sept_dec[[#This Row],[Etablissement scolaire]],Regroupements!$T:$U,2,FALSE) -> Ferrandière-Maisons Neuves | N110: RIZE | O110: =T_sept_dec[[#This Row],[Etablissement accueillant]]&"-"&T_sept_dec[[#This Row],[Enseignant référent (Nom Prénom)]] -> RIZE-SOIXANTESEIZE | P110: =1/COUNTIF(T_sept_dec[CléEtablissement],T_sept_dec[[#This Row],[CléEtablissement]]) -> 0.5 | Q110: =IF(COUNTIF(Réseau,T_sept_dec[[#This Row],[Secteur organisateur]]),"Réseau_"&T_sept_dec[[#This Row],[Enseignant référent (Nom Prénom)]], IF(COUNTIF(Rizehorsmed,T_sept_dec[[#This Row],[Secteur organisateur]]),"Rizehorsmed_"&T_sept_dec[[#This Row],[Enseignant référent (Nom Prénom)]], T_sept_dec[[#This Row],[Secteur organisateur]]&"_"&T_sept_dec[[#This Row],[Enseignant référent (Nom Prénom)]])) -> Réseau_SOIXANTESEIZE | R110: =1/COUNTIF(T_sept_dec[CléRéseau-Rize horsmed],T_sept_dec[[#This Row],[CléRéseau-Rize horsmed]]) -> 0.5 | S110: =IF(COUNTIF(RIZE,T_sept_dec[[#This Row],[Secteur organisateur]]),"Rize_"&T_sept_dec[[#This Row],[Enseignant référent (Nom Prénom)]],"") -> Rize_SOIXANTESEIZE | T110: =1/COUNTIF(T_sept_dec[CléRize],T_sept_dec[[#This Row],[CléRize]]) -> 0.5 | U110: =IF(COUNTIF(Total,T_sept_dec[[#This Row],[Secteur organisateur]]),"Total_"&T_sept_dec[[#This Row],[Enseignant référent (Nom Prénom)]],"") -> Total_SOIXANTESEIZE | V110: =1/COUNTIF(T_sept_dec[cléTotal],T_sept_dec[[#This Row],[cléTotal]]) -> 0.5
A111: 2017-12-14 | B111: RIZE MED | D111: Collège Jean Jaurès | E111: 5° | F111: SOIXANTESEIZE | G111: 24 | H111: In situ | I111: Visite couplée | L111: =IF(COUNTIF(Maternelle,E111)=1,listes!$T$1,IF(COUNTIF(Elémentaire,E111)=1,listes!$U$1,IF(COUNTIF(Collège,E111)=1,listes!$V$1,IF(COUNTIF(Lycée,E111)=1,listes!$W$1,"")))) -> Collège | M111: =VLOOKUP(T_sept_dec[[#This Row],[Etablissement scolaire]],Regroupements!$T:$U,2,FALSE) -> Ferrandière-Maisons Neuves | N111: RIZE | O111: =T_sept_dec[[#This Row],[Etablissement accueillant]]&"-"&T_sept_dec[[#This Row],[Enseignant référent (Nom Prénom)]] -> RIZE-SOIXANTESEIZE | P111: =1/COUNTIF(T_sept_dec[CléEtablissement],T_sept_dec[[#This Row],[CléEtablissement]]) -> 0.5 | Q111: =IF(COUNTIF(Réseau,T_sept_dec[[#This Row],[Secteur organisateur]]),"Réseau_"&T_sept_dec[[#This Row],[Enseignant référent (Nom Prénom)]], IF(COUNTIF(Rizehorsmed,T_sept_dec[[#This Row],[Secteur organisateur]]),"Rizehorsmed_"&T_sept_dec[[#This Row],[Enseignant référent (Nom Prénom)]], T_sept_dec[[#This Row],[Secteur organisateur]]&"_"&T_sept_dec[[#This Row],[Enseignant référent (Nom Prénom)]])) -> Réseau_SOIXANTESEIZE | R111: =1/COUNTIF(T_sept_dec[CléRéseau-Rize horsmed],T_sept_dec[[#This Row],[CléRéseau-Rize horsmed]]) -> 0.5 | S111: =IF(COUNTIF(RIZE,T_sept_dec[[#This Row],[Secteur organisateur]]),"Rize_"&T_sept_dec[[#This Row],[Enseignant référent (Nom Prénom)]],"") -> Rize_SOIXANTESEIZE | T111: =1/COUNTIF(T_sept_dec[CléRize],T_sept_dec[[#This Row],[CléRize]]) -> 0.5 | U111: =IF(COUNTIF(Total,T_sept_dec[[#This Row],[Secteur organisateur]]),"Total_"&T_sept_dec[[#This Row],[Enseignant référent (Nom Prénom)]],"") -> Total_SOIXANTESEIZE | V111: =1/COUNTIF(T_sept_dec[cléTotal],T_sept_dec[[#This Row],[cléTotal]]) -> 0.5
A112: 2017-10-03 | B112: RIZE VALO | D112: Antonin Perrin | E112: cm1 | F112: SOIXANTESEPT | G112: 24 | H112: Hors les murs | I112: Exploration Gratte-Ciel | L112: =IF(COUNTIF(Maternelle,E112)=1,listes!$T$1,IF(COUNTIF(Elémentaire,E112)=1,listes!$U$1,IF(COUNTIF(Collège,E112)=1,listes!$V$1,IF(COUNTIF(Lycée,E112)=1,listes!$W$1,"")))) -> Elémentaire | M112: =VLOOKUP(T_sept_dec[[#This Row],[Etablissement scolaire]],Regroupements!$T:$U,2,FALSE) -> Ferrandière-Maisons Neuves | N112: RIZE | O112: =T_sept_dec[[#This Row],[Etablissement accueillant]]&"-"&T_sept_dec[[#This Row],[Enseignant référent (Nom Prénom)]] -> RIZE-SOIXANTESEPT | P112: =1/COUNTIF(T_sept_dec[CléEtablissement],T_sept_dec[[#This Row],[CléEtablissement]]) -> 1 | Q112: =IF(COUNTIF(Réseau,T_sept_dec[[#This Row],[Secteur organisateur]]),"Réseau_"&T_sept_dec[[#This Row],[Enseignant référent (Nom Prénom)]], IF(COUNTIF(Rizehorsmed,T_sept_dec[[#This Row],[Secteur organisateur]]),"Rizehorsmed_"&T_sept_dec[[#This Row],[Enseignant référent (Nom Prénom)]], T_sept_dec[[#This Row],[Secteur organisateur]]&"_"&T_sept_dec[[#This Row],[Enseignant référent (Nom Prénom)]])) -> Rizehorsmed_SOIXANTESEPT | R112: =1/COUNTIF(T_sept_dec[CléRéseau-Rize horsmed],T_sept_dec[[#This Row],[CléRéseau-Rize horsmed]]) -> 1 | S112: =IF(COUNTIF(RIZE,T_sept_dec[[#This Row],[Secteur organisateur]]),"Rize_"&T_sept_dec[[#This Row],[Enseignant référent (Nom Prénom)]],"") -> Rize_SOIXANTESEPT | T112: =1/COUNTIF(T_sept_dec[CléRize],T_sept_dec[[#This Row],[CléRize]]) -> 1 | U112: =IF(COUNTIF(Total,T_sept_dec[[#This Row],[Secteur organisateur]]),"Total_"&T_sept_dec[[#This Row],[Enseignant référent (Nom Prénom)]],"") -> Total_SOIXANTESEPT | V112: =1/COUNTIF(T_sept_dec[cléTotal],T_sept_dec[[#This Row],[cléTotal]]) -> 1
A113: 2017-11-16 | B113: RIZE VALO | D113: Jean Moulin | E113: cm2 | F113: SOIXANTESIX | G113: 27 | H113: In situ | I113: Visite couplée | L113: =IF(COUNTIF(Maternelle,E113)=1,listes!$T$1,IF(COUNTIF(Elémentaire,E113)=1,listes!$U$1,IF(COUNTIF(Collège,E113)=1,listes!$V$1,IF(COUNTIF(Lycée,E113)=1,listes!$W$1,"")))) -> Elémentaire | M113: =VLOOKUP(T_sept_dec[[#This Row],[Etablissement scolaire]],Regroupements!$T:$U,2,FALSE) -> Buers-Croix-Luizet | N113: RIZE | O113: =T_sept_dec[[#This Row],[Etablissement accueillant]]&"-"&T_sept_dec[[#This Row],[Enseignant référent (Nom Prénom)]] -> RIZE-SOIXANTESIX | P113: =1/COUNTIF(T_sept_dec[CléEtablissement],T_sept_dec[[#This Row],[CléEtablissement]]) -> 0.5 | Q113: =IF(COUNTIF(Réseau,T_sept_dec[[#This Row],[Secteur organisateur]]),"Réseau_"&T_sept_dec[[#This Row],[Enseignant référent (Nom Prénom)]], IF(COUNTIF(Rizehorsmed,T_sept_dec[[#This Row],[Secteur organisateur]]),"Rizehorsmed_"&T_sept_dec[[#This Row],[Enseignant référent (Nom Prénom)]], T_sept_dec[[#This Row],[Secteur organisateur]]&"_"&T_sept_dec[[#This Row],[Enseignant référent (Nom Prénom)]])) -> Rizehorsmed_SOIXANTESIX | R113: =1/COUNTIF(T_sept_dec[CléRéseau-Rize horsmed],T_sept_dec[[#This Row],[CléRéseau-Rize horsmed]]) -> 0.5 | S113: =IF(COUNTIF(RIZE,T_sept_dec[[#This Row],[Secteur organisateur]]),"Rize_"&T_sept_dec[[#This Row],[Enseignant référent (Nom Prénom)]],"") -> Rize_SOIXANTESIX | T113: =1/COUNTIF(T_sept_dec[CléRize],T_sept_dec[[#This Row],[CléRize]]) -> 0.5 | U113: =IF(COUNTIF(Total,T_sept_dec[[#This Row],[Secteur organisateur]]),"Total_"&T_sept_dec[[#This Row],[Enseignant référent (Nom Prénom)]],"") -> Total_SOIXANTESIX | V113: =1/COUNTIF(T_sept_dec[cléTotal],T_sept_dec[[#This Row],[cléTotal]]) -> 0.5
A114: 2017-12-05 | B114: RIZE VALO | D114: Jean Moulin | E114: cm2 | F114: SOIXANTESIX | G114: 27 | H114: Hors les murs | I114: Autre | L114: =IF(COUNTIF(Maternelle,E114)=1,listes!$T$1,IF(COUNTIF(Elémentaire,E114)=1,listes!$U$1,IF(COUNTIF(Collège,E114)=1,listes!$V$1,IF(COUNTIF(Lycée,E114)=1,listes!$W$1,"")))) -> Elémentaire | M114: =VLOOKUP(T_sept_dec[[#This Row],[Etablissement scolaire]],Regroupements!$T:$U,2,FALSE) -> Buers-Croix-Luizet | N114: RIZE | O114: =T_sept_dec[[#This Row],[Etablissement accueillant]]&"-"&T_sept_dec[[#This Row],[Enseignant référent (Nom Prénom)]] -> RIZE-SOIXANTESIX | P114: =1/COUNTIF(T_sept_dec[CléEtablissement],T_sept_dec[[#This Row],[CléEtablissement]]) -> 0.5 | Q114: =IF(COUNTIF(Réseau,T_sept_dec[[#This Row],[Secteur organisateur]]),"Réseau_"&T_sept_dec[[#This Row],[Enseignant référent (Nom Prénom)]], IF(COUNTIF(Rizehorsmed,T_sept_dec[[#This Row],[Secteur organisateur]]),"Rizehorsmed_"&T_sept_dec[[#This Row],[Enseignant référent (Nom Prénom)]], T_sept_dec[[#This Row],[Secteur organisateur]]&"_"&T_sept_dec[[#This Row],[Enseignant référent (Nom Prénom)]])) -> Rizehorsmed_SOIXANTESIX | R114: =1/COUNTIF(T_sept_dec[CléRéseau-Rize horsmed],T_sept_dec[[#This Row],[CléRéseau-Rize horsmed]]) -> 0.5 | S114: =IF(COUNTIF(RIZE,T_sept_dec[[#This Row],[Secteur organisateur]]),"Rize_"&T_sept_dec[[#This Row],[Enseignant référent (Nom Prénom)]],"") -> Rize_SOIXANTESIX | T114: =1/COUNTIF(T_sept_dec[CléRize],T_sept_dec[[#This Row],[CléRize]]) -> 0.5 | U114: =IF(COUNTIF(Total,T_sept_dec[[#This Row],[Secteur organisateur]]),"Total_"&T_sept_dec[[#This Row],[Enseignant référent (Nom Prénom)]],"") -> Total_SOIXANTESIX | V114: =1/COUNTIF(T_sept_dec[cléTotal],T_sept_dec[[#This Row],[cléTotal]]) -> 0.5
A115: 2017-11-24 | B115: MTK | D115: Descartes | E115: ms | F115: SOIXANTETREIZE | G115: 24 | H115: In situ | I115: Visite découverte | L115: =IF(COUNTIF(Maternelle,E115)=1,listes!$T$1,IF(COUNTIF(Elémentaire,E115)=1,listes!$U$1,IF(COUNTIF(Collège,E115)=1,listes!$V$1,IF(COUNTIF(Lycée,E115)=1,listes!$W$1,"")))) -> Maternelle | M115: =VLOOKUP(T_sept_dec[[#This Row],[Etablissement scolaire]],Regroupements!$T:$U,2,FALSE) -> Charpennes-Tonkin | N115: TONKIN | O115: =T_sept_dec[[#This Row],[Etablissement accueillant]]&"-"&T_sept_dec[[#This Row],[Enseignant référent (Nom Prénom)]] -> TONKIN-SOIXANTETREIZE | P115: =1/COUNTIF(T_sept_dec[CléEtablissement],T_sept_dec[[#This Row],[CléEtablissement]]) -> 1 | Q115: =IF(COUNTIF(Réseau,T_sept_dec[[#This Row],[Secteur organisateur]]),"Réseau_"&T_sept_dec[[#This Row],[Enseignant référent (Nom Prénom)]], IF(COUNTIF(Rizehorsmed,T_sept_dec[[#This Row],[Secteur organisateur]]),"Rizehorsmed_"&T_sept_dec[[#This Row],[Enseignant référent (Nom Prénom)]], T_sept_dec[[#This Row],[Secteur organisateur]]&"_"&T_sept_dec[[#This Row],[Enseignant référent (Nom Prénom)]])) -> Réseau_SOIXANTETREIZE | R115: =1/COUNTIF(T_sept_dec[CléRéseau-Rize horsmed],T_sept_dec[[#This Row],[CléRéseau-Rize horsmed]]) -> 1 | S115: =IF(COUNTIF(RIZE,T_sept_dec[[#This Row],[Secteur organisateur]]),"Rize_"&T_sept_dec[[#This Row],[Enseignant référent (Nom Prénom)]],"") ->  | T115: =1/COUNTIF(T_sept_dec[CléRize],T_sept_dec[[#This Row],[CléRize]]) -> 0.009803921569 | U115: =IF(COUNTIF(Total,T_sept_dec[[#This Row],[Secteur organisateur]]),"Total_"&T_sept_dec[[#This Row],[Enseignant référent (Nom Prénom)]],"") -> Total_SOIXANTETREIZE | V115: =1/COUNTIF(T_sept_dec[cléTotal],T_sept_dec[[#This Row],[cléTotal]]) -> 1
A116: 2017-10-10 | B116: MLIS J | D116: René Pellet (déficients visuels) | E116: cp/ce1 | F116: SOIXANTETROIS | G116: 7 | H116: In situ | I116: Visite à la carte | L116: =IF(COUNTIF(Maternelle,E116)=1,listes!$T$1,IF(COUNTIF(Elémentaire,E116)=1,listes!$U$1,IF(COUNTIF(Collège,E116)=1,listes!$V$1,IF(COUNTIF(Lycée,E116)=1,listes!$W$1,"")))) -> Elémentaire | M116: =VLOOKUP(T_sept_dec[[#This Row],[Etablissement scolaire]],Regroupements!$T:$U,2,FALSE) -> Perralière-Grandclément | N116: MLIS | O116: =T_sept_dec[[#This Row],[Etablissement accueillant]]&"-"&T_sept_dec[[#This Row],[Enseignant référent (Nom Prénom)]] -> MLIS-SOIXANTETROIS | P116: =1/COUNTIF(T_sept_dec[CléEtablissement],T_sept_dec[[#This Row],[CléEtablissement]]) -> 0.5 | Q116: =IF(COUNTIF(Réseau,T_sept_dec[[#This Row],[Secteur organisateur]]),"Réseau_"&T_sept_dec[[#This Row],[Enseignant référent (Nom Prénom)]], IF(COUNTIF(Rizehorsmed,T_sept_dec[[#This Row],[Secteur organisateur]]),"Rizehorsmed_"&T_sept_dec[[#This Row],[Enseignant référent (Nom Prénom)]], T_sept_dec[[#This Row],[Secteur organisateur]]&"_"&T_sept_dec[[#This Row],[Enseignant référent (Nom Prénom)]])) -> Réseau_SOIXANTETROIS | R116: =1/COUNTIF(T_sept_dec[CléRéseau-Rize horsmed],T_sept_dec[[#This Row],[CléRéseau-Rize horsmed]]) -> 0.5 | S116: =IF(COUNTIF(RIZE,T_sept_dec[[#This Row],[Secteur organisateur]]),"Rize_"&T_sept_dec[[#This Row],[Enseignant référent (Nom Prénom)]],"") ->  | T116: =1/COUNTIF(T_sept_dec[CléRize],T_sept_dec[[#This Row],[CléRize]]) -> 0.009803921569 | U116: =IF(COUNTIF(Total,T_sept_dec[[#This Row],[Secteur organisateur]]),"Total_"&T_sept_dec[[#This Row],[Enseignant référent (Nom Prénom)]],"") -> Total_SOIXANTETROIS | V116: =1/COUNTIF(T_sept_dec[cléTotal],T_sept_dec[[#This Row],[cléTotal]]) -> 0.5
A117: 2017-11-14 | B117: MLIS J | D117: René Pellet (déficients visuels) | E117: cp/ce1 | F117: SOIXANTETROIS | G117: 7 | H117: In situ | I117: Visite découverte | L117: =IF(COUNTIF(Maternelle,E117)=1,listes!$T$1,IF(COUNTIF(Elémentaire,E117)=1,listes!$U$1,IF(COUNTIF(Collège,E117)=1,listes!$V$1,IF(COUNTIF(Lycée,E117)=1,listes!$W$1,"")))) -> Elémentaire | M117: =VLOOKUP(T_sept_dec[[#This Row],[Etablissement scolaire]],Regroupements!$T:$U,2,FALSE) -> Perralière-Grandclément | N117: MLIS | O117: =T_sept_dec[[#This Row],[Etablissement accueillant]]&"-"&T_sept_dec[[#This Row],[Enseignant référent (Nom Prénom)]] -> MLIS-SOIXANTETROIS | P117: =1/COUNTIF(T_sept_dec[CléEtablissement],T_sept_dec[[#This Row],[CléEtablissement]]) -> 0.5 | Q117: =IF(COUNTIF(Réseau,T_sept_dec[[#This Row],[Secteur organisateur]]),"Réseau_"&T_sept_dec[[#This Row],[Enseignant référent (Nom Prénom)]], IF(COUNTIF(Rizehorsmed,T_sept_dec[[#This Row],[Secteur organisateur]]),"Rizehorsmed_"&T_sept_dec[[#This Row],[Enseignant référent (Nom Prénom)]], T_sept_dec[[#This Row],[Secteur organisateur]]&"_"&T_sept_dec[[#This Row],[Enseignant référent (Nom Prénom)]])) -> Réseau_SOIXANTETROIS | R117: =1/COUNTIF(T_sept_dec[CléRéseau-Rize horsmed],T_sept_dec[[#This Row],[CléRéseau-Rize horsmed]]) -> 0.5 | S117: =IF(COUNTIF(RIZE,T_sept_dec[[#This Row],[Secteur organisateur]]),"Rize_"&T_sept_dec[[#This Row],[Enseignant référent (Nom Prénom)]],"") ->  | T117: =1/COUNTIF(T_sept_dec[CléRize],T_sept_dec[[#This Row],[CléRize]]) -> 0.009803921569 | U117: =IF(COUNTIF(Total,T_sept_dec[[#This Row],[Secteur organisateur]]),"Total_"&T_sept_dec[[#This Row],[Enseignant référent (Nom Prénom)]],"") -> Total_SOIXANTETROIS | V117: =1/COUNTIF(T_sept_dec[cléTotal],T_sept_dec[[#This Row],[cléTotal]]) -> 0.5
A118: 2017-10-20 | B118: RIZE VALO | D118: Berthelot | E118: cm2 | F118: SOIXANTEUN | G118: 25 | H118: In situ | I118: Ateliers | L118: =IF(COUNTIF(Maternelle,E118)=1,listes!$T$1,IF(COUNTIF(Elémentaire,E118)=1,listes!$U$1,IF(COUNTIF(Collège,E118)=1,listes!$V$1,IF(COUNTIF(Lycée,E118)=1,listes!$W$1,"")))) -> Elémentaire | M118: =VLOOKUP(T_sept_dec[[#This Row],[Etablissement scolaire]],Regroupements!$T:$U,2,FALSE) -> Perralière-Grandclément | N118: RIZE | O118: =T_sept_dec[[#This Row],[Etablissement accueillant]]&"-"&T_sept_dec[[#This Row],[Enseignant référent (Nom Prénom)]] -> RIZE-SOIXANTEUN | P118: =1/COUNTIF(T_sept_dec[CléEtablissement],T_sept_dec[[#This Row],[CléEtablissement]]) -> 1 | Q118: =IF(COUNTIF(Réseau,T_sept_dec[[#This Row],[Secteur organisateur]]),"Réseau_"&T_sept_dec[[#This Row],[Enseignant référent (Nom Prénom)]], IF(COUNTIF(Rizehorsmed,T_sept_dec[[#This Row],[Secteur organisateur]]),"Rizehorsmed_"&T_sept_dec[[#This Row],[Enseignant référent (Nom Prénom)]], T_sept_dec[[#This Row],[Secteur organisateur]]&"_"&T_sept_dec[[#This Row],[Enseignant référent (Nom Prénom)]])) -> Rizehorsmed_SOIXANTEUN | R118: =1/COUNTIF(T_sept_dec[CléRéseau-Rize horsmed],T_sept_dec[[#This Row],[CléRéseau-Rize horsmed]]) -> 1 | S118: =IF(COUNTIF(RIZE,T_sept_dec[[#This Row],[Secteur organisateur]]),"Rize_"&T_sept_dec[[#This Row],[Enseignant référent (Nom Prénom)]],"") -> Rize_SOIXANTEUN | T118: =1/COUNTIF(T_sept_dec[CléRize],T_sept_dec[[#This Row],[CléRize]]) -> 1 | U118: =IF(COUNTIF(Total,T_sept_dec[[#This Row],[Secteur organisateur]]),"Total_"&T_sept_dec[[#This Row],[Enseignant référent (Nom Prénom)]],"") -> Total_SOIXANTEUN | V118: =1/COUNTIF(T_sept_dec[cléTotal],T_sept_dec[[#This Row],[cléTotal]]) -> 1
A119: 2017-10-13 | B119: MLIS J | D119: Albert Camus | E119: ce2 | F119: TREIZE | G119: 22 | H119: In situ | I119: Conte | L119: =IF(COUNTIF(Maternelle,E119)=1,listes!$T$1,IF(COUNTIF(Elémentaire,E119)=1,listes!$U$1,IF(COUNTIF(Collège,E119)=1,listes!$V$1,IF(COUNTIF(Lycée,E119)=1,listes!$W$1,"")))) -> Elémentaire | M119: =VLOOKUP(T_sept_dec[[#This Row],[Etablissement scolaire]],Regroupements!$T:$U,2,FALSE) -> Cyprian-les-Brosses | N119: MLIS | O119: =T_sept_dec[[#This Row],[Etablissement accueillant]]&"-"&T_sept_dec[[#This Row],[Enseignant référent (Nom Prénom)]] -> MLIS-TREIZE | P119: =1/COUNTIF(T_sept_dec[CléEtablissement],T_sept_dec[[#This Row],[CléEtablissement]]) -> 1 | Q119: =IF(COUNTIF(Réseau,T_sept_dec[[#This Row],[Secteur organisateur]]),"Réseau_"&T_sept_dec[[#This Row],[Enseignant référent (Nom Prénom)]], IF(COUNTIF(Rizehorsmed,T_sept_dec[[#This Row],[Secteur organisateur]]),"Rizehorsmed_"&T_sept_dec[[#This Row],[Enseignant référent (Nom Prénom)]], T_sept_dec[[#This Row],[Secteur organisateur]]&"_"&T_sept_dec[[#This Row],[Enseignant référent (Nom Prénom)]])) -> Réseau_TREIZE | R119: =1/COUNTIF(T_sept_dec[CléRéseau-Rize horsmed],T_sept_dec[[#This Row],[CléRéseau-Rize horsmed]]) -> 1 | S119: =IF(COUNTIF(RIZE,T_sept_dec[[#This Row],[Secteur organisateur]]),"Rize_"&T_sept_dec[[#This Row],[Enseignant référent (Nom Prénom)]],"") ->  | T119: =1/COUNTIF(T_sept_dec[CléRize],T_sept_dec[[#This Row],[CléRize]]) -> 0.009803921569 | U119: =IF(COUNTIF(Total,T_sept_dec[[#This Row],[Secteur organisateur]]),"Total_"&T_sept_dec[[#This Row],[Enseignant référent (Nom Prénom)]],"") -> Total_TREIZE | V119: =1/COUNTIF(T_sept_dec[cléTotal],T_sept_dec[[#This Row],[cléTotal]]) -> 1
A120: 2017-12-01 | B120: MTK | D120: Tonkin/Nigritelle | E120: cp | F120: TRENSEPT | G120: 26 | H120: In situ | I120: Visite découverte | L120: =IF(COUNTIF(Maternelle,E120)=1,listes!$T$1,IF(COUNTIF(Elémentaire,E120)=1,listes!$U$1,IF(COUNTIF(Collège,E120)=1,listes!$V$1,IF(COUNTIF(Lycée,E120)=1,listes!$W$1,"")))) -> Elémentaire | M120: =VLOOKUP(T_sept_dec[[#This Row],[Etablissement scolaire]],Regroupements!$T:$U,2,FALSE) -> Charpennes-Tonkin | N120: TONKIN | O120: =T_sept_dec[[#This Row],[Etablissement accueillant]]&"-"&T_sept_dec[[#This Row],[Enseignant référent (Nom Prénom)]] -> TONKIN-TRENSEPT | P120: =1/COUNTIF(T_sept_dec[CléEtablissement],T_sept_dec[[#This Row],[CléEtablissement]]) -> 1 | Q120: =IF(COUNTIF(Réseau,T_sept_dec[[#This Row],[Secteur organisateur]]),"Réseau_"&T_sept_dec[[#This Row],[Enseignant référent (Nom Prénom)]], IF(COUNTIF(Rizehorsmed,T_sept_dec[[#This Row],[Secteur organisateur]]),"Rizehorsmed_"&T_sept_dec[[#This Row],[Enseignant référent (Nom Prénom)]], T_sept_dec[[#This Row],[Secteur organisateur]]&"_"&T_sept_dec[[#This Row],[Enseignant référent (Nom Prénom)]])) -> Réseau_TRENSEPT | R120: =1/COUNTIF(T_sept_dec[CléRéseau-Rize horsmed],T_sept_dec[[#This Row],[CléRéseau-Rize horsmed]]) -> 1 | S120: =IF(COUNTIF(RIZE,T_sept_dec[[#This Row],[Secteur organisateur]]),"Rize_"&T_sept_dec[[#This Row],[Enseignant référent (Nom Prénom)]],"") ->  | T120: =1/COUNTIF(T_sept_dec[CléRize],T_sept_dec[[#This Row],[CléRize]]) -> 0.009803921569 | U120: =IF(COUNTIF(Total,T_sept_dec[[#This Row],[Secteur organisateur]]),"Total_"&T_sept_dec[[#This Row],[Enseignant référent (Nom Prénom)]],"") -> Total_TRENSEPT | V120: =1/COUNTIF(T_sept_dec[cléTotal],T_sept_dec[[#This Row],[cléTotal]]) -> 1
A121: 2017-12-08 | B121: RIZE MED | D121: Antonin Perrin | E121: ce2 | F121: TRENTE | G121: 26 | H121: In situ | I121: Visite découverte | L121: =IF(COUNTIF(Maternelle,E121)=1,listes!$T$1,IF(COUNTIF(Elémentaire,E121)=1,listes!$U$1,IF(COUNTIF(Collège,E121)=1,listes!$V$1,IF(COUNTIF(Lycée,E121)=1,listes!$W$1,"")))) -> Elémentaire | M121: =VLOOKUP(T_sept_dec[[#This Row],[Etablissement scolaire]],Regroupements!$T:$U,2,FALSE) -> Ferrandière-Maisons Neuves | N121: RIZE | O121: =T_sept_dec[[#This Row],[Etablissement accueillant]]&"-"&T_sept_dec[[#This Row],[Enseignant référent (Nom Prénom)]] -> RIZE-TRENTE | P121: =1/COUNTIF(T_sept_dec[CléEtablissement],T_sept_dec[[#This Row],[CléEtablissement]]) -> 1 | Q121: =IF(COUNTIF(Réseau,T_sept_dec[[#This Row],[Secteur organisateur]]),"Réseau_"&T_sept_dec[[#This Row],[Enseignant référent (Nom Prénom)]], IF(COUNTIF(Rizehorsmed,T_sept_dec[[#This Row],[Secteur organisateur]]),"Rizehorsmed_"&T_sept_dec[[#This Row],[Enseignant référent (Nom Prénom)]], T_sept_dec[[#This Row],[Secteur organisateur]]&"_"&T_sept_dec[[#This Row],[Enseignant référent (Nom Prénom)]])) -> Réseau_TRENTE | R121: =1/COUNTIF(T_sept_dec[CléRéseau-Rize horsmed],T_sept_dec[[#This Row],[CléRéseau-Rize horsmed]]) -> 1 | S121: =IF(COUNTIF(RIZE,T_sept_dec[[#This Row],[Secteur organisateur]]),"Rize_"&T_sept_dec[[#This Row],[Enseignant référent (Nom Prénom)]],"") -> Rize_TRENTE | T121: =1/COUNTIF(T_sept_dec[CléRize],T_sept_dec[[#This Row],[CléRize]]) -> 1 | U121: =IF(COUNTIF(Total,T_sept_dec[[#This Row],[Secteur organisateur]]),"Total_"&T_sept_dec[[#This Row],[Enseignant référent (Nom Prénom)]],"") -> Total_TRENTE | V121: =1/COUNTIF(T_sept_dec[cléTotal],T_sept_dec[[#This Row],[cléTotal]]) -> 1
A122: 2017-09-29 | B122: MLIS J | D122: Jean Zay | E122: cp | F122: TRENTECINQ | G122: 25 | H122: In situ | I122: Visite découverte | L122: =IF(COUNTIF(Maternelle,E122)=1,listes!$T$1,IF(COUNTIF(Elémentaire,E122)=1,listes!$U$1,IF(COUNTIF(Collège,E122)=1,listes!$V$1,IF(COUNTIF(Lycée,E122)=1,listes!$W$1,"")))) -> Elémentaire | M122: =VLOOKUP(T_sept_dec[[#This Row],[Etablissement scolaire]],Regroupements!$T:$U,2,FALSE) -> Gratte-ciel-Dedieu-Charmettes | N122: MLIS | O122: =T_sept_dec[[#This Row],[Etablissement accueillant]]&"-"&T_sept_dec[[#This Row],[Enseignant référent (Nom Prénom)]] -> MLIS-TRENTECINQ | P122: =1/COUNTIF(T_sept_dec[CléEtablissement],T_sept_dec[[#This Row],[CléEtablissement]]) -> 1 | Q122: =IF(COUNTIF(Réseau,T_sept_dec[[#This Row],[Secteur organisateur]]),"Réseau_"&T_sept_dec[[#This Row],[Enseignant référent (Nom Prénom)]], IF(COUNTIF(Rizehorsmed,T_sept_dec[[#This Row],[Secteur organisateur]]),"Rizehorsmed_"&T_sept_dec[[#This Row],[Enseignant référent (Nom Prénom)]], T_sept_dec[[#This Row],[Secteur organisateur]]&"_"&T_sept_dec[[#This Row],[Enseignant référent (Nom Prénom)]])) -> Réseau_TRENTECINQ | R122: =1/COUNTIF(T_sept_dec[CléRéseau-Rize horsmed],T_sept_dec[[#This Row],[CléRéseau-Rize horsmed]]) -> 1 | S122: =IF(COUNTIF(RIZE,T_sept_dec[[#This Row],[Secteur organisateur]]),"Rize_"&T_sept_dec[[#This Row],[Enseignant référent (Nom Prénom)]],"") ->  | T122: =1/COUNTIF(T_sept_dec[CléRize],T_sept_dec[[#This Row],[CléRize]]) -> 0.009803921569 | U122: =IF(COUNTIF(Total,T_sept_dec[[#This Row],[Secteur organisateur]]),"Total_"&T_sept_dec[[#This Row],[Enseignant référent (Nom Prénom)]],"") -> Total_TRENTECINQ | V122: =1/COUNTIF(T_sept_dec[cléTotal],T_sept_dec[[#This Row],[cléTotal]]) -> 1
A123: 2017-09-29 | B123: RIZE VALO | D123: Hors Villeurbanne | E123: 3° | F123: TRENTEDEUX | G123: 24 | H123: In situ | I123: Exposition | L123: =IF(COUNTIF(Maternelle,E123)=1,listes!$T$1,IF(COUNTIF(Elémentaire,E123)=1,listes!$U$1,IF(COUNTIF(Collège,E123)=1,listes!$V$1,IF(COUNTIF(Lycée,E123)=1,listes!$W$1,"")))) -> Collège | M123: =VLOOKUP(T_sept_dec[[#This Row],[Etablissement scolaire]],Regroupements!$T:$U,2,FALSE) -> Hors Villeurbanne | N123: RIZE | O123: =T_sept_dec[[#This Row],[Etablissement accueillant]]&"-"&T_sept_dec[[#This Row],[Enseignant référent (Nom Prénom)]] -> RIZE-TRENTEDEUX | P123: =1/COUNTIF(T_sept_dec[CléEtablissement],T_sept_dec[[#This Row],[CléEtablissement]]) -> 1 | Q123: =IF(COUNTIF(Réseau,T_sept_dec[[#This Row],[Secteur organisateur]]),"Réseau_"&T_sept_dec[[#This Row],[Enseignant référent (Nom Prénom)]], IF(COUNTIF(Rizehorsmed,T_sept_dec[[#This Row],[Secteur organisateur]]),"Rizehorsmed_"&T_sept_dec[[#This Row],[Enseignant référent (Nom Prénom)]], T_sept_dec[[#This Row],[Secteur organisateur]]&"_"&T_sept_dec[[#This Row],[Enseignant référent (Nom Prénom)]])) -> Rizehorsmed_TRENTEDEUX | R123: =1/COUNTIF(T_sept_dec[CléRéseau-Rize horsmed],T_sept_dec[[#This Row],[CléRéseau-Rize horsmed]]) -> 1 | S123: =IF(COUNTIF(RIZE,T_sept_dec[[#This Row],[Secteur organisateur]]),"Rize_"&T_sept_dec[[#This Row],[Enseignant référent (Nom Prénom)]],"") -> Rize_TRENTEDEUX | T123: =1/COUNTIF(T_sept_dec[CléRize],T_sept_dec[[#This Row],[CléRize]]) -> 1 | U123: =IF(COUNTIF(Total,T_sept_dec[[#This Row],[Secteur organisateur]]),"Total_"&T_sept_dec[[#This Row],[Enseignant référent (Nom Prénom)]],"") -> Total_TRENTEDEUX | V123: =1/COUNTIF(T_sept_dec[cléTotal],T_sept_dec[[#This Row],[cléTotal]]) -> 1
A124: 2017-09-26 | B124: RIZE VALO | D124: Hors Villeurbanne | E124: 3° | F124: TRENTEETUN | G124: 24 | H124: In situ | I124: Exposition | L124: =IF(COUNTIF(Maternelle,E124)=1,listes!$T$1,IF(COUNTIF(Elémentaire,E124)=1,listes!$U$1,IF(COUNTIF(Collège,E124)=1,listes!$V$1,IF(COUNTIF(Lycée,E124)=1,listes!$W$1,"")))) -> Collège | M124: =VLOOKUP(T_sept_dec[[#This Row],[Etablissement scolaire]],Regroupements!$T:$U,2,FALSE) -> Hors Villeurbanne | N124: RIZE | O124: =T_sept_dec[[#This Row],[Etablissement accueillant]]&"-"&T_sept_dec[[#This Row],[Enseignant référent (Nom Prénom)]] -> RIZE-TRENTEETUN | P124: =1/COUNTIF(T_sept_dec[CléEtablissement],T_sept_dec[[#This Row],[CléEtablissement]]) -> 1 | Q124: =IF(COUNTIF(Réseau,T_sept_dec[[#This Row],[Secteur organisateur]]),"Réseau_"&T_sept_dec[[#This Row],[Enseignant référent (Nom Prénom)]], IF(COUNTIF(Rizehorsmed,T_sept_dec[[#This Row],[Secteur organisateur]]),"Rizehorsmed_"&T_sept_dec[[#This Row],[Enseignant référent (Nom Prénom)]], T_sept_dec[[#This Row],[Secteur organisateur]]&"_"&T_sept_dec[[#This Row],[Enseignant référent (Nom Prénom)]])) -> Rizehorsmed_TRENTEETUN | R124: =1/COUNTIF(T_sept_dec[CléRéseau-Rize horsmed],T_sept_dec[[#This Row],[CléRéseau-Rize horsmed]]) -> 1 | S124: =IF(COUNTIF(RIZE,T_sept_dec[[#This Row],[Secteur organisateur]]),"Rize_"&T_sept_dec[[#This Row],[Enseignant référent (Nom Prénom)]],"") -> Rize_TRENTEETUN | T124: =1/COUNTIF(T_sept_dec[CléRize],T_sept_dec[[#This Row],[CléRize]]) -> 1 | U124: =IF(COUNTIF(Total,T_sept_dec[[#This Row],[Secteur organisateur]]),"Total_"&T_sept_dec[[#This Row],[Enseignant référent (Nom Prénom)]],"") -> Total_TRENTEETUN | V124: =1/COUNTIF(T_sept_dec[cléTotal],T_sept_dec[[#This Row],[cléTotal]]) -> 1
A125: 2017-12-06 | B125: PAC-BUS | D125: Jules Guesde | E125: ms | F125: TRENTEHUIT | G125: 26 | H125: Hors les murs | I125: Résidence FDL | L125: =IF(COUNTIF(Maternelle,E125)=1,listes!$T$1,IF(COUNTIF(Elémentaire,E125)=1,listes!$U$1,IF(COUNTIF(Collège,E125)=1,listes!$V$1,IF(COUNTIF(Lycée,E125)=1,listes!$W$1,"")))) -> Maternelle | M125: =VLOOKUP(T_sept_dec[[#This Row],[Etablissement scolaire]],Regroupements!$T:$U,2,FALSE) -> Cyprian-les-Brosses | N125: PAC-BUS | O125: =T_sept_dec[[#This Row],[Etablissement accueillant]]&"-"&T_sept_dec[[#This Row],[Enseignant référent (Nom Prénom)]] -> PAC-BUS-TRENTEHUIT | P125: =1/COUNTIF(T_sept_dec[CléEtablissement],T_sept_dec[[#This Row],[CléEtablissement]]) -> 1 | Q125: =IF(COUNTIF(Réseau,T_sept_dec[[#This Row],[Secteur organisateur]]),"Réseau_"&T_sept_dec[[#This Row],[Enseignant référent (Nom Prénom)]], IF(COUNTIF(Rizehorsmed,T_sept_dec[[#This Row],[Secteur organisateur]]),"Rizehorsmed_"&T_sept_dec[[#This Row],[Enseignant référent (Nom Prénom)]], T_sept_dec[[#This Row],[Secteur organisateur]]&"_"&T_sept_dec[[#This Row],[Enseignant référent (Nom Prénom)]])) -> Réseau_TRENTEHUIT | R125: =1/COUNTIF(T_sept_dec[CléRéseau-Rize horsmed],T_sept_dec[[#This Row],[CléRéseau-Rize horsmed]]) -> 1 | S125: =IF(COUNTIF(RIZE,T_sept_dec[[#This Row],[Secteur organisateur]]),"Rize_"&T_sept_dec[[#This Row],[Enseignant référent (Nom Prénom)]],"") ->  | T125: =1/COUNTIF(T_sept_dec[CléRize],T_sept_dec[[#This Row],[CléRize]]) -> 0.009803921569 | U125: =IF(COUNTIF(Total,T_sept_dec[[#This Row],[Secteur organisateur]]),"Total_"&T_sept_dec[[#This Row],[Enseignant référent (Nom Prénom)]],"") -> Total_TRENTEHUIT | V125: =1/COUNTIF(T_sept_dec[cléTotal],T_sept_dec[[#This Row],[cléTotal]]) -> 1
A126: 2017-10-05 | B126: MLIS J | D126: Jules Ferry | E126: cp | F126: TRENTENEUF | G126: 25 | H126: In situ | I126: Visite découverte | L126: =IF(COUNTIF(Maternelle,E126)=1,listes!$T$1,IF(COUNTIF(Elémentaire,E126)=1,listes!$U$1,IF(COUNTIF(Collège,E126)=1,listes!$V$1,IF(COUNTIF(Lycée,E126)=1,listes!$W$1,"")))) -> Elémentaire | M126: =VLOOKUP(T_sept_dec[[#This Row],[Etablissement scolaire]],Regroupements!$T:$U,2,FALSE) -> Cusset-Bonnevay | N126: MLIS | O126: =T_sept_dec[[#This Row],[Etablissement accueillant]]&"-"&T_sept_dec[[#This Row],[Enseignant référent (Nom Prénom)]] -> MLIS-TRENTENEUF | P126: =1/COUNTIF(T_sept_dec[CléEtablissement],T_sept_dec[[#This Row],[CléEtablissement]]) -> 1 | Q126: =IF(COUNTIF(Réseau,T_sept_dec[[#This Row],[Secteur organisateur]]),"Réseau_"&T_sept_dec[[#This Row],[Enseignant référent (Nom Prénom)]], IF(COUNTIF(Rizehorsmed,T_sept_dec[[#This Row],[Secteur organisateur]]),"Rizehorsmed_"&T_sept_dec[[#This Row],[Enseignant référent (Nom Prénom)]], T_sept_dec[[#This Row],[Secteur organisateur]]&"_"&T_sept_dec[[#This Row],[Enseignant référent (Nom Prénom)]])) -> Réseau_TRENTENEUF | R126: =1/COUNTIF(T_sept_dec[CléRéseau-Rize horsmed],T_sept_dec[[#This Row],[CléRéseau-Rize horsmed]]) -> 1 | S126: =IF(COUNTIF(RIZE,T_sept_dec[[#This Row],[Secteur organisateur]]),"Rize_"&T_sept_dec[[#This Row],[Enseignant référent (Nom Prénom)]],"") ->  | T126: =1/COUNTIF(T_sept_dec[CléRize],T_sept_dec[[#This Row],[CléRize]]) -> 0.009803921569 | U126: =IF(COUNTIF(Total,T_sept_dec[[#This Row],[Secteur organisateur]]),"Total_"&T_sept_dec[[#This Row],[Enseignant référent (Nom Prénom)]],"") -> Total_TRENTENEUF | V126: =1/COUNTIF(T_sept_dec[cléTotal],T_sept_dec[[#This Row],[cléTotal]]) -> 1
A127: 2017-12-01 | B127: MLIS J | D127: Rosa Parks | E127: ce2 | F127: TRENTEQUATRE | G127: 26 | H127: In situ | I127: Conte | L127: =IF(COUNTIF(Maternelle,E127)=1,listes!$T$1,IF(COUNTIF(Elémentaire,E127)=1,listes!$U$1,IF(COUNTIF(Collège,E127)=1,listes!$V$1,IF(COUNTIF(Lycée,E127)=1,listes!$W$1,"")))) -> Elémentaire | M127: =VLOOKUP(T_sept_dec[[#This Row],[Etablissement scolaire]],Regroupements!$T:$U,2,FALSE) -> Gratte-ciel-Dedieu-Charmettes | N127: MLIS | O127: =T_sept_dec[[#This Row],[Etablissement accueillant]]&"-"&T_sept_dec[[#This Row],[Enseignant référent (Nom Prénom)]] -> MLIS-TRENTEQUATRE | P127: =1/COUNTIF(T_sept_dec[CléEtablissement],T_sept_dec[[#This Row],[CléEtablissement]]) -> 1 | Q127: =IF(COUNTIF(Réseau,T_sept_dec[[#This Row],[Secteur organisateur]]),"Réseau_"&T_sept_dec[[#This Row],[Enseignant référent (Nom Prénom)]], IF(COUNTIF(Rizehorsmed,T_sept_dec[[#This Row],[Secteur organisateur]]),"Rizehorsmed_"&T_sept_dec[[#This Row],[Enseignant référent (Nom Prénom)]], T_sept_dec[[#This Row],[Secteur organisateur]]&"_"&T_sept_dec[[#This Row],[Enseignant référent (Nom Prénom)]])) -> Réseau_TRENTEQUATRE | R127: =1/COUNTIF(T_sept_dec[CléRéseau-Rize horsmed],T_sept_dec[[#This Row],[CléRéseau-Rize horsmed]]) -> 1 | S127: =IF(COUNTIF(RIZE,T_sept_dec[[#This Row],[Secteur organisateur]]),"Rize_"&T_sept_dec[[#This Row],[Enseignant référent (Nom Prénom)]],"") ->  | T127: =1/COUNTIF(T_sept_dec[CléRize],T_sept_dec[[#This Row],[CléRize]]) -> 0.009803921569 | U127: =IF(COUNTIF(Total,T_sept_dec[[#This Row],[Secteur organisateur]]),"Total_"&T_sept_dec[[#This Row],[Enseignant référent (Nom Prénom)]],"") -> Total_TRENTEQUATRE | V127: =1/COUNTIF(T_sept_dec[cléTotal],T_sept_dec[[#This Row],[cléTotal]]) -> 1
A128: 2017-11-23 | B128: MLIS J | D128: Emile Zola | E128: ULIS (école) | F128: TRENTESIX | G128: 8 | H128: In situ | I128: Visite à la carte | L128: =IF(COUNTIF(Maternelle,E128)=1,listes!$T$1,IF(COUNTIF(Elémentaire,E128)=1,listes!$U$1,IF(COUNTIF(Collège,E128)=1,listes!$V$1,IF(COUNTIF(Lycée,E128)=1,listes!$W$1,"")))) -> Elémentaire | M128: =VLOOKUP(T_sept_dec[[#This Row],[Etablissement scolaire]],Regroupements!$T:$U,2,FALSE) -> Gratte-ciel-Dedieu-Charmettes | N128: MLIS | O128: =T_sept_dec[[#This Row],[Etablissement accueillant]]&"-"&T_sept_dec[[#This Row],[Enseignant référent (Nom Prénom)]] -> MLIS-TRENTESIX | P128: =1/COUNTIF(T_sept_dec[CléEtablissement],T_sept_dec[[#This Row],[CléEtablissement]]) -> 1 | Q128: =IF(COUNTIF(Réseau,T_sept_dec[[#This Row],[Secteur organisateur]]),"Réseau_"&T_sept_dec[[#This Row],[Enseignant référent (Nom Prénom)]], IF(COUNTIF(Rizehorsmed,T_sept_dec[[#This Row],[Secteur organisateur]]),"Rizehorsmed_"&T_sept_dec[[#This Row],[Enseignant référent (Nom Prénom)]], T_sept_dec[[#This Row],[Secteur organisateur]]&"_"&T_sept_dec[[#This Row],[Enseignant référent (Nom Prénom)]])) -> Réseau_TRENTESIX | R128: =1/COUNTIF(T_sept_dec[CléRéseau-Rize horsmed],T_sept_dec[[#This Row],[CléRéseau-Rize horsmed]]) -> 1 | S128: =IF(COUNTIF(RIZE,T_sept_dec[[#This Row],[Secteur organisateur]]),"Rize_"&T_sept_dec[[#This Row],[Enseignant référent (Nom Prénom)]],"") ->  | T128: =1/COUNTIF(T_sept_dec[CléRize],T_sept_dec[[#This Row],[CléRize]]) -> 0.009803921569 | U128: =IF(COUNTIF(Total,T_sept_dec[[#This Row],[Secteur organisateur]]),"Total_"&T_sept_dec[[#This Row],[Enseignant référent (Nom Prénom)]],"") -> Total_TRENTESIX | V128: =1/COUNTIF(T_sept_dec[cléTotal],T_sept_dec[[#This Row],[cléTotal]]) -> 1
A129: 2017-11-21 | B129: PAC-BUS | D129: Saint Exupéry | E129: cp | F129: TRENTETROIS | G129: 12 | H129: Hors les murs | I129: Visite découverte | L129: =IF(COUNTIF(Maternelle,E129)=1,listes!$T$1,IF(COUNTIF(Elémentaire,E129)=1,listes!$U$1,IF(COUNTIF(Collège,E129)=1,listes!$V$1,IF(COUNTIF(Lycée,E129)=1,listes!$W$1,"")))) -> Elémentaire | M129: =VLOOKUP(T_sept_dec[[#This Row],[Etablissement scolaire]],Regroupements!$T:$U,2,FALSE) -> Saint Jean | N129: PAC-BUS | O129: =T_sept_dec[[#This Row],[Etablissement accueillant]]&"-"&T_sept_dec[[#This Row],[Enseignant référent (Nom Prénom)]] -> PAC-BUS-TRENTETROIS | P129: =1/COUNTIF(T_sept_dec[CléEtablissement],T_sept_dec[[#This Row],[CléEtablissement]]) -> 1 | Q129: =IF(COUNTIF(Réseau,T_sept_dec[[#This Row],[Secteur organisateur]]),"Réseau_"&T_sept_dec[[#This Row],[Enseignant référent (Nom Prénom)]], IF(COUNTIF(Rizehorsmed,T_sept_dec[[#This Row],[Secteur organisateur]]),"Rizehorsmed_"&T_sept_dec[[#This Row],[Enseignant référent (Nom Prénom)]], T_sept_dec[[#This Row],[Secteur organisateur]]&"_"&T_sept_dec[[#This Row],[Enseignant référent (Nom Prénom)]])) -> Réseau_TRENTETROIS | R129: =1/COUNTIF(T_sept_dec[CléRéseau-Rize horsmed],T_sept_dec[[#This Row],[CléRéseau-Rize horsmed]]) -> 1 | S129: =IF(COUNTIF(RIZE,T_sept_dec[[#This Row],[Secteur organisateur]]),"Rize_"&T_sept_dec[[#This Row],[Enseignant référent (Nom Prénom)]],"") ->  | T129: =1/COUNTIF(T_sept_dec[CléRize],T_sept_dec[[#This Row],[CléRize]]) -> 0.009803921569 | U129: =IF(COUNTIF(Total,T_sept_dec[[#This Row],[Secteur organisateur]]),"Total_"&T_sept_dec[[#This Row],[Enseignant référent (Nom Prénom)]],"") -> Total_TRENTETROIS | V129: =1/COUNTIF(T_sept_dec[cléTotal],T_sept_dec[[#This Row],[cléTotal]]) -> 1
A130: 2017-10-12 | B130: MLIS J | D130: Albert Camus | E130: ce2 | F130: TROIS | G130: 24 | H130: In situ | I130: Conte | L130: =IF(COUNTIF(Maternelle,E130)=1,listes!$T$1,IF(COUNTIF(Elémentaire,E130)=1,listes!$U$1,IF(COUNTIF(Collège,E130)=1,listes!$V$1,IF(COUNTIF(Lycée,E130)=1,listes!$W$1,"")))) -> Elémentaire | M130: =VLOOKUP(T_sept_dec[[#This Row],[Etablissement scolaire]],Regroupements!$T:$U,2,FALSE) -> Cyprian-les-Brosses | N130: =IF(COUNTIF(FDL,B130)=1,"FDL",IF(COUNTIF(RIZE,B130)=1,"RIZE",IF(COUNTIF(MLIS,B130)=1,"MLIS",IF(COUNTIF(PACBUS,B130)=1,"PAC-BUS",IF(COUNTIF(Tonkin,B130)=1,"TONKIN",""))))) -> MLIS | O130: =T_sept_dec[[#This Row],[Etablissement accueillant]]&"-"&T_sept_dec[[#This Row],[Enseignant référent (Nom Prénom)]] -> MLIS-TROIS | P130: =1/COUNTIF(T_sept_dec[CléEtablissement],T_sept_dec[[#This Row],[CléEtablissement]]) -> 1 | Q130: =IF(COUNTIF(Réseau,T_sept_dec[[#This Row],[Secteur organisateur]]),"Réseau_"&T_sept_dec[[#This Row],[Enseignant référent (Nom Prénom)]], IF(COUNTIF(Rizehorsmed,T_sept_dec[[#This Row],[Secteur organisateur]]),"Rizehorsmed_"&T_sept_dec[[#This Row],[Enseignant référent (Nom Prénom)]], T_sept_dec[[#This Row],[Secteur organisateur]]&"_"&T_sept_dec[[#This Row],[Enseignant référent (Nom Prénom)]])) -> Réseau_TROIS | R130: =1/COUNTIF(T_sept_dec[CléRéseau-Rize horsmed],T_sept_dec[[#This Row],[CléRéseau-Rize horsmed]]) -> 1 | S130: =IF(COUNTIF(RIZE,T_sept_dec[[#This Row],[Secteur organisateur]]),"Rize_"&T_sept_dec[[#This Row],[Enseignant référent (Nom Prénom)]],"") ->  | T130: =1/COUNTIF(T_sept_dec[CléRize],T_sept_dec[[#This Row],[CléRize]]) -> 0.009803921569 | U130: =IF(COUNTIF(Total,T_sept_dec[[#This Row],[Secteur organisateur]]),"Total_"&T_sept_dec[[#This Row],[Enseignant référent (Nom Prénom)]],"") -> Total_TROIS | V130: =1/COUNTIF(T_sept_dec[cléTotal],T_sept_dec[[#This Row],[cléTotal]]) -> 1
A131: 2017-12-05 | B131: PAC-BUS | D131: Jules Guesde | E131: gs | F131: UN | G131: 24 | H131: Hors les murs | I131: Résidence FDL | L131: =IF(COUNTIF(Maternelle,E131)=1,listes!$T$1,IF(COUNTIF(Elémentaire,E131)=1,listes!$U$1,IF(COUNTIF(Collège,E131)=1,listes!$V$1,IF(COUNTIF(Lycée,E131)=1,listes!$W$1,"")))) -> Maternelle | M131: =VLOOKUP(T_sept_dec[[#This Row],[Etablissement scolaire]],Regroupements!$T:$U,2,FALSE) -> Cyprian-les-Brosses | N131: PAC-BUS | O131: =T_sept_dec[[#This Row],[Etablissement accueillant]]&"-"&T_sept_dec[[#This Row],[Enseignant référent (Nom Prénom)]] -> PAC-BUS-UN | P131: =1/COUNTIF(T_sept_dec[CléEtablissement],T_sept_dec[[#This Row],[CléEtablissement]]) -> 1 | Q131: =IF(COUNTIF(Réseau,T_sept_dec[[#This Row],[Secteur organisateur]]),"Réseau_"&T_sept_dec[[#This Row],[Enseignant référent (Nom Prénom)]], IF(COUNTIF(Rizehorsmed,T_sept_dec[[#This Row],[Secteur organisateur]]),"Rizehorsmed_"&T_sept_dec[[#This Row],[Enseignant référent (Nom Prénom)]], T_sept_dec[[#This Row],[Secteur organisateur]]&"_"&T_sept_dec[[#This Row],[Enseignant référent (Nom Prénom)]])) -> Réseau_UN | R131: =1/COUNTIF(T_sept_dec[CléRéseau-Rize horsmed],T_sept_dec[[#This Row],[CléRéseau-Rize horsmed]]) -> 1 | S131: =IF(COUNTIF(RIZE,T_sept_dec[[#This Row],[Secteur organisateur]]),"Rize_"&T_sept_dec[[#This Row],[Enseignant référent (Nom Prénom)]],"") ->  | T131: =1/COUNTIF(T_sept_dec[CléRize],T_sept_dec[[#This Row],[CléRize]]) -> 0.009803921569 | U131: =IF(COUNTIF(Total,T_sept_dec[[#This Row],[Secteur organisateur]]),"Total_"&T_sept_dec[[#This Row],[Enseignant référent (Nom Prénom)]],"") -> Total_UN | V131: =1/COUNTIF(T_sept_dec[cléTotal],T_sept_dec[[#This Row],[cléTotal]]) -> 1
A132: 2017-12-15 | B132: MLIS J | D132: Jules Guesde | E132: ce1/ce2 | F132: VINGT | G132: 26 | H132: In situ | I132: Visite à la carte | L132: =IF(COUNTIF(Maternelle,E132)=1,listes!$T$1,IF(COUNTIF(Elémentaire,E132)=1,listes!$U$1,IF(COUNTIF(Collège,E132)=1,listes!$V$1,IF(COUNTIF(Lycée,E132)=1,listes!$W$1,"")))) -> Elémentaire | M132: =VLOOKUP(T_sept_dec[[#This Row],[Etablissement scolaire]],Regroupements!$T:$U,2,FALSE) -> Cyprian-les-Brosses | N132: MLIS | O132: =T_sept_dec[[#This Row],[Etablissement accueillant]]&"-"&T_sept_dec[[#This Row],[Enseignant référent (Nom Prénom)]] -> MLIS-VINGT | P132: =1/COUNTIF(T_sept_dec[CléEtablissement],T_sept_dec[[#This Row],[CléEtablissement]]) -> 0.5 | Q132: =IF(COUNTIF(Réseau,T_sept_dec[[#This Row],[Secteur organisateur]]),"Réseau_"&T_sept_dec[[#This Row],[Enseignant référent (Nom Prénom)]], IF(COUNTIF(Rizehorsmed,T_sept_dec[[#This Row],[Secteur organisateur]]),"Rizehorsmed_"&T_sept_dec[[#This Row],[Enseignant référent (Nom Prénom)]], T_sept_dec[[#This Row],[Secteur organisateur]]&"_"&T_sept_dec[[#This Row],[Enseignant référent (Nom Prénom)]])) -> Réseau_VINGT | R132: =1/COUNTIF(T_sept_dec[CléRéseau-Rize horsmed],T_sept_dec[[#This Row],[CléRéseau-Rize horsmed]]) -> 0.5 | S132: =IF(COUNTIF(RIZE,T_sept_dec[[#This Row],[Secteur organisateur]]),"Rize_"&T_sept_dec[[#This Row],[Enseignant référent (Nom Prénom)]],"") ->  | T132: =1/COUNTIF(T_sept_dec[CléRize],T_sept_dec[[#This Row],[CléRize]]) -> 0.009803921569 | U132: =IF(COUNTIF(Total,T_sept_dec[[#This Row],[Secteur organisateur]]),"Total_"&T_sept_dec[[#This Row],[Enseignant référent (Nom Prénom)]],"") -> Total_VINGT | V132: =1/COUNTIF(T_sept_dec[cléTotal],T_sept_dec[[#This Row],[cléTotal]]) -> 0.3333333333
A133: 2017-12-15 | B133: ARTO | D133: Jules Guesde | E133: ce1/ce2 | F133: VINGT | G133: 26 | H133: In situ | I133: Et si on parlait d'art ? | L133: =IF(COUNTIF(Maternelle,E133)=1,listes!$T$1,IF(COUNTIF(Elémentaire,E133)=1,listes!$U$1,IF(COUNTIF(Collège,E133)=1,listes!$V$1,IF(COUNTIF(Lycée,E133)=1,listes!$W$1,"")))) -> Elémentaire | M133: =VLOOKUP(T_sept_dec[[#This Row],[Etablissement scolaire]],Regroupements!$T:$U,2,FALSE) -> Cyprian-les-Brosses | N133: MLIS | O133: =T_sept_dec[[#This Row],[Etablissement accueillant]]&"-"&T_sept_dec[[#This Row],[Enseignant référent (Nom Prénom)]] -> MLIS-VINGT | P133: =1/COUNTIF(T_sept_dec[CléEtablissement],T_sept_dec[[#This Row],[CléEtablissement]]) -> 0.5 | Q133: =IF(COUNTIF(Réseau,T_sept_dec[[#This Row],[Secteur organisateur]]),"Réseau_"&T_sept_dec[[#This Row],[Enseignant référent (Nom Prénom)]], IF(COUNTIF(Rizehorsmed,T_sept_dec[[#This Row],[Secteur organisateur]]),"Rizehorsmed_"&T_sept_dec[[#This Row],[Enseignant référent (Nom Prénom)]], T_sept_dec[[#This Row],[Secteur organisateur]]&"_"&T_sept_dec[[#This Row],[Enseignant référent (Nom Prénom)]])) -> Réseau_VINGT | R133: =1/COUNTIF(T_sept_dec[CléRéseau-Rize horsmed],T_sept_dec[[#This Row],[CléRéseau-Rize horsmed]]) -> 0.5 | S133: =IF(COUNTIF(RIZE,T_sept_dec[[#This Row],[Secteur organisateur]]),"Rize_"&T_sept_dec[[#This Row],[Enseignant référent (Nom Prénom)]],"") ->  | T133: =1/COUNTIF(T_sept_dec[CléRize],T_sept_dec[[#This Row],[CléRize]]) -> 0.009803921569 | U133: =IF(COUNTIF(Total,T_sept_dec[[#This Row],[Secteur organisateur]]),"Total_"&T_sept_dec[[#This Row],[Enseignant référent (Nom Prénom)]],"") -> Total_VINGT | V133: =1/COUNTIF(T_sept_dec[cléTotal],T_sept_dec[[#This Row],[cléTotal]]) -> 0.3333333333
A134: 2017-11-24 | B134: FDL | D134: Jules Guesde | E134: ce1/ce2 | F134: VINGT | G134: 25 | H134: In situ | I134: Projet FDL | L134: =IF(COUNTIF(Maternelle,E134)=1,listes!$T$1,IF(COUNTIF(Elémentaire,E134)=1,listes!$U$1,IF(COUNTIF(Collège,E134)=1,listes!$V$1,IF(COUNTIF(Lycée,E134)=1,listes!$W$1,"")))) -> Elémentaire | M134: =VLOOKUP(T_sept_dec[[#This Row],[Etablissement scolaire]],Regroupements!$T:$U,2,FALSE) -> Cyprian-les-Brosses | N134: FDL | O134: =T_sept_dec[[#This Row],[Etablissement accueillant]]&"-"&T_sept_dec[[#This Row],[Enseignant référent (Nom Prénom)]] -> FDL-VINGT | P134: =1/COUNTIF(T_sept_dec[CléEtablissement],T_sept_dec[[#This Row],[CléEtablissement]]) -> 1 | Q134: =IF(COUNTIF(Réseau,T_sept_dec[[#This Row],[Secteur organisateur]]),"Réseau_"&T_sept_dec[[#This Row],[Enseignant référent (Nom Prénom)]], IF(COUNTIF(Rizehorsmed,T_sept_dec[[#This Row],[Secteur organisateur]]),"Rizehorsmed_"&T_sept_dec[[#This Row],[Enseignant référent (Nom Prénom)]], T_sept_dec[[#This Row],[Secteur organisateur]]&"_"&T_sept_dec[[#This Row],[Enseignant référent (Nom Prénom)]])) -> FDL_VINGT | R134: =1/COUNTIF(T_sept_dec[CléRéseau-Rize horsmed],T_sept_dec[[#This Row],[CléRéseau-Rize horsmed]]) -> 1 | S134: =IF(COUNTIF(RIZE,T_sept_dec[[#This Row],[Secteur organisateur]]),"Rize_"&T_sept_dec[[#This Row],[Enseignant référent (Nom Prénom)]],"") ->  | T134: =1/COUNTIF(T_sept_dec[CléRize],T_sept_dec[[#This Row],[CléRize]]) -> 0.009803921569 | U134: =IF(COUNTIF(Total,T_sept_dec[[#This Row],[Secteur organisateur]]),"Total_"&T_sept_dec[[#This Row],[Enseignant référent (Nom Prénom)]],"") -> Total_VINGT | V134: =1/COUNTIF(T_sept_dec[cléTotal],T_sept_dec[[#This Row],[cléTotal]]) -> 0.3333333333
A135: 2017-09-27 | B135: RIZE MED | D135: Antonin Perrin | E135: ce1 | F135: VINGTCINQ | G135: 25 | H135: In situ | I135: Visite couplée | L135: =IF(COUNTIF(Maternelle,E135)=1,listes!$T$1,IF(COUNTIF(Elémentaire,E135)=1,listes!$U$1,IF(COUNTIF(Collège,E135)=1,listes!$V$1,IF(COUNTIF(Lycée,E135)=1,listes!$W$1,"")))) -> Elémentaire | M135: =VLOOKUP(T_sept_dec[[#This Row],[Etablissement scolaire]],Regroupements!$T:$U,2,FALSE) -> Ferrandière-Maisons Neuves | N135: RIZE | O135: =T_sept_dec[[#This Row],[Etablissement accueillant]]&"-"&T_sept_dec[[#This Row],[Enseignant référent (Nom Prénom)]] -> RIZE-VINGTCINQ | P135: =1/COUNTIF(T_sept_dec[CléEtablissement],T_sept_dec[[#This Row],[CléEtablissement]]) -> 1 | Q135: =IF(COUNTIF(Réseau,T_sept_dec[[#This Row],[Secteur organisateur]]),"Réseau_"&T_sept_dec[[#This Row],[Enseignant référent (Nom Prénom)]], IF(COUNTIF(Rizehorsmed,T_sept_dec[[#This Row],[Secteur organisateur]]),"Rizehorsmed_"&T_sept_dec[[#This Row],[Enseignant référent (Nom Prénom)]], T_sept_dec[[#This Row],[Secteur organisateur]]&"_"&T_sept_dec[[#This Row],[Enseignant référent (Nom Prénom)]])) -> Réseau_VINGTCINQ | R135: =1/COUNTIF(T_sept_dec[CléRéseau-Rize horsmed],T_sept_dec[[#This Row],[CléRéseau-Rize horsmed]]) -> 1 | S135: =IF(COUNTIF(RIZE,T_sept_dec[[#This Row],[Secteur organisateur]]),"Rize_"&T_sept_dec[[#This Row],[Enseignant référent (Nom Prénom)]],"") -> Rize_VINGTCINQ | T135: =1/COUNTIF(T_sept_dec[CléRize],T_sept_dec[[#This Row],[CléRize]]) -> 1 | U135: =IF(COUNTIF(Total,T_sept_dec[[#This Row],[Secteur organisateur]]),"Total_"&T_sept_dec[[#This Row],[Enseignant référent (Nom Prénom)]],"") -> Total_VINGTCINQ | V135: =1/COUNTIF(T_sept_dec[cléTotal],T_sept_dec[[#This Row],[cléTotal]]) -> 1
A136: 2017-11-16 | B136: ARTO | D136: Château-Gaillard | E136: cp | F136: VINGTDEUX | G136: 23 | H136: In situ | I136: Il était une fois l'art contemporain | L136: =IF(COUNTIF(Maternelle,E136)=1,listes!$T$1,IF(COUNTIF(Elémentaire,E136)=1,listes!$U$1,IF(COUNTIF(Collège,E136)=1,listes!$V$1,IF(COUNTIF(Lycée,E136)=1,listes!$W$1,"")))) -> Elémentaire | M136: =VLOOKUP(T_sept_dec[[#This Row],[Etablissement scolaire]],Regroupements!$T:$U,2,FALSE) -> Buers-Croix-Luizet | N136: MLIS | O136: =T_sept_dec[[#This Row],[Etablissement accueillant]]&"-"&T_sept_dec[[#This Row],[Enseignant référent (Nom Prénom)]] -> MLIS-VINGTDEUX | P136: =1/COUNTIF(T_sept_dec[CléEtablissement],T_sept_dec[[#This Row],[CléEtablissement]]) -> 1 | Q136: =IF(COUNTIF(Réseau,T_sept_dec[[#This Row],[Secteur organisateur]]),"Réseau_"&T_sept_dec[[#This Row],[Enseignant référent (Nom Prénom)]], IF(COUNTIF(Rizehorsmed,T_sept_dec[[#This Row],[Secteur organisateur]]),"Rizehorsmed_"&T_sept_dec[[#This Row],[Enseignant référent (Nom Prénom)]], T_sept_dec[[#This Row],[Secteur organisateur]]&"_"&T_sept_dec[[#This Row],[Enseignant référent (Nom Prénom)]])) -> Réseau_VINGTDEUX | R136: =1/COUNTIF(T_sept_dec[CléRéseau-Rize horsmed],T_sept_dec[[#This Row],[CléRéseau-Rize horsmed]]) -> 1 | S136: =IF(COUNTIF(RIZE,T_sept_dec[[#This Row],[Secteur organisateur]]),"Rize_"&T_sept_dec[[#This Row],[Enseignant référent (Nom Prénom)]],"") ->  | T136: =1/COUNTIF(T_sept_dec[CléRize],T_sept_dec[[#This Row],[CléRize]]) -> 0.009803921569 | U136: =IF(COUNTIF(Total,T_sept_dec[[#This Row],[Secteur organisateur]]),"Total_"&T_sept_dec[[#This Row],[Enseignant référent (Nom Prénom)]],"") -> Total_VINGTDEUX | V136: =1/COUNTIF(T_sept_dec[cléTotal],T_sept_dec[[#This Row],[cléTotal]]) -> 1
A137: 2017-11-23 | B137: ARTO | D137: Léon Jouhaux | E137: ce1/ce2 | F137: VINGTETUN | G137: 20 | H137: In situ | I137: Et si on parlait d'art ? | L137: =IF(COUNTIF(Maternelle,E137)=1,listes!$T$1,IF(COUNTIF(Elémentaire,E137)=1,listes!$U$1,IF(COUNTIF(Collège,E137)=1,listes!$V$1,IF(COUNTIF(Lycée,E137)=1,listes!$W$1,"")))) -> Elémentaire | M137: =VLOOKUP(T_sept_dec[[#This Row],[Etablissement scolaire]],Regroupements!$T:$U,2,FALSE) -> Gratte-ciel-Dedieu-Charmettes | N137: MLIS | O137: =T_sept_dec[[#This Row],[Etablissement accueillant]]&"-"&T_sept_dec[[#This Row],[Enseignant référent (Nom Prénom)]] -> MLIS-VINGTETUN | P137: =1/COUNTIF(T_sept_dec[CléEtablissement],T_sept_dec[[#This Row],[CléEtablissement]]) -> 1 | Q137: =IF(COUNTIF(Réseau,T_sept_dec[[#This Row],[Secteur organisateur]]),"Réseau_"&T_sept_dec[[#This Row],[Enseignant référent (Nom Prénom)]], IF(COUNTIF(Rizehorsmed,T_sept_dec[[#This Row],[Secteur organisateur]]),"Rizehorsmed_"&T_sept_dec[[#This Row],[Enseignant référent (Nom Prénom)]], T_sept_dec[[#This Row],[Secteur organisateur]]&"_"&T_sept_dec[[#This Row],[Enseignant référent (Nom Prénom)]])) -> Réseau_VINGTETUN | R137: =1/COUNTIF(T_sept_dec[CléRéseau-Rize horsmed],T_sept_dec[[#This Row],[CléRéseau-Rize horsmed]]) -> 1 | S137: =IF(COUNTIF(RIZE,T_sept_dec[[#This Row],[Secteur organisateur]]),"Rize_"&T_sept_dec[[#This Row],[Enseignant référent (Nom Prénom)]],"") ->  | T137: =1/COUNTIF(T_sept_dec[CléRize],T_sept_dec[[#This Row],[CléRize]]) -> 0.009803921569 | U137: =IF(COUNTIF(Total,T_sept_dec[[#This Row],[Secteur organisateur]]),"Total_"&T_sept_dec[[#This Row],[Enseignant référent (Nom Prénom)]],"") -> Total_VINGTETUN | V137: =1/COUNTIF(T_sept_dec[cléTotal],T_sept_dec[[#This Row],[cléTotal]]) -> 1
A138: 2017-12-06 | B138: PAC-BUS | D138: Jules Guesde | E138: gs | F138: VINGTHUIT | G138: 26 | H138: Hors les murs | I138: Résidence FDL | L138: =IF(COUNTIF(Maternelle,E138)=1,listes!$T$1,IF(COUNTIF(Elémentaire,E138)=1,listes!$U$1,IF(COUNTIF(Collège,E138)=1,listes!$V$1,IF(COUNTIF(Lycée,E138)=1,listes!$W$1,"")))) -> Maternelle | M138: =VLOOKUP(T_sept_dec[[#This Row],[Etablissement scolaire]],Regroupements!$T:$U,2,FALSE) -> Cyprian-les-Brosses | N138: PAC-BUS | O138: =T_sept_dec[[#This Row],[Etablissement accueillant]]&"-"&T_sept_dec[[#This Row],[Enseignant référent (Nom Prénom)]] -> PAC-BUS-VINGTHUIT | P138: =1/COUNTIF(T_sept_dec[CléEtablissement],T_sept_dec[[#This Row],[CléEtablissement]]) -> 1 | Q138: =IF(COUNTIF(Réseau,T_sept_dec[[#This Row],[Secteur organisateur]]),"Réseau_"&T_sept_dec[[#This Row],[Enseignant référent (Nom Prénom)]], IF(COUNTIF(Rizehorsmed,T_sept_dec[[#This Row],[Secteur organisateur]]),"Rizehorsmed_"&T_sept_dec[[#This Row],[Enseignant référent (Nom Prénom)]], T_sept_dec[[#This Row],[Secteur organisateur]]&"_"&T_sept_dec[[#This Row],[Enseignant référent (Nom Prénom)]])) -> Réseau_VINGTHUIT | R138: =1/COUNTIF(T_sept_dec[CléRéseau-Rize horsmed],T_sept_dec[[#This Row],[CléRéseau-Rize horsmed]]) -> 1 | S138: =IF(COUNTIF(RIZE,T_sept_dec[[#This Row],[Secteur organisateur]]),"Rize_"&T_sept_dec[[#This Row],[Enseignant référent (Nom Prénom)]],"") ->  | T138: =1/COUNTIF(T_sept_dec[CléRize],T_sept_dec[[#This Row],[CléRize]]) -> 0.009803921569 | U138: =IF(COUNTIF(Total,T_sept_dec[[#This Row],[Secteur organisateur]]),"Total_"&T_sept_dec[[#This Row],[Enseignant référent (Nom Prénom)]],"") -> Total_VINGTHUIT | V138: =1/COUNTIF(T_sept_dec[cléTotal],T_sept_dec[[#This Row],[cléTotal]]) -> 1
A139: 2017-11-28 | B139: MTK | D139: Lakanal | E139: ce1 | F139: VINGTNEUF | G139: 26 | H139: In situ | I139: Première lecture | L139: =IF(COUNTIF(Maternelle,E139)=1,listes!$T$1,IF(COUNTIF(Elémentaire,E139)=1,listes!$U$1,IF(COUNTIF(Collège,E139)=1,listes!$V$1,IF(COUNTIF(Lycée,E139)=1,listes!$W$1,"")))) -> Elémentaire | M139: =VLOOKUP(T_sept_dec[[#This Row],[Etablissement scolaire]],Regroupements!$T:$U,2,FALSE) -> Charpennes-Tonkin | N139: TONKIN | O139: =T_sept_dec[[#This Row],[Etablissement accueillant]]&"-"&T_sept_dec[[#This Row],[Enseignant référent (Nom Prénom)]] -> TONKIN-VINGTNEUF | P139: =1/COUNTIF(T_sept_dec[CléEtablissement],T_sept_dec[[#This Row],[CléEtablissement]]) -> 1 | Q139: =IF(COUNTIF(Réseau,T_sept_dec[[#This Row],[Secteur organisateur]]),"Réseau_"&T_sept_dec[[#This Row],[Enseignant référent (Nom Prénom)]], IF(COUNTIF(Rizehorsmed,T_sept_dec[[#This Row],[Secteur organisateur]]),"Rizehorsmed_"&T_sept_dec[[#This Row],[Enseignant référent (Nom Prénom)]], T_sept_dec[[#This Row],[Secteur organisateur]]&"_"&T_sept_dec[[#This Row],[Enseignant référent (Nom Prénom)]])) -> Réseau_VINGTNEUF | R139: =1/COUNTIF(T_sept_dec[CléRéseau-Rize horsmed],T_sept_dec[[#This Row],[CléRéseau-Rize horsmed]]) -> 1 | S139: =IF(COUNTIF(RIZE,T_sept_dec[[#This Row],[Secteur organisateur]]),"Rize_"&T_sept_dec[[#This Row],[Enseignant référent (Nom Prénom)]],"") ->  | T139: =1/COUNTIF(T_sept_dec[CléRize],T_sept_dec[[#This Row],[CléRize]]) -> 0.009803921569 | U139: =IF(COUNTIF(Total,T_sept_dec[[#This Row],[Secteur organisateur]]),"Total_"&T_sept_dec[[#This Row],[Enseignant référent (Nom Prénom)]],"") -> Total_VINGTNEUF | V139: =1/COUNTIF(T_sept_dec[cléTotal],T_sept_dec[[#This Row],[cléTotal]]) -> 1
A140: 2017-11-10 | B140: ARTO | D140: Ste Thérèse (privé) | E140: ce2 | F140: VINGTQUATRE | G140: 25 | H140: In situ | I140: Et si on parlait d'art ? | L140: =IF(COUNTIF(Maternelle,E140)=1,listes!$T$1,IF(COUNTIF(Elémentaire,E140)=1,listes!$U$1,IF(COUNTIF(Collège,E140)=1,listes!$V$1,IF(COUNTIF(Lycée,E140)=1,listes!$W$1,"")))) -> Elémentaire | M140: =VLOOKUP(T_sept_dec[[#This Row],[Etablissement scolaire]],Regroupements!$T:$U,2,FALSE) -> Gratte-ciel-Dedieu-Charmettes | N140: MLIS | O140: =T_sept_dec[[#This Row],[Etablissement accueillant]]&"-"&T_sept_dec[[#This Row],[Enseignant référent (Nom Prénom)]] -> MLIS-VINGTQUATRE | P140: =1/COUNTIF(T_sept_dec[CléEtablissement],T_sept_dec[[#This Row],[CléEtablissement]]) -> 1 | Q140: =IF(COUNTIF(Réseau,T_sept_dec[[#This Row],[Secteur organisateur]]),"Réseau_"&T_sept_dec[[#This Row],[Enseignant référent (Nom Prénom)]], IF(COUNTIF(Rizehorsmed,T_sept_dec[[#This Row],[Secteur organisateur]]),"Rizehorsmed_"&T_sept_dec[[#This Row],[Enseignant référent (Nom Prénom)]], T_sept_dec[[#This Row],[Secteur organisateur]]&"_"&T_sept_dec[[#This Row],[Enseignant référent (Nom Prénom)]])) -> Réseau_VINGTQUATRE | R140: =1/COUNTIF(T_sept_dec[CléRéseau-Rize horsmed],T_sept_dec[[#This Row],[CléRéseau-Rize horsmed]]) -> 1 | S140: =IF(COUNTIF(RIZE,T_sept_dec[[#This Row],[Secteur organisateur]]),"Rize_"&T_sept_dec[[#This Row],[Enseignant référent (Nom Prénom)]],"") ->  | T140: =1/COUNTIF(T_sept_dec[CléRize],T_sept_dec[[#This Row],[CléRize]]) -> 0.009803921569 | U140: =IF(COUNTIF(Total,T_sept_dec[[#This Row],[Secteur organisateur]]),"Total_"&T_sept_dec[[#This Row],[Enseignant référent (Nom Prénom)]],"") -> Total_VINGTQUATRE | V140: =1/COUNTIF(T_sept_dec[cléTotal],T_sept_dec[[#This Row],[cléTotal]]) -> 1
A141: 2017-10-06 | B141: RIZE VALO | D141: Antonin Perrin | E141: cm2 | F141: VINGTSEPT | G141: 18 | H141: Hors les murs | I141: Exploration Gratte-Ciel | L141: =IF(COUNTIF(Maternelle,E141)=1,listes!$T$1,IF(COUNTIF(Elémentaire,E141)=1,listes!$U$1,IF(COUNTIF(Collège,E141)=1,listes!$V$1,IF(COUNTIF(Lycée,E141)=1,listes!$W$1,"")))) -> Elémentaire | M141: =VLOOKUP(T_sept_dec[[#This Row],[Etablissement scolaire]],Regroupements!$T:$U,2,FALSE) -> Ferrandière-Maisons Neuves | N141: RIZE | O141: =T_sept_dec[[#This Row],[Etablissement accueillant]]&"-"&T_sept_dec[[#This Row],[Enseignant référent (Nom Prénom)]] -> RIZE-VINGTSEPT | P141: =1/COUNTIF(T_sept_dec[CléEtablissement],T_sept_dec[[#This Row],[CléEtablissement]]) -> 1 | Q141: =IF(COUNTIF(Réseau,T_sept_dec[[#This Row],[Secteur organisateur]]),"Réseau_"&T_sept_dec[[#This Row],[Enseignant référent (Nom Prénom)]], IF(COUNTIF(Rizehorsmed,T_sept_dec[[#This Row],[Secteur organisateur]]),"Rizehorsmed_"&T_sept_dec[[#This Row],[Enseignant référent (Nom Prénom)]], T_sept_dec[[#This Row],[Secteur organisateur]]&"_"&T_sept_dec[[#This Row],[Enseignant référent (Nom Prénom)]])) -> Rizehorsmed_VINGTSEPT | R141: =1/COUNTIF(T_sept_dec[CléRéseau-Rize horsmed],T_sept_dec[[#This Row],[CléRéseau-Rize horsmed]]) -> 1 | S141: =IF(COUNTIF(RIZE,T_sept_dec[[#This Row],[Secteur organisateur]]),"Rize_"&T_sept_dec[[#This Row],[Enseignant référent (Nom Prénom)]],"") -> Rize_VINGTSEPT | T141: =1/COUNTIF(T_sept_dec[CléRize],T_sept_dec[[#This Row],[CléRize]]) -> 1 | U141: =IF(COUNTIF(Total,T_sept_dec[[#This Row],[Secteur organisateur]]),"Total_"&T_sept_dec[[#This Row],[Enseignant référent (Nom Prénom)]],"") -> Total_VINGTSEPT | V141: =1/COUNTIF(T_sept_dec[cléTotal],T_sept_dec[[#This Row],[cléTotal]]) -> 1
A142: 2017-11-14 | B142: PAC-BUS | D142: Jules Guesde | E142: cp | F142: VINGTSIX | G142: 24 | H142: Hors les murs | I142: Visite découverte | L142: =IF(COUNTIF(Maternelle,E142)=1,listes!$T$1,IF(COUNTIF(Elémentaire,E142)=1,listes!$U$1,IF(COUNTIF(Collège,E142)=1,listes!$V$1,IF(COUNTIF(Lycée,E142)=1,listes!$W$1,"")))) -> Elémentaire | M142: =VLOOKUP(T_sept_dec[[#This Row],[Etablissement scolaire]],Regroupements!$T:$U,2,FALSE) -> Cyprian-les-Brosses | N142: PAC-BUS | O142: =T_sept_dec[[#This Row],[Etablissement accueillant]]&"-"&T_sept_dec[[#This Row],[Enseignant référent (Nom Prénom)]] -> PAC-BUS-VINGTSIX | P142: =1/COUNTIF(T_sept_dec[CléEtablissement],T_sept_dec[[#This Row],[CléEtablissement]]) -> 1 | Q142: =IF(COUNTIF(Réseau,T_sept_dec[[#This Row],[Secteur organisateur]]),"Réseau_"&T_sept_dec[[#This Row],[Enseignant référent (Nom Prénom)]], IF(COUNTIF(Rizehorsmed,T_sept_dec[[#This Row],[Secteur organisateur]]),"Rizehorsmed_"&T_sept_dec[[#This Row],[Enseignant référent (Nom Prénom)]], T_sept_dec[[#This Row],[Secteur organisateur]]&"_"&T_sept_dec[[#This Row],[Enseignant référent (Nom Prénom)]])) -> Réseau_VINGTSIX | R142: =1/COUNTIF(T_sept_dec[CléRéseau-Rize horsmed],T_sept_dec[[#This Row],[CléRéseau-Rize horsmed]]) -> 1 | S142: =IF(COUNTIF(RIZE,T_sept_dec[[#This Row],[Secteur organisateur]]),"Rize_"&T_sept_dec[[#This Row],[Enseignant référent (Nom Prénom)]],"") ->  | T142: =1/COUNTIF(T_sept_dec[CléRize],T_sept_dec[[#This Row],[CléRize]]) -> 0.009803921569 | U142: =IF(COUNTIF(Total,T_sept_dec[[#This Row],[Secteur organisateur]]),"Total_"&T_sept_dec[[#This Row],[Enseignant référent (Nom Prénom)]],"") -> Total_VINGTSIX | V142: =1/COUNTIF(T_sept_dec[cléTotal],T_sept_dec[[#This Row],[cléTotal]]) -> 1
A143: 2017-12-05 | B143: PAC-BUS | D143: Jules Guesde | E143: gs | F143: VINGTTROIS | G143: 25 | H143: Hors les murs | I143: Résidence FDL | L143: =IF(COUNTIF(Maternelle,E143)=1,listes!$T$1,IF(COUNTIF(Elémentaire,E143)=1,listes!$U$1,IF(COUNTIF(Collège,E143)=1,listes!$V$1,IF(COUNTIF(Lycée,E143)=1,listes!$W$1,"")))) -> Maternelle | M143: =VLOOKUP(T_sept_dec[[#This Row],[Etablissement scolaire]],Regroupements!$T:$U,2,FALSE) -> Cyprian-les-Brosses | N143: PAC-BUS | O143: =T_sept_dec[[#This Row],[Etablissement accueillant]]&"-"&T_sept_dec[[#This Row],[Enseignant référent (Nom Prénom)]] -> PAC-BUS-VINGTTROIS | P143: =1/COUNTIF(T_sept_dec[CléEtablissement],T_sept_dec[[#This Row],[CléEtablissement]]) -> 1 | Q143: =IF(COUNTIF(Réseau,T_sept_dec[[#This Row],[Secteur organisateur]]),"Réseau_"&T_sept_dec[[#This Row],[Enseignant référent (Nom Prénom)]], IF(COUNTIF(Rizehorsmed,T_sept_dec[[#This Row],[Secteur organisateur]]),"Rizehorsmed_"&T_sept_dec[[#This Row],[Enseignant référent (Nom Prénom)]], T_sept_dec[[#This Row],[Secteur organisateur]]&"_"&T_sept_dec[[#This Row],[Enseignant référent (Nom Prénom)]])) -> Réseau_VINGTTROIS | R143: =1/COUNTIF(T_sept_dec[CléRéseau-Rize horsmed],T_sept_dec[[#This Row],[CléRéseau-Rize horsmed]]) -> 1 | S143: =IF(COUNTIF(RIZE,T_sept_dec[[#This Row],[Secteur organisateur]]),"Rize_"&T_sept_dec[[#This Row],[Enseignant référent (Nom Prénom)]],"") ->  | T143: =1/COUNTIF(T_sept_dec[CléRize],T_sept_dec[[#This Row],[CléRize]]) -> 0.009803921569 | U143: =IF(COUNTIF(Total,T_sept_dec[[#This Row],[Secteur organisateur]]),"Total_"&T_sept_dec[[#This Row],[Enseignant référent (Nom Prénom)]],"") -> Total_VINGTTROIS | V143: =1/COUNTIF(T_sept_dec[cléTotal],T_sept_dec[[#This Row],[cléTotal]]) -> 1
G147: =G53+G77+G100 -> 69
G150: =28-15 -> 13
G151: =G147-G150 -> 56

Sheet tmp
A1: Date venue | B1: Secteur organisateur | C1: Secteur organisateur binôme | D1: Etablissement scolaire | E1: Niveau de classe | F1: Enseignant référent (Nom Prénom) | G1: Nombre enfants | H1: In situ / hors les murs | I1: Type de visite | J1: Commentaires | K1: Appréciation | L1: Groupe niveau | M1: Quartier | N1: Etablissement accueillant | O1: CléEtablissement | P1: cptEtablissement | Q1: CléRéseau-Rize horsmed | R1: cptréseau-rizehormed | S1: CléRize | T1: cptrize | U1: cléTotal | V1: cptTotal
A2: 2017-12-05 | B2: MTK | D2: Lakanal | E2: cp | F2: DIXNEUF | G2: 26 | H2: In situ | I2: Visite découverte | L2: Elémentaire | M2: Charpennes-Tonkin | N2: TONKIN | O2: TONKIN-DIXNEUF | P2: 1 | Q2: Réseau_DIXNEUF | R2: 1 | T2: 0.009803921569 | U2: Total_DIXNEUF | V2: 1
A3: 2017-11-28 | B3: MTK | D3: Tonkin/Nigritelle | E3: cp | F3: DIXSEPT | G3: 26 | H3: In situ | I3: Première lecture | L3: Elémentaire | M3: Charpennes-Tonkin | N3: TONKIN | O3: TONKIN-DIXSEPT | P3: 1 | Q3: Réseau_DIXSEPT | R3: 1 | T3: 0.009803921569 | U3: Total_DIXSEPT | V3: 1
A4: 2017-11-09 | B4: MTK | D4: Louis Armand | E4: cm1 | F4: ONZE | G4: 30 | H4: In situ | I4: De la littérature au cinéma | L4: Elémentaire | M4: Charpennes-Tonkin | N4: TONKIN | O4: TONKIN-ONZE | P4: 1 | Q4: Réseau_ONZE | R4: 1 | T4: 0.009803921569 | U4: Total_ONZE | V4: 1
A5: 2017-11-16 | B5: MTK | D5: Saint Exupéry | E5: cm1/cm2 | F5: QUARENTEHUIT | G5: 23 | H5: In situ | I5: De la littérature au cinéma | L5: Elémentaire | M5: Saint Jean | N5: TONKIN | O5: TONKIN-QUARENTEHUIT | P5: 1 | Q5: Réseau_QUARENTEHUIT | R5: 0.5 | T5: 0.009803921569 | U5: Total_QUARENTEHUIT | V5: 0.5
A6: 2017-12-05 | B6: MTK | D6: Lakanal | E6: cp | F6: QUATREVINGTDIX | G6: 24 | H6: In situ | I6: Visite découverte | L6: Elémentaire | M6: Charpennes-Tonkin | N6: TONKIN | O6: TONKIN-QUATREVINGTDIX | P6: 1 | Q6: Réseau_QUATREVINGTDIX | R6: 1 | T6: 0.009803921569 | U6: Total_QUATREVINGTDIX | V6: 1
A7: 2017-12-21 | B7: MTK | D7: Ecole juive de Lyon (privé) | E7: ce1 | F7: QUATREVINGTNEUF | G7: 29 | H7: In situ | I7: Visite thématique | L7: Elémentaire | M7: Gratte-ciel-Dedieu-Charmettes | N7: TONKIN | O7: TONKIN-QUATREVINGTNEUF | P7: 1 | Q7: Réseau_QUATREVINGTNEUF | R7: 1 | T7: 0.009803921569 | U7: Total_QUATREVINGTNEUF | V7: 1
A8: 2017-11-24 | B8: MTK | D8: Lakanal | E8: cp/ce1 | F8: QUATREVINGTSEPT | G8: 24 | H8: In situ | I8: Visite à la carte | L8: Elémentaire | M8: Charpennes-Tonkin | N8: TONKIN | O8: TONKIN-QUATREVINGTSEPT | P8: 1 | Q8: Réseau_QUATREVINGTSEPT | R8: 1 | T8: 0.009803921569 | U8: Total_QUATREVINGTSEPT | V8: 1
A9: 2017-12-12 | B9: MTK | D9: Ecole juive de Lyon (privé) | E9: cp | F9: QUINZE | G9: 18 | H9: In situ | I9: Visite thématique | L9: Elémentaire | M9: Gratte-ciel-Dedieu-Charmettes | N9: TONKIN | O9: TONKIN-QUINZE | P9: 1 | Q9: Réseau_QUINZE | R9: 1 | T9: 0.009803921569 | U9: Total_QUINZE | V9: 1
A10: 2017-11-07 | B10: MTK | D10: Louis Armand | E10: cm1 | F10: SOIXANTEDEUX | G10: 30 | H10: In situ | I10: De la littérature au cinéma | L10: Elémentaire | M10: Charpennes-Tonkin | N10: TONKIN | O10: TONKIN-SOIXANTEDEUX | P10: 1 | Q10: Réseau_SOIXANTEDEUX | R10: 0.5 | T10: 0.009803921569 | U10: Total_SOIXANTEDEUX | V10: 0.5
A11: 2017-12-19 | B11: MTK | D11: Tonkin/Nigritelle | E11: ULIS (école) | F11: SOIXANTEDIX | G11: 5 | H11: In situ | I11: Visite à la carte | L11: Elémentaire | M11: Charpennes-Tonkin | N11: TONKIN | O11: TONKIN-SOIXANTEDIX | P11: 1 | Q11: Réseau_SOIXANTEDIX | R11: 1 | T11: 0.009803921569 | U11: Total_SOIXANTEDIX | V11: 1
A12: 2017-12-08 | B12: MTK | D12: Lakanal | E12: cm1/cm2 | F12: SOIXANTEDIXHUIT | G12: 29 | H12: In situ | I12: Visite poésie | L12: Elémentaire | M12: Charpennes-Tonkin | N12: TONKIN | O12: TONKIN-SOIXANTEDIXHUIT | P12: 1 | Q12: Réseau_SOIXANTEDIXHUIT | R12: 1 | T12: 0.009803921569 | U12: Total_SOIXANTEDIXHUIT | V12: 1
A13: 2017-12-01 | B13: MTK | D13: Lakanal | E13: ce2 | F13: SOIXANTEQUATRE | G13: 28 | H13: In situ | I13: Première lecture | L13: Elémentaire | M13: Charpennes-Tonkin | N13: TONKIN | O13: TONKIN-SOIXANTEQUATRE | P13: 1 | Q13: Réseau_SOIXANTEQUATRE | R13: 1 | T13: 0.009803921569 | U13: Total_SOIXANTEQUATRE | V13: 1
A14: 2017-11-24 | B14: MTK | D14: Descartes | E14: ms | F14: SOIXANTETREIZE | G14: 24 | H14: In situ | I14: Visite découverte | L14: Maternelle | M14: Charpennes-Tonkin | N14: TONKIN | O14: TONKIN-SOIXANTETREIZE | P14: 1 | Q14: Réseau_SOIXANTETREIZE | R14: 1 | T14: 0.009803921569 | U14: Total_SOIXANTETREIZE | V14: 1
A15: 2017-12-01 | B15: MTK | D15: Tonkin/Nigritelle | E15: cp | F15: TRENSEPT | G15: 26 | H15: In situ | I15: Visite découverte | L15: Elémentaire | M15: Charpennes-Tonkin | N15: TONKIN | O15: TONKIN-TRENSEPT | P15: 1 | Q15: Réseau_TRENSEPT | R15: 1 | T15: 0.009803921569 | U15: Total_TRENSEPT | V15: 1
A16: 2017-11-28 | B16: MTK | D16: Lakanal | E16: ce1 | F16: VINGTNEUF | G16: 26 | H16: In situ | I16: Première lecture | L16: Elémentaire | M16: Charpennes-Tonkin | N16: TONKIN | O16: TONKIN-VINGTNEUF | P16: 1 | Q16: Réseau_VINGTNEUF | R16: 1 | T16: 0.009803921569 | U16: Total_VINGTNEUF | V16: 1

Sheet Bilans
A1: Type tableau | B1: pl. Données | C1: pl. Résultats | D1: pl. TitresLig | E1: pl. titresCol | F1: Champ Lig | G1: Champ Col | H1: Champ NbEleve | I1: champ Enseignant | L1: https://www.commentcamarche.net/forum/affich-35499266-calculer-l-occurrence-de-deux-donnees-pas-somme#p35504763
A2: 1 | B2: =T_sept_dec[] -> RIZE MED | C2: =C12:G23 ->  | D2: =A12:A23 ->  | E2: =C11:G11 -> Ecole (Mat+Element) | F2: reg_Sect | G2: reg_Niv | H2: Nombre enfants | I2: Enseignant référent (Nom Prénom)
A3: 1 | B3: =T_sept_dec[] -> RIZE VALO | C3: =C28:G42 ->  | D3: =A28:A42 ->  | E3: =C27:G27 -> Ecole (Mat+Element) | F3: reg_Sect | G3: reg_Niv | H3: Nombre enfants | I3: Enseignant référent (Nom Prénom)
A4: 1 | B4: =T_sept_dec[] -> EMM | C4: =C63:N92 ->  | D4: =$A$63:$A$92 ->  | E4: =C61:N61 -> 0 | F4: reg_Quart | G4: reg_Niv | H4: Nombre enfants | I4: Enseignant référent (Nom Prénom) | K4: !!! 2 tableaux juxtaposés pour Bilan par quartier. Attention pl. titresCol ne sont pas sur la même ligne
A5: 1 | B5: =T_sept_dec[] -> RIZE MED | C5: =O63:S92 ->  | D5: =$A$63:$A$92 ->  | E5: =O62:S62 ->  | F5: reg_Quart | G5: reg_Sect | H5: Nombre enfants | I5: Enseignant référent (Nom Prénom) | K5: !!! 2 tableaux juxtaposés pour Bilan par quartier. Attention pl. titresCol ne sont pas sur la même ligne
L9: Modèles à supprimer
A10: Bilan global sur l'année scolaire 2018/2019
B11: Nb de | C11: Maternelle | D11: Elémentaire | E11: Ecole (Mat+Element) | F11: Collège | G11: Lycée | H11: Totaux | I11: Totaux avec clé | V11: Nb de | W11: Maternelle | X11: Elémentaire | Y11: Ecole (Mat+Element) | Z11: Collège | AA11: Lycée | AB11: Totaux
A12: Réseau des médiathèques | B12: Classes accueillies | C12: 9 | D12: 66 | E12: 75 | F12: 5 | G12: 3 | H12: =E12+F12+G12 -> 83 | I12: =SUMPRODUCT((LEFT(T_sept_dec[CléRéseau-Rize horsmed],2)="Ré")*T_sept_dec[cptréseau-rizehormed]) -> 83 | V12: Classes accueillies | W12: 9 | X12: 58 | Y12: 67 | Z12: 4 | AA12: 1 | AB12: 72
B13: Enfants accueillis | C13: 225 | D13: 1501 | E13: 1726 | F13: 124 | G13: 69 | H13: =E13+F13+G13 -> 1919 | I13: =SUMPRODUCT((LEFT(T_sept_dec[CléRéseau-Rize horsmed],2)="Ré")*T_sept_dec[cptréseau-rizehormed]*T_sept_dec[Nombre enfants]) -> 1902.47619 | V13: Enfants accueillis | W13: 225 | X13: 1304 | Y13: 1529 | Z13: 104 | AA13: 28 | AB13: 1661
B14: Accueils de classe effectués | C14: 9 | D14: 76 | E14: 85 | F14: 16 | G14: 5 | H14: =E14+F14+G14 -> 106 | I14: =COUNTIF(Données!B:B,"ARTO")+COUNTIF(Données!B:B,"EMM")+COUNTIF(Données!B:B,"MLIS A")+COUNTIF(Données!B:B,"MLIS DV")+COUNTIF(Données!B:B,"MLIS J")+COUNTIF(Données!B:B,"MTK")+COUNTIF(Données!B:B,"PAC-BUS")+COUNTIF(Données!B:B,"RIZE MED") -> 106 | V14: Accueils de classe effectués | W14: 9 | X14: 62 | Y14: 71 | Z14: 14 | AA14: 3 | AB14: 88
A15: Accueils menés seulement par le Rize (hors médiathèque) | B15: Classes accueillies | D15: 11 | E15: 11 | F15: 3 | G15: 1 | H15: =E15+F15+G15 -> 15 | I15: =SUMPRODUCT((LEFT(T_sept_dec[CléRéseau-Rize horsmed],2)="Ri")*T_sept_dec[cptréseau-rizehormed]) -> 15 | V15: Classes accueillies | X15: 11 | Y15: 11 | Z15: 3 | AA15: 1 | AB15: 15
B16: Enfants accueillis | D16: 269 | E16: 269 | F16: 76 | G16: 15 | H16: =E16+F16+G16 -> 360 | I16: =SUMPRODUCT((LEFT(T_sept_dec[CléRéseau-Rize horsmed],2)="Ri")*T_sept_dec[cptréseau-rizehormed]*T_sept_dec[Nombre enfants]) -> 360 | V16: Enfants accueillis | X16: 269 | Y16: 269 | Z16: 76 | AA16: 15 | AB16: 360
B17: Accueils de classe effectués | D17: 12 | E17: 12 | F17: 3 | G17: 1 | H17: =E17+F17+G17 -> 16 | I17: =COUNTIF(Données!B:B,"RIZE ARCHI")+COUNTIF(Données!B:B,"RIZE VALO") -> 16 | V17: Accueils de classe effectués | X17: 12 | Y17: 12 | Z17: 3 | AA17: 1 | AB17: 16
A18: FDL | B18: Classes accueillies | D18: 8 | E18: 8 | H18: 8 | I18: =SUMIF(T_sept_dec[Secteur organisateur],"FDL",T_sept_dec[cptEtablissement]) -> 8 | V18: Classes accueillies | AB18: 0
B19: Enfants accueillis | D19: 189 | E19: 189 | H19: 189 | I19: =SUMPRODUCT((T_sept_dec[Secteur organisateur]="FDL")*T_sept_dec[Nombre enfants]*T_sept_dec[cptEtablissement]) -> 189 | V19: Enfants accueillis | AB19: 0
B20: Accueils de classe effectués | D20: 20 | E20: 20 | H20: 20 | I20: =COUNTIF(Données!B:B,"FDL") -> 20 | V20: Accueils de classe effectués | AB20: 0
A21: TOTAL (méd, RIZE, FDL) | B21: Classes accueillies | C21: 9 | D21: 82 | E21: 91 | F21: 8 | G21: 4 | H21: =E21+F21+G21 -> 103 | I21: =SUMPRODUCT((LEFT(T_sept_dec[cléTotal],2)="To")*T_sept_dec[cptTotal]) -> 103 | V21: Classes accueillies | W21: 9 | X21: 69 | Y21: 78 | Z21: 7 | AA21: 2 | AB21: 87
B22: Enfants accueillis | C22: 225 | D22: 1886 | E22: 2111 | F22: 200 | G22: 84 | H22: =E22+F22+G22 -> 2395 | I22: =SUMPRODUCT((LEFT(T_sept_dec[cléTotal],2)="To")*T_sept_dec[cptTotal]*T_sept_dec[Nombre enfants]) -> 2377.642857 | V22: Enfants accueillis | W22: 225 | X22: 1573 | Y22: 1798 | Z22: 180 | AA22: 43 | AB22: 2021
B23: Accueils de classe effectués | C23: 9 | D23: 108 | E23: 117 | F23: 19 | G23: 6 | H23: =E23+F23+G23 -> 142 | I23: =I14+I17+I20 -> 142 | V23: Accueils de classe effectués | W23: 9 | X23: 108 | Y23: 117 | Z23: 17 | AA23: 4 | AB23: 138
A26: Bilan par établissement sur l'année scolaire | L26: Bilan par établissement sur l'année scolaire
B27: Nb de | C27: Maternelle | D27: Elémentaire | E27: Ecole (Mat+Element) | F27: Collège | G27: Lycée | H27: Totaux | I27: Totaux avec clé | M27: Nb de | N27: Maternelle | O27: Elémentaire | P27: Ecole (Mat+Element) | Q27: Collège | R27: Lycée | S27: Totaux | T27: Totaux avec clé
A28: MLIS | B28: Classes accueillies | C28: 1 | D28: 40 | E28: 41 | F28: 3 | G28: 2 | H28: =E28+F28+G28 -> 46 | I28: =SUMPRODUCT((LEFT(T_sept_dec[CléEtablissement],2)="ML")*T_sept_dec[cptEtablissement]) -> 46 | L28: MLIS | M28: Classes accueillies | N28: 1 | O28: 40 | P28: 41 | Q28: 3 | R28: 2 | S28: 46 | T28: 46
B29: Enfants accueillis | C29: 31 | D29: 892 | E29: 923 | F29: 74 | G29: 41 | H29: =E29+F29+G29 -> 1038 | I29: =SUMPRODUCT((LEFT(T_sept_dec[CléEtablissement],2)="ML")*T_sept_dec[cptEtablissement]*T_sept_dec[Nombre enfants]) -> 1033.5 | M29: Enfants accueillis | N29: 31 | O29: 891 | P29: 922 | Q29: 71 | R29: 41 | S29: 1034 | T29: 1033.5
B30: Accueils de classe effectués | C30: 1 | D30: 47 | E30: 48 | F30: 7 | G30: 2 | H30: 57 | I30: =COUNTIF(Données!B:B,"ARTO")+COUNTIF(Données!B:B,"EMM")+COUNTIF(Données!B:B,"MLIS A")+COUNTIF(Données!B:B,"MLIS DV")+COUNTIF(Données!B:B,"MLIS J") -> 57 | M30: Accueils de classe effectués | N30: 1 | O30: 47 | P30: 48 | Q30: 7 | R30: 2 | S30: 57 | T30: 0
A31: RIZE | B31: Classes accueillies | C31: 3 | D31: 19 | E31: 22 | F31: 5 | G31: 2 | H31: 29 | I31: =SUMPRODUCT((LEFT(T_sept_dec[CléEtablissement],2)="RI")*T_sept_dec[cptEtablissement]) -> 29 | L31: RIZE | M31: Classes accueillies | N31: 3 | O31: 19 | P31: 22 | Q31: 5 | R31: 2 | S31: 29 | T31: 29
B32: Enfants accueillis | C32: 69 | D32: 448 | E32: 517 | F32: 126 | G32: 43 | H32: =E32+F32+G32 -> 686 | I32: =SUMPRODUCT((LEFT(T_sept_dec[CléEtablissement],2)="RI")*T_sept_dec[cptEtablissement]*T_sept_dec[Nombre enfants]) -> 675.4761905 | J32: devrait être 686 (en prenant l'effectif le plus grand d'une classe venue 3 fois). | M32: Enfants accueillis | N32: 69 | O32: 448 | P32: 517 | Q32: 124 | R32: 30 | S32: 671 | T32: 675.4761905
B33: Accueils de classe effectués | C33: 3 | D33: 21 | E33: 24 | F33: 12 | G33: 4 | H33: 40 | I33: =COUNTIF(Données!B:B,"RIZE ARCHI")+COUNTIF(Données!B:B,"RIZE MED")+COUNTIF(Données!B:B,"RIZE VALO") -> 40 | M33: Accueils de classe effectués | N33: 3 | O33: 21 | P33: 24 | Q33: 12 | R33: 4 | S33: 40 | T33: 0
A34: TONKIN | B34: Classes accueillies | C34: 1 | D34: 14 | E34: 15 | H34: =E34+F34+G34 -> 15 | I34: =SUMIF(T_sept_dec[Secteur organisateur],"MTK",T_sept_dec[cptEtablissement]) -> 15 | L34: TONKIN | M34: Classes accueillies | N34: 1 | O34: 14 | P34: 15 | S34: 15 | T34: 15
B35: Enfants accueillis | C35: 24 | D35: 344 | E35: 368 | H35: =E35+F35+G35 -> 368 | I35: =SUMPRODUCT((T_sept_dec[Secteur organisateur]="MTK")*T_sept_dec[Nombre enfants]*T_sept_dec[cptEtablissement]) -> 368 | M35: Enfants accueillis | N35: 24 | O35: 346 | P35: 370 | S35: 370 | T35: 368
B36: Accueils de classe effectués | C36: 1 | D36: 14 | E36: 15 | H36: 15 | I36: =COUNTIF(Données!B:B,"MTK") -> 15 | M36: Accueils de classe effectués | N36: 1 | O36: 14 | P36: 15 | S36: 15 | T36: 0
A37: PAC-BUS | B37: Classes accueillies | C37: 4 | D37: 6 | E37: 10 | H37: 10 | I37: =SUMIF(T_sept_dec[Secteur organisateur],"PAC-BUS",T_sept_dec[cptEtablissement]) -> 10 | L37: PAC-BUS | M37: Classes accueillies | N37: 4 | O37: 6 | P37: 10 | S37: 10 | T37: 10
B38: Enfants accueillis | C38: 101 | D38: 138 | E38: 239 | H38: 239 | I38: =SUMPRODUCT((T_sept_dec[Secteur organisateur]="PAC-BUS")*T_sept_dec[Nombre enfants]*T_sept_dec[cptEtablissement]) -> 239 | M38: Enfants accueillis | N38: 101 | O38: 138 | P38: 239 | S38: 239 | T38: 239
B39: Accueils de classe effectués | C39: 4 | D39: 6 | E39: 10 | H39: 10 | I39: =COUNTIF(Données!B:B,"PAC-BUS") -> 10 | M39: Accueils de classe effectués | N39: 4 | O39: 6 | P39: 10 | S39: 10 | T39: 0
A40: FDL | B40: Classes accueillies | D40: 8 | E40: 8 | H40: 8 | I40: =SUMIF(T_sept_dec[Secteur organisateur],"FDL",T_sept_dec[cptEtablissement]) -> 8 | L40: FDL | M40: Classes accueillies | O40: 8 | P40: 8 | S40: 8 | T40: 8
B41: Enfants accueillis | D41: 189 | E41: 189 | H41: 189 | I41: =SUMPRODUCT((T_sept_dec[Secteur organisateur]="FDL")*T_sept_dec[Nombre enfants]*T_sept_dec[cptEtablissement]) -> 189 | M41: Enfants accueillis | O41: 190 | P41: 190 | S41: 190 | T41: 189
B42: Accueils de classe effectués | D42: 20 | E42: 20 | H42: 20 | I42: =COUNTIF(Données!B:B,"FDL") -> 20 | M42: Accueils de classe effectués | O42: 20 | P42: 20 | S42: 20 | T42: 0
A45: Bilan par secteur sur l'année scolaire
C46: Maternelle | D46: Elémentaire | E46: Ecole (Mat+Element) | F46: Collège | G46: Lycée | H46: Totaux | N46: Maternelle | O46: Elémentaire | P46: Ecole (Mat+Element) | Q46: Collège | R46: Lycée | S46: Totaux
A47: MLIS A | B47: Nombre d'accueils de classe effectués | C47: =COUNTIFS(Données!B:B,"MLIS A",Données!L:L,"Maternelle")+COUNTIFS(Données!C:C,"MLIS A",Données!L:L,"Maternelle") -> 0 | D47: =COUNTIFS(Données!B:B,"MLIS A",Données!L:L,"Elémentaire")+COUNTIFS(Données!C:C,"MLIS A",Données!L:L,"Elémentaire") -> 0 | E47: =C47+D47 -> 0 | F47: =COUNTIFS(Données!B:B,"MLIS A",Données!L:L,"Collège")+COUNTIFS(Données!C:C,"MLIS A",Données!L:L,"Collège") -> 0 | G47: =COUNTIFS(Données!B:B,"MLIS A",Données!L:L,"Lycée")+COUNTIFS(Données!C:C,"MLIS A",Données!L:L,"Lycée") -> 2 | H47: =E47+F47+G47 -> 2 | L47: MLIS A | M47: Nombre d'accueils de classe effectués | N47: 0 | O47: 0 | P47: 0 | Q47: 0 | R47: 2 | S47: 2
A48: MLIS DV | C48: =COUNTIFS(Données!B:B,"MLIS DV",Données!L:L,"Maternelle")+COUNTIFS(Données!C:C,"MLIS DV",Données!L:L,"Maternelle") -> 0 | D48: =COUNTIFS(Données!B:B,"MLIS DV",Données!L:L,"Elémentaire")+COUNTIFS(Données!C:C,"MLIS DV",Données!L:L,"Elémentaire") -> 0 | E48: =C48+D48 -> 0 | F48: =COUNTIFS(Données!B:B,"MLIS DV",Données!L:L,"Collège")+COUNTIFS(Données!C:C,"MLIS DV",Données!L:L,"Collège") -> 0 | G48: =COUNTIFS(Données!B:B,"MLIS DV",Données!L:L,"Lycée")+COUNTIFS(Données!C:C,"MLIS DV",Données!L:L,"Lycée") -> 0 | H48: =E48+F48+G48 -> 0 | L48: MLIS DV | N48: 0 | O48: 0 | P48: 0 | Q48: 0 | R48: 0 | S48: 0
A49: EMM | C49: =COUNTIFS(Données!B:B,"EMM",Données!L:L,"Maternelle")+COUNTIFS(Données!C:C,"EMM",Données!L:L,"Maternelle") -> 0 | D49: =COUNTIFS(Données!B:B,"EMM",Données!L:L,"Elémentaire")+COUNTIFS(Données!C:C,"EMM",Données!L:L,"Elémentaire") -> 9 | E49: 9 | F49: =COUNTIFS(Données!B:B,"EMM",Données!L:L,"Collège")+COUNTIFS(Données!C:C,"EMM",Données!L:L,"Collège") -> 1 | G49: =COUNTIFS(Données!B:B,"EMM",Données!L:L,"Lycée")+COUNTIFS(Données!C:C,"EMM",Données!L:L,"Lycée") -> 0 | H49: 10 | L49: EMM | N49: 0 | O49: 9 | P49: 9 | Q49: 1 | R49: 0 | S49: 10
A50: MLIS J | C50: =COUNTIFS(Données!B:B,"MLIS J",Données!L:L,"Maternelle")+COUNTIFS(Données!C:C,"MLIS J",Données!L:L,"Maternelle") -> 1 | D50: =COUNTIFS(Données!B:B,"MLIS J",Données!L:L,"Elémentaire")+COUNTIFS(Données!C:C,"MLIS J",Données!L:L,"Elémentaire") -> 24 | E50: 25 | F50: =COUNTIFS(Données!B:B,"MLIS J",Données!L:L,"Collège")+COUNTIFS(Données!C:C,"MLIS J",Données!L:L,"Collège") -> 6 | G50: =COUNTIFS(Données!B:B,"MLIS J",Données!L:L,"Lycée")+COUNTIFS(Données!C:C,"MLIS J",Données!L:L,"Lycée") -> 0 | H50: 31 | L50: MLIS J | N50: 1 | O50: 24 | P50: 25 | Q50: 6 | R50: 0 | S50: 31
A51: ARTO | C51: =COUNTIFS(Données!B:B,"ARTO",Données!L:L,"Maternelle")+COUNTIFS(Données!C:C,"ARTO",Données!L:L,"Maternelle") -> 0 | D51: =COUNTIFS(Données!B:B,"ARTO",Données!L:L,"Elémentaire")+COUNTIFS(Données!C:C,"ARTO",Données!L:L,"Elémentaire") -> 14 | E51: 14 | F51: =COUNTIFS(Données!B:B,"ARTO",Données!L:L,"Collège")+COUNTIFS(Données!C:C,"ARTO",Données!L:L,"Collège") -> 0 | G51: =COUNTIFS(Données!B:B,"ARTO",Données!L:L,"Lycée")+COUNTIFS(Données!C:C,"ARTO",Données!L:L,"Lycée") -> 0 | H51: 14 | L51: ARTO | N51: 0 | O51: 14 | P51: 14 | Q51: 0 | R51: 0 | S51: 14
A52: RIZE ARCHI | C52: =COUNTIFS(Données!B:B,"RIZE ARCHI",Données!L:L,"Maternelle")+COUNTIFS(Données!C:C,"RIZE ARCHI",Données!L:L,"Maternelle") -> 0 | D52: =COUNTIFS(Données!B:B,"RIZE ARCHI",Données!L:L,"Elémentaire")+COUNTIFS(Données!C:C,"RIZE ARCHI",Données!L:L,"Elémentaire") -> 0 | E52: 0 | F52: =COUNTIFS(Données!B:B,"RIZE ARCHI",Données!L:L,"Collège")+COUNTIFS(Données!C:C,"RIZE ARCHI",Données!L:L,"Collège") -> 0 | G52: =COUNTIFS(Données!B:B,"RIZE ARCHI",Données!L:L,"Lycée")+COUNTIFS(Données!C:C,"RIZE ARCHI",Données!L:L,"Lycée") -> 0 | H52: 0 | L52: RIZE ARCHI | N52: 0 | O52: 0 | P52: 0 | Q52: 0 | R52: 0 | S52: 0
A53: RIZE MED | C53: =COUNTIFS(Données!B:B,"RIZE MED",Données!L:L,"Maternelle") -> 3 | D53: =COUNTIFS(Données!B:B,"RIZE MED",Données!L:L,"Elémentaire") -> 9 | E53: 12 | F53: =COUNTIFS(Données!B:B,"RIZE MED",Données!L:L,"Collège") -> 9 | G53: =COUNTIFS(Données!B:B,"RIZE MED",Données!L:L,"Lycée") -> 3 | H53: 24 | L53: RIZE MED | N53: 3 | O53: 9 | P53: 12 | Q53: 9 | R53: 3 | S53: 24
A54: RIZE VALO | C54: =COUNTIFS(Données!B:B,"RIZE VALO",Données!L:L,"Maternelle")+COUNTIFS(Données!C:C,"RIZE VALO",Données!L:L,"Maternelle") -> 0 | D54: =COUNTIFS(Données!B:B,"RIZE VALO",Données!L:L,"Elémentaire")+COUNTIFS(Données!C:C,"RIZE VALO",Données!L:L,"Elémentaire") -> 12 | E54: 12 | F54: =COUNTIFS(Données!B:B,"RIZE VALO",Données!L:L,"Collège")+COUNTIFS(Données!C:C,"RIZE VALO",Données!L:L,"Collège") -> 3 | G54: =COUNTIFS(Données!B:B,"RIZE VALO",Données!L:L,"Lycée")+COUNTIFS(Données!C:C,"RIZE VALO",Données!L:L,"Lycée") -> 1 | H54: 16 | L54: RIZE VALO | N54: 0 | O54: 12 | P54: 12 | Q54: 3 | R54: 1 | S54: 16
A55: TONKIN | C55: =COUNTIFS(Données!B:B,"MTK",Données!L:L,"Maternelle") -> 1 | D55: =COUNTIFS(Données!B:B,"MTK",Données!L:L,"Elémentaire") -> 14 | E55: 15 | F55: =COUNTIFS(Données!B:B,"MTK",Données!L:L,"Collège") -> 0 | G55: =COUNTIFS(Données!B:B,"MTK",Données!L:L,"Lycée") -> 0 | H55: 15 | L55: TONKIN | N55: 1 | O55: 14 | P55: 15 | Q55: 0 | R55: 0 | S55: 15
A56: PAC-BUS | C56: =COUNTIFS(Données!B:B,"PAC-BUS",Données!L:L,"Maternelle") -> 4 | D56: =COUNTIFS(Données!B:B,"PAC-BUS",Données!L:L,"Elémentaire") -> 6 | E56: 10 | F56: =COUNTIFS(Données!B:B,"PAC-BUS",Données!L:L,"Collège") -> 0 | G56: =COUNTIFS(Données!B:B,"PAC-BUS",Données!L:L,"Lycée") -> 0 | H56: 10 | L56: PAC-BUS | N56: 4 | O56: 6 | P56: 10 | Q56: 0 | R56: 0 | S56: 10
A57: FDL | C57: =COUNTIFS(Données!B:B,"FDL",Données!L:L,"Maternelle") -> 0 | D57: =COUNTIFS(Données!B:B,"FDL",Données!L:L,"Elémentaire") -> 20 | E57: =C57+D57 -> 20 | F57: =COUNTIFS(Données!B:B,"FDL",Données!L:L,"Collège") -> 0 | G57: =COUNTIFS(Données!B:B,"FDL",Données!L:L,"Lycée") -> 0 | H57: 20 | L57: FDL | N57: 0 | O57: 20 | P57: 20 | Q57: 0 | R57: 0 | S57: 20
A60: Bilan par quartier sur l'année scolaire
C61: Maternelle | F61: Elémentaire | I61: Collège | L61: Lycée | O61: Accueillie par | T61: Totaux
B62: Nb de | C62: Nb accueilli | D62: Sur | E62: % | F62: Nb accueilli | G62: Sur | H62: % | I62: Nb accueilli | J62: Sur | K62: % | L62: Nb accueilli | M62: Sur | N62: % | O62: FDL | P62: MLIS | Q62: RIZE | R62: PAC-BUS | S62: TONKIN | T62: Total | U62: Sur | V62: %
A63: Buers-Croix-Luizet | B63: Classes accueillies | F63: 6 | I63: 1 | P63: 6 | Q63: 1 | T63: =C63+F63+I63+L63 -> 7 | V63: =T63/U63 -> 
B64: Enfants accueillis | F64: 134 | I64: 29 | P64: 136 | Q64: 27 | T64: =C64+F64+I64+L64 -> 163 | V64: =T64/U64 -> 
B65: Accueils de classe effectués | F65: 7 | I65: 3 | P65: 8 | Q65: 2 | T65: =SUM(O65:S65) -> 10 | U65: / | V65: /
A66: Charpennes-Tonkin | B66: Classes accueillies | C66: 1 | F66: 12 | P66: 2 | S66: 12 | T66: =C66+F66+I66+L66 -> 13
B67: Enfants accueillis | C67: 24 | F67: 304 | P67: 59 | S67: 298 | T67: =C67+F67+I67+L67 -> 328
B68: Accueils de classe effectués | C68: 1 | F68: 13 | P68: 2 | S68: 12 | T68: =SUM(O68:S68) -> 14 | U68: / | V68: /
A69: Cusset-Bonnevay | B69: Classes accueillies | F69: 5 | I69: 1 | L69: 2 | P69: 7 | Q69: 1 | T69: =C69+F69+I69+L69 -> 8
B70: Enfants accueillis | F70: 106 | I70: 20 | L70: 26 | P70: 137 | Q70: 15 | T70: =C70+F70+I70+L70 -> 152
B71: Accueils de classe effectués | F71: 5 | I71: 2 | L71: 2 | P71: 8 | Q71: 1 | T71: =SUM(O71:S71) -> 9 | U71: / | V71: /
A72: Cyprian-les-Brosses | B72: Classes accueillies | C72: 4 | F72: 20 | O72: 8 | P72: 11 | Q72: 1 | R72: 7 | T72: =C72+F72+I72+L72 -> 24
B73: Enfants accueillis | C73: 101 | F73: 470 | O73: 189 | P73: 257 | Q73: 23 | R73: 175 | T73: =C73+F73+I73+L73 -> 571
B74: Accueils de classe effectués | C74: 4 | F74: 41 | O74: 20 | P74: 17 | Q74: 1 | R74: 7 | T74: =SUM(O74:S74) -> 45 | U74: / | V74: /
A75: Ferrandière-Maisons Neuves | B75: Classes accueillies | C75: 3 | F75: 5 | I75: 3 | Q75: 11 | T75: =C75+F75+I75+L75 -> 11
B76: Enfants accueillis | C76: 69 | F76: 120 | I76: 78 | Q76: 267 | T76: =C76+F76+I76+L76 -> 267
B77: Accueils de classe effectués | C77: 3 | F77: 6 | I77: 10 | Q77: 19 | T77: =SUM(O77:S77) -> 19 | U77: / | V77: /
A78: Gratte-ciel-Dedieu-Charmettes | B78: Classes accueillies | C78: 1 | F78: 24 | I78: 1 | L78: 1 | P78: 16 | Q78: 9 | S78: 2 | T78: =C78+F78+I78+L78 -> 27
B79: Enfants accueillis | C79: 31 | F79: 572 | I79: 25 | L79: 30 | P79: 386 | Q79: 225 | S79: 47 | T79: =C79+F79+I79+L79 -> 658
B80: Accueils de classe effectués | C80: 1 | F80: 24 | I80: 2 | L80: 1 | P80: 17 | Q80: 9 | S80: 2 | T80: =SUM(O80:S80) -> 28 | U80: / | V80: /
A81: Perralière-Grandclément | B81: Classes accueillies | F81: 6 | L81: 1 | P81: 3 | Q81: 4 | T81: =C81+F81+I81+L81 -> 7
B82: Enfants accueillis | F82: 91 | L82: 28 | P82: 38 | Q82: 81 | T82: =C82+F82+I82+L82 -> 119
B83: Accueils de classe effectués | F83: 7 | L83: 3 | P83: 4 | Q83: 6 | T83: =SUM(O83:S83) -> 10
A84: Saint Jean | B84: Classes accueillies | F84: 4 | P84: 1 | R84: 3 | S84: 1 | T84: =C84+F84+I84+L84 -> 4
B85: Enfants accueillis | F85: 89 | P85: 25 | R85: 64 | S85: 23 | T85: =C85+F85+I85+L85 -> 89
B86: Accueils de classe effectués | F86: 5 | P86: 1 | R86: 3 | S86: 1 | T86: =SUM(O86:S86) -> 5 | U86: / | V86: /
A87: Hors Villeurbanne | B87: Classes accueillies | I87: 2 | Q87: 2 | T87: =C87+F87+I87+L87 -> 2
B88: Enfants accueillis | I88: 48 | Q88: 48 | T88: =C88+F88+I88+L88 -> 48
B89: Accueils de classe effectués | I89: 2 | Q89: 2 | T89: =SUM(O89:S89) -> 2 | U89: / | V89: /
A90: Totaux | B90: Classes accueillies | C90: 9 | F90: 82 | I90: 8 | L90: 4 | O90: 8 | P90: 46 | Q90: 29 | R90: 10 | S90: 15 | T90: =T63+T66+T69+T72+T75+T78+T81+T84+T87 -> 103 | V90: =T90/U90 -> 
B91: Enfants accueillis | C91: 225 | F91: 1886 | I91: 200 | L91: 84 | O91: 189 | P91: 1038 | Q91: 686 | R91: 239 | S91: 368 | T91: =T64+T67+T70+T73+T76+T79+T82+T85+T88 -> 2395
B92: Accueils de classe effectués | C92: 9 | F92: 108 | I92: 19 | L92: 6 | O92: 20 | P92: 57 | Q92: 40 | R92: 10 | S92: 15 | T92: =T65+T68+T71+T74+T77+T80+T83+T86+T89 -> 142 | U92: / | V92: /
A94: Nombre d'accueils de classe in situ/hors les murs
C95: In situ | D95: Hors les murs
A96: MLIS | C96: =SUM(C97:C101) -> 57 | D96: =SUM(D97:D101) -> 0
A97: Secteur jeunesse | C97: =COUNTIFS(Données!B:B,"MLIS j",Données!H:H,"In situ") -> 31 | D97: =COUNTIFS(Données!B:B,"MLIS j",Données!H:H,"Hors les murs") -> 0
A98: Artothèque | C98: =COUNTIFS(Données!B:B,"ARTO",Données!H:H,"In situ") -> 14 | D98: =COUNTIFS(Données!B:B,"Arto",Données!H:H,"Hors les murs") -> 0
A99: Discothèque-vidéothèque | C99: =COUNTIFS(Données!B:B,"MLIS DV",Données!H:H,"In situ") -> 0 | D99: =COUNTIFS(Données!B:B,"MLIS DV",Données!H:H,"Hors les murs") -> 0
A100: Espace multimédia | C100: =COUNTIFS(Données!B:B,"EMM",Données!H:H,"In situ") -> 10 | D100: =COUNTIFS(Données!B:B,"EMM",Données!H:H,"Hors les murs") -> 0
A101: Secteur adultes | C101: =COUNTIFS(Données!B:B,"mlis A",Données!H:H,"In situ") -> 2 | D101: =COUNTIFS(Données!B:B,"mlis A",Données!H:H,"Hors les murs") -> 0
A102: TONKIN | C102: =COUNTIFS(Données!B:B,"MTK",Données!H:H,"In situ") -> 15 | D102: =COUNTIFS(Données!B:B,"MTK",Données!H:H,"Hors les murs") -> 0
A103: Rize | C103: =COUNTIFS(Données!N:N,"Rize",Données!H:H,"In situ") -> 29 | D103: =COUNTIFS(Données!N:N,"Rize",Données!H:H,"Hors les murs") -> 11
A104: PAC - Bibliobus | C104: =COUNTIFS(Données!B:B,"PAC-BUS",Données!H:H,"In situ") -> 0 | D104: =COUNTIFS(Données!B:B,"PAC-BUS",Données!H:H,"Hors les murs") -> 10
A105: FDL | C105: =COUNTIFS(Données!B:B,"FDL",Données!H:H,"In situ") -> 20 | D105: =COUNTIFS(Données!B:B,"FDL",Données!H:H,"Hors les murs") -> 0
A106: Nb d'accueils total | C106: =C96+C102+C103+C104+C105 -> 121 | D106: =D96+D102+D103+D104+D105 -> 21

Sheet listes
A1: Niveau classe | B1: Secteur organisateur | C1: Réseau | D1: Rizehorsmed | E1: Type de visite | F1: Etablissement scolaire | G1: In situ / hors les murs | H1: Classe accueillie pour la…fois | I1: Quartiers | J1: Buers-Croix-Luizet | K1: Charpennes-Tonkin | L1: Cusset-Bonnevay | M1: Cyprian-les-Brosses | N1: Ferrandière-Maisons Neuves | O1: Gratte-ciel-Dedieu-Charmettes | P1: Perralière-Grandclément | Q1: Saint Jean | R1: Hors Villeurbanne | S1: Niveaux classe | T1: Maternelle | U1: Elémentaire | V1: Collège | W1: Lycée
A2: autres (maternelle) | B2: FDL | C2: ARTO | D2: RIZE ARCHI | E2: Album | F2: Hors Villeurbanne | G2: In situ | H2: 1 | J2: Collège Jean Macé | K2: Tonkin/Nigritelle | L2: Ernest Renan A | M2: Albert Camus | N2: Antonin Perrin | O2: Anatole France | P2: Berthelot | Q2: Saint Exupéry | R2: Hors Villeurbanne | T2: autres (maternelle) | U2: autres (élémentaire) | V2: autres (collège) | W2: autres (lycée)
A3: autres (élémentaire) | B3: ARTO | C3: EMM | D3: RIZE VALO | E3: Autour de la musique | F3: Albert Camus | G3: Hors les murs | H3: 2 | J3: Croix-Luizet | K3: Descartes | L3: Ernest Renan B | M3: Jules Guesde | N3: Jean Jaurès (primaire) | O3: Edouard Herriot | P3: Louis Pasteur | Q3: Collège Jean-Vilar | T3: tps | U3: cp | V3: 6° | W3: 2°
A4: autres (collège) | B4: EMM | C4: MLIS A | E4: Autour du cinéma | F4: Anatole France | H4: 3 | J4: Jean Moulin | K4: François Truffaut | L4: Jules Ferry | M4: Simone Veil | N4: Collège Jean Jaurès | O4: Emile Zola | P4: René Pellet (déficients visuels) | Q4: Collège Simone Lagrange | T4: ps | U4: cp/ce1 | V4: 5° | W4: 2° pro
A5: autres (lycée) | B5: MLIS A | C5: MLIS DV | E5: Arrêt Bibliobus | F5: Antonin Perrin | H5: 4 | J5: Château-Gaillard | K5: Lakanal | L5: Lazare Goujon | M5: Collège Lamartine | N5: Collège Louis Jouvet | O5: Jacques Prévert | P5: La Nativité (privé) | T5: ps/ms | U5: ce1 | V5: 4° | W5: 1°
A6: tps | B6: MLIS DV | C6: MLIS J | E6: Ateliers | F6: Berthelot | H6: 5 | K6: Louis Armand | L6: Lycée Frédéric Faÿs | M6: Lycée Alfred de Musset | O6: Jean Zay | P6: Immaculée conception (privé) | T6: ps/gs | U6: ce1/ce2 | V6: 3° | W6: 1° pro
A7: ps | B7: MLIS J | C7: MTK | E7: Autre | F7: Beth Menahem (privé) | H7: 6 | K7: Mère Teresa (privé) | L7: Beth Menahem (privé) | O7: Léon Jouhaux | P7: Lycée Marie Curie | T7: ms | U7: ce2 | V7: ULIS (collège) | W7: Tle
A8: ps/ms | B8: MTK | C8: PAC-BUS | E8: Coder avec Scratch | F8: Château-Gaillard | H8: 7 | K8: Ecole Horizons (privé) | L8: Collège des Iris | O8: Rosa Parks | T8: ms/gs | U8: ce2/cm1 | W8: Tle pro
A9: ps/gs | B9: PAC-BUS | C9: RIZE MED | E9: Conte | F9: Croix-Luizet | H9: 8 | K9: Collège du Tonkin | O9: Ste Thérèse (privé) | T9: gs | U9: cm1 | W9: ULIS (lycée)
A10: ms | B10: RIZE ARCHI | E10: De la littérature au cinéma | F10: Descartes | H10: 9 | O10: Ecole juive de Lyon (privé) | U10: cm1/cm2
A11: ms/gs | B11: RIZE MED | E11: Diptyque | F11: Ecole Horizons (privé) | H11: 10 | O11: Collège des Gratte-Ciel (Môrice Leroux) | U11: cm2
A12: gs | B12: RIZE VALO | E12: Double jeu | F12: Ecole juive de Lyon (privé) | H12: 11 | O12: Lycée Pierre Brossolette | U12: ULIS (école)
A13: cp | E13: Et si on parlait d'art ? | F13: Edouard Herriot | H13: 12 | O13: Lycée Magenta
A14: cp/ce1 | E14: Exploration Gratte-Ciel | F14: Emile Zola | H14: 13 | O14: Montessori (privé)
A15: ce1 | E15: Exploration sensorielle | F15: Ernest Renan A | H15: 14
A16: ce1/ce2 | E16: Exploration urbaine | F16: Ernest Renan B | H16: 15
A17: ce2 | E17: Exposition | F17: François Truffaut | H17: 16
A18: ce2/cm1 | E18: Il était une fois l'art contemporain | F18: Immaculée conception (privé)
A19: cm1 | E19: Image & son, passages | F19: Jacques Prévert
A20: cm1/cm2 | E20: La maison des livres | F20: Jean Jaurès (primaire)
A21: cm2 | E21: Première lecture | F21: Jean Moulin
A22: ULIS (école) | E22: Projet FDL | F22: Jean Zay
A23: UP2A (élémentaire) | E23: Recherche documentaire | F23: Jules Ferry
A24: 6° | E24: Recherche multimédias | F24: Jules Guesde
A25: 5° | E25: Résidence FDL | F25: La Nativité (privé)
A26: 4° | E26: Spectacle | F26: Lakanal
A27: 3° | E27: Stop motion | F27: Lazare Goujon
A28: ULIS (collège) | E28: Tapis à conter | F28: Léon Jouhaux
A29: UP2A (collège) | E29: Visite à la carte | F29: Louis Armand
A30: 2° | E30: Visite découverte | F30: Louis Pasteur
A31: 2° pro | E31: Visite thématique | F31: Mère Teresa (privé)
A32: 1° | E32: Visite couplée | F32: Montessori (privé)
A33: 1° pro | E33: Visite médiathèque | F33: René Pellet (déficients visuels)
A34: Tle | E34: Visite poésie | F34: Rosa Parks
A35: Tle pro | F35: Saint Exupéry
A36: ULIS (lycée) | F36: Simone Veil
F37: Ste Thérèse (privé)
F38: Tonkin/Nigritelle
F39: Collège des Gratte-Ciel (Môrice Leroux)
F40: Collège des Iris
F41: Collège du Tonkin
F42: Collège Jean Jaurès
F43: Collège Jean Macé
F44: Collège Jean-Vilar
F45: Collège Lamartine
F46: Collège Louis Jouvet
F47: Collège Simone Lagrange
F48: Lycée Alfred de Musset
F49: Lycée Frédéric Faÿs
F50: Lycée Marie Curie
F51: Lycée Pierre Brossolette
F52: Lycée Magenta

Sheet Regroupements
A1: nom regroupement | B1: reg_Sect | M1: reg_Niv | T1: reg_Quart
B3: Secteur organisateur | C3: Réseau des médiathèques | D3: Accueils menés seulement par le Rize (hors médiathèque) | E3: FDL | F3: MLIS | G3: RIZE | H3: TONKIN | I3: PAC-BUS | J3: FDL | M3: Niveau de classe | N3: Maternelle | O3: Elémentaire | P3: Ecole (Mat+Element) | Q3: Collège | R3: Lycée | T3: Etablissement scolaire | U3: Quartier
B4: FDL | E4: x | J4: x | M4: autres (maternelle) | N4: x | P4: x | T4: Hors Villeurbanne | U4: Hors Villeurbanne
B5: ARTO | C5: x | F5: x | M5: autres (élémentaire) | O5: x | P5: x | T5: Albert Camus | U5: Cyprian-les-Brosses
B6: EMM | C6: x | F6: x | M6: autres (collège) | Q6: x | T6: Anatole France | U6: Gratte-ciel-Dedieu-Charmettes
B7: MLIS A | C7: x | F7: x | M7: autres (lycée) | R7: x | T7: Antonin Perrin | U7: Ferrandière-Maisons Neuves
B8: MLIS DV | C8: x | F8: x | M8: tps | N8: x | P8: x | T8: Berthelot | U8: Perralière-Grandclément
B9: MLIS J | C9: x | F9: x | M9: ps | N9: x | P9: x | T9: Beth Menahem (privé) | U9: Cusset-Bonnevay
B10: MTK | C10: x | H10: x | M10: ps/ms | N10: x | P10: x | T10: Château-Gaillard | U10: Buers-Croix-Luizet
B11: PAC-BUS | C11: x | I11: x | M11: ps/gs | N11: x | P11: x | T11: Croix-Luizet | U11: Buers-Croix-Luizet
B12: RIZE ARCHI | D12: x | G12: x | M12: ms | N12: x | P12: x | T12: Descartes | U12: Charpennes-Tonkin
B13: RIZE MED | C13: x | G13: x | M13: ms/gs | N13: x | P13: x | T13: Ecole Horizons (privé) | U13: Charpennes-Tonkin
B14: RIZE VALO | D14: x | G14: x | M14: gs | N14: x | P14: x | T14: Ecole juive de Lyon (privé) | U14: Gratte-ciel-Dedieu-Charmettes
M15: cp | O15: x | P15: x | T15: Edouard Herriot | U15: Gratte-ciel-Dedieu-Charmettes
M16: cp/ce1 | O16: x | P16: x | T16: Emile Zola | U16: Gratte-ciel-Dedieu-Charmettes
M17: ce1 | O17: x | P17: x | T17: Ernest Renan A | U17: Cusset-Bonnevay
M18: ce1/ce2 | O18: x | P18: x | T18: Ernest Renan B | U18: Cusset-Bonnevay
M19: ce2 | O19: x | P19: x | T19: François Truffaut | U19: Charpennes-Tonkin
M20: ce2/cm1 | O20: x | P20: x | T20: Immaculée conception (privé) | U20: Perralière-Grandclément
M21: cm1 | O21: x | P21: x | T21: Jacques Prévert | U21: Gratte-ciel-Dedieu-Charmettes
M22: cm1/cm2 | O22: x | P22: x | T22: Jean Jaurès (primaire) | U22: Ferrandière-Maisons Neuves
M23: cm2 | O23: x | P23: x | T23: Jean Moulin | U23: Buers-Croix-Luizet
M24: ULIS (école) | O24: x | P24: x | T24: Jean Zay | U24: Gratte-ciel-Dedieu-Charmettes
M25: UP2A (élémentaire) | O25: x | P25: x | T25: Jules Ferry | U25: Cusset-Bonnevay
M26: 6° | Q26: x | T26: Jules Guesde | U26: Cyprian-les-Brosses
M27: 5° | Q27: x | T27: La Nativité (privé) | U27: Perralière-Grandclément
M28: 4° | Q28: x | T28: Lakanal | U28: Charpennes-Tonkin
M29: 3° | Q29: x | T29: Lazare Goujon | U29: Cusset-Bonnevay
M30: ULIS (collège) | Q30: x | T30: Léon Jouhaux | U30: Gratte-ciel-Dedieu-Charmettes
M31: UP2A (collège) | Q31: x | T31: Louis Armand | U31: Charpennes-Tonkin
M32: 2° | R32: x | T32: Louis Pasteur | U32: Perralière-Grandclément
M33: 2° pro | R33: x | T33: Mère Teresa (privé) | U33: Charpennes-Tonkin
M34: 1° | R34: x | T34: Montessori (privé) | U34: Gratte-ciel-Dedieu-Charmettes
M35: 1° pro | R35: x | T35: René Pellet (déficients visuels) | U35: Perralière-Grandclément
M36: Tle | R36: x | T36: Rosa Parks | U36: Gratte-ciel-Dedieu-Charmettes
M37: Tle pro | R37: x | T37: Saint Exupéry | U37: Saint Jean
M38: ULIS (lycée) | R38: x | T38: Simone Veil | U38: Cyprian-les-Brosses
T39: Ste Thérèse (privé) | U39: Gratte-ciel-Dedieu-Charmettes
T40: Tonkin/Nigritelle | U40: Charpennes-Tonkin
T41: Collège des Gratte-Ciel (Môrice Leroux) | U41: Gratte-ciel-Dedieu-Charmettes
T42: Collège des Iris | U42: Cusset-Bonnevay
T43: Collège du Tonkin | U43: Charpennes-Tonkin
T44: Collège Jean Jaurès | U44: Ferrandière-Maisons Neuves
T45: Collège Jean Macé | U45: Buers-Croix-Luizet
T46: Collège Jean-Vilar | U46: Saint Jean
T47: Collège Lamartine | U47: Cyprian-les-Brosses
T48: Collège Louis Jouvet | U48: Ferrandière-Maisons Neuves
T49: Collège Simone Lagrange | U49: Saint Jean
T50: Lycée Alfred de Musset | U50: Cyprian-les-Brosses
T51: Lycée Frédéric Faÿs | U51: Cusset-Bonnevay
T52: Lycée Marie Curie | U52: Perralière-Grandclément
T53: Lycée Pierre Brossolette | U53: Gratte-ciel-Dedieu-Charmettes
T54: Lycée Magenta | U54: Gratte-ciel-Dedieu-Charmettes
